Workbook

Sheet Mandals (hidden)
Z1: =Code!$B$2 -> Nellore District | AA1: 44
B2: Adilabad | C2: Anathapuram | D2: Chittoor District | E2: East godavari District | F2: Guntur District | G2: Hyderabad District | H2: Kadapa District | I2: Kareemnagar District | J2: Khammam District | K2: Krishan District | L2: Kurnool District | M2: Mahaboobnagar District | N2: Medak District | O2: Nalgonda District | P2: Nizamabad District | Q2: Nellore District | R2: Prakasam District | S2: Ranga reddy District | T2: Sreekakulam District | U2: Visakhapatnam District | V2: Vizianagaram District | W2: Warangal District | X2: West godavari District | Y2: S.No | Z2: Districts | AA2: =LOOKUP(AA1,Y3:Y68,AA3:AA68) -> Venkatagiri
A3: 1 | B3: Adilabad | C3: Agali | D3: B Kothakota | E3: Addateegala | F3: Achampeta | H3: Atlur | I3: Bheemadevarpalle | J3: Aswapuram | K3: A Konduru | L3: Adoni | M3: Achampeta | N3: Alladurg | O3: Alair | P3: Armur | Q3: Allur | R3: Addanki | S3: Balanagar | T3: Amadalavalasa | U3: Anakapalli | V3: Badangi | W3: Atmakur | X3: Achanta | Y3: 1 | Z3: Adilabad | AA3: =HLOOKUP($Z$1,$B$2:$X$68,AB3,FALSE) -> Allur | AB3: 2
A4: 2 | B4: Narnoor | C4: Amadagur | D4: Baireddi Palle | E4: Ainavilli | F4: Amaravathi | H4: B Kodur | I4: Boinpalle | J4: Aswaraopeta | K4: Agiripalle | L4: Allagadda | M4: Addakal | N4: Andole | O4: Anumula | P4: Balkonda | Q4: Ananthasagaram | R4: Ardhaveedu | S4: Bantaram | T4: Battili | U4: Anandapuram | V4: Balajipeta | W4: Bachannapeta | X4: Akiveedu | Y4: 2 | Z4: Anathapuram | AA4: =HLOOKUP($Z$1,$B$2:$X$68,AB4,FALSE) -> Ananthasagaram | AB4: 3
A5: 3 | B5: Bela | C5: Amarapuram | D5: Bangarupalem | E5: Alamuru | F5: Amruthalur | H5: Badvel | I5: Chandurthi | J5: Bayyaram | K5: Avanigadda | L5: Alur | M5: Aiza | N5: Chegunta | O5: Atmakur | P5: Banswada | Q5: Anumasamudrampeta | R5: Ballikuruva | S5: Basheerabad | T5: Bhamini | U5: Ananthagiri | V5: Bhoghapuram | W5: Bhupalpalle | X5: Attili | Y5: 3 | Z5: Chittoor District | AA5: Anumasamudrampeta | AB5: 4
A6: 4 | B6: Boath | C6: Anantapur | D6: Buchinaidu Khandriga | E6: Allavaram | F6: Bapatla | H6: Brahmamgarimattam | I6: Choppadandi | J6: Bhadrachalam | K6: Bantumilli | L6: Aspari | M6: Alampur | N6: Chinna Kodur | O6: Atmakur | P6: Bheemgal | Q6: Atmakur | R6: Bestavaripeta | S6: Chevella | T6: Burja | U6: Araku Valley | V6: Bobbili | W6: Chennaraopet | X6: Bheemavaram | Y6: 4 | Z6: East godavari District | AA6: Atmakur | AB6: 5
A7: 5 | B7: Dilawarpur | C7: Atmakur | D7: Chandragiri | E7: Amalapuram | F7: Bellamkonda | H7: Chakrayapet | I7: Dharmapuri | J7: Bonakal | K7: Bapulapadu | L7: Atmakur | M7: Amangal | N7: Doultabad | O7: Bhuvanagiri | P7: Bhiknur | Q7: Balayapalli | R7: Chadrasekara Puram | S7: Dharur | T7: Etcherla | U7: Atchutapuram | V7: Bondapalle | W7: Cheriyal | X7: Bhimadole | Y7: 5 | Z7: Guntur District | AA7: Balayapalli | AB7: 6
A8: 6 | B8: Jainad | C8: Bathalapalle | D8: Chinnagottigallu | E8: Ambajipeta | F8: Bhattiprolu | H8: Chapad | I8: Dharmaram | J8: Burgampadu | K8: Challapalli | L8: Banaganapalle | M8: Amrabad | N8: Dubbak | O8: Bibinagar | P8: Bichkunda | Q8: Bogole | R8: Chimakurthi | S8: Domah | T8: Ganguvari Singadam | U8: Bheemunipatnam | V8: Chintalavalasa | W8: Chityal | X8: Buttayagudem | Y8: 6 | Z8: Hyderabad District | AA8: Bogole | AB8: 7
A9: 7 | B9: Kaddampeddur | C9: Beluguppa | D9: Chittoor | E9: Anaparthy | F9: Bollapalle | H9: Chennur | I9: Ellanthakunta | J9: Chandrugonda | K9: Chandarlapadu | L9: Bandi Atmakur | M9: Atmakur | N9: Eddumailaram | O9: Bommalaramaram | P9: Birkoor | Q9: Buchireddipalem | R9: Chinaganjam | S9: Gandeed | T9: Kaligapatnam | U9: Butchayyapeta | V9: Cheepurupalle | W9: Devaruppula | X9: Chagallu | Y9: 7 | Z9: Kadapa District | AA9: Buchireddipalem | AB9: 8
A10: 8 | B10: Khanpur | C10: Bommanahal | D10: Chowdepalle | E10: Atreyapuram | F10: Chebrole | H10: ChinnaChowk | I10: Gambhiraopet | J10: Cherla | K10: Chatrai | L10: Bethamcherla | M10: Balanagar | N10: Gajwel | O10: Chandam Pet | P10: Bodhan | Q10: Chejerla | R10: Chirala | S10: Ghatkesar | T10: Hiramandalam | U10: Cheedikada | V10: Dattirajeru | W10: Dharmasagar | X10: Chintalapudi | Y10: 8 | Z10: Kareemnagar District | AA10: Chejerla | AB10: 9
A11: 9 | B11: Kuntala | C11: Brahmasamudram | D11: Gangadhara Nellore | E11: Biccavolu | F11: Cherukupalle | H11: Chinnamandem | I11: Gangadhara | J11: Chinthakani | K11: G Konduru | L11: Bugganipalle | M11: Balmoor | N11: Hathnoora | O11: Chandur | P11: Dhar Palle | Q11: Chillakur | R11: Cumbum | S11: Hayathnagar | T11: Ichchapuram | U11: Chintapalle | V11: Denkada | W11: Dornakal | X11: Denduluru | Y11: 9 | Z11: Khammam District | AA11: Chillakur | AB11: 10
A12: 10 | B12: Mamda | C12: Bukkapatnam | D12: Gangavaram | E12: Devipatnam | F12: Chilakaluripet | H12: Chintha Kommadinne | I12: Gollapalle | J12: Chintur | K12: Gampalagudem | L12: C.Belagal | M12: Bhoothpur | N12: Jagdevpur | O12: Chilkur | P12: Dich Palle | Q12: Chittamur | R12: Darsi | S12: Ibrahimpatam | T12: Jalumuru | U12: Chodavaram | V12: Gajapathinagaram | W12: Duggondi | X12: Devarapalle | Y12: 10 | Z12: Krishan District | AA12: Chittamur | AB12: 11
A13: 11 | B13: Rebbana | C13: Bukkarayasamudram | D13: Gudi Palle | E13: Gandepalle | F13: Dachepalle | H13: Chitvel | I13: Husnabad | J13: Dammapeta | K13: Gannavaram | L13: Chagalamarri | M13: Bijinapalle | N13: Jharasangam | O13: Chintha Palle | P13: Domakonda | Q13: Dagadarthi | R13: Donakonda | S13: Kandukur | T13: Kanchili | U13: Devarapalle | V13: Gantyada | W13: Eturnagaram | X13: Dwaraka Tirumala | Y13: 11 | Z13: Kurnool District | AA13: Dagadarthi | AB13: 12
A14: 12 | B14: Talamadugu | C14: Chenne Kothapalle | D14: Gudipala | E14: Gangavaram | F14: Duggirala | H14: Duvvur | I14: Huzurabad | J14: Dummugudem | K14: Ghantasala | L14: Chippagiri | M14: Bomraspeta | N14: Jinnaram | O14: Chityala | P14: Gandhari | Q14: Dakkili | R14: Dornala | S14: Keesara | T14: Kaviti | U14: Dumbriguda | V14: Garividi | W14: Geesugonda | X14: Eluru | Y14: 12 | Z14: Mahaboobnagar District | AA14: Dakkili | AB14: 13
A15: 13 | B15: Tiryani | C15: Chilamathur | D15: Gurramkonda | E15: Gokavaram | F15: Durgi | H15: Galiveedu | I15: Ibrahimpatnam | J15: Enkuru | K15: Gudivada | L15: Devanakonda | M15: Chinna Chinta Kunta | N15: Kalher | O15: Chivvemla | P15: Jakranpalle | Q15: Doravarisatram | R15: Giddaluru | S15: Kulkacharla | T15: Kotabommili | U15: Gajuwaka | V15: Garugubilli | W15: Ghanapur | X15: Ganapavaram | Y15: 13 | Z15: Medak District | AA15: Doravarisatram | AB15: 14
A16: 14 | B16: Asifabad | C16: D.Hirchal | D16: Irala | E16: Gollaprolu | F16: Edlapadu | H16: Gopavaram | I16: Jagtial | J16: Garla | K16: Gudlavalleru | L16: Dhone | M16: Damaragidda | N16: Kohir | O16: Choutuppal | P16: Jukkal | Q16: Duttalur | R16: Gudluru | S16: Maheswaram | T16: Kothuru | U16: Gangaraju Madugula | V16: Gummalakshmipuram | W16: Ghanpur(Stn) | X16: Gopalapuram | Y16: 14 | Z16: Nalgonda District | AA16: Duttalur | AB16: 15
A17: 15 | B17: Bellampalle | C17: Dharmavaram | D17: K V P Puram | E17: I.Polavaram | F17: Guntur | H17: Jammalamadugu • | I17: Jammikunta | J17: Gundala | K17: Gudur | L17: Dornipadu | M17: Devarkadara | N17: Kondapak | O17: Dameracherla | P17: Kamareddy | Q17: Gudur | R17: Hanumanthunipadu | S17: Malkajgiri | T17: Laveru | U17: Golugonda | V17: Gurla | W17: Govindaraopet | X17: Iragavaram | Y17: 15 | Z17: Nizamabad District | AA17: Gudur | AB17: 16
A18: 16 | B18: Chennur | C18: Gandlapenta | D18: Kalakada | E18: Jaggampeta | F18: Gurazala | H18: Kadapa | I18: Julapalle | J18: Julurpad | K18: Ibrahimpatnam | L18: Gadivemula | M18: Dhanwada | N18: Kondapur | O18: Devarakonda | P18: Kammar Palle | Q18: Indukurpet | R18: Inkollu | S18: Manchal | T18: Mandasa | U18: Gudem Kothaveedhi | V18: Jami | W18: Gudur | X18: Jangareddigudem | Y18: 16 | Z18: Nellore District | AA18: Indukurpet | AB18: 17
A19: 17 | B19: Gudihathnur | C19: Garladinne | D19: Kalikiri | E19: Kadiam | F19: Ipuru | H19: Kalasapadu | I19: Kamalapur | J19: Kalluru | K19: Jaggayyapeta | L19: Gonegandla | M19: Dharur | N19: Kowdipalle | O19: Garide Palle | P19: Kotgiri | Q19: Jaladanki | R19: Janakavaram Panguluru | S19: Marpalle | T19: Meilaputti | U19: Hukumpeta | V19: Jiyyamma Valasa | W19: Hanamkonda | X19: Jeelugumilli | Y19: 17 | Z19: Prakasam District | AA19: Jaladanki | AB19: 18
A20: 18 | B20: Jainoor | C20: Gooty | D20: Kambhamvaripalle | E20: Kajuluru | F20: Kakumanu | H20: Kamalapuram | I20: Kamanpur | J20: Karepalli | K20: Kaikalur | L20: Gospadu | M20: Doulatabad | N20: Kulcharam | O20: Gundala | P20: Lingampet | Q20: Kaligiri | R20: Kandukur | S20: Medchal | T20: Nandigam | U20: K Kotapadu | V20: Komarada | W20: Hasanparthy | X20: Kalla | Y20: 18 | Z20: Ranga reddy District | AA20: Kaligiri | AB20: 19
A21: 19 | B21: Kagaz Nagar | C21: Gorantla | D21: Karvetinagar | E21: Kakinada(Rural) | F21: Karempudi | H21: Khajipet | I21: Karimnagar | J21: Khammam Rural | K21: Kalidindi | L21: Gudur | M21: Farooqnagar | N21: Manoor | O21: Gundla Palle | P21: Machareddy | Q21: Kaluvoya | R21: Kanigiri | S21: Moinabad | T21: Narasannapeta | U21: Kasimkota | V21: Kothavalasa | W21: Jangaon | X21: Kamavarapukota | Y21: 19 | Z21: Sreekakulam District | AA21: Kaluvoya | AB21: 20
A22: 20 | B22: Kotapalle | C22: Gudibanda | D22: Kuppam | E22: Kakinada(Urban) | F22: Karlapalem | H22: Kodur | I22: Kataram | J22: Khammam Urban | K22: Kanchika Cherla | L22: Halaharvi | M22: Gadwal | N22: Medak | O22: Gurrampode | P22: Madnur | Q22: Kavali | R22: Karamchedu | S22: Mominpet | T22: Palakonda | U22: Kotauratla | V22: Kurupam | W22: Kesamudram | X22: Kovvur | Y22: 20 | Z22: Visakhapatnam District | AA22: Kavali | AB22: 21
A23: 21 | B23: Laxmanchanda | C23: Gummagatta | D23: Kurabalakota | E23: Kapileswarapuram | F23: Kollipara | H23: Kondapuram | I23: Kathlapur | J23: Konijerla | K23: Kankipadu | L23: Holagunda | M23: Ghanpur | N23: Mirdoddi | O23: Huzurnagar | P23: Makloor | Q23: Kodavalur | R23: Komarolu | S23: Nawabpet | T23: Palasa | U23: Koyyuru | V23: Lakkavarapukota | W23: Khanapur | X23: Koyyalagudem | Y23: 21 | Z23: Vizianagaram District | AA23: Kodavalur | AB23: 22
A24: 22 | B24: Mancherial | C24: Guntakal | D24: Mandanpalle | E24: Karapa | F24: Kollur | H24: Lakkireddipalle • | I24: Kesavapatnam | J24: Kothagudem | K24: Koduru | L24: Jupadu Bungalow | M24: Ghattu | N24: Mulug | O24: Jaji Reddi Gudem | P24: Mortad | Q24: Kondapuram | R24: Konakanamitla | S24: Pargi | T24: Pathapatnam | U24: Madugula | V24: Makkuva | W24: Kodakandla | X24: Lingapalem | Y24: 22 | Z24: Warangal District | AA24: Kondapuram | AB24: 23
A25: 23 | B25: Nennal | C25: Hindupur | D25: Mulakalacheruvu | E25: Katrenikona | F25: Krosuru | H25: Lingala | I25: Kodimial | J25: Kukunoor | K25: Kruthivennu | L25: Kallur | M25: Gopalpeta | N25: Munpalle | O25: Kangal | P25: Naga Reddipet | Q25: Kota | R25: Kondapi | S25: Peddemul | T25: Polaki | U25: Makavarapalem | V25: Mentada | W25: Kothagudem | X25: Mogalthur | Y25: 23 | Z25: West godavari District | AA25: Kota | AB25: 24
A26: 24 | B26: Sarangapur | C26: Kadiri | D26: Nagalapuram | E26: Kirlampudi | F26: Machavaram | H26: Muddanur | I26: Koheda | J26: Kunavaram | K26: Machilipatnam | L26: Kodumur | M26: Hanwada | N26: Nanganur | O26: Kattangoor | P26: Nandipet | Q26: Kovur | R26: Korisapadu | S26: Pudur | T26: Ponduru | U26: Munagapaka | V26: Merakamudidam | W26: Kuravi | X26: Nallajerla | Y26: 24 | AA26: Kovur | AB26: 25
A27: 25 | B27: Tamsi | C27: Kalyandurg | D27: Nagari | E27: Korukonda | F27: Macherla | H27: Mylavaram | I27: Konaraopeta | J27: Kusumanchi | K27: Mandavalli | L27: Koilkuntla | M27: Itikyal | N27: Narayankhed | O27: Kethepalle | P27: Navipet | Q27: Manubolu | R27: Kothapatnam | S27: Quthbullapur | T27: Rajam | U27: Munchingiputtu | V27: Nellimarla | W27: Lingala Ghanpur | X27: Narasapuram | Y27: 25 | AA27: Manubolu | AB27: 26
A28: 26 | B28: Utnur | C28: Kambadur | D28: Narayanavanam | E28: Kotananduru | F28: Mangalagiri | H28: Mydukur | I28: Koratla | J28: Madhira | K28: Mopidevi | L28: Kolimigundla | M28: Jadcherla | N28: Narsapur | O28: Kodad | P28: Nizam Sagar | Q28: Marripadu | R28: Kurichedu | S28: Rajendranagar | T28: Ranastalam | U28: Nakkapalli | V28: Pachipenta | W28: Maddur | X28: Nidadavole | Y28: 26 | AA28: Marripadu | AB28: 27
A29: 27 | B29: Bazarhathnoor | C29: Kanaganapalle | D29: Nimmanapalle | E29: Kothapalle | F29: Medikonduru | H29: Nandalur | I29: Mahadevpur | J29: Manuguru | K29: Movva | L29: Kosigi | M29: Kalwakurthy | N29: Nyalkal | O29: M Turkapalle | P29: Nizamabad | Q29: Muthukur | R29: Lingasamudram | S29: Saroornagar | T29: Regidiamadalavalasa | U29: Narsipatnam | V29: Parvathipuram | W29: Mahabubabad | X29: Nidamarru | Y29: 27 | AA29: Muthukur | AB29: 28
A30: 28 | B30: Bhainsa | C30: Kanekal | D30: Nindra | E30: Kothapeta | F30: Muppalla | H30: Obulavaripalle | I30: Malharrao | J30: Mudigonda | K30: Mudinepalli | L30: Kothapalle | M30: Keshampeta | N30: Papannapet | O30: Marri Guda | P30: Pitlam | Q30: Naidupeta | R30: Maddipadu | S30: Serilingampalle | T30: Santhabommali | U30: Nathavaram | V30: Pusapatirega | W30: Mangapet | X30: Palacole | Y30: 28 | AA30: Naidupeta | AB30: 29
A31: 29 | B31: Dahegaon | C31: Kothacheruvu | D31: Pakala | E31: Malikipuram | F31: Nadendla | H31: Peddamudium • | I31: Mallapur | J31: Mulakalapalle | K31: Musunuru | L31: Kowthalam | M31: Kodair | N31: Patancheru | O31: Mattampalle | P31: Ranjal | Q31: Nellore | R31: Markapur | S31: Shabad | T31: Santhakaviti | U31: Paderu | V31: Ramabhadrapuram | W31: Maripeda | X31: Palakoderu | Y31: 29 | AA31: Nellore | AB31: 30
A32: 30 | B32: Ichoda | C32: Kudair | D32: Palamaner | E32: Mamidikuduru | F32: Nagaram | H32: Penagaluru | I32: Mallial | J32: Nelakondapalle | K32: Mylavaram | L32: Krishnagiri | M32: Kodangal | N32: Pulkal | O32: Mellachervu | P32: Sadasivanagar | Q32: Ojili | R32: Marripudi | S32: Shamirpet | T32: Saravakota | U32: Padmanabham | V32: Salur | W32: Mogullapalle | X32: Pedapadu | Y32: 30 | AA32: Ojili | AB32: 31
A33: 31 | B33: Jaipur | C33: Kundurpi | D33: Palasamudram | E33: Mandapeta | F33: Nakarikallu | H33: Pendlimarri | I33: Manakondur | J33: Palawancha | K33: Nagayalanka | L33: Kurnool | M33: Koilkonda | N33: Raikode | O33: Miryalaguda | P33: Sirkonda | Q33: Pellakur | R33: Martur | S33: Shamshabad | T33: Sarubujjili | U33: Paravada | V33: Seethanagaram | W33: Mulug | X33: Pedavegi | Y33: 31 | AA33: Pellakur | AB33: 32
A34: 32 | B34: Kasipet | C34: Lepakshi | D34: Pedda Panjani | E34: Maredumilli | F34: Narasaraopeta | H34: Porumamilla | I34: Manthani | J34: Penuballi | K34: Nandigama | L34: Maddikera East | M34: Kollapur | N34: Ramachandrapuram | O34: Mothey | P34: Tadwai | Q34: Podlakur | R34: Mundlamuru | S34: Shankarpalle | T34: Seethampeta | U34: Payakaraopeta | V34: Srungavarapukota | W34: Nallabelly | X34: Pentapadu | Y34: 32 | AA34: Podlakur | AB34: 33
A35: 33 | B35: Kouthala | C35: Mudigubba | D35: Peddamandyam | E35: Mummidivaram | F35: Nizampatnam | H35: Proddutur | I35: Medipalle | J35: Pinapaka | K35: Nandivada | L35: Mahanandi | M35: Kondurg | N35: Ramayampet | O35: Mothkur | P35: Varni | Q35: Rapur | R35: Naguluppalapadu | S35: Tandur | T35: Sompeta | U35: Pedabayalu | V35: Therlam | W35: Narmetta | X35: Penugonda | Y35: 33 | AA35: =HLOOKUP($Z$1,$B$2:$X$68,AB35,FALSE) -> Rapur | AB35: 34
A36: 34 | B36: Lohesra | C36: Nallacheruvu | D36: Peddathippasamudram | E36: P Gannavaram | F36: Nuzendla | H36: Pulivendla | I36: Metpalle | J36: Sathupalle | K36: Nuzvid | L36: Mantralayam | M36: Kosgi | N36: Regode | O36: Munagala | P36: Velpur | Q36: Sangam | R36: Ongole | S36: Uppal | T36: Srikakulam | U36: Pedagantyada | V36: Vepada | W36: Narsampet | X36: Penumantra | Y36: 34 | AA36: Sangam | AB36: 35
A37: 35 | B37: Mandamarri | C37: Nallamada | D37: Penumuru | E37: Pamarru | F37: Pedakakani | H37: Pullampeta | I37: Mustabad | J37: Singareni | K37: Pamarru | L37: Midthur | M37: Kothakota | N37: Sadasivpet | O37: Munugode | P37: Yeda Palle | Q37: Seetharamapuram | R37: Pamur | S37: Vikarabad | T37: Tekkali | U37: Pendurthi | V37: Vizianagaram | W37: Narsimhulapet | X37: Peravali | Y37: 35 | AA37: Seetharamapuram | AB37: 36
A38: 36 | B38: Neradigonda | C38: Nambulipulikunta | D38: Pichatur | E38: Pedapudi | F38: Pedakurapadu | H38: Railway Koduru • | I38: Mutharam Mahadevpur | J38: Thallada | K38: Pamidimukkala | L38: Nandavaram | M38: Kothur | N38: Sangareddy | O38: Nadigudem | P38: Yellareddy | Q38: Sullurpeta | R38: Parchur | S38: Yacharam | T38: Vajrapukothuru | U38: Rambilli | W38: Nekkonda | X38: Poduru | Y38: 36 | AA38: Sullurpeta | AB38: 37
A39: 37 | B39: Sirpur (T) | C39: Narpala | D39: Pileru | E39: Peddapuram | F39: Phirangipuram | H39: Rajampet | I39: Mutharam Manthani | J39: Thirumalayapalem | K39: Pedana | L39: Nandi Kotkur | M39: Lingal | N39: Shankarampet (A) | O39: Nakrekal | Q39: Sydapuram | R39: Pedaaraveedu | S39: Yelal | T39: Vangara | U39: Ravikamatham | W39: Nellikudur | X39: Polavaram | Y39: 37 | AA39: Sydapuram | AB39: 38
A40: 38 | B40: Tandur | C40: Obuladevaracheruvu | D40: Pulicherla | E40: Pithapuram | F40: Piduguralla | H40: Raju Palem | I40: Odela | J40: Vararamachandrapuram | K40: Pedaparupudi | L40: Nandyal | M40: Maddur | N40: Shankarampet (R) | O40: Nalgonda | Q40: Tada | R40: Pedacherlopalle | T40: Veeraghattam | U40: Rolugunta | W40: Palakurthi | X40: T Narasapuram | Y40: 38 | AA40: Tada | AB40: 39
A41: 39 | B41: Vemanpalle | C41: Pamidi | D41: Punganur | E41: Prathipadu | F41: Pittalavanipalem | H41: Ramapuram | I41: Peddapalle | J41: Velairpad | K41: Penamaluru | L41: Orvakal | M41: Madgul | N41: Shivampet | O41: Nampalle | Q41: Thotapalligudur | R41: Podili | U41: S Rayavaram | W41: Parkal | X41: Tadepalligudem | Y41: 39 | AA41: Thotapalligudur | AB41: 40
A42: 40 | B42: Bejjur | C42: Parigi | D42: Puthalapattu | E42: Rajahmundry (Urban) | F42: Ponnur | H42: Rayachoti | I42: Pegadapalle | J42: Vemsoor | K42: Penuganchiprolu | L42: Owk | M42: Maganoor | N42: Siddipet | O42: Narayanapur | Q42: Udayagiri | R42: Ponnaluru | U42: Sabbavaram | W42: Parvathagiri | X42: Tanuku | Y42: 40 | AA42: Udayagiri | AB42: 41
A43: 41 | B43: Bheemini | C43: Peddapappur | D43: Puttur | E43: Rajahmundry(Rural) | F43: Prathipadu | H43: S Mydukur | I43: Raikal | J43: Venkatapuram | K43: Reddigudem | L43: Pagidyala | M43: Mahbubnagar | N43: Tekmal | O43: Narketpalle | Q43: Vakadu | R43: Pullalacheruvu | U43: Visakhapatnam | W43: Raghunatha Palle | X43: Thallapudi | Y43: 41 | AA43: Vakadu | AB43: 42
A44: 42 | B44: Dandepalle | C44: Peddavadugur | D44: Rama Kuppam | E44: Rajanagaram | F44: Rajupalem | H44: Sambepalle | I44: Ramadugu | J44: Wazeed | K44: Thotlavalluru | L44: Pamulapadu | M44: Makthal | N44: Tupran | O44: Nered Cherla | Q44: Varikuntapadu | R44: Racherla | U44: Visakhapatnam(U) | W44: Raiparthy | X44: Undi | Y44: 42 | AA44: Varikuntapadu | AB44: 43
A45: 43 | B45: Inderavelly | C45: Penu Konda | D45: Ramachandrapuram | E45: Rajavommangi | F45: Rentacrintala | H45: Sidhout | I45: Ramagundam | J45: Wyra | K45: Tiruvuru | L45: Panyam | M45: Maldakal | N45: Wargal | O45: Nidamanur | Q45: Venkatachalam | R45: Santhamaguluru | U45: Yelamanchili | W45: Regonda | X45: Undrajavaram | Y45: 43 | AA45: Venkatachalam | AB45: 44
A46: 44 | B46: Jannaram | C46: Putlur | D46: Ramasamudram | E46: Ramachandrapuram | F46: Repalle | H46: Simhadripuram • | I46: Saidapur | J46: Yellandu | K46: Unguturu | L46: Pattikanda | M46: Manopadu | N46: Yeldurthy | O46: Nuthankal | Q46: Venkatagiri | R46: Santhanuthlapadu | W46: Sangem | X46: Unguturu | Y46: 44 | AA46: Venkatagiri | AB46: 45
A47: 45 | B47: Kerameri | C47: Puttaparthi | D47: Renigunta | E47: Rampachodavaram | F47: Rompicherla | H47: T Sundupalle | I47: Sarangapur | J47: Yerrupalem | K47: Vatsavai | L47: Peapally | M47: Midjil | N47: Zahirabad | O47: Pedda Adiserlapalle | Q47: Vidavalur | R47: Singarayakonda | W47: Shayampet | X47: Veeravasaram | Y47: 45 | AA47: Vidavalur | AB47: 46
A48: 46 | B48: Kubeer | C48: Ramagiri | D48: Rompicherla | E48: Rangampeta | F48: Sattenapalle | H48: Thandur | I48: Sirsilla | K48: Veerullapadu | L48: Pedda Kadubur | M48: Nagar Kurnool | O48: Peddavura | Q48: Vinjamur | R48: Tangutur | W48: Tadvai | X48: Yelamanchili | Y48: 46 | AA48: Vinjamur | AB48: 47
A49: 47 | B49: Luxettipet | C49: Raptadu | D49: Santhi Puram | E49: Ravula Palem | F49: Savalyapuram | H49: Vallur | I49: Srirampur | K49: Vijayawada Rural | L49: Rudravaram | M49: Narayanpet | O49: Penpahad | R49: Tarlapadu | W49: Thorrur | Y49: 47 | AA49: 0 | AB49: 48
A50: 48 | B50: Mudhole | C50: Roddam | D50: Satyavedu | E50: Rayavaram | F50: Tadikonda | H50: Veeraballe | I50: Sultanabad | K50: Vijayawada Urban | L50: Sanjamala | M50: Narva | O50: Pochampalle | R50: Thallur | W50: Venkatapur | Y50: 48 | AA50: 0 | AB50: 49
A51: 49 | B51: Nirmal | C51: Rolla | D51: Sodam | E51: Razole | F51: Tenali | H51: Veerapunayunipalle • | I51: Thimmapur | K51: Vissannapet | L51: Sirvel | M51: Nawabpet | O51: Rajapet | R51: Tripuranthakam | W51: Wardhannapet | Y51: 49 | AA51: 0 | AB51: 50
A52: 50 | B52: Sirpur (U) | C52: Settur | D52: Somala | E52: Sakhinetipalle | F52: Thadepalle | H52: Vempalle | I52: Veenavanka | K52: Vuyyuru | L52: Srisailam | M52: Pangal | O52: Ramannapeta | R52: Ulavapadu | W52: Zaffergadh | Y52: 50 | AA52: 0 | AB52: 51
A53: 51 | B53: Tanur | C53: Singanamala | D53: Srikalahasti | E53: Samalkota | F53: Thullur | H53: Vemula | I53: Velgatoor | L53: Tuggali | M53: Pebbair | O53: Saligouraram | R53: Veligandla | Y53: 51 | AA53: 0 | AB53: 52
A54: 52 | B54: Wankdi | C54: Somandepalle | D54: Srirangarajapuram | E54: Sankhavaram | F54: Tsundur | H54: Vontimitta | I54: Vemulawada | L54: Uyyalawada | M54: Peddakothapalle | O54: Suryapet | R54: Vetapalem | Y54: 52 | AA54: 0 | AB54: 53
A55: 53 | C55: Tadimarri | D55: Thamballapalle | E55: Seethanagaram | F55: Vatticherukuru | H55: Yerraguntla | I55: Yella Reddi Peta | L55: Veldurthi | M55: Peddamandadi | O55: Thipparthi | R55: Voletivaripalem | Y55: 53 | AA55: 0 | AB55: 54
A56: 54 | C56: Tadpatri | D56: Thavanampalle | E56: Thallarevu | F56: Veldurthi | H56: Yerraguntla | L56: Velgodu | M56: Tadoor | O56: Thirumalagiri | R56: Yeddanapudi | Y56: 54 | AA56: 0 | AB56: 55
A57: 55 | C57: Talupula | D57: Thottambedu | E57: Thondangi | F57: Vemuru | L57: Yemmiganur | M57: Talakondapalle | O57: Thripuraram | R57: Yerragondapalem | Y57: 55 | AA57: 0 | AB57: 56
A58: 56 | C58: Tanakal | D58: Tirupati Rural | E58: Tuni | F58: Vinukonda | M58: Telkapalle | O58: Thunga Thurthi | R58: Zarugumilli | Y58: 56 | AA58: 0 | AB58: 57
A59: 57 | C59: Uravakonda | D59: Tirupati Urban | E59: Uppalaguptam | M59: Thimmajipeta | O59: Valigonda | Y59: 57 | AA59: 0 | AB59: 58
A60: 58 | C60: Vajrakarur | D60: Vadamalapeta | E60: Y Ramavaram | M60: Uppununthala | O60: Vemulapalle | Y60: 58 | AA60: 0 | AB60: 59
A61: 59 | C61: Vidapanakal | D61: Varadaiahpalem | E61: Yeleswaram | M61: Utkoor | O61: Yadagirigutta | Y61: 59 | AA61: 0 | AB61: 60
A62: 60 | C62: Yadiki | D62: Vayalpad | M62: Vangoor | Y62: 60 | AA62: 0 | AB62: 61
A63: 61 | C63: Yellanur | D63: Veduru Kuppam | M63: Veepangandla | Y63: 61 | AA63: 0 | AB63: 62
A64: 62 | D64: Venkatagiri Kota | M64: Veldanda | Y64: 62 | AA64: 0 | AB64: 63
A65: 63 | D65: Vijaya Puram | M65: Waddepalle | Y65: 63 | AA65: 0 | AB65: 64
A66: 64 | D66: Yadamari | M66: Wanaparthy | Y66: 64 | AA66: 0 | AB66: 65
A67: 65 | D67: Yerpedu | Y67: 65 | AA67: =HLOOKUP($Z$1,$B$2:$X$68,AB67,FALSE) -> 0 | AB67: 66
A68: 66 | D68: Yerravaripalem | Y68: 66 | AA68: =HLOOKUP($Z$1,$B$2:$X$68,AB68,FALSE) -> 0 | AB68: 67

Sheet Code (hidden)
B1: 16 | AM1: 10 | AN1: 2 | AO1: 17 | AP1: 9
B2: =VLOOKUP(B1,Mandals!Y3:Z25,2) -> Nellore District | W2: July basic | AM2: Halyf Pay Leave | AO2: Loss of Pay | AR2: 1 | AS2: =VLOOKUP(AR2,AR4:AS11,2) -> Not Applicable | AU2: 1 | AV2: =LOOKUP(AU2,AU3:AU15,AV3:AV15) -> 0 | BH2: Start date | BL2: Start date | BN2: End date
U3: 30 | V3: 43 | W3: =VLOOKUP(V3,U5:V84,2) -> 42490 | AA3: 16 | AB3: =LOOKUP(AA3,AA5:AB69,AB5:AB69) -> 7970 | AC3: 2 | AD3: =VLOOKUP(AC3,AC5:AD7,2) -> 15 | AE3: 2 | AG3: 4 | AH3: =VLOOKUP(AG3,AG5:AH12,2) -> 60 | AI3: 2 | AJ3: =VLOOKUP(AI3,AI5:AJ10,2) -> 20 | AK3: 2 | AL3: =VLOOKUP(AK3,AK5:AL7,2) -> 20 | AM3: 2 | AN3: =LOOKUP(AM3,AM4:AN5) -> Not Applicale | AO3: 2 | AP3: =LOOKUP(AO3,AO4:AP5) -> Not Applicale | AR3: gis 2 | AU3: 1 | AV3: 0 | BH3: 6 | BI3: 7 | BN3: 7 | BO3: 9
P4: 19 | Q4: 18 | R4: =LOOKUP(Q4,Q5:Q70,R5:R70) -> Kamalapuram • | U4: 1 | V4: 1 | W4: 12 | X4: =VLOOKUP(W4,W5:X17,2) -> 2017-01-01 | Y4: 4 | Z4: =VLOOKUP(Y4,Y5:Z10,2) -> 0.145 | AA4: RPS 2005 | AC4: EARNED LEAVE | AE4: PHC | AG4: gis 1 | AI4: EWF | AK4: SWF | AM4: 1 | AN4: Applicable | AO4: 1 | AP4: Applicable | AR4: 1 | AS4: Not Applicable | AU4: 2 | AV4: 400 | BH4: Half pay | BI4: Loss of pay | BL4: Half pay | BM4: Loss of pay | BN4: Half pay | BO4: Loss of pay
A5: List of Mandals in Nellore District | C5: List of Mandals in Chittoor District | E5: List of Mandals in Prakasam District | F5: List of Mandals in Guntur District | G5: List of Mandals in Cuddapah District | H5: List of Mandals in Anantapur District | I5: List of Mandals in Kurnool District | J5: List of Mandals in Visakhapatnam District | K5: List of Mandals in Vizianagaram District | L5: List of Mandals in Adilabad District | O5: 1 | P5: Adilabad District | Q5: 1 | R5: =IF(B1=1," ",IF(B1=2,B6,IF(B1=3,D6,IF(B1=4,E6,IF(B1=5,F6,G6))))) -> Atlur • | T5: 6700 | U5: 1 | V5: 13000 | W5: 1 | X5: Not Applicable | Y5: 1 | Z5: 0.1 | AA5: 1 | AB5: 5470 | AC5: 1 | AD5: =IF(AD8="Applicable",AF8," ") -> 0 | AE5: 1 | AF5: YES | AG5: 1 | AH5: 0 | AI5: 1 | AJ5: 0 | AK5: 1 | AL5: 0 | AM5: 2 | AN5: Not Applicale | AO5: 2 | AP5: Not Applicale | AR5: 2 | AS5: 30 | AU5: 3 | AV5: 800 | BH5: =IF(AN$3="Applicable",AM18," ") ->  | BI5: =IF(AP$3="Applicable",AM18," ") ->  | BJ5: 1 | BL5: 1 | BM5: 1 | BN5: =IF(AN$3="Applicable",AM18," ") ->  | BO5: =IF(AP$3="Applicable",AM18," ") -> 
A6: 1 | B6: Allur | C6: 1 | D6: B Kothakota | E6: Addanki | F6: Achampeta | G6: Atlur • | H6: Agali • Amadagur • Amarapuram • Anantapur • Atmakur • Bathalapalle • Beluguppa • Bommanahal • Brahmasamudram • Bukkapatnam • Bukkarayasamudram • Chenne Kothapalle • Chilamathur • D.Hirchal • Dharmavaram • Gandlapenta • Garladinne • Gooty • Gorantla • Gudibanda • Gummagatta • Guntakal • Hindupur • Kadiri • Kalyandurg • Kambadur • Kanaganapalle • Kanekal • Kothacheruvu • Kudair • Kundurpi • Lepakshi • Madakasira • Mudigubba • Nallacheruvu • Nallamada • Nambulipulikunta • Narpala • Obuladevaracheruvu • Pamidi • Parigi • Peddapappur • Peddavadugur • Penu Konda • Putlur • Puttaparthi • Ramagiri • Raptadu • Rayadurg • Roddam • Rolla • Settur • Singanamala • Somandepalle • Tadimarri • Tadpatri • Talupula • Tanakal • Uravakonda • Vajrakarur • Vidapanakal • Yadiki • Yellanur | I6: Adoni • Allagadda • Alur • Aspari • Atmakur • Banaganapalle • Bandi Atmakur • Bethamcherla • Bugganipalle • C.Belagal • Chagalamarri • Chippagiri • Devanakonda • Dhone • Dornipadu • Gadivemula • Gonegandla • Gospadu • Gudur • Halaharvi • Holagunda • Jupadu Bungalow • Kallur • Kodumur • Koilkuntla • Kolimigundla • Kosigi • Kothapalle • Kowthalam • Krishnagiri • Kurnool • Maddikera East • Mahanandi • Mantralayam • Midthur • Nandavaram • Nandi Kotkur • Nandyal • Orvakal • Owk • Pagidyala • Pamulapadu • Panyam • Pattikanda • Peapally • Pedda Kadubur • Rudravaram • Sanjamala • Sirvel • Srisailam • Tuggali • Uyyalawada • Veldurthi (Kurnool District) • Velgodu • Yemmiganur | J6: Anakapalli | K6: Badangi • Balajipeta • Bhoghapuram • Bobbili • Bondapalle • Chintalavalasa • Cheepurupalle • Dattirajeru • Denkada • Gajapathinagaram • Gantyada • Garividi • Garugubilli • Gummalakshmipuram • Gurla • Jami • Jiyyamma Valasa • Komarada • Kothavalasa • Kurupam • Lakkavarapukota • Makkuva • Mentada • Merakamudidam • Nellimarla • Pachipenta • Parvathipuram • Pusapatirega • Ramabhadrapuram • Salur • Seethanagaram (Vizianagaram District) • Srungavarapukota • Therlam • Vepada • Vizianagaram | L6: Adilabad • Bela • Boath • Dilawarpur • Jainad • Kaddampeddur • Khanpur • Kuntala • Mamda • Narnoor • Rebbana • Talamadugu • Tiryani • Asifabad • Bellampalle • Chennur • Gudihathnur • Jainoor • Kagaz Nagar • Kotapalle • Laxmanchanda • Mancherial • Nennal • Sarangapur • Tamsi • Utnur • Bazarhathnoor • Bhainsa • Dahegaon • Ichoda • Jaipur • Kasipet • Kouthala • Lohesra • Mandamarri • Neradigonda • Sirpur (T) • Tandur • Vemanpalle • Bejjur • Bheemini • Dandepalle • Inderavelly • Jannaram • Kerameri • Kubeer • Luxettipet • Mudhole • Nirmal • Sirpur (U) • Tanur • Wankdi | Q6: 2 | R6: =IF(B1=1," ",IF(B1=2,B7,IF(B1=3,D7,IF(B1=4,E7,IF(B1=5,F7,G7))))) -> B Kodur | T6: 6900 | U6: 2 | V6: 13390 | W6: 2 | X6: =AQ18 -> 2016-03-01 | Y6: 2 | Z6: 0.12 | AA6: 2 | AB6: 5605 | AC6: 2 | AD6: =IF(AD8="Applicable",AF9," ") -> 15 | AE6: 2 | AF6: NO | AG6: 2 | AH6: 15 | AI6: 2 | AJ6: 20 | AK6: 2 | AL6: 20 | AM6: 2 | AN6: =IF(AN$3="Applicable",AM18," ") ->  | AO6: 1 | AP6: =IF(AP$3="Applicable",AM18," ") ->  | AR6: 3 | AS6: 60 | AU6: 4 | AV6: 1000 | BH6: =IF(AN$3="Applicable",AM19," ") ->  | BI6: =IF(AP$3="Applicable",AM19," ") ->  | BJ6: 1 | BK6: 2015 | BL6: =IF(AN$3="Applicable",BK6," ") ->  | BM6: =IF(AP$3="Applicable",BK6," ") ->  | BN6: =IF(AN$3="Applicable",AM19," ") ->  | BO6: =IF(AP$3="Applicable",AM19," ") -> 
A7: 2 | B7: Ananthasagaram | C7: 2 | D7: Baireddi Palle | E7: Ardhaveedu | F7: Amaravathi | G7: B Kodur | J7: • Anandapuram • | O7: 2 | P7: SPSR Nellore District | Q7: 3 | R7: =IF(B1=1," ",IF(B1=2,B8,IF(B1=3,D8,IF(B1=4,E8,IF(B1=5,F8,G8))))) -> • Badvel | T7: 7100 | U7: 3 | V7: 13780 | W7: 3 | X7: 2016-04-01 | Y7: 3 | Z7: 0.125 | AA7: 3 | AB7: 5750 | AC7: 3 | AD7: =IF(AD8="Applicable",AF10," ") -> 30 | AG7: 3 | AH7: 30 | AI7: 3 | AJ7: 50 | AK7: 3 | AL7: 50 | AN7: =IF(AN$3="Applicable",AM19," ") ->  | AP7: =IF(AP$3="Applicable",AM19," ") ->  | AR7: 4 | AS7: 75 | AU7: 5 | AV7: 1200 | BJ7: 2 | BK7: 2016 | BL7: =IF(AN$3="Applicable",BK7," ") ->  | BM7: =IF(AP$3="Applicable",BK7," ") -> 
A8: 3 | B8: Anumasamudrampeta | C8: 3 | D8: Bangarupalem | E8: Ballikuruva | F8: Amruthalur | G8: • Badvel | J8: Ananthagiri • Araku Valley • Atchutapuram • Bheemunipatnam • Butchayyapeta • Cheedikada • Chintapalle • Chodavaram • Devarapalle • Dumbriguda • Gajuwaka • Gangaraju Madugula • Golugonda • Gudem Kothaveedhi • Hukumpeta • K Kotapadu • Kasimkota • Kotauratla • Koyyuru • Madugula • Makavarapalem • Munagapaka • Munchingiputtu • Nakkapalli • Narsipatnam • Nathavaram • Paderu • Padmanabham • Paravada • Payakaraopeta • Pedabayalu • Pedagantyada • Pendurthi • Rambilli • Ravikamatham • Rolugunta • S Rayavaram • Sabbavaram • Visakhapatnam • Visakhapatnam(U) • Yelamanchili | O8: 3 | P8: Chittoor District | Q8: 4 | R8: =IF(B1=1," ",IF(B1=2,B9,IF(B1=3,D9,IF(B1=4,E9,IF(B1=5,F9,G9))))) -> • Brahmamgarimattam | T8: 7300 | U8: 4 | V8: 14170 | W8: 4 | X8: 2016-05-01 | Y8: 4 | Z8: 0.145 | AA8: 4 | AB8: 5895 | AC8: 1 | AD8: =LOOKUP(AC8,AC9:AC10,AD9:AD10) -> Applicable | AF8: 0 | AG8: 4 | AH8: 60 | AI8: 4 | AJ8: 150 | AR8: 5 | AS8: 120 | AU8: 6 | AV8: 1400 | BK8: Year | BL8: =LOOKUP(BL5,BJ6:BJ7,BL6:BL7) ->  | BM8: =LOOKUP(BM5,BJ6:BJ7,BM6:BM7) -> 
A9: 4 | B9: Atmakur | C9: 4 | D9: Buchinaidu Khandriga | E9: Bestavaripeta | F9: Bapatla | G9: • Brahmamgarimattam | O9: 2 | P9: East Godavari District | Q9: 5 | R9: =IF(B1=1," ",IF(B1=2,B10,IF(B1=3,D10,IF(B1=4,E10,IF(B1=5,F10,G10))))) -> • Chakrayapet | T9: 7520 | U9: 5 | V9: 14600 | W9: 5 | X9: 2016-06-01 | Y9: 5 | Z9: 0.2 | AA9: 5 | AB9: 6040 | AC9: 1 | AD9: Applicable | AF9: 15 | AG9: 5 | AH9: 75 | AI9: 5 | AJ9: 200 | AR9: 6 | AS9: 150 | AU9: 7 | AV9: 1600 | BS9: 9912340596
A10: 5 | B10: Balayapalli | C10: 5 | D10: Chandragiri | E10: Chadrasekara Puram | F10: Bellamkonda | G10: • Chakrayapet | O10: 6 | P10: Guntur District | Q10: 6 | R10: =IF(B1=1," ",IF(B1=2,B11,IF(B1=3,D11,IF(B1=4,E11,IF(B1=5,F11,G11))))) -> • Chapad • | T10: 7740 | U10: 6 | V10: 15030 | W10: 6 | X10: 2016-07-01 | Y10: 6 | Z10: 0.3 | AA10: 6 | AB10: 6195 | AC10: 2 | AD10: Not Applicale | AF10: 30 | AG10: 6 | AH10: 120 | AI10: 6 | AJ10: 300 | AR10: 7 | AS10: 200 | AU10: 8 | AV10: 1800
A11: 6 | B11: Bogole | C11: 6 | D11: Chinnagottigallu | E11: Chimakurthi | F11: Bhattiprolu | G11: • Chapad • | O11: 7 | P11: Hyderabad District | Q11: 7 | R11: =IF(B1=1," ",IF(B1=2,B12,IF(B1=3,D12,IF(B1=4,E12,IF(B1=5,F12,G12))))) -> Chennur | T11: 7960 | U11: 7 | V11: 15460 | W11: 7 | X11: 2016-08-01 | Y11: 1 | Z11: =VLOOKUP(Y11,Y12:Z16,2) -> 0 | AA11: 7 | AB11: 6350 | AG11: 7 | AH11: 150 | AU11: 9 | AV11: 2000
A12: 7 | B12: Buchireddipalem | C12: 7 | D12: Chittoor | E12: Chinaganjam | F12: Bollapalle | G12: Chennur | O12: 8 | P12: Kareemnagar District | Q12: 8 | R12: =IF(B1=1," ",IF(B1=2,B13,IF(B1=3,D13,IF(B1=4,E13,IF(B1=5,F13,G13))))) -> • ChinnaChowk | T12: 8200 | U12: 8 | V12: 15930 | W12: 8 | X12: 2016-09-01 | Y12: 1 | Z12: 0 | AA12: 8 | AB12: 6505 | AC12: 3 | AD12: =LOOKUP(AC12,AC14:AD16) -> ZPPF | AG12: 8 | AH12: 200 | AU12: 10 | AV12: 2400
A13: 8 | B13: Chejerla | C13: 8 | D13: Chowdepalle | E13: Chirala | F13: Chebrole | G13: • ChinnaChowk | O13: 9 | P13: Khammam District | Q13: 9 | R13: =IF(B1=1," ",IF(B1=2,B14,IF(B1=3,D14,IF(B1=4,E14,IF(B1=5,F14,G14))))) -> • Chinnamandem | T13: 8440 | U13: 9 | V13: 16400 | W13: 9 | X13: 2016-10-01 | Y13: 2 | Z13: 0.12 | AA13: 9 | AB13: 6675 | AC13: ZPPF/GPF/CPS | AU13: 11 | AV13: 2800
A14: 9 | B14: Chillakur | C14: 9 | D14: Gangadhara Nellore | E14: Cumbum | F14: Cherukupalle | G14: • Chinnamandem | O14: 10 | P14: Krishna District | Q14: 10 | R14: =IF(B1=1," ",IF(B1=2,B15,IF(B1=3,D15,IF(B1=4,E15,IF(B1=5,F15,G15))))) -> • Chintha Kommadinne | T14: 8680 | U14: 10 | V14: 16870 | W14: 10 | X14: 2016-11-01 | Y14: 3 | Z14: 0.145 | AA14: 10 | AB14: 6845 | AC14: 1 | AD14: CPS | AU14: 12 | AV14: 3200
A15: 10 | B15: Chittamur | C15: 10 | D15: Gangavaram | E15: Darsi | F15: Chilakaluripet | G15: • Chintha Kommadinne | O15: 11 | P15: Kurnool District | Q15: 11 | R15: =IF(B1=1," ",IF(B1=2,B16,IF(B1=3,D16,IF(B1=4,E16,IF(B1=5,F16,G16))))) -> • Chitvel | T15: 8940 | U15: 11 | V15: 17380 | W15: 11 | X15: 2016-12-01 | Y15: 4 | Z15: 0.2 | AA15: 11 | AB15: 7015 | AC15: 2 | AD15: GPF | AJ15: earned L | AK15: 12 | AL15: =LOOKUP(AK15,AE18:AE29,AL18:AL29) -> 2017-02-01 | AM15: =MATCH(AK15,AF18:AF29) ->  | AN15: =AK15+2 -> 14 | AU15: 13 | AV15: 3600
A16: 11 | B16: Dagadarthi | C16: 11 | D16: Gudi Palle | E16: Donakonda | F16: Dachepalle | G16: • Chitvel | O16: 12 | P16: Mahboobnagar District | Q16: 12 | R16: =IF(B1=1," ",IF(B1=2,B17,IF(B1=3,D17,IF(B1=4,E17,IF(B1=5,F17,G17))))) -> • Cuddapah | T16: 9200 | U16: 12 | V16: 17890 | W16: 12 | X16: 2017-01-01 | Y16: 5 | Z16: 0.3 | AA16: 12 | AB16: 7200 | AC16: 3 | AD16: ZPPF | AS16: 11 | AY16: Revised PF
A17: 12 | B17: Dakkili | C17: 12 | D17: Gudipala | E17: Dornala | F17: Duggirala | G17: • Cuddapah | O17: 13 | P17: Medak District | Q17: 13 | R17: =IF(B1=1," ",IF(B1=2,B18,IF(B1=3,D18,IF(B1=4,E18,IF(B1=5,F18,G18))))) -> • Duvvur • | T17: 9460 | U17: 13 | V17: 18400 | W17: 13 | X17: 2017-02-01 | AA17: 13 | AB17: 7385 | AC17: 1 | AE17: 9 | AF17: =VLOOKUP(AE17,AE18:AF29,2) ->  | AG17: 8/16/24 scale | AI17: date | AJ17: 2 | AK17: =LOOKUP(AJ17,AE18:AE19,AK18:AK19) ->  | AO17: 6 | AQ17: =Data!W31 -> 0 | AR17: apgli | AS17: =Data!T31 -> 1150 | AU17: =Data!$Y$31 -> 0 | AY17: 4 | BH17: Start date | BJ17: End date | BN17: End date
A18: 13 | B18: Doravarisatram | C18: 13 | D18: Gurramkonda | E18: Giddaluru | F18: Durgi | G18: • Duvvur • | O18: 14 | P18: Nalgonda District | Q18: 14 | R18: =IF(B1=1," ",IF(B1=2,B19,IF(B1=3,D19,IF(B1=4,E19,IF(B1=5,F19,G19))))) -> Galiveedu • | T18: 9740 | U18: 14 | V18: 18950 | AA18: 14 | AB18: 7570 | AC18: 1 | AD18: =IF(AH18="Applicable",AC18," ") ->  | AE18: 1 | AF18: =IF(AH18="Applicable",X6," ") ->  | AG18: 2 | AH18: =LOOKUP(AG18,AG19:AH20) -> Not Applicable | AI18: 31 | AJ18: =IF(AH18="Applicable",AM18," ") ->  | AK18: =IF(AH$18="Applicable",2016," ") ->  | AL18: =IF(OR(AD3=30,AD3=15),AQ18," ") -> 2016-03-01 | AM18: Jan | AN18: 2016 | AO18: 1 | AP18: =IF(AQ17>0,AQ18," ") ->  | AQ18: ='SALARY TABLE'!B5 -> 2016-03-01 | AR18: ='SALARY TABLE'!U5 -> 1150 | AS18: =IF($AU$17>0,AQ18," ") ->  | AT18: =$AS$17 -> 1150 | AU18: =IF(AO18>=AO17,AQ17,AS17) -> 1150 | AV18: =IF($AO$17<=AO18,$AQ$17,0) -> 0 | AW18: =IF($AS$16<=AO18,$AU$17,0) -> 0 | AX18: =MAX(AU18,AV18,AW18,AT18) -> 1150 | AY18: =AQ18 -> 2016-03-01 | BA18: =$AA$3 -> 16 | BB18: =LOOKUP(BA18,BA19:BA83,BB19:BB83) -> 7970 | BC18: =LOOKUP(BB18,BB20:BB84,BC20:BC84) -> 14860 | BH18: Half pay | BI18: Loss of pay | BJ18: Half pay | BK18: Loss of pay
A19: 14 | B19: Duttalur | C19: 14 | D19: Irala | E19: Gudluru | F19: Edlapadu | G19: Galiveedu • | O19: 15 | P19: Nizamabad District | Q19: 15 | R19: =IF(B1=1," ",IF(B1=2,B20,IF(B1=3,D20,IF(B1=4,E20,IF(B1=5,F20,G20))))) -> Gopavaram • | T19: 10020 | U19: 15 | V19: 19500 | W19: 2 | X19: =VLOOKUP(W19,W20:X21,2) -> No | AA19: 15 | AB19: 7770 | AC19: 2 | AD19: =IF(AH18="Applicable",AC19," ") ->  | AE19: 2 | AF19: =IF(AH18="Applicable",X7," ") ->  | AG19: 1 | AH19: Applicable | AI19: 28 | AJ19: =IF(AH18="Applicable",AM19," ") ->  | AK19: =IF(AH$18="Applicable",2017," ") ->  | AL19: =IF(OR(AD3=30,AD3=15),AQ19," ") -> 2016-04-01 | AM19: Feb | AN19: 2017 | AO19: 2 | AP19: =IF(AQ17>0,AQ19," ") ->  | AQ19: ='SALARY TABLE'!B6 -> 2016-04-01 | AR19: ='SALARY TABLE'!U6 -> 1150 | AS19: =IF($AU$17>0,AQ19," ") ->  | AT19: =$AS$17 -> 1150 | AU19: =IF(AO19>=AO17,AQ17,AS17) -> 1150 | AV19: =IF($AO$17<=AO19,$AQ$17,0) -> 0 | AW19: =IF($AS$16<=AO19,$AU$17,0) -> 0 | AX19: =MAX(AU19,AV19,AW19,AT19) -> 1150 | AY19: =AQ19 -> 2016-04-01 | BB19: 0 | BC19: SGT | BD19: SA | BE19: HM | BF19: 1 | BG19: Secondary Grade Teacher | BH19: =IF($AN$3="Applicable",AC18," ") ->  | BI19: =IF($AP$3="Applicable",AC18," ") ->  | BJ19: =IF($AN$3="Applicable",AC18," ") ->  | BK19: =IF($AP$3="Applicable",AC18," ") ->  | BN19: Half pay | BO19: Loss of pay
A20: 15 | B20: Gudur | C20: 15 | D20: K V P Puram | E20: Hanumanthunipadu | F20: Guntur | G20: Gopavaram • | O20: 16 | P20: Prakasham District | Q20: 16 | R20: =IF(B1=1," ",IF(B1=2,B21,IF(B1=3,D21,IF(B1=4,E21,IF(B1=5,F21,G21))))) -> Jammalamadugu • | T20: 10300 | U20: 16 | V20: 20050 | W20: 1 | X20: Yes | AA20: 16 | AB20: 7970 | AC20: 3 | AD20: =IF(AH18="Applicable",AC20," ") ->  | AE20: 3 | AF20: =IF(AH18="Applicable",X8," ") ->  | AG20: 2 | AH20: Not Applicable | AI20: 31 | AJ20: =IF(AH18="Applicable",AM20," ") ->  | AL20: =IF(OR(AD3=30,AD3=15),AQ20," ") -> 2016-05-01 | AM20: Mar | AO20: 3 | AP20: =IF(AQ17>0,AQ20," ") ->  | AQ20: ='SALARY TABLE'!B7 -> 2016-05-01 | AR20: ='SALARY TABLE'!U7 -> 1150 | AT20: 1150 | AU20: =IF(AO20>=AO17,AQ17,AS17) -> 1150 | AV20: 0 | AW20: 0 | AX20: 1150 | AY20: 2016-05-01 | AZ20: 5470 | BA20: 1 | BB20: 5470 | BC20: 10900 | BD20: 14860 | BE20: 18030 | BF20: 2 | BG20: School Assistant | BI20: =IF($AP$3="Applicable",AC19," ") ->  | BJ20: =IF($AN$3="Applicable",AC19," ") ->  | BK20: =IF($AP$3="Applicable",AC19," ") ->  | BL20: 1 | BN20: 1 | BO20: 1
A21: 16 | B21: Indukurpet | C21: 16 | D21: Kalakada | E21: Inkollu | F21: Gurazala | G21: Jammalamadugu • | O21: 17 | P21: Ranga Reddy District | Q21: 17 | R21: =IF(B1=1," ",IF(B1=2,B22,IF(B1=3,D22,IF(B1=4,E22,IF(B1=5,F22,G22))))) -> Kalasapadu • | T21: 10600 | U21: 17 | V21: 20640 | W21: 2 | X21: No | AA21: 17 | AB21: 8170 | AC21: 4 | AD21: =IF(AH18="Applicable",AC21," ") ->  | AE21: 4 | AF21: =IF(AH18="Applicable",X9," ") ->  | AI21: 30 | AJ21: =IF(AH18="Applicable",AM21," ") ->  | AL21: =IF(OR(AD3=30,AD3=15),AQ21," ") -> 2016-06-01 | AM21: Apr | AO21: 4 | AP21: =IF(AQ17>0,AQ21," ") ->  | AQ21: ='SALARY TABLE'!B8 -> 2016-06-01 | AR21: ='SALARY TABLE'!U8 -> 1150 | AT21: 1150 | AU21: =IF(AO21>=AO17,AQ17,AS17) -> 1150 | AV21: 0 | AW21: 0 | AX21: 1150 | AY21: 2016-06-01 | AZ21: 5605 | BA21: 2 | BB21: 5605 | BC21: 10900 | BD21: 14860 | BE21: 18030 | BF21: 3 | BG21: HM | BL21: 1 | BM21: 2015 | BN21: =IF(AN$3="Applicable",BM21," ") ->  | BO21: =IF(AP$3="Applicable",BM21," ") -> 
A22: 17 | B22: Jaladanki | C22: 17 | D22: Kalikiri | E22: Janakavaram Panguluru | F22: Ipuru | G22: Kalasapadu • | O22: 18 | P22: Sreekakulam District | Q22: 18 | R22: =IF(B1=1," ",IF(B1=2,B23,IF(B1=3,D23,IF(B1=4,E23,IF(B1=5,F23,G23))))) -> Kamalapuram • | T22: 10900 | U22: 18 | V22: 21230 | W22: With DA | AA22: 18 | AB22: 8385 | AC22: 5 | AD22: =IF(AH18="Applicable",AC22," ") ->  | AE22: 5 | AF22: =IF(AH18="Applicable",X10," ") ->  | AG22: Stepup | AI22: 31 | AJ22: =IF(AH18="Applicable",AM22," ") ->  | AL22: =IF(OR(AD3=30,AD3=15),AQ22," ") -> 2016-07-01 | AM22: May | AO22: 5 | AP22: =IF(AQ17>0,AQ22," ") ->  | AQ22: ='SALARY TABLE'!B9 -> 2016-07-01 | AR22: ='SALARY TABLE'!U9 -> 1150 | AT22: 1150 | AU22: =IF(AO22>=AO17,AQ17,AS17) -> 1150 | AV22: 0 | AW22: 0 | AX22: 1150 | AY22: 2016-07-01 | AZ22: 5750 | BA22: 3 | BB22: 5750 | BC22: 10900 | BD22: 14860 | BE22: 18030 | BL22: 2 | BM22: 2016 | BN22: =IF(AN$3="Applicable",BM22," ") ->  | BO22: =IF(AP$3="Applicable",BM22," ") -> 
A23: 18 | B23: Kaligiri | C23: 18 | D23: Kambhamvaripalle | E23: Kandukur | F23: Kakumanu | G23: Kamalapuram • | O23: 19 | P23: Vishakapatnam District | Q23: 19 | R23: =IF(B1=1," ",IF(B1=2,B24,IF(B1=3,D24,IF(B1=4,E24,IF(B1=5,F24,G24))))) -> Khajipet • | T23: 11200 | U23: 19 | V23: 21820 | W23: 1 | X23: =VLOOKUP(W23,W24:X25,2) -> Yes | AA23: 19 | AB23: 8600 | AC23: 6 | AD23: =IF(AH18="Applicable",AC23," ") ->  | AE23: 6 | AF23: =IF(AH18="Applicable",X11," ") ->  | AG23: 2 | AH23: =LOOKUP(AG23,AG24:AH25) -> Not Applicable | AI23: 30 | AJ23: =IF(AH18="Applicable",AM23," ") ->  | AL23: =IF(OR(AD3=30,AD3=15),AQ23," ") -> 2016-08-01 | AM23: Jun | AO23: 6 | AP23: =IF(AQ17>0,AQ23," ") ->  | AQ23: ='SALARY TABLE'!B10 -> 2016-08-01 | AR23: ='SALARY TABLE'!U10 -> 1150 | AT23: 1150 | AU23: =IF(AO23>=AO17,AQ17,AS17) -> 0 | AV23: 0 | AW23: 0 | AX23: 1150 | AY23: 2016-08-01 | AZ23: 5895 | BA23: 4 | BB23: 5895 | BC23: 10900 | BD23: 14860 | BE23: 18030 | BM23: Year | BN23: =LOOKUP(BN20,BL21:BL22,BN21:BN22) ->  | BO23: =LOOKUP(BO20,BL21:BL22,BO21:BO22) -> 
A24: 19 | B24: Kaluvoya | C24: 19 | D24: Karvetinagar | E24: Kanigiri | F24: Karempudi | G24: Khajipet • | O24: 20 | P24: Vizianagaram District | Q24: 20 | R24: =IF(B1=1," ",IF(B1=2,B25,IF(B1=3,D25,IF(B1=4,E25,IF(B1=5,F25,G25))))) -> Kodur • | T24: 11530 | U24: 20 | V24: 22460 | W24: 1 | X24: Yes | AA24: 20 | AB24: 8815 | AC24: 7 | AD24: =IF(AH18="Applicable",AC24," ") ->  | AE24: 7 | AF24: =IF(AH18="Applicable",X12," ") ->  | AG24: 1 | AH24: Applicable | AI24: 31 | AJ24: =IF(AH18="Applicable",AM24," ") ->  | AL24: =IF(OR(AD3=30,AD3=15),AQ24," ") -> 2016-09-01 | AM24: Jul | AO24: 7 | AP24: =IF(AQ17>0,AQ24," ") ->  | AQ24: ='SALARY TABLE'!B11 -> 2016-09-01 | AR24: ='SALARY TABLE'!U11 -> 1150 | AT24: 1150 | AU24: =IF(AO24>=AO17,AQ17,AS17) -> 0 | AV24: 0 | AW24: 0 | AX24: 1150 | AY24: 2016-09-01 | AZ24: 6040 | BA24: 5 | BB24: 6040 | BC24: 11200 | BD24: 14860 | BE24: 18030
A25: 20 | B25: Kavali | C25: 20 | D25: Kuppam | E25: Karamchedu | F25: Karlapalem | G25: Kodur • | P25: Warangal District | Q25: 21 | R25: =IF(B1=1," ",IF(B1=2,B26,IF(B1=3,D26,IF(B1=4,E26,IF(B1=5,F26,G26))))) -> Kondapuram • | T25: 11860 | U25: 21 | V25: 23100 | W25: 2 | X25: No | AA25: 21 | AB25: 9050 | AC25: 8 | AD25: =IF(AH18="Applicable",AC25," ") ->  | AE25: 8 | AF25: =IF(AH18="Applicable",X13," ") ->  | AG25: 2 | AH25: Not Applicable | AI25: 31 | AJ25: =IF(AH18="Applicable",AM25," ") ->  | AL25: =IF(OR(AD3=30,AD3=15),AQ25," ") -> 2016-10-01 | AM25: Aug | AO25: 8 | AP25: =IF(AQ17>0,AQ25," ") ->  | AQ25: ='SALARY TABLE'!B12 -> 2016-10-01 | AR25: ='SALARY TABLE'!U12 -> 1150 | AT25: 1150 | AU25: =IF(AO25>=AO17,AQ17,AS17) -> 0 | AV25: 0 | AW25: 0 | AX25: 1150 | AY25: 2016-10-01 | AZ25: 6195 | BA25: 6 | BB25: 6195 | BC25: 11530 | BD25: 14860 | BE25: 18030
A26: 21 | B26: Kodavalur | C26: 21 | D26: Kurabalakota | E26: Komarolu | F26: Kollipara | G26: Kondapuram • | O26: 22 | P26: West Godavari District | Q26: 22 | R26: =IF(B1=1," ",IF(B1=2,B27,IF(B1=3,D27,IF(B1=4,E27,IF(B1=5,F27,G27))))) -> Lakkireddipalle • | T26: 12190 | U26: 22 | V26: 23740 | AA26: 22 | AB26: 9285 | AC26: 9 | AD26: =IF(AH18="Applicable",AC26," ") ->  | AE26: 9 | AF26: =IF(AH18="Applicable",X14," ") ->  | AG26: 1 | AH26: 1 | AI26: 30 | AJ26: =IF(AH18="Applicable",AM26," ") ->  | AL26: =IF(OR(AD3=30,AD3=15),AQ26," ") -> 2016-11-01 | AM26: Sep | AO26: 9 | AP26: =IF(AQ17>0,AQ26," ") ->  | AQ26: ='SALARY TABLE'!B13 -> 2016-11-01 | AR26: ='SALARY TABLE'!U13 -> 1150 | AT26: 1150 | AU26: =IF(AO26>=AO17,AQ17,AS17) -> 0 | AV26: 0 | AW26: 0 | AX26: 1150 | AY26: 2016-11-01 | AZ26: 6350 | BA26: 7 | BB26: 6350 | BC26: 11530 | BD26: 14860 | BE26: 18030
A27: 22 | B27: Kondapuram | C27: 22 | D27: Mandanpalle | E27: Konakanamitla | F27: Kollur | G27: Lakkireddipalle • | O27: 23 | P27: YSR Kadapa District | Q27: 23 | R27: =IF(B1=1," ",IF(B1=2,B28,IF(B1=3,D28,IF(B1=4,E28,IF(B1=5,F28,G28))))) -> Lingala • | T27: 12550 | U27: 23 | V27: 24440 | AA27: 23 | AB27: 9520 | AC27: 10 | AD27: =IF(AH18="Applicable",AC27," ") ->  | AE27: 10 | AF27: =IF(AH18="Applicable",X15," ") ->  | AI27: 31 | AJ27: =IF(AH18="Applicable",AM27," ") ->  | AL27: =IF(OR(AD3=30,AD3=15),AQ27," ") -> 2016-12-01 | AM27: Oct | AO27: 10 | AP27: =IF(AQ17>0,AQ27," ") ->  | AQ27: ='SALARY TABLE'!B14 -> 2016-12-01 | AR27: ='SALARY TABLE'!U14 -> 1150 | AT27: 1150 | AU27: =IF(AO27>=AO17,AQ17,AS17) -> 0 | AV27: 0 | AW27: 0 | AX27: 1150 | AY27: 2016-12-01 | AZ27: 6505 | BA27: 8 | BB27: 6505 | BC27: 11860 | BD27: 14860 | BE27: 18030
A28: 23 | B28: Kota | C28: 23 | D28: Mulakalacheruvu | E28: Kondapi | F28: Krosuru | G28: Lingala • | Q28: 24 | R28: =IF(B1=1," ",IF(B1=2,B29,IF(B1=3,D29,IF(B1=4,E29,IF(B1=5,F29,G29))))) -> Muddanur • | T28: 12910 | U28: 24 | V28: 25140 | AA28: 24 | AB28: 9775 | AC28: 11 | AD28: =IF(AH18="Applicable",AC28," ") ->  | AE28: 11 | AF28: =IF(AH18="Applicable",X16," ") ->  | AI28: 30 | AJ28: =IF(AH18="Applicable",AM28," ") ->  | AL28: =IF(OR(AD3=30,AD3=15),AQ28," ") -> 2017-01-01 | AM28: Nov | AO28: 11 | AP28: =IF(AQ17>0,AQ28," ") ->  | AQ28: ='SALARY TABLE'!B15 -> 2017-01-01 | AR28: ='SALARY TABLE'!U15 -> 1150 | AT28: 1150 | AU28: =IF(AO28>=AO17,AQ17,AS17) -> 0 | AV28: 0 | AW28: 0 | AX28: 1150 | AY28: 2017-01-01 | AZ28: 6675 | BA28: 9 | BB28: 6675 | BC28: 12190 | BD28: 14860 | BE28: 18030 | BL28: 1 | BM28: 2010-01-01 | BN28: 31 | BO28: =BN28 -> 1900-01-31 | BQ28: 40179 | BR28: =BQ29-BQ28 -> 31
A29: 24 | B29: Kovur | C29: 24 | D29: Nagalapuram | E29: Korisapadu | F29: Machavaram | G29: Muddanur • | Q29: 25 | R29: =IF(B1=1," ",IF(B1=2,B30,IF(B1=3,D30,IF(B1=4,E30,IF(B1=5,F30,G30))))) -> Mylavaram • | T29: 13270 | U29: 25 | V29: 25840 | AA29: 25 | AB29: 10030 | AC29: 12 | AD29: =IF(AH18="Applicable",AC29," ") ->  | AE29: 12 | AF29: =IF(AH18="Applicable",X17," ") ->  | AG29: 2 | AH29: =LOOKUP(AG29,AG30:AG31,AH30:AH31) ->  | AI29: 31 | AJ29: =IF(AH18="Applicable",AM29," ") ->  | AL29: =IF(OR(AD3=30,AD3=15),AQ29," ") -> 2017-02-01 | AM29: Dec | AO29: 12 | AP29: =IF(AQ17>0,AQ29," ") ->  | AQ29: ='SALARY TABLE'!B16 -> 2017-02-01 | AR29: ='SALARY TABLE'!U16 -> 1150 | AT29: 1150 | AU29: =IF(AO29>=AO17,AQ17,AS17) -> 0 | AV29: 0 | AW29: 0 | AX29: 1150 | AY29: 2017-02-01 | AZ29: 6845 | BA29: 10 | BB29: 6845 | BC29: 12550 | BD29: 14860 | BE29: 18030 | BL29: 2 | BM29: 2010-02-01 | BN29: 28 | BO29: =BN29 -> 1900-01-28 | BQ29: 40210 | BR29: =BQ30-BQ29 -> 28
A30: 25 | B30: Manubolu | C30: 25 | D30: Nagari | E30: Kothapatnam | F30: Macherla | G30: Mylavaram • | O30: 1 | P30: Not applicable | Q30: 26 | R30: =IF(B1=1," ",IF(B1=2,B31,IF(B1=3,D31,IF(B1=4,E31,IF(B1=5,F31,G31))))) -> Mydukur • | T30: 13660 | U30: 26 | V30: 26600 | AA30: 26 | AB30: 10285 | AC30: 13 | AD30: =IF(AH18="Applicable",AC30," ") ->  | AE30: 8/16/24 scale | AG30: 1 | AH30: =IF(AH$23="Applicable",AN18," ") ->  | AI30: 1 | AJ30: =LOOKUP(AI30,AI31:AI32,AJ31:AJ32) ->  | AL30: PHC | AZ30: 7015 | BA30: 11 | BB30: 7015 | BC30: 12910 | BD30: 14860 | BE30: 18030 | BL30: 3 | BM30: 2010-03-01 | BN30: 31 | BO30: 1900-01-31 | BQ30: 40238 | BR30: 31
A31: 26 | B31: Marripadu | C31: 26 | D31: Narayanavanam | E31: Kurichedu | F31: Mangalagiri | G31: Mydukur • | O31: 2 | P31: SPSR Nellore District | Q31: 27 | R31: =IF(B1=1," ",IF(B1=2,B32,IF(B1=3,D32,IF(B1=4,E32,IF(B1=5,F32,G32))))) -> Nandalur • | T31: 14050 | U31: 27 | V31: 27360 | AA31: 27 | AB31: 10565 | AC31: 14 | AD31: =IF(AH18="Applicable",AC31," ") ->  | AE31: Date | AF31: =DATE(AK17,AE17,AC17) ->  | AG31: 2 | AH31: =IF(AH$23="Applicable",AN19," ") ->  | AI31: 1 | AJ31: =IF(AE3=1,AL31," ") ->  | AL31: Vacation Post | AZ31: 7200 | BA31: 12 | BB31: 7200 | BC31: 13270 | BD31: 14860 | BE31: 18030 | BL31: 4 | BM31: 2010-04-01 | BN31: 30 | BO31: 1900-01-30 | BQ31: 40269 | BR31: 30
A32: 27 | B32: Muthukur | C32: 27 | D32: Nimmanapalle | E32: Lingasamudram | F32: Medikonduru | G32: Nandalur • | O32: 3 | P32: Chittoor District | Q32: 28 | R32: =IF(B1=1," ",IF(B1=2,B33,IF(B1=3,D33,IF(B1=4,E33,IF(B1=5,F33,G33))))) -> Obulavaripalle • | T32: 14440 | U32: 28 | V32: 28120 | W32: 1 | X32: 24.824 | Y32: ='SALARY TABLE'!L59 -> 0.12052 | AA32: 28 | AB32: 10845 | AC32: 15 | AD32: =IF(AH18="Applicable",AC32," ") ->  | AF32: =DATE(AK17,AE17,1) ->  | AI32: 2 | AJ32: =IF(AE3=1,AL32," ") ->  | AL32: Non Vacation Post | AO32: 11 | AP32: =LOOKUP(AY17,AO18:AO29,AY18:AY29) -> 2016-06-01 | AQ32: =Data!Y29 -> 8000 | AR32: PF | AS32: =Data!T29 -> 6000 | AZ32: 7385 | BA32: 13 | BB32: 7385 | BC32: 13660 | BD32: 14860 | BE32: 18030 | BL32: 5 | BM32: 2010-05-01 | BN32: 31 | BO32: 1900-01-31 | BQ32: 40299 | BR32: 31
A33: 28 | B33: Naidupeta | C33: 28 | D33: Nindra | E33: Maddipadu | F33: Muppalla | G33: Obulavaripalle • | O33: 4 | P33: Prakasham District | Q33: 29 | R33: =IF(B1=1," ",IF(B1=2,B34,IF(B1=3,D34,IF(B1=4,E34,IF(B1=5,F34,G34))))) -> Peddamudium • | T33: 14860 | U33: 29 | V33: 28940 | W33: 2 | X33: 24.824 | Y33: ='SALARY TABLE'!L60 -> 0.12052 | AA33: 29 | AB33: 11125 | AC33: 16 | AD33: =IF(AH18="Applicable",AC33," ") ->  | AF33: =LOOKUP(AE17,AE18:AE29,AI18:AI29) -> 30 | AH33: =IF($AH$23="Applicable",AM18," ") ->  | AO33: 1 | AP33: =IF(AQ32>0,AQ33," ") -> 2016-03-01 | AQ33: =AQ18 -> 2016-03-01 | AR33: ='SALARY TABLE'!R5 -> 6000 | AU33: =IF(AO33>=AO32,AQ32,AS32) -> 6000 | AV33: =AS32 -> 6000 | AW33: =ROUND(IF($AC$12=1,'SALARY TABLE'!W59,IF(AU33=0,AV33,AU33)),0) -> 6000 | AZ33: 7570 | BA33: 14 | BB33: 7570 | BC33: 14050 | BD33: 14860 | BE33: 18030 | BL33: 6 | BM33: 2010-06-01 | BN33: 30 | BO33: 1900-01-30 | BQ33: 40330 | BR33: 30
A34: 29 | B34: Nellore | C34: 29 | D34: Pakala | E34: Markapur | F34: Nadendla | G34: Peddamudium • | O34: 5 | P34: Guntur District | Q34: 30 | R34: =IF(B1=1," ",IF(B1=2,B35,IF(B1=3,D35,IF(B1=4,E35,IF(B1=5,F35,G35))))) -> Penagaluru • | T34: 15280 | U34: 30 | V34: 29760 | W34: 3 | X34: 24.824 | Y34: ='SALARY TABLE'!L61 -> 0.12052 | AA34: 30 | AB34: 11440 | AC34: 17 | AD34: =IF(AH18="Applicable",AC34," ") ->  | AE34: Days | AF34: =AF33-AC17+1 -> 30 | AH34: =IF($AH$23="Applicable",AM19," ") ->  | AO34: 2 | AP34: =IF(AQ32>0,AQ34," ") -> 2016-04-01 | AQ34: =AQ19 -> 2016-04-01 | AR34: ='SALARY TABLE'!R6 -> 6000 | AU34: =IF(AO34>=AO32,AQ32,AS32) -> 6000 | AV34: =AV33 -> 6000 | AW34: =ROUND(IF($AC$12=1,'SALARY TABLE'!W60,IF(AU34=0,AV34,AU34)),0) -> 6000 | AZ34: 7770 | BA34: 15 | BB34: 7770 | BC34: 14440 | BD34: 14860 | BE34: 18030 | BL34: 7 | BM34: 2010-07-01 | BN34: 31 | BO34: 1900-01-31 | BQ34: 40360 | BR34: 31
A35: 30 | B35: Ojili | C35: 30 | D35: Palamaner | E35: Marripudi | F35: Nagaram | G35: Penagaluru • | O35: 6 | P35: YSR Kadapa District | Q35: 31 | R35: =IF(B1=1," ",IF(B1=2,B36,IF(B1=3,D36,IF(B1=4,E36,IF(B1=5,F36,G36))))) -> Pendlimarri • | T35: 15700 | U35: 31 | V35: 30580 | W35: 4 | X35: 9.416 | Y35: ='SALARY TABLE'!L62 -> 0.12052 | AA35: 31 | AB35: 11755 | AC35: 18 | AD35: =IF(AH18="Applicable",AC35," ") ->  | AF35: =LOOKUP(AF32,'SALARY TABLE'!B57:B70,'SALARY TABLE'!C57:C70) ->  | AJ35: Vacation | AK35: N-V | AO35: 3 | AP35: =IF(AQ32>0,AQ35," ") -> 2016-05-01 | AQ35: 2016-05-01 | AR35: ='SALARY TABLE'!R7 -> 6000 | AU35: =IF(AO35>=AO32,AQ32,AS32) -> 6000 | AV35: 6000 | AW35: =ROUND(IF($AC$12=1,'SALARY TABLE'!W61,IF(AU35=0,AV35,AU35)),0) -> 6000 | AZ35: 7970 | BA35: 16 | BB35: 7970 | BC35: 14860 | BD35: 14860 | BE35: 18030 | BL35: 8 | BM35: 2010-08-01 | BN35: 31 | BO35: 1900-01-31 | BQ35: 40391 | BR35: 31
A36: 31 | B36: Pellakur | C36: 31 | D36: Palasamudram | E36: Martur | F36: Nakarikallu | G36: Pendlimarri • | Q36: 32 | R36: =IF(B1=1," ",IF(B1=2,B37,IF(B1=3,D37,IF(B1=4,E37,IF(B1=5,F37,G37))))) -> Porumamilla • | T36: 16150 | U36: 32 | V36: 31460 | W36: 5 | X36: 9.416 | Y36: ='SALARY TABLE'!L63 -> 0.12052 | AA36: 32 | AB36: 12070 | AC36: 19 | AD36: =IF(AH18="Applicable",AC36," ") ->  | AF36: =LOOKUP(AF35,'SALARY TABLE'!B50:CC50,'SALARY TABLE'!B51:CC51) ->  | AI36: ='SALARY TABLE'!I59 -> 42490 | AJ36: =IF(AE3=1,IF(ROUND(AI36*10%,0)<650,ROUND(AI36*10%,0),650),0) -> 0 | AK36: =IF(AE3=1,IF(ROUND(AI36*10%,0)<650,ROUND(AI36*10%,0),650),0) -> 0 | AL36: =IF(AI30=1,AJ36,AK36) -> 0 | AO36: 4 | AP36: =IF(AQ32>0,AQ36," ") -> 2016-06-01 | AQ36: 2016-06-01 | AR36: ='SALARY TABLE'!R8 -> 6000 | AU36: =IF(AO36>=AO32,AQ32,AS32) -> 6000 | AV36: 6000 | AW36: =ROUND(IF($AC$12=1,'SALARY TABLE'!W62,IF(AU36=0,AV36,AU36)),0) -> 6000 | AZ36: 8170 | BA36: 17 | BB36: 8170 | BC36: 14860 | BD36: 14860 | BE36: 18030 | BL36: 9 | BM36: 2010-09-01 | BN36: 30 | BO36: 1900-01-30 | BQ36: 40422 | BR36: 30
A37: 32 | B37: Podlakur | C37: 32 | D37: Pedda Panjani | E37: Mundlamuru | F37: Narasaraopeta | G37: Porumamilla • | Q37: 33 | R37: =IF(B1=1," ",IF(B1=2,B38,IF(B1=3,D38,IF(B1=4,E38,IF(B1=5,F38,G38))))) -> Proddutur • | T37: 16600 | U37: 33 | V37: 32340 | W37: 6 | X37: 9.416 | Y37: ='SALARY TABLE'!L64 -> 0.15196 | AA37: 33 | AB37: 12385 | AC37: 20 | AD37: =IF(AH18="Applicable",AC37," ") ->  | AF37: =AF36-AF35 ->  | AI37: ='SALARY TABLE'!I60 -> 42490 | AJ37: =IF(AE3=1,IF(ROUND(AI37*10%,0)<900,ROUND(AI37*10%,0),900)/30*23,0) -> 0 | AK37: =IF(AE3=1,IF(ROUND(AI37*10%,0)<900,ROUND(AI37*10%,0),900),0) -> 0 | AL37: =IF(AI30=1,AJ37,AK37) -> 0 | AO37: 5 | AP37: =IF(AQ32>0,AQ37," ") -> 2016-07-01 | AQ37: 2016-07-01 | AR37: ='SALARY TABLE'!R9 -> 6000 | AU37: =IF(AO37>=AO32,AQ32,AS32) -> 6000 | AV37: 6000 | AW37: =ROUND(IF($AC$12=1,'SALARY TABLE'!W63,IF(AU37=0,AV37,AU37)),0) -> 6000 | AZ37: 8385 | BA37: 18 | BB37: 8385 | BC37: 15280 | BD37: 15280 | BE37: 18030 | BL37: 10 | BM37: 2010-10-01 | BN37: 31 | BO37: 1900-01-31 | BQ37: 40452 | BR37: 31
A38: 33 | B38: Rapur | C38: 33 | D38: Peddamandyam | E38: Naguluppalapadu | F38: Nizampatnam | G38: Proddutur • | Q38: 34 | R38: =IF(B1=1," ",IF(B1=2,B39,IF(B1=3,D39,IF(B1=4,E39,IF(B1=5,F39,G39))))) -> Pulivendla • | T38: 17050 | U38: 34 | V38: 33220 | W38: 7 | X38: 16.264 | Y38: ='SALARY TABLE'!L65 -> 0.15196 | AA38: 34 | AB38: 12700 | AC38: 21 | AD38: =IF(AH18="Applicable",AC38," ") ->  | AF38: =ROUND(AF37/AF33*AF34,0) ->  | AI38: ='SALARY TABLE'!I61 -> 42490 | AJ38: 0 | AK38: =IF(AE3=1,IF(ROUND(AI38*10%,0)<900,ROUND(AI38*10%,0),900),0) -> 0 | AL38: =IF(AI30=1,AJ38,AK38) -> 0 | AO38: 6 | AP38: =IF(AQ32>0,AQ38," ") -> 2016-08-01 | AQ38: 2016-08-01 | AR38: ='SALARY TABLE'!R10 -> 6000 | AU38: =IF(AO38>=AO32,AQ32,AS32) -> 6000 | AV38: 6000 | AW38: =ROUND(IF($AC$12=1,'SALARY TABLE'!W64,IF(AU38=0,AV38,AU38)),0) -> 6000 | AZ38: 8600 | BA38: 19 | BB38: 8600 | BC38: 15700 | BD38: 15700 | BE38: 18030 | BL38: 11 | BM38: 2010-11-01 | BN38: 30 | BO38: 1900-01-30 | BQ38: 40483 | BR38: 30
A39: 34 | B39: Sangam | C39: 34 | D39: Peddathippasamudram | E39: Ongole | F39: Nuzendla | G39: Pulivendla • | Q39: 35 | R39: =IF(B1=1," ",IF(B1=2,B40,IF(B1=3,D40,IF(B1=4,E40,IF(B1=5,F40,G40))))) -> Pullampeta • | T39: 17540 | U39: 35 | V39: 34170 | W39: 8 | X39: 16.264 | Y39: ='SALARY TABLE'!L66 -> 0.15196 | AA39: 35 | AB39: 13030 | AC39: 22 | AD39: =IF(AH18="Applicable",AC39," ") ->  | AE39: 8/16/24 DA | AF39: =LOOKUP(AE17,W32:W43,Y32:Y43) -> 0.15196 | AG39: =LOOKUP(AE17,W32:W43,X32:X43) -> 16.264 | AI39: ='SALARY TABLE'!I62 -> 42490 | AJ39: =IF(AE3=1,IF(ROUND(AI39*10%,0)<900,ROUND(AI39*10%,0),900)/30*17,0) -> 0 | AK39: =IF(AE3=1,IF(ROUND(AI39*10%,0)<900,ROUND(AI39*10%,0),900),0) -> 0 | AL39: =IF(AI30=1,AJ39,AK39) -> 0 | AO39: 7 | AP39: =IF(AQ32>0,AQ39," ") -> 2016-09-01 | AQ39: 2016-09-01 | AR39: ='SALARY TABLE'!R11 -> 6000 | AU39: =IF(AO39>=AO32,AQ32,AS32) -> 6000 | AV39: 6000 | AW39: =ROUND(IF($AC$12=1,'SALARY TABLE'!W65,IF(AU39=0,AV39,AU39)),0) -> 6000 | AZ39: 8815 | BA39: 20 | BB39: 8815 | BC39: 16150 | BD39: 16150 | BE39: 18030 | BL39: 12 | BM39: 2010-12-01 | BN39: 31 | BO39: 1900-01-31 | BQ39: 40513 | BR39: 31
A40: 35 | B40: Seetharamapuram | C40: 35 | D40: Penumuru | E40: Pamur | F40: Pedakakani | G40: Pullampeta • | Q40: 36 | R40: =IF(B1=1," ",IF(B1=2,B41,IF(B1=3,D41,IF(B1=4,E41,IF(B1=5,F41,G41))))) -> Railway Koduru • | T40: 18030 | U40: 36 | V40: 35120 | W40: 9 | X40: 16.264 | Y40: ='SALARY TABLE'!L67 -> 0.15196 | AA40: 36 | AB40: 13390 | AC40: 23 | AD40: =IF(AH18="Applicable",AC40," ") ->  | AE40: DA | AF40: =ROUND(AF38*AF39,0) ->  | AG40: =ROUND(AF38*AG39%,0) ->  | AI40: ='SALARY TABLE'!I63 -> 42490 | AJ40: =IF(AE3=1,IF(ROUND(AI40*10%,0)<900,ROUND(AI40*10%,0),900),0) -> 0 | AK40: =IF(AE3=1,IF(ROUND(AI40*10%,0)<900,ROUND(AI40*10%,0),900),0) -> 0 | AL40: =IF(AI30=1,AJ40,AK40) -> 0 | AO40: 8 | AP40: =IF(AQ32>0,AQ40," ") -> 2016-10-01 | AQ40: 2016-10-01 | AR40: ='SALARY TABLE'!R12 -> 6000 | AU40: =IF(AO40>=AO32,AQ32,AS32) -> 6000 | AV40: 6000 | AW40: =ROUND(IF($AC$12=1,'SALARY TABLE'!W66,IF(AU40=0,AV40,AU40)),0) -> 6000 | AZ40: 9050 | BA40: 21 | BB40: 9050 | BC40: 16600 | BD40: 16600 | BE40: 18030 | BL40: 13 | BM40: 2011-01-01 | BN40: 31 | BO40: 1900-01-31 | BQ40: 40544 | BR40: 31
A41: 36 | B41: Sullurpeta | C41: 36 | D41: Pichatur | E41: Parchur | F41: Pedakurapadu | G41: Railway Koduru • | Q41: 37 | R41: =IF(B1=1," ",IF(B1=2,B42,IF(B1=3,D42,IF(B1=4,E42,IF(B1=5,F42,G42))))) -> Rajampet • | T41: 18520 | U41: 37 | V41: 36070 | W41: 10 | X41: 16.264 | Y41: ='SALARY TABLE'!L68 -> 0.15196 | AA41: 37 | AB41: 13750 | AC41: 24 | AD41: =IF(AH18="Applicable",AC41," ") ->  | AG41: =AF40-AG40 ->  | AI41: ='SALARY TABLE'!I64 -> 42490 | AJ41: =IF(AE3=1,IF(ROUND(AI41*10%,0)<900,ROUND(AI41*10%,0),900),0) -> 0 | AK41: =IF(AE3=1,IF(ROUND(AI41*10%,0)<900,ROUND(AI41*10%,0),900),0) -> 0 | AL41: =IF(AI30=1,AJ41,AK41) -> 0 | AO41: 9 | AP41: =IF(AQ32>0,AQ41," ") -> 2016-11-01 | AQ41: 2016-11-01 | AR41: ='SALARY TABLE'!R13 -> 6000 | AU41: =IF(AO41>=AO32,AQ32,AS32) -> 6000 | AV41: 6000 | AW41: =ROUND(IF($AC$12=1,'SALARY TABLE'!W67,IF(AU41=0,AV41,AU41)),0) -> 6000 | AZ41: 9285 | BA41: 22 | BB41: 9285 | BC41: 17050 | BD41: 17050 | BE41: 18030 | BL41: 14 | BM41: 2011-02-01 | BN41: 28 | BO41: 1900-01-28 | BQ41: 40575 | BR41: =BQ42-BQ41 -> 28
A42: 37 | B42: Sydapuram | C42: 37 | D42: Pileru | E42: Pedaaraveedu | F42: Phirangipuram | G42: Rajampet • | Q42: 38 | R42: =IF(B1=1," ",IF(B1=2,B43,IF(B1=3,D43,IF(B1=4,E43,IF(B1=5,F43,G43))))) -> Raju Palem • | T42: 19050 | U42: 38 | V42: 37100 | W42: 11 | X42: 16.264 | Y42: ='SALARY TABLE'!L69 -> 0.15196 | AA42: 38 | AB42: 14175 | AC42: 25 | AD42: =IF(AH18="Applicable",AC42," ") ->  | AE42: Step up | AI42: ='SALARY TABLE'!I65 -> 42490 | AJ42: =IF(AE3=1,IF(ROUND(AI42*10%,0)<900,ROUND(AI42*10%,0),900),0) -> 0 | AK42: =IF(AE3=1,IF(ROUND(AI42*10%,0)<900,ROUND(AI42*10%,0),900),0) -> 0 | AL42: =IF(AI30=1,AJ42,AK42) -> 0 | AO42: 10 | AP42: =IF(AQ32>0,AQ42," ") -> 2016-12-01 | AQ42: 2016-12-01 | AR42: ='SALARY TABLE'!R14 -> 6000 | AU42: =IF(AO42>=AO32,AQ32,AS32) -> 6000 | AV42: 6000 | AW42: =ROUND(IF($AC$12=1,'SALARY TABLE'!W68,IF(AU42=0,AV42,AU42)),0) -> 6000 | AZ42: 9520 | BA42: 23 | BB42: 9520 | BC42: 17540 | BD42: 17540 | BE42: 18030 | BM42: 2011-03-01 | BQ42: 40603
A43: 38 | B43: Tada | C43: 38 | D43: Pulicherla | E43: Pedacherlopalle | F43: Piduguralla | G43: Raju Palem • | Q43: 39 | R43: =IF(B1=1," ",IF(B1=2,B44,IF(B1=3,D44,IF(B1=4,E44,IF(B1=5,F44,G44))))) -> Ramapuram • | T43: 19580 | U43: 39 | V43: 38130 | W43: 12 | X43: 24.824 | Y43: ='SALARY TABLE'!L70 -> 0.15196 | AA43: 39 | AB43: 14600 | AC43: 26 | AD43: =IF(AH18="Applicable",AC43," ") ->  | AE43: Date | AF43: =DATE(AH29,AH26,AG26) ->  | AI43: ='SALARY TABLE'!I66 -> 42490 | AJ43: =IF(AE3=1,ROUND(IF(ROUND(AI43*10%,0)<900,ROUND(AI43*10%,0),900)/31*19,0),0) -> 0 | AK43: =IF(AE3=1,IF(ROUND(AI43*10%,0)<900,ROUND(AI43*10%,0),900),0) -> 0 | AL43: =IF(AI30=1,AJ43,AK43) -> 0 | AO43: 11 | AP43: =IF(AQ32>0,AQ43," ") -> 2017-01-01 | AQ43: 2017-01-01 | AR43: ='SALARY TABLE'!R15 -> 8000 | AU43: =IF(AO43>=AO32,AQ32,AS32) -> 8000 | AV43: 6000 | AW43: =ROUND(IF($AC$12=1,'SALARY TABLE'!W69,IF(AU43=0,AV43,AU43)),0) -> 8000 | AZ43: 9775 | BA43: 24 | BB43: 9775 | BC43: 18030 | BD43: 18030 | BE43: 18030
A44: 39 | B44: Thotapalligudur | C44: 39 | D44: Punganur | E44: Podili | F44: Pittalavanipalem | G44: Ramapuram • | Q44: 40 | R44: =IF(B1=1," ",IF(B1=2,B45,IF(B1=3,D45,IF(B1=4,E45,IF(B1=5,F45,G45))))) -> Rayachoti • | T44: 20110 | U44: 40 | V44: 39160 | W44: 13 | Y44: 0.54784 | AA44: 40 | AB44: 15025 | AC44: 27 | AD44: =IF(AH18="Applicable",AC44," ") ->  | AF44: =DATE(AG26,AH26,1) -> 1901-01-01 | AI44: ='SALARY TABLE'!I67 -> 42490 | AJ44: =IF(AE3=1,IF(ROUND(AI44*10%,0)<900,ROUND(AI44*10%,0),900),0) -> 0 | AK44: =IF(AE3=1,IF(ROUND(AI44*10%,0)<900,ROUND(AI44*10%,0),900),0) -> 0 | AL44: =IF(AI30=1,AJ44,AK44) -> 0 | AO44: 12 | AP44: =IF(AQ32>0,AQ44," ") -> 2017-02-01 | AQ44: 2017-02-01 | AR44: ='SALARY TABLE'!R16 -> 8000 | AU44: =IF(AO44>=AO32,AQ32,AS32) -> 8000 | AV44: 6000 | AW44: =ROUND(IF($AC$12=1,'SALARY TABLE'!W70,IF(AU44=0,AV44,AU44)),0) -> 8000 | AZ44: 10030 | BA44: 25 | BB44: 10030 | BC44: 18520 | BD44: 18520 | BE44: 18520
A45: 40 | B45: Udayagiri | C45: 40 | D45: Puthalapattu | E45: Ponnaluru | F45: Ponnur | G45: Rayachoti • | Q45: 41 | R45: =IF(B1=1," ",IF(B1=2,B46,IF(B1=3,D46,IF(B1=4,E46,IF(B1=5,F46,G46))))) -> S Mydukur • | T45: 20680 | U45: 41 | V45: 40270 | W45: 14 | Y45: 0.63344 | AA45: 41 | AB45: 15500 | AC45: 28 | AD45: =IF(AH18="Applicable",AC45," ") ->  | AF45: =LOOKUP(AG26,AE18:AE29,AI18:AI29) -> 31 | AH45: =IF($AH$23="Applicable",AC18," ") ->  | AI45: ='SALARY TABLE'!I68 -> 42490 | AJ45: =IF(AE3=1,IF(ROUND(AI45*10%,0)<900,ROUND(AI45*10%,0),900),0) -> 0 | AK45: =IF(AE3=1,IF(ROUND(AI45*10%,0)<900,ROUND(AI45*10%,0),900),0) -> 0 | AL45: =IF(AI30=1,AJ45,AK45) -> 0 | AZ45: 10285 | BA45: 26 | BB45: 10285 | BC45: 19050 | BD45: 19050 | BE45: 19050
A46: 41 | B46: Vakadu | C46: 41 | D46: Puttur | E46: Pullalacheruvu | F46: Prathipadu | G46: S Mydukur • | Q46: 42 | R46: =IF(B1=1," ",IF(B1=2,B47,IF(B1=3,D47,IF(B1=4,E47,IF(B1=5,F47,G47))))) -> Sambepalle • | T46: 21250 | U46: 42 | V46: 41380 | AA46: 42 | AB46: 15975 | AC46: 29 | AD46: =IF(AH18="Applicable",AC46," ") ->  | AE46: Days | AF46: =AF45-AG26+1 -> 31 | AH46: =IF($AH$23="Applicable",AC19," ") ->  | AI46: ='SALARY TABLE'!I69 -> 43680 | AJ46: =IF(AE3=1,ROUND(IF(ROUND(AI46*10%,0)<900,ROUND(AI46*10%,0),900)/31*21,0),0) -> 0 | AK46: =IF(AE3=1,IF(ROUND(AI46*10%,0)<900,ROUND(AI46*10%,0),900),0) -> 0 | AL46: =IF(AI30=1,AJ46,AK46) -> 0 | AZ46: 10565 | BA46: 27 | BB46: 10565 | BC46: 19580 | BD46: 19580 | BE46: 19580
A47: 42 | B47: Varikuntapadu | C47: 42 | D47: Rama Kuppam | E47: Racherla | F47: Rajupalem | G47: Sambepalle • | Q47: 43 | R47: =IF(B1=1," ",IF(B1=2,B48,IF(B1=3,D48,IF(B1=4,E48,IF(B1=5,F48,G48))))) -> Sidhout • | T47: 21820 | U47: 43 | V47: 42490 | AA47: 43 | AB47: 16450 | AC47: 30 | AD47: =IF(AH18="Applicable",AC47," ") ->  | AF47: =LOOKUP(AF43,'SALARY TABLE'!B57:B70,'SALARY TABLE'!I57:I70) ->  | AI47: ='SALARY TABLE'!I70 -> 43680 | AJ47: =IF(AE3=1,IF(ROUND(AI47*10%,0)<900,ROUND(AI47*10%,0),900),0) -> 0 | AK47: =IF(AE3=1,IF(ROUND(AI47*10%,0)<900,ROUND(AI47*10%,0),900),0) -> 0 | AL47: =IF(AI30=1,AJ47,AK47) -> 0 | AO47: 9 | AP47: =LOOKUP(AO47,AO48:AO59,AP48:AP59) ->  | AQ47: =Data!Y37 -> 0 | AR47: LIC | AS47: =Data!T37 -> 3018 | AZ47: 10845 | BA47: 28 | BB47: 10845 | BC47: 20110 | BD47: 20110 | BE47: 20110
A48: 43 | B48: Venkatachalam | C48: 43 | D48: Ramachandrapuram | E48: Santhamaguluru | F48: Rentacrintala | G48: Sidhout • | Q48: 44 | R48: =IF(B1=1," ",IF(B1=2,B49,IF(B1=3,D49,IF(B1=4,E49,IF(B1=5,F49,G49))))) -> Simhadripuram • | T48: 22430 | U48: 44 | V48: 43680 | AA48: 44 | AB48: 16925 | AC48: 31 | AD48: =IF(AH18="Applicable",AC48," ") ->  | AF48: =LOOKUP(AF47,'SALARY TABLE'!B50:CC50,'SALARY TABLE'!B51:CC51) ->  | AO48: 1 | AP48: =IF(AQ47>0,AQ48," ") ->  | AQ48: =AQ33 -> 2016-03-01 | AR48: ='SALARY TABLE'!T5 -> 3018 | AU48: =IF(AO48>=AO47,AQ47,AS47) -> 3018 | AV48: =AS47 -> 3018 | AW48: =IF(AU48=0,AV48,AU48) -> 3018 | AZ48: 11125 | BA48: 29 | BB48: 11125 | BC48: 20680 | BD48: 20680 | BE48: 20680 | BP48: =BN3-1 -> 6
A49: 44 | B49: Venkatagiri | C49: 44 | D49: Ramasamudram | E49: Santhanuthlapadu | F49: Repalle | G49: Simhadripuram • | Q49: 45 | R49: =IF(B1=1," ",IF(B1=2,B50,IF(B1=3,D50,IF(B1=4,E50,IF(B1=5,F50,G50))))) -> T Sundupalle • | T49: 23040 | U49: 45 | V49: 44870 | AA49: 45 | AB49: 17475 | AF49: =AF48-AF47 ->  | AO49: 2 | AP49: =IF(AQ47>0,AQ49," ") ->  | AQ49: =AQ34 -> 2016-04-01 | AR49: ='SALARY TABLE'!T6 -> 3018 | AU49: =IF(AO49>=AO47,AQ47,AS47) -> 3018 | AV49: =AV48 -> 3018 | AW49: =IF(AU49=0,AV49,AU49) -> 3018 | AZ49: 11440 | BA49: 30 | BB49: 11440 | BC49: 21250 | BD49: 21250 | BE49: 21250 | BP49: =IF(BN3<12,BN3-1,1) -> 6 | BQ49: =IF(BO3<12,BO3-1,1) -> 8
A50: 45 | B50: Vidavalur | C50: 45 | D50: Renigunta | E50: Singarayakonda | F50: Rompicherla | G50: T Sundupalle • | Q50: 46 | R50: =IF(B1=1," ",IF(B1=2,B51,IF(B1=3,D51,IF(B1=4,E51,IF(B1=5,F51,G51))))) -> Thandur • | T50: 23650 | U50: 46 | V50: 46060 | AA50: 46 | AB50: 18025 | AF50: =ROUND(AF49/AF45*AF46,0) ->  | AO50: 3 | AP50: =IF(AQ47>0,AQ50," ") ->  | AQ50: 2016-05-01 | AR50: ='SALARY TABLE'!T7 -> 3018 | AU50: =IF(AO50>=AO47,AQ47,AS47) -> 3018 | AV50: 3018 | AW50: 3018 | AZ50: 11755 | BA50: 31 | BB50: 11755 | BC50: 21820 | BD50: 21820 | BE50: 21820 | BL50: =LOOKUP(BN3,$AE$18:$AE$29,$AI$18:$AI$29) -> 31 | BM50: =LOOKUP(BO3,$AE$18:$AE$29,$AI$18:$AI$29) -> 30 | BP50: =LOOKUP(BP49,AE18:AE29,AI18:AI29) -> 30 | BQ50: =LOOKUP(BQ49,$AE$18:$AE$29,$AI$18:$AI$29) -> 31
A51: 46 | B51: Vinjamur | C51: 46 | D51: Rompicherla | E51: Tangutur | F51: Sattenapalle | G51: Thandur • | Q51: 47 | R51: =IF(B1=1," ",IF(B1=2,B52,IF(B1=3,D52,IF(B1=4,E52,IF(B1=5,F52,G52))))) -> Vallur • | T51: 24300 | U51: 47 | V51: 47330 | AA51: 47 | AB51: 18575 | AE51: 8/16/24 DA | AF51: =LOOKUP(AH26,W32:W43,Y32:Y43) -> 0.12052 | AG51: =LOOKUP(AH26,W32:W43,X32:X43) -> 24.824 | AO51: 4 | AP51: =IF(AQ47>0,AQ51," ") ->  | AQ51: 2016-06-01 | AR51: ='SALARY TABLE'!T8 -> 3018 | AU51: =IF(AO51>=AO47,AQ47,AS47) -> 3018 | AV51: 3018 | AW51: 3018 | AZ51: 12070 | BA51: 32 | BB51: 12070 | BC51: 22430 | BD51: 22430 | BE51: 22430 | BG51: Half Paf/Loss of pay | BH51: 20 | BI51: 16 | BJ51: 17 | BK51: 22 | BL51: =LOOKUP(BH3,$AE$18:$AE$29,$AI$18:$AI$29) -> 30 | BM51: =LOOKUP(BI3,$AE$18:$AE$29,$AI$18:$AI$29) -> 31 | BN51: days | BP51: Months
C52: 47 | D52: Santhi Puram | E52: Tarlapadu | F52: Savalyapuram | G52: Vallur • | Q52: 48 | R52: =IF(B1=1," ",IF(B1=2,B53,IF(B1=3,D53,IF(B1=4,E53,IF(B1=5,F53,G53))))) -> Veeraballe • | T52: 24950 | U52: 48 | V52: 48600 | AA52: 48 | AB52: 19125 | AE52: DA | AF52: =ROUND(AF50*AF51%,0) ->  | AG52: =ROUND(AF50*AG51%,0) ->  | AO52: 5 | AP52: =IF(AQ47>0,AQ52," ") ->  | AQ52: 2016-07-01 | AR52: ='SALARY TABLE'!T9 -> 3018 | AU52: =IF(AO52>=AO47,AQ47,AS47) -> 3018 | AV52: 3018 | AW52: 3018 | AZ52: 12385 | BA52: 33 | BB52: 12385 | BC52: 23040 | BD52: 23040 | BE52: 23040 | BG52: Start Date | BH52: =IF(AM3=1,DATE(BL8,BH3,BH51),0) -> 00:00:00 | BI52: =IF(AO3=1,DATE(BM8,BI3,BI51),0) -> 00:00:00 | BJ52: =LOOKUP(MONTH(BH52),$AE$18:$AE$29,$AM$18:$AM$29)&"-"&RIGHT(BL8,2) -> Jan- | BK52: =LOOKUP(MONTH(BI52),$AE$18:$AE$29,$AM$18:$AM$29)&"-"&RIGHT(BM8,2) -> Jan- | BL52: =DATE(BL8,BH3,1) ->  | BM52: =DATE(BM8,BI3,1) ->  | BN52: =DATEDIF(BL52,BH52,"d") ->  | BO52: =DATEDIF(BM52,BI52,"d") ->  | BP52: =DATE(BL8,BH3+1,1) ->  | BQ52: =DATE(BM8,BI3+1,1) -> 
C53: 48 | D53: Satyavedu | E53: Thallur | F53: Tadikonda | G53: Veeraballe • | Q53: 49 | R53: =IF(B1=1," ",IF(B1=2,B54,IF(B1=3,D54,IF(B1=4,E54,IF(B1=5,F54,G54))))) -> Veerapunayunipalle • | T53: 25600 | U53: 49 | V53: 49870 | AA53: 49 | AB53: 19675 | AO53: 6 | AP53: =IF(AQ47>0,AQ53," ") ->  | AQ53: 2016-08-01 | AR53: ='SALARY TABLE'!T10 -> 3018 | AU53: =IF(AO53>=AO47,AQ47,AS47) -> 3018 | AV53: 3018 | AW53: 3018 | AZ53: 12700 | BA53: 34 | BB53: 12700 | BC53: 23040 | BD53: 23040 | BE53: 23040 | BG53: end date | BH53: =IF(AM3=1,DATE(BN23,BN3,BJ51),0) -> 00:00:00 | BI53: =IF(AO3=1,DATE(BO23,BO3,BK51),0) -> 00:00:00 | BJ53: =LOOKUP(MONTH(BH53),$AE$18:$AE$29,$AM$18:$AM$29)&"-"&RIGHT(BN23,2) -> Jan- | BK53: =LOOKUP(MONTH(BI53),$AE$18:$AE$29,$AM$18:$AM$29)&"-"&RIGHT(BO23,2) -> Jan- | BL53: =DATE(BN23,BN3,1) ->  | BM53: =DATE(BO23,BO3,1) ->  | BN53: =DATEDIF(BL53,BH53,"d") ->  | BO53: =DATEDIF(BM53,BI53,"d") ->  | BP53: =DATE(BN23,BP48,BP50) ->  | BQ53: =DATE(BO23,BO3-1,BQ50) -> 
C54: 49 | D54: Sodam | E54: Tripuranthakam | F54: Tenali | G54: Veerapunayunipalle • | Q54: 50 | R54: =IF(B1=1," ",IF(B1=2,B55,IF(B1=3,D55,IF(B1=4,E55,IF(B1=5,F55,G55))))) -> Vempalle • | T54: 26300 | U54: 50 | V54: 51230 | AA54: 50 | AB54: 20300 | AO54: 7 | AP54: =IF(AQ47>0,AQ54," ") ->  | AQ54: 2016-09-01 | AR54: ='SALARY TABLE'!T11 -> 3018 | AU54: =IF(AO54>=AO47,AQ47,AS47) -> 3018 | AV54: 3018 | AW54: 3018 | AZ54: 13030 | BA54: 35 | BB54: 13030 | BC54: 23650 | BD54: 23650 | BE54: 23650 | BG54: Months | BH54: =BJ54 -> 0 | BI54: =BK54 -> 0 | BJ54: =DATEDIF(BH52,BH53,"ym") -> 0 | BK54: =DATEDIF(BI52,BI53,"ym") -> 0 | BL54: Real Days | BN54: Months | BP54: Months
C55: 50 | D55: Somala | E55: Ulavapadu | F55: Thadepalle | G55: Vempalle • | Q55: 51 | R55: =IF(B1=1," ",IF(B1=2,B56,IF(B1=3,D56,IF(B1=4,E56,IF(B1=5,F56,G56))))) -> Vemula • | T55: 27000 | U55: 51 | V55: 52590 | AA55: 51 | AB55: 20925 | AE55: 1 | AF55: =IF(AD55="Applicable",AI55," ") ->  | AO55: 8 | AP55: =IF(AQ47>0,AQ55," ") ->  | AQ55: 2016-10-01 | AR55: ='SALARY TABLE'!T12 -> 3018 | AU55: =IF(AO55>=AO47,AQ47,AS47) -> 3018 | AV55: 3018 | AW55: 3018 | AZ55: 13390 | BA55: 36 | BB55: 13390 | BC55: 24300 | BD55: 24300 | BE55: 24300 | BG55: days | BH55: =BJ55+1 -> 1 | BI55: =BK55+1 -> 1 | BJ55: =DATEDIF(BH52,BH53,"md") -> 0 | BK55: =DATEDIF(BI52,BI53,"md") -> 0 | BL55: =BL51-BN52 ->  | BM55: =BM51-BO52 ->  | BN55: =BP55+1 ->  | BO55: =BQ55+1 ->  | BP55: =DATEDIF(BP52,BP53,"ym") ->  | BQ55: =DATEDIF(BQ52,BQ53,"ym") -> 
C56: 51 | D56: Srikalahasti | E56: Veligandla | F56: Thullur | G56: Vemula • | Q56: 52 | R56: =IF(B1=1," ",IF(B1=2,B57,IF(B1=3,D57,IF(B1=4,E57,IF(B1=5,F57,G57))))) -> Vontimitta • | T56: 27700 | U56: 52 | V56: 53950 | AA56: 52 | AB56: 21550 | AE56: 2 | AF56: =IF(AD55="Applicable",AI56," ") ->  | AO56: 9 | AP56: =IF(AQ47>0,AQ56," ") ->  | AQ56: 2016-11-01 | AR56: ='SALARY TABLE'!T13 -> 3018 | AU56: =IF(AO56>=AO47,AQ47,AS47) -> 0 | AV56: 3018 | AW56: 3018 | AZ56: 13750 | BA56: 37 | BB56: 13750 | BC56: 24950 | BD56: 24950 | BE56: 24950 | BG56: Basic pays | BH56: =LOOKUP(BH52,'SALARY TABLE'!B57:B70,'SALARY TABLE'!I57:I70) ->  | BI56: =LOOKUP(BI52,'SALARY TABLE'!B57:B70,'SALARY TABLE'!I57:I70) ->  | BL56: =BN53+1 ->  | BM56: =BO53+1 -> 
C57: 52 | D57: Srirangarajapuram | E57: Vetapalem | F57: Tsundur | G57: Vontimitta • | Q57: 53 | R57: =IF(B1=1," ",IF(B1=2,B58,IF(B1=3,D58,IF(B1=4,E58,IF(B1=5,F58,G58))))) -> Yerraguntla | T57: 28450 | U57: 53 | V57: 55410 | AA57: 53 | AB57: 22175 | AE57: 3 | AF57: =IF(AD55="Applicable",AI57," ") ->  | AI57: 2 | AJ57: =LOOKUP(AI57,AI58:AI59,AJ58:AJ59) ->  | AL57: 2 | AM57: =LOOKUP(AL57,AL58:AL59,AM58:AM59) -> Not Applicable | AO57: 10 | AP57: =IF(AQ47>0,AQ57," ") ->  | AQ57: 2016-12-01 | AR57: ='SALARY TABLE'!T14 -> 3018 | AU57: =IF(AO57>=AO47,AQ47,AS47) -> 0 | AV57: 3018 | AW57: 3018 | AZ57: 14175 | BA57: 38 | BB57: 14175 | BC57: 26300 | BD57: 26300 | BE57: 26300 | BH57: =LOOKUP(BH53,'SALARY TABLE'!B57:B70,'SALARY TABLE'!I57:I70) ->  | BI57: =LOOKUP(BI53,'SALARY TABLE'!B57:B70,'SALARY TABLE'!I57:I70) ->  | CE57: =DATEDIF(BR61,BU61,"d") -> 0
C58: 53 | D58: Thamballapalle | E58: Voletivaripalem | F58: Vatticherukuru | G58: Yerraguntla | Q58: 54 | R58: =IF(B1=1," ",IF(B1=2,B59,IF(B1=3,D59,IF(B1=4,E59,IF(B1=5,F59,G59))))) -> 0 | T58: 29200 | U58: 54 | V58: 56870 | AA58: 54 | AB58: 22800 | AE58: 4 | AF58: =IF(AD55="Applicable",AI58," ") ->  | AI58: 1 | AJ58: =IF(AL57=1,"Rented House"," ") ->  | AL58: 1 | AM58: Applicable | AO58: 11 | AP58: =IF(AQ47>0,AQ58," ") ->  | AQ58: 2017-01-01 | AR58: ='SALARY TABLE'!T15 -> 3018 | AU58: =IF(AO58>=AO47,AQ47,AS47) -> 0 | AV58: 3018 | AW58: 3018 | AZ58: 14600 | BA58: 39 | BB58: 14600 | BC58: 27000 | BD58: 27000 | BE58: 27000 | BG58: Arrears | BH58: =ROUND(BH56*BL55/BL51/2,0) ->  | BI58: =ROUND(BI56*BM55/BM51/2,0) -> 
C59: 54 | D59: Thavanampalle | E59: Yeddanapudi | F59: Veldurthi | Q59: 55 | R59: =IF(B1=1," ",IF(B1=2,B60,IF(B1=3,D60,IF(B1=4,E60,IF(B1=5,F60,G60))))) -> 0 | T59: 29950 | U59: 55 | V59: 58330 | AA59: 55 | AB59: 23500 | AE59: 5 | AF59: =IF(AD55="Applicable",AI59," ") ->  | AI59: 2 | AJ59: =IF(AL57=1,"Own House"," ") ->  | AL59: 2 | AM59: Not Applicable | AO59: 12 | AP59: =IF(AQ47>0,AQ59," ") ->  | AQ59: 2017-02-01 | AR59: ='SALARY TABLE'!T16 -> 3018 | AU59: =IF(AO59>=AO47,AQ47,AS47) -> 0 | AV59: 3018 | AW59: 3018 | AZ59: 15025 | BA59: 40 | BB59: 15025 | BC59: 27700 | BD59: 27700 | BE59: 27700 | BH59: =ROUND(BH57*BL56/BL50/2,0) ->  | BI59: =ROUND(BI57*BM56/BM50/2,0) -> 
C60: 55 | D60: Thottambedu | E60: Yerragondapalem | F60: Vemuru | Q60: 56 | R60: =IF(B1=1," ",IF(B1=2,B61,IF(B1=3,D61,IF(B1=4,E61,IF(B1=5,F61,G61))))) -> 0 | T60: 30750 | U60: 56 | V60: 59890 | AA60: 56 | AB60: 24200 | AE60: 6 | AF60: =IF(AD55="Applicable",AI60," ") ->  | AZ60: 15500 | BA60: 41 | BB60: 15500 | BC60: 28450 | BD60: 28450 | BE60: 28450 | BG60: Total arrears | BH60: =BH58+BH59 ->  | BP60: Half Pay | BW60: HPD | BZ60: FPD | CB60: HPA | CC60: FPA | CD60: DA | CF60: HMA | CG60: HRA | CH60: HRA amount
C61: 56 | D61: Tirupati Rural | E61: Zarugumilli | F61: Vinukonda | Q61: 57 | R61: =IF(B1=1," ",IF(B1=2,B62,IF(B1=3,D62,IF(B1=4,E62,IF(B1=5,F62,G62))))) -> 0 | T61: 31550 | U61: 57 | V61: 61450 | AA61: 57 | AB61: 24900 | AE61: 7 | AF61: =IF(AD55="Applicable",AI61," ") ->  | AZ61: 15975 | BA61: 42 | BB61: 15975 | BC61: 29200 | BD61: 29200 | BE61: 29200 | BK61: Requires Analysis Toolpak | BP61: 1 | BQ61: ='SALARY TABLE'!B57 -> 2016-01-01 | BR61: =BQ61 -> 2016-01-01 | BS61: =IF(AND(MONTH(BQ61)=MONTH($BH$52),YEAR(BQ61)=YEAR($BH$52)),$BH$52,BQ61) -> 2016-01-01 | BT61: =IF(AND(MONTH(BQ61)=MONTH($BH$53),YEAR(BQ61)=YEAR($BH$53)),$BH$53,BQ61) -> 2016-01-01 | BU61: =IF(DAY(BS61)>1,BS61,BT61) -> 2016-01-01 | BV61: =IF(BU61=$BH$52,LOOKUP(BU61,$BM$28:$BM$41,$BN$28:$BN$41)-DATEDIF(BR61,BU61,"d"),IF(BU61=$BH$53,DATEDIF($BL$53,$BH$53,"d")+1,LOOKUP(BU61,$BM$28:$BM$41,$BN$28:$BN$41))) -> 28 | BW61: =IF(AND($BH$52<=BU61,BU61<=$BH$53),BV61,0) -> 0 | BX61: =IF(BW61>0,BW61/2,BV61) -> 28 | BY61: =LOOKUP(BQ61,$BM$28:$BM$41,$BN$28:$BN$41) -> 28 | BZ61: =BY61-BV61 -> 0 | CA61: ='SALARY TABLE'!S57 -> 42490 | CB61: =ROUND(CA61*BX61/BY61,0) -> 42490 | CC61: =IF(BZ61=0,0,ROUND(CA61*BZ61/BY61,0)) -> 0 | CD61: 0 | CE61: =ROUND(CC61*CD61,0) -> 0 | CF61: =Data!CS85 -> 0 | CH61: HPA | CI61: FPA
C62: 57 | D62: Tirupati Urban | Q62: 58 | R62: =IF(B1=1," ",IF(B1=2,B63,IF(B1=3,D63,IF(B1=4,E63,IF(B1=5,F63,G63))))) -> 0 | T62: 32350 | U62: 58 | V62: 63010 | AA62: 58 | AB62: 25600 | AE62: 8 | AF62: =IF(AD55="Applicable",AI62," ") ->  | AK62: =Z11 -> 0 | AZ62: 16450 | BA62: 43 | BB62: 16450 | BC62: 29950 | BD62: 29950 | BE62: 29950 | BP62: 2 | BQ62: ='SALARY TABLE'!B58 -> 2016-02-01 | BR62: =BQ62 -> 2016-02-01 | BS62: 2016-02-01 | BT62: 2016-02-01 | BU62: =IF(DAY(BS62)>1,BS62,BT62) -> 2016-02-01 | BV62: 28 | BW62: 0 | BX62: =IF(BW62>0,BW62/2,BV62) -> 28 | BY62: 28 | BZ62: =BY62-BV62 -> 0 | CA62: ='SALARY TABLE'!S58 -> 42490 | CB62: =ROUND(CA62*BX62/BY62,0) -> 42490 | CC62: =IF(BZ62=0,0,ROUND(CA62*BZ62/BY62,0)) -> 0 | CD62: 0.09416 | CE62: =ROUND(CC62*CD62,0) -> 0 | CF62: =CF61 -> 0
C63: 58 | D63: Vadamalapeta | Q63: 59 | R63: =IF(B1=1," ",IF(B1=2,B64,IF(B1=3,D64,IF(B1=4,E64,IF(B1=5,F64,G64))))) -> 0 | T63: 33200 | U63: 59 | V63: 64670 | AA63: 59 | AB63: 26300 | AE63: 9 | AF63: =IF(AD55="Applicable",#REF!," ") ->  | AI63: 9 | AJ63: =LOOKUP(AI63,AI64:AI75,AJ64:AJ75) ->  | AK63: =Z11 -> 0 | AL63: HRA | AM63: =Z4 -> 0.145 | AS63: HRA% | AZ63: 16925 | BA63: 44 | BB63: 16925 | BC63: 30750 | BD63: 30750 | BE63: 30750 | BP63: 3 | BQ63: ='SALARY TABLE'!B59 -> 2016-03-01 | BR63: 2016-03-01 | BS63: 2016-03-01 | BT63: 2016-03-01 | BU63: 2016-03-01 | BV63: 28 | BW63: 0 | BX63: 28 | BY63: 28 | BZ63: 0 | CA63: ='SALARY TABLE'!S59 -> 42490 | CB63: =ROUND(CA63*BX63/BY63,0) -> 42490 | CC63: 0 | CD63: ='SALARY TABLE'!L59 -> 0.12052 | CE63: =ROUND(CC63*CD63,0) -> 0 | CF63: ='SALARY TABLE'!I5 -> 0 | CG63: =AS64 -> 0.145 | CH63: =IF(BZ63=0,0,ROUND(CB63*CG63,0)) -> 0 | CI63: =IF(BZ63=0,0,ROUND(CC63*CG63,0)) -> 0
C64: 59 | D64: Varadaiahpalem | Q64: 60 | R64: =IF(B1=1," ",IF(B1=2,B65,IF(B1=3,D65,IF(B1=4,E65,IF(B1=5,F65,G65))))) -> 0 | T64: 34050 | U64: 60 | V64: 66330 | AA64: 60 | AB64: 27000 | AE64: 10 | AF64: =IF(AD55="Applicable",#REF!," ") ->  | AI64: 1 | AJ64: =IF($AK$62=0," ",AK64) ->  | AK64: 2016-03-01 | AL64: ='SALARY TABLE'!C5 -> 42490 | AM64: =ROUND(IF(AI64>=$AI$63,$AM$63,$AK$62),0) -> 00:00:00 | AN64: =ROUND(IF(AI64>=$AI$63,AL64*$AK$62,AL64*$AM$63),0) -> 6161 | AO64: =$AM$63*AL64 -> 6161.05 | AP64: =IF(AN64=0,AO64,AN64) -> 6161 | AQ64: =IF($AL$57=1,ROUND(AL64*8%,0),0) -> 0 | AR64: =IF(AQ64>1000,1000,AQ64) -> 0 | AS64: =IF($AK$62=0,$AM$63,IF(AI64>=$AI$63,$AK$62,$AM$63)) -> 0.145 | AZ64: 17475 | BA64: 45 | BB64: 17475 | BC64: 32350 | BD64: 32350 | BE64: 32350 | BP64: 4 | BQ64: ='SALARY TABLE'!B60 -> 2016-04-01 | BR64: 2016-04-01 | BS64: 2016-04-01 | BT64: 2016-04-01 | BU64: 2016-04-01 | BV64: 28 | BW64: 0 | BX64: 28 | BY64: 28 | BZ64: 0 | CA64: ='SALARY TABLE'!S60 -> 42490 | CB64: 42490 | CC64: 0 | CD64: ='SALARY TABLE'!L60 -> 0.12052 | CE64: 0 | CF64: ='SALARY TABLE'!I6 -> 0 | CG64: 0.145 | CH64: =IF(BZ64=0,0,ROUND(CB64*CG64,0)) -> 0 | CI64: =IF(BZ64=0,0,ROUND(CC64*CG64,0)) -> 0
C65: 60 | D65: Vayalpad | Q65: 61 | R65: =IF(B1=1," ",IF(B1=2,B66,IF(B1=3,D66,IF(B1=4,E66,IF(B1=5,F66,G66))))) -> 0 | T65: 34900 | U65: 61 | V65: 67990 | AA65: 61 | AB65: 27750 | AE65: 11 | AF65: =IF(AD55="Applicable",#REF!," ") ->  | AI65: 2 | AJ65: =IF($AK$62=0," ",AK65) ->  | AK65: 2016-04-01 | AL65: ='SALARY TABLE'!C6 -> 42490 | AM65: =ROUND(IF(AI65>=$AI$63,$AM$63,$AK$62),0) -> 00:00:00 | AN65: =ROUND(IF(AI65>=$AI$63,AL65*$AK$62,AL65*$AM$63),0) -> 6161 | AO65: 6161.05 | AP65: =IF(AN65=0,AO65,AN65) -> 6161 | AQ65: =IF($AL$57=1,ROUND(AL65*8%,0),0) -> 0 | AR65: =IF(AQ65>1000,1000,AQ65) -> 0 | AS65: =IF($AK$62=0,$AM$63,IF(AI65>=$AI$63,$AK$62,$AM$63)) -> 0.145 | AZ65: 18025 | BA65: 46 | BB65: 18025 | BC65: 33200 | BD65: 33200 | BE65: 33200 | BP65: 5 | BQ65: ='SALARY TABLE'!B61 -> 2016-05-01 | BR65: 2016-05-01 | BS65: 2016-05-01 | BT65: 2016-05-01 | BU65: 2016-05-01 | BV65: 28 | BW65: 0 | BX65: 28 | BY65: 28 | BZ65: 0 | CA65: ='SALARY TABLE'!S61 -> 42490 | CB65: 42490 | CC65: 0 | CD65: ='SALARY TABLE'!L61 -> 0.12052 | CE65: 0 | CF65: ='SALARY TABLE'!I7 -> 0 | CG65: 0.145 | CH65: 0 | CI65: 0
C66: 61 | D66: Veduru Kuppam | Q66: 62 | R66: =IF(B1=1," ",IF(B1=2,B67,IF(B1=3,D67,IF(B1=4,E67,IF(B1=5,F67,G67))))) -> 0 | T66: 35800 | U66: 62 | V66: 69750 | AA66: 62 | AB66: 28500 | AE66: 12 | AF66: =IF(AD55="Applicable",#REF!," ") ->  | AI66: 3 | AK66: 2016-05-01 | AL66: ='SALARY TABLE'!C7 -> 42490 | AM66: 00:00:00 | AN66: 6161 | AO66: 6161.05 | AP66: 6161 | AQ66: 0 | AR66: 0 | AS66: 0.145 | AZ66: 18575 | BA66: 47 | BB66: 18575 | BC66: 34050 | BD66: 34050 | BE66: 34050 | BP66: 6 | BQ66: ='SALARY TABLE'!B62 -> 2016-06-01 | BR66: 2016-06-01 | BS66: 2016-06-01 | BT66: 2016-06-01 | BU66: 2016-06-01 | BV66: 28 | BW66: 0 | BX66: 28 | BY66: 28 | BZ66: 0 | CA66: ='SALARY TABLE'!S62 -> 42490 | CB66: 42490 | CC66: 0 | CD66: ='SALARY TABLE'!L62 -> 0.12052 | CE66: 0 | CF66: ='SALARY TABLE'!I8 -> 0 | CG66: 0.145 | CH66: 0 | CI66: 0
C67: 62 | D67: Venkatagiri Kota | Q67: 63 | R67: =IF(B1=1," ",IF(B1=2,B68,IF(B1=3,D68,IF(B1=4,E68,IF(B1=5,F68,G68))))) -> 0 | T67: 36700 | U67: 63 | V67: 71510 | AA67: 63 | AB67: 29250 | AE67: 13 | AI67: 4 | AK67: 2016-06-01 | AL67: ='SALARY TABLE'!C8 -> 42490 | AM67: 00:00:00 | AN67: 6161 | AO67: 6161.05 | AP67: 6161 | AQ67: 0 | AR67: 0 | AS67: 0.145 | AZ67: 19125 | BA67: 48 | BB67: 19125 | BC67: 34900 | BD67: 34900 | BE67: 34900 | BP67: 7 | BQ67: ='SALARY TABLE'!B63 -> 2016-07-01 | BR67: 2016-07-01 | BS67: 2016-07-01 | BT67: 2016-07-01 | BU67: 2016-07-01 | BV67: 28 | BW67: 0 | BX67: 28 | BY67: 28 | BZ67: 0 | CA67: ='SALARY TABLE'!S63 -> 42490 | CB67: 42490 | CC67: 0 | CD67: ='SALARY TABLE'!L63 -> 0.12052 | CE67: 0 | CF67: ='SALARY TABLE'!I9 -> 0 | CG67: 0.145 | CH67: 0 | CI67: 0
C68: 63 | D68: Vijaya Puram | Q68: 64 | R68: =IF(B1=1," ",IF(B1=2,B69,IF(B1=3,D69,IF(B1=4,E69,IF(B1=5,F69,G69))))) -> 0 | T68: 37600 | U68: 64 | V68: 73270 | AA68: 64 | AB68: 30000 | AE68: 14 | AI68: 5 | AK68: 2016-07-01 | AL68: ='SALARY TABLE'!C9 -> 42490 | AM68: 00:00:00 | AN68: 6161 | AO68: 6161.05 | AP68: 6161 | AQ68: 0 | AR68: 0 | AS68: 0.145 | AZ68: 19675 | BA68: 49 | BB68: 19675 | BC68: 35800 | BD68: 35800 | BE68: 35800 | BJ68: YEAR(A2)-YEAR(A1)-IF(OR(MONTH(A2)<MONTH… | BP68: 8 | BQ68: ='SALARY TABLE'!B64 -> 2016-08-01 | BR68: 2016-08-01 | BS68: 2016-08-01 | BT68: 2016-08-01 | BU68: 2016-08-01 | BV68: 28 | BW68: 0 | BX68: 28 | BY68: 28 | BZ68: 0 | CA68: ='SALARY TABLE'!S64 -> 42490 | CB68: 42490 | CC68: 0 | CD68: ='SALARY TABLE'!L64 -> 0.15196 | CE68: 0 | CF68: ='SALARY TABLE'!I10 -> 0 | CG68: 0.145 | CH68: 0 | CI68: 0
C69: 64 | D69: Yadamari | Q69: 65 | R69: =IF(B1=1," ",IF(B1=2,B70,IF(B1=3,D70,IF(B1=4,E70,IF(B1=5,F70,G70))))) -> 0 | T69: 38570 | U69: 65 | V69: 75150 | AA69: 65 | AB69: 30765 | AE69: 15 | AI69: 6 | AK69: 2016-08-01 | AL69: ='SALARY TABLE'!C10 -> 42490 | AM69: 00:00:00 | AN69: 6161 | AO69: 6161.05 | AP69: 6161 | AQ69: 0 | AR69: 0 | AS69: 0.145 | AZ69: 20300 | BA69: 50 | BB69: 20300 | BC69: 37600 | BD69: 37600 | BE69: 37600 | BJ69: DAY(A2)<DAY(A1))),1,0)&" years, "&MONTH(A2)-MONTH(A1)+IF(AND(MONTH(A2) | BP69: 9 | BQ69: ='SALARY TABLE'!B65 -> 2016-09-01 | BR69: 2016-09-01 | BS69: 2016-09-01 | BT69: 2016-09-01 | BU69: 2016-09-01 | BV69: 28 | BW69: 0 | BX69: 28 | BY69: 28 | BZ69: 0 | CA69: ='SALARY TABLE'!S65 -> 42490 | CB69: 42490 | CC69: 0 | CD69: ='SALARY TABLE'!L65 -> 0.15196 | CE69: 0 | CF69: ='SALARY TABLE'!I11 -> 0 | CG69: 0.145 | CH69: 0 | CI69: 0
C70: 65 | D70: Yerpedu | Q70: 66 | R70: =IF(B1=1," ",IF(B1=2,B71,IF(B1=3,D71,IF(B1=4,E71,IF(B1=5,F71,G71))))) -> 0 | T70: 39540 | U70: 66 | V70: 77030 | AA70: 66 | AE70: 16 | AI70: 7 | AK70: 2016-09-01 | AL70: ='SALARY TABLE'!C11 -> 42490 | AM70: 00:00:00 | AN70: 6161 | AO70: 6161.05 | AP70: 6161 | AQ70: 0 | AR70: 0 | AS70: 0.145 | AZ70: 20925 | BA70: 51 | BB70: 20925 | BC70: 38570 | BD70: 38570 | BE70: 38570 | BJ70: <=MONTH(A1),DAY(A2)<DAY(A1)),11,IF(AND… | BP70: 10 | BQ70: ='SALARY TABLE'!B66 -> 2016-10-01 | BR70: 2016-10-01 | BS70: 2016-10-01 | BT70: 2016-10-01 | BU70: 2016-10-01 | BV70: 28 | BW70: 0 | BX70: 28 | BY70: 28 | BZ70: 0 | CA70: ='SALARY TABLE'!S66 -> 42490 | CB70: 42490 | CC70: 0 | CD70: ='SALARY TABLE'!L66 -> 0.15196 | CE70: 0 | CF70: ='SALARY TABLE'!I12 -> 0 | CG70: 0.145 | CH70: 0 | CI70: 0
C71: 66 | D71: Yerravaripalem | T71: 40510 | U71: 67 | V71: 78910 | AA71: 67 | AE71: 17 | AI71: 8 | AK71: 2016-10-01 | AL71: ='SALARY TABLE'!C12 -> 42490 | AM71: 00:00:00 | AN71: 6161 | AO71: 6161.05 | AP71: 6161 | AQ71: 0 | AR71: 0 | AS71: 0.145 | AZ71: 21550 | BA71: 52 | BB71: 21550 | BC71: 39540 | BD71: 39540 | BE71: 39540 | BJ71: >=DAY(A1)),12,IF(AND(MONTH(A2)>MONTH(A… months, | BP71: 11 | BQ71: ='SALARY TABLE'!B67 -> 2016-11-01 | BR71: 2016-11-01 | BS71: 2016-11-01 | BT71: 2016-11-01 | BU71: 2016-11-01 | BV71: 28 | BW71: 0 | BX71: 28 | BY71: 28 | BZ71: 0 | CA71: ='SALARY TABLE'!S67 -> 42490 | CB71: =ROUND(CA71*BX71/BY71,0) -> 42490 | CC71: 0 | CD71: ='SALARY TABLE'!L67 -> 0.15196 | CE71: 0 | CF71: ='SALARY TABLE'!I13 -> 0 | CG71: 0.145 | CH71: 0 | CI71: 0
T72: 41550 | U72: 68 | V72: 80930 | AA72: 68 | AE72: 18 | AI72: 9 | AK72: 2016-11-01 | AL72: ='SALARY TABLE'!C13 -> 42490 | AM72: 00:00:00 | AN72: 0 | AO72: 6161.05 | AP72: 6161.05 | AQ72: 0 | AR72: 0 | AS72: 0.145 | AZ72: 22175 | BA72: 53 | BB72: 22175 | BC72: 40510 | BD72: 40510 | BE72: 40510 | BJ72: "&A2-DATE(YEAR(A2),MONTH(A2)-IF(DAY(A2… days" | BP72: 12 | BQ72: ='SALARY TABLE'!B68 -> 2016-12-01 | BR72: 2016-12-01 | BS72: 2016-12-01 | BT72: 2016-12-01 | BU72: 2016-12-01 | BV72: 28 | BW72: 0 | BX72: 28 | BY72: 28 | BZ72: 0 | CA72: ='SALARY TABLE'!S68 -> 42490 | CB72: 42490 | CC72: 0 | CD72: ='SALARY TABLE'!L68 -> 0.15196 | CE72: 0 | CF72: ='SALARY TABLE'!I14 -> 0 | CG72: 0.145 | CH72: 0 | CI72: 0
T73: 42590 | U73: 69 | V73: 82950 | AA73: 69 | AE73: 19 | AI73: 10 | AK73: 2016-12-01 | AL73: ='SALARY TABLE'!C14 -> 42490 | AM73: 00:00:00 | AN73: 0 | AO73: 6161.05 | AP73: 6161.05 | AQ73: 0 | AR73: 0 | AS73: 0.145 | AZ73: 22800 | BA73: 54 | BB73: 22800 | BC73: 41550 | BD73: 41550 | BE73: 41550 | BP73: 13 | BQ73: ='SALARY TABLE'!B69 -> 2017-01-01 | BR73: 2017-01-01 | BS73: 2017-01-01 | BT73: 2017-01-01 | BU73: 2017-01-01 | BV73: 28 | BW73: 0 | BX73: 28 | BY73: 28 | BZ73: 0 | CA73: ='SALARY TABLE'!S69 -> 43680 | CB73: 43680 | CC73: 0 | CD73: ='SALARY TABLE'!L69 -> 0.15196 | CE73: 0 | CF73: ='SALARY TABLE'!I15 -> 0 | CG73: 0.145 | CH73: 0 | CI73: 0
T74: 43630 | U74: 70 | V74: 84970 | AA74: 70 | AE74: 20 | AI74: 11 | AK74: 2017-01-01 | AL74: ='SALARY TABLE'!C15 -> 43680 | AM74: 00:00:00 | AN74: 0 | AO74: 6333.6 | AP74: 6333.6 | AQ74: 0 | AR74: 0 | AS74: 0.145 | AZ74: 23500 | BA74: 55 | BB74: 23500 | BC74: 43630 | BD74: 43630 | BE74: 43630 | BP74: 14 | BQ74: ='SALARY TABLE'!B70 -> 2017-02-01 | BR74: 2017-02-01 | BS74: 2017-02-01 | BT74: 2017-02-01 | BU74: 2017-02-01 | BV74: 28 | BW74: 0 | BX74: 28 | BY74: 28 | BZ74: 0 | CA74: ='SALARY TABLE'!S70 -> 43680 | CB74: 43680 | CC74: 0 | CD74: ='SALARY TABLE'!L70 -> 0.15196 | CE74: 0 | CF74: ='SALARY TABLE'!I16 -> 0 | CG74: 0.145 | CH74: 0 | CI74: 0
T75: 44740 | U75: 71 | V75: 87130 | AA75: 71 | AE75: 21 | AI75: 12 | AK75: 2017-02-01 | AL75: ='SALARY TABLE'!C16 -> 43680 | AM75: 00:00:00 | AN75: 0 | AO75: 6333.6 | AP75: 6333.6 | AQ75: 0 | AR75: 0 | AS75: 0.145 | AZ75: 24200 | BA75: 56 | BB75: 24200 | BC75: 44740 | BD75: 44740 | BE75: 44740 | BY75: Half PayArrears | CC75: =SUM(CC61:CC74) -> 0 | CD75: DA | CE75: =SUM(CE61:CE74) -> 0 | CF75: HRA | CH75: =SUM(CH62:CH74) -> 0 | CI75: =SUM(CI62:CI74) -> 0
T76: 45850 | U76: 72 | V76: 89290 | AA76: 72 | AE76: 22 | AH76: =IF(AH54="Applicable",AC49," ") ->  | AZ76: 24900 | BA76: 57 | BB76: 24900 | BC76: 45850 | BD76: 45850 | BE76: 45850 | BJ76: =IF(OR(MONTH(BH53)<MONTH(BH52),DAY(BH53)<DAY(BH52)),1,0) -> 0
T77: 46960 | U77: 73 | V77: 91450 | AA77: 73 | AE77: 23 | AH77: =IF(AH55="Applicable",AC50," ") ->  | AZ77: 25600 | BA77: 58 | BB77: 25600 | BC77: 46960 | BD77: 46960 | BE77: 46960
T78: 48160 | U78: 74 | V78: 93780 | AE78: 24 | AH78: =IF(AH56="Applicable",AC51," ") ->  | AZ78: 26300 | BA78: 59 | BB78: 26300 | BC78: 48160 | BD78: 48160 | BE78: 48160
T79: 49360 | U79: 75 | V79: 96110 | AE79: 25 | AH79: =IF(AH57="Applicable",AC52," ") ->  | AZ79: 27000 | BA79: 60 | BB79: 27000 | BC79: 49360 | BD79: 49360 | BE79: 49360
T80: 50560 | U80: 76 | V80: 98440 | AE80: 26 | AZ80: 27750 | BA80: 61 | BC80: 50560 | BD80: 50560 | BE80: 50560
T81: 51760 | U81: 77 | V81: 100770 | AE81: 27 | AZ81: 28500 | BA81: 62 | BC81: 51760 | BD81: 51760 | BE81: 51760
T82: 53060 | U82: 78 | V82: 103290 | AE82: 28 | AZ82: 29250 | BA82: 63 | BC82: 53060 | BD82: 53060 | BE82: 53060
T83: 54360 | U83: 79 | V83: 105810 | AE83: 29 | AZ83: 30000 | BA83: 64 | BC83: 55660 | BD83: 55660 | BE83: 55660
T84: 55660 | U84: 80 | V84: 108330 | AE84: 30 | AZ84: 30765 | BA84: 65 | BC84: 56960 | BD84: 56960 | BE84: 56960
U85: 81 | V85: 110850 | AE85: 31 | BR85: =CELL("filename") -> E:\GSR\Dropbox\Dropbox\Teacher's Softwares\Income Tax\Income Tax 2016-17\[INCOMETAX 2016-17 GSREDDY latest software ver 8 STUAP.xlsm]SALARY TABLE
D88: 13000 | E88: 13390 | F88: 13780 | G88: 14170 | H88: 14600 | I88: 15030 | J88: 15460 | K88: 15930 | L88: 16400 | M88: 16870 | N88: 17380 | O88: 17890 | P88: 18400 | Q88: 18950 | R88: 19500 | S88: 20050 | T88: 20640 | U88: 21230 | V88: 21820 | W88: 22460 | X88: 23100 | Y88: 23740 | Z88: 24440 | AA88: 25140 | AB88: 25840 | AC88: 26600 | AD88: 27360 | AE88: 28120 | AF88: 28940 | AG88: 29760 | AH88: 30580 | AI88: 31460 | AJ88: 32340 | AK88: 33220 | AL88: 34170 | AM88: 35120 | AN88: 36070 | AO88: 37100 | AP88: 38130 | AQ88: 39160 | AR88: 40270 | AS88: 41380 | AT88: 42490 | AU88: 43680 | AV88: 44870 | AW88: 46060 | AX88: 47330 | AY88: 48600 | AZ88: 49870 | BA88: 51230 | BB88: 52590 | BC88: 53950 | BD88: 55410 | BE88: 56870 | BF88: 58330 | BG88: 59890 | BH88: 61450 | BI88: 63010 | BJ88: 64670 | BK88: 66330 | BL88: 67990 | BM88: 69750 | BN88: 71510 | BO88: 73270 | BP88: 75150 | BQ88: 77030 | BR88: 78910 | BS88: 80930 | BT88: 82950 | BU88: 84970 | BV88: 87130 | BW88: 89290 | BX88: 91450 | BY88: 93780 | BZ88: 96110 | CA88: 98440 | CB88: 100770 | CC88: 103290 | CD88: 105810 | CE88: 108330 | CF88: 110850
D89: 13390 | E89: 13780 | F89: 14170 | G89: 14600 | H89: 15030 | I89: 15460 | J89: 15930 | K89: 16400 | L89: 16870 | M89: 17380 | N89: 17890 | O89: 18400 | P89: 18950 | Q89: 19500 | R89: 20050 | S89: 20640 | T89: 21230 | U89: 21820 | V89: 22460 | W89: 23100 | X89: 23740 | Y89: 24440 | Z89: 25140 | AA89: 25840 | AB89: 26600 | AC89: 27360 | AD89: 28120 | AE89: 28940 | AF89: 29760 | AG89: 30580 | AH89: 31460 | AI89: 32340 | AJ89: 33220 | AK89: 34170 | AL89: 35120 | AM89: 36070 | AN89: 37100 | AO89: 38130 | AP89: 39160 | AQ89: 40270 | AR89: 41380 | AS89: 42490 | AT89: 43680 | AU89: 44870 | AV89: 46060 | AW89: 47330 | AX89: 48600 | AY89: 49870 | AZ89: 51230 | BA89: 52590 | BB89: 53950 | BC89: 55410 | BD89: 56870 | BE89: 58330 | BF89: 59890 | BG89: 61450 | BH89: 63010 | BI89: 64670 | BJ89: 66330 | BK89: 67990 | BL89: 69750 | BM89: 71510 | BN89: 73270 | BO89: 75150 | BP89: 77030 | BQ89: 78910 | BR89: 80930 | BS89: 82950 | BT89: 84970 | BU89: 87130 | BV89: 89290 | BW89: 91450 | BX89: 93780 | BY89: 96110 | BZ89: 98440 | CA89: 100770 | CB89: 103290 | CC89: 105810 | CD89: 108330 | CE89: 110850 | CF89: 56960
D90: 1 | E90: Assistant Director
D91: 2 | E91: Assistant Engineer
D92: 3 | E92: Assistant Executive Engineer
D93: 4 | E93: Asst. Commissioner for Govt. Exams | Z93: =AND($N$102>M107,$N$102<N107) -> FALSE
D94: 5 | E94: Asst. Section Officer | P94: =IF(A5=I,HLOOKUP(Code!W3,Code!D88:CF89,2,Code!D89:CF89),'SALARY TABLE'!C5) -> 42490 | Z94: =HLOOKUP($M$102,$P$104:$R$110,S107) -> 0.2 | AX94: Revised PF
D95: 6 | E95: Asst. Statistical Officer | P95: =HLOOKUP(W3,D88:CF89,2,D89:CF89) -> 43680 | AN95: 6 | AO95: =LOOKUP(AX95,AN96:AN107,AX96:AX107) -> 2010-06-01 | AP95: =Data!V25 -> 0 | AQ95: HMA | AR95: =Data!S25 -> 0 | AX95: 4 | BP95: Loss of pay | BW95: LPD | BZ95: FPD | CB95: LPA | CC95: FPA | CD95: DA | CF95: HMA | CG95: =CG60 -> HRA | CH95: HRA amount
D96: 7 | E96: Auditor | P96: =HLOOKUP(Code!W3,Code!D88:CF89,2,Code!D89:CF89) -> 43680 | AB96: 1 | AC96: =LOOKUP(AB96,AB97:AB98,AC97:AC98) -> Applicable | AN96: 1 | AO96: =IF(AP95>0,AP96," ") ->  | AP96: 2016-03-01 | AQ96: ='SALARY TABLE'!I5 -> 0 | AT96: =IF(AN96>=AN95,AP95,AR95) -> 0 | AU96: =AR95 -> 0 | AV96: =ROUND(IF(AT96=0,AU96,AT96),0) -> 0 | AX96: 2010-03-01 | BP96: 1 | BQ96: 2010-01-01 | BR96: =BQ96 -> 2010-01-01 | BS96: =IF(AND(MONTH(BQ96)=MONTH($BI$52),YEAR(BQ96)=YEAR($BI$52)),$BI$52,BQ96) -> 2010-01-01 | BT96: =IF(AND(MONTH(BQ96)=MONTH($BI$53),YEAR(BQ96)=YEAR($BI$53)),$BI$53,BQ96) -> 2010-01-01 | BU96: =IF(DAY(BS96)>1,BS96,BT96) -> 2010-01-01 | BV96: =IF(BU96=$BI$52,LOOKUP(BU96,$BM$28:$BM$41,$BN$28:$BN$41)-DATEDIF(BR96,BU96,"d"),IF(BU96=$BI$53,DATEDIF($BM$53,$BI$53,"d")+1,LOOKUP(BU96,$BM$28:$BM$41,$BN$28:$BN$41))) -> 31 | BW96: =IF(AND($BI$52<=BU96,BU96<=$BI$53),BV96,0) -> 0 | BX96: =IF(BW96>0,0,BV96) -> 31 | BY96: =LOOKUP(BQ96,$BM$28:$BM$41,$BN$28:$BN$41) -> 31 | BZ96: =BY96-BV96 -> 0 | CA96: =CB61 -> 42490 | CB96: =ROUND(CA96*BX96/BY96,0) -> 42490 | CC96: =IF(BZ96=0,0,ROUND(CA96*BZ96/BY96,0)) -> 0 | CD96: 0 | CE96: =ROUND(CC96*CD96,0) -> 0 | CF96: =Data!CS120 -> 0 | CG96: 0 | CH96: LPA
D97: 8 | E97: Cashier | AB97: 1 | AC97: Applicable | AN97: 2 | AO97: =IF(AP95>0,AP97," ") ->  | AP97: 2016-04-01 | AQ97: ='SALARY TABLE'!I6 -> 0 | AT97: =IF(AN97>=AN95,AP95,AR95) -> 0 | AU97: =AU96 -> 0 | AV97: =ROUND(IF(AT97=0,AU97,AT97),0) -> 0 | AX97: 2010-04-01 | BP97: 2 | BQ97: 2010-02-01 | BR97: =BQ97 -> 2010-02-01 | BS97: =IF(AND(MONTH(BQ97)=MONTH($BI$52),YEAR(BQ97)=YEAR($BI$52)),$BI$52,BQ97) -> 2010-02-01 | BT97: =IF(AND(MONTH(BQ97)=MONTH($BI$53),YEAR(BQ97)=YEAR($BI$53)),$BI$53,BQ97) -> 2010-02-01 | BU97: =IF(DAY(BS97)>1,BS97,BT97) -> 2010-02-01 | BV97: =IF(BU97=$BI$52,LOOKUP(BU97,$BM$28:$BM$41,$BN$28:$BN$41)-DATEDIF(BR97,BU97,"d"),IF(BU97=$BI$53,DATEDIF($BM$53,$BI$53,"d")+1,LOOKUP(BU97,$BM$28:$BM$41,$BN$28:$BN$41))) -> 28 | BW97: =IF(AND($BI$52<=BU97,BU97<=$BI$53),BV97,0) -> 0 | BX97: =IF(BW97>0,0,BV97) -> 28 | BY97: 28 | BZ97: =BY97-BV97 -> 0 | CA97: 42490 | CB97: =ROUND(CA97*BX97/BY97,0) -> 42490 | CC97: =IF(BZ97=0,0,ROUND(CA97*BZ97/BY97,0)) -> 0 | CD97: =CD62 -> 0.09416 | CE97: =ROUND(CC97*CD97,0) -> 0 | CF97: =CF96 -> 0 | CG97: 0 | CH97: 0 | CI97: 0
D98: 9 | E98: CHO | AC98: Not Applicale | AN98: 3 | AO98: =IF(AP95>0,AP98," ") ->  | AP98: 2016-05-01 | AQ98: ='SALARY TABLE'!I7 -> 0 | AT98: =IF(AN98>=AN95,AP95,AR95) -> 0 | AU98: 0 | AV98: 0 | AX98: 2010-05-01 | BP98: 3 | BQ98: 2010-03-01 | BR98: 2010-03-01 | BS98: 2010-03-01 | BT98: 2010-03-01 | BU98: 2010-03-01 | BV98: 31 | BW98: 0 | BX98: 31 | BY98: 31 | BZ98: 0 | CA98: 42490 | CB98: 42490 | CC98: 0 | CD98: 0.12052 | CE98: =ROUND(CC98*CD98,0) -> 0 | CF98: ='SALARY TABLE'!I44 -> 0 | CG98: 0.145 | CH98: =IF(BZ98=0,0,ROUND(CC98*CG98,0)) -> 0 | CI98: 0
D99: 10 | E99: Deputy Director | F99: 57 | G99: =IF(G102=0,LOOKUP(F99,D90:D161,E90:E161),G102) -> School Assistant (Maths) | P99: =IF(A5=I,HLOOKUP(Code!W3,Code!D88:CF89,2,Code!D89:CF89),'SALARY TABLE'!C5) -> 42490 | AN99: 4 | AO99: =IF(AP95>0,AP99," ") ->  | AP99: 2016-06-01 | AQ99: ='SALARY TABLE'!I8 -> 0 | AT99: =IF(AN99>=AN95,AP95,AR95) -> 0 | AU99: 0 | AV99: 0 | AX99: 2010-06-01 | BP99: 4 | BQ99: 2010-04-01 | BR99: 2010-04-01 | BS99: 2010-04-01 | BT99: 2010-04-01 | BU99: 2010-04-01 | BV99: 30 | BW99: 0 | BX99: 30 | BY99: 30 | BZ99: 0 | CA99: 42490 | CB99: 42490 | CC99: 0 | CD99: 0.12052 | CE99: 0 | CF99: ='SALARY TABLE'!I45 -> 0 | CG99: 0.145 | CH99: =IF(BZ99=0,0,ROUND(CC99*CG99,0)) -> 0 | CI99: 0
D100: 11 | E100: Deputy Educational Officer | AN100: 5 | AO100: =IF(AP95>0,AP100," ") ->  | AP100: 2016-07-01 | AQ100: ='SALARY TABLE'!I9 -> 0 | AT100: =IF(AN100>=AN95,AP95,AR95) -> 0 | AU100: 0 | AV100: 0 | AX100: 2010-07-01 | BP100: 5 | BQ100: 2010-05-01 | BR100: 2010-05-01 | BS100: 2010-05-01 | BT100: 2010-05-01 | BU100: 2010-05-01 | BV100: 31 | BW100: 0 | BX100: 31 | BY100: 31 | BZ100: 0 | CA100: 42490 | CB100: 42490 | CC100: 0 | CD100: 0.12052 | CE100: 0 | CF100: ='SALARY TABLE'!I46 -> 0 | CG100: 0.145 | CH100: 0 | CI100: 0
D101: 12 | E101: Deputy Inspector of Schools | M101: gender | N101: Tax Amount | T101: 2 | AN101: 6 | AO101: =IF(AP95>0,AP101," ") ->  | AP101: 2016-08-01 | AQ101: ='SALARY TABLE'!I10 -> 0 | AT101: =IF(AN101>=AN95,AP95,AR95) -> 0 | AU101: 0 | AV101: 0 | AX101: 2010-08-01 | BP101: 6 | BQ101: 2010-06-01 | BR101: 2010-06-01 | BS101: 2010-06-01 | BT101: 2010-06-01 | BU101: 2010-06-01 | BV101: 30 | BW101: 0 | BX101: 30 | BY101: 30 | BZ101: 0 | CA101: 42490 | CB101: 42490 | CC101: 0 | CD101: 0.12052 | CE101: 0 | CF101: ='SALARY TABLE'!I47 -> 0 | CG101: 0.145 | CH101: 0 | CI101: 0
D102: 13 | E102: District B.C. Welfare Officer | G102: =Data!R6 -> 0 | M102: =code2!G4 -> 1 | N102: ='INCOME TAX'!$O$63 -> 488804 | P102: ='INCOME TAX'!O63 -> 488804 | Q102: =VLOOKUP(M102,AE102:AF104,2) -> 200000 | R102: =N102-Q102 -> 288804 | AD102: =AND($N$102>M105,$N$102<N105) -> FALSE | AE102: 1 | AF102: 200000 | AH102: =HLOOKUP($M$102,$P$104:$R$110,S108) -> 0.3 | AN102: 7 | AO102: =IF(AP95>0,AP102," ") ->  | AP102: 2016-09-01 | AQ102: ='SALARY TABLE'!I11 -> 0 | AT102: =IF(AN102>=AN95,AP95,AR95) -> 0 | AU102: 0 | AV102: 0 | AX102: 2010-09-01 | BP102: 7 | BQ102: 2010-07-01 | BR102: 2010-07-01 | BS102: 2010-07-01 | BT102: 2010-07-01 | BU102: 2010-07-01 | BV102: 31 | BW102: 0 | BX102: 31 | BY102: 31 | BZ102: 0 | CA102: 42490 | CB102: 42490 | CC102: 0 | CD102: 0.12052 | CE102: 0 | CF102: ='SALARY TABLE'!I48 -> 0 | CG102: 0.145 | CH102: 0 | CI102: 0
D103: 14 | E103: District Educational Officer | Q103: =R102-N105 -> 38804 | AD103: TRUE | AE103: 2 | AF103: 200000 | AG103: =HLOOKUP($M$102,$P$104:$R$110,S108)-VLOOKUP(M102,AE102:AF104,2) -> -199999.7 | AN103: 8 | AO103: =IF(AP95>0,AP103," ") ->  | AP103: 2016-10-01 | AQ103: ='SALARY TABLE'!I12 -> 0 | AT103: =IF(AN103>=AN95,AP95,AR95) -> 0 | AU103: 0 | AV103: 0 | AX103: 2010-10-01 | BP103: 8 | BQ103: 2010-08-01 | BR103: 2010-08-01 | BS103: 2010-08-01 | BT103: 2010-08-01 | BU103: 2010-08-01 | BV103: 31 | BW103: 0 | BX103: 31 | BY103: 31 | BZ103: 0 | CA103: 42490 | CB103: 42490 | CC103: 0 | CD103: 0.15196 | CE103: 0 | CF103: ='SALARY TABLE'!I49 -> 0 | CG103: 0.145 | CH103: 0 | CI103: 0
D104: 15 | E104: District Tribal Welfare Officer | M104: Annual Income | P104: 1 | Q104: 2 | R104: 3 | S104: 1 | AD104: FALSE | AE104: 3 | AF104: 200000 | AN104: 9 | AO104: =IF(AP95>0,AP104," ") ->  | AP104: 2016-11-01 | AQ104: ='SALARY TABLE'!I13 -> 0 | AT104: =IF(AN104>=AN95,AP95,AR95) -> 0 | AU104: 0 | AV104: 0 | AX104: 2010-11-01 | BP104: 9 | BQ104: 2010-09-01 | BR104: 2010-09-01 | BS104: 2010-09-01 | BT104: 2010-09-01 | BU104: 2010-09-01 | BV104: 30 | BW104: 0 | BX104: 30 | BY104: 30 | BZ104: 0 | CA104: 42490 | CB104: 42490 | CC104: 0 | CD104: 0.15196 | CE104: 0 | CF104: ='SALARY TABLE'!H50 -> 15460 | CG104: 0.145 | CH104: 0 | CI104: 0
D105: 16 | E105: Divisional Engineer | M105: 0 | N105: 250000 | O105: =IF(P102>250000,250000,P102) -> 250000 | P105: 0 | Q105: 0 | R105: 0 | S105: 2 | T105: =ROUND(IF(AND($N$102>M105,$N$102<N105),HLOOKUP($M$102,$P$104:$R$110,S105)*$O$105,0),0) -> 0 | AC105: =HLOOKUP($M$102,$P$104:$R$110,S108) -> 0.3 | AD105: FALSE | AN105: 10 | AO105: =IF(AP95>0,AP105," ") ->  | AP105: 2016-12-01 | AQ105: ='SALARY TABLE'!I14 -> 0 | AT105: =IF(AN105>=AN95,AP95,AR95) -> 0 | AU105: 0 | AV105: 0 | AX105: 2010-12-01 | BP105: 10 | BQ105: 2010-10-01 | BR105: 2010-10-01 | BS105: 2010-10-01 | BT105: 2010-10-01 | BU105: 2010-10-01 | BV105: 31 | BW105: 0 | BX105: 31 | BY105: 31 | BZ105: 0 | CA105: 42490 | CB105: 42490 | CC105: 0 | CD105: 0.15196 | CE105: 0 | CF105: ='SALARY TABLE'!H51 -> 15930 | CG105: 0.145 | CH105: 0 | CI105: 0
D106: 17 | E106: Dy Executive Engineer | M106: 250001 | N106: 500000 | O106: =IF((P102-O105)>250000,250000,P102-O105) -> 238804 | P106: 0.1 | Q106: 0.1 | R106: 0.1 | S106: 3 | T106: =ROUND(O106*P106,0) -> 23880 | AD106: FALSE | AN106: 11 | AO106: =IF(AP95>0,AP106," ") ->  | AP106: 2017-01-01 | AQ106: ='SALARY TABLE'!I15 -> 0 | AT106: =IF(AN106>=AN95,AP95,AR95) -> 0 | AU106: 0 | AV106: 0 | AX106: 2011-01-01 | BP106: 11 | BQ106: 2010-11-01 | BR106: 2010-11-01 | BS106: 2010-11-01 | BT106: 2010-11-01 | BU106: 2010-11-01 | BV106: 30 | BW106: 0 | BX106: 30 | BY106: 30 | BZ106: 0 | CA106: 42490 | CB106: 42490 | CC106: 0 | CD106: 0.15196 | CE106: 0 | CF106: ='SALARY TABLE'!I52 -> 0 | CG106: 0.145 | CH106: 0 | CI106: 0
D107: 18 | E107: Executive Engineer | M107: 500001 | N107: 1000000 | O107: =IF((P102-O105-O106)>1000000,1000000,IF((P102-O105-O106)<0,0,P102-O105-O106)) -> 0 | P107: 0.2 | Q107: 0.2 | R107: 0.2 | S107: 4 | T107: =IF(O107=0,0,ROUND(O107*P107,0)) -> 0 | AD107: FALSE | AN107: 12 | AO107: =IF(AP95>0,AP107," ") ->  | AP107: 2017-02-01 | AQ107: ='SALARY TABLE'!I16 -> 0 | AT107: =IF(AN107>=AN95,AP95,AR95) -> 0 | AU107: 0 | AV107: 0 | AX107: 2011-02-01 | BP107: 12 | BQ107: 2010-12-01 | BR107: 2010-12-01 | BS107: 2010-12-01 | BT107: 2010-12-01 | BU107: 2010-12-01 | BV107: 31 | BW107: =IF(AND($BI$52<=BU107,BU107<=$BI$53),BV107,0) -> 0 | BX107: 31 | BY107: 31 | BZ107: 0 | CA107: 42490 | CB107: 42490 | CC107: 0 | CD107: 0.15196 | CE107: =ROUND(CC107*CD107,0) -> 0 | CF107: ='SALARY TABLE'!I53 -> 0 | CG107: 0.145 | CH107: 0 | CI107: 0
D108: 19 | E108: Gazetted H.M. Gr-I | M108: 1000001 | P108: 0.3 | Q108: 0.3 | R108: 0.3 | S108: 5 | T108: =IF(O108=0,0,ROUND(O108*P108,0)+130000) -> 0 | BP108: 13 | BQ108: 2011-01-01 | BR108: 2011-01-01 | BS108: 2011-01-01 | BT108: 2011-01-01 | BU108: 2011-01-01 | BV108: 31 | BW108: 0 | BX108: 31 | BY108: 31 | BZ108: 0 | CA108: 43680 | CB108: 43680 | CC108: 0 | CD108: 0.15196 | CE108: 0 | CF108: ='SALARY TABLE'!I54 -> 0 | CG108: 0.145 | CH108: 0 | CI108: 0
D109: 20 | E109: Gazetted H.M. Gr-II | S109: 6 | T109: =ROUND(IF(AND($N$102>M109,$N$102<N109),HLOOKUP($M$102,$P$104:$R$110,S109)*$R$102,0),0) -> 0 | AF109: =HLOOKUP($M$102,$P$104:$R$110,S107) -> 0.2 | AG109: =R102 -> 288804 | AH109: =AG109*AF109 -> 57760.8 | BP109: 14 | BQ109: 2011-02-01 | BR109: 2011-02-01 | BS109: 2011-02-01 | BT109: 2011-02-01 | BU109: 2011-02-01 | BV109: 28 | BW109: 0 | BX109: 28 | BY109: 28 | BZ109: 0 | CA109: 43680 | CB109: 43680 | CC109: 0 | CD109: 0.15196 | CE109: 0 | CF109: ='SALARY TABLE'!I55 -> 1 incre | CG109: 0.145 | CH109: 0 | CI109: 0
D110: 21 | E110: Head Master | S110: 7 | T110: =ROUND(IF(AND($N$102>M110,$N$102<N110),HLOOKUP($M$102,$P$104:$R$110,S110)*$R$102,0),0) -> 0 | V110: Reader allowance | Y110: SCA | Z110: 1 | BY110: Half PayArrears | CC110: =SUM(CC96:CC109) -> 0 | CD110: DA | CE110: =SUM(CE96:CE109) -> 0 | CF110: HRA | CH110: =SUM(CH98:CH109) -> 0
D111: 22 | E111: Health assistant | T111: =SUM(T105:T110) -> 23880 | V111: 1 | W111: =LOOKUP(V111,V112:W115,W112:W115) -> Not Applicable | X111: 1 | Y111: Not Applicable | Z111: =LOOKUP(Z110,X111:Y114,Y111:Y114) -> Not Applicable
D112: 23 | E112: Health Educator | V112: 1 | W112: Not Applicable | X112: 2 | Y112: Non-Mandals
D113: 24 | E113: Joint Director | V113: 2 | W113: 400 | X113: 3 | Y113: Mandals
D114: 25 | E114: Junior Assistant | V114: 3 | W114: 500 | X114: 4 | Y114: Hills / Hill Tops | BV114: =$Z$4 -> 0.145
D115: 26 | E115: Junior Lecturer | V115: 4 | W115: 600 | BP115: PT | BS115: Basic Pay | BT115: DA % | BU115: DA | BV115: HRA | BW115: HMA | BX115: AI | BY115: ='SALARY TABLE'!M4 -> PP/Special pay | BZ115: ='SALARY TABLE'!N4 -> FPI | CA115: ='SALARY TABLE'!P4 -> CA (PHA) | CB115: Total | CC115: PT
D116: 27 | E116: L.F.L. Head Master | BP116: 1 | BQ116: 2010-01-01 | BR116: =BQ116 -> 2010-01-01 | BS116: ='SALARY TABLE'!S57 -> 42490 | BT116: ='SALARY TABLE'!L57 -> 00:00:00 | BU116: =ROUND(BS116*BT116,0) -> 0 | BV116: =$BV$114*BS116 -> 6161.05 | BW116: =Data!$U$25 -> 0 | BX116: =Data!$U$21 -> 0 | BY116: =Data!$U$22 -> 0 | BZ116: =Data!$U$23 -> 0 | CB116: =SUM(BU116:CA116)+BS116 -> 48651.05 | CC116: =IF(CB116>20000,200,IF(CB116>15000,150,IF(CB116>10000,100,IF(CB116>6000,80,IF(CB116>5000,60,IF(CB116>4000,45,IF(CB116>3000,35,IF(CB116>2000,25,0)))))))) -> 200
D117: 28 | E117: L.F.L. Head Mistress | AP117: =IF(AP$3="Applicable",AM129," ") ->  | AS117: 11 | BP117: 2 | BQ117: 2010-02-01 | BR117: =BQ117 -> 2010-02-01 | BS117: ='SALARY TABLE'!S58 -> 42490 | BT117: ='SALARY TABLE'!L58 -> 00:00:00 | BU117: =ROUND(BS117*BT117,0) -> 0 | BV117: =$BV$114*BS117 -> 6161.05 | BW117: =Data!$U$25 -> 0 | BX117: =Data!$U$21 -> 0 | BY117: =Data!$U$22 -> 0 | BZ117: =Data!$U$23 -> 0 | CB117: =SUM(BU117:CA117)+BS117 -> 48651.05 | CC117: =IF(CB117>20000,200,IF(CB117>15000,150,IF(CB117>10000,100,IF(CB117>6000,80,IF(CB117>5000,60,IF(CB117>4000,45,IF(CB117>3000,35,IF(CB117>2000,25,0)))))))) -> 200
D118: 29 | E118: Lab Technician | V118: SCA | AB118: 2 | AO118: 1 | AP118: 2010-06-01 | AQ118: =Data!W32 -> 0 | AR118: HMA | AS118: =Data!T32 -> 120 | BP118: 3 | BQ118: 2010-03-01 | BR118: 2010-03-01 | BS118: ='SALARY TABLE'!S59 -> 42490 | BT118: ='SALARY TABLE'!L59 -> 02:53:32.928 | BU118: =ROUND(BS118*BT118,0) -> 5121 | BV118: 6161.05 | BW118: =Data!$U$25 -> 0 | BX118: =Data!$U$21 -> 0 | BY118: =Data!$U$22 -> 0 | BZ118: =Data!$U$23 -> 0 | CA118: ='SALARY TABLE'!P5 -> 0 | CB118: =SUM(BU118:CA118)+BS118+CF118 -> 53772.05 | CC118: 200 | CF118: ='SALARY TABLE'!H5 -> 0
D119: 30 | E119: Language Pandit | V119: =Z110 -> 1 | X119: ='INCOME TAX'!H75 -> 0 | Y119: =VLOOKUP(V119,AE122:AF124,2) -> 0 | Z119: =X119-Y119 -> 0 | AB119: SCA | AO119: 1 | AP119: =IF(AQ118>0,AQ119," ") ->  | AQ119: 2015-03-01 | AR119: 90 | AU119: =IF(AO119>=AO118,AQ118,AS118) -> 0 | AV119: =AS118 -> 120 | AW119: =ROUND(IF(AU119=0,AV119,AU119),0) -> 120 | BP119: 4 | BQ119: 2010-04-01 | BR119: 2010-04-01 | BS119: ='SALARY TABLE'!S60 -> 42490 | BT119: ='SALARY TABLE'!L60 -> 02:53:32.928 | BU119: 5121 | BV119: 6161.05 | BW119: =Data!$U$25 -> 0 | BX119: =Data!$U$21 -> 0 | BY119: =Data!$U$22 -> 0 | BZ119: =Data!$U$23 -> 0 | CA119: ='SALARY TABLE'!P6 -> 0 | CB119: =SUM(BU119:CA119)+BS119+CF119 -> 53772.05 | CC119: 200 | CF119: ='SALARY TABLE'!H6 -> 0
D120: 31 | E120: Language Pandit (Hindi) | Q120: Rented/Own | AO120: 2 | AP120: =IF(AQ118>0,AQ120," ") ->  | AQ120: 2015-04-01 | AR120: 90 | AU120: =IF(AO120>=AO118,AQ118,AS118) -> 0 | AV120: =AV119 -> 120 | AW120: =ROUND(IF(AU120=0,AV120,AU120),0) -> 120 | BP120: 5 | BQ120: 2010-05-01 | BR120: 2010-05-01 | BS120: ='SALARY TABLE'!S61 -> 42490 | BT120: ='SALARY TABLE'!L61 -> 02:53:32.928 | BU120: 5121 | BV120: 6161.05 | BW120: =Data!$U$25 -> 0 | BX120: =Data!$U$21 -> 0 | BY120: =Data!$U$22 -> 0 | BZ120: =Data!$U$23 -> 0 | CA120: ='SALARY TABLE'!P7 -> 0 | CB120: 53772.05 | CC120: 200 | CF120: ='SALARY TABLE'!H7 -> 0
D121: 32 | E121: Language Pandit (Sanskrit) | V121: Basic Pay | X121: 2 | Y121: 3 | Z121: 4 | AA121: 1 | AC121: ='SALARY TABLE'!C5 -> 42490 | AD121: =IF(AND(AC121>=$V$122,AC121<=$W$122),HLOOKUP($V$119,$X$121:$Z$127,$AA$122),IF(AND(AC121>=$V$123,AC121<=$W$123),HLOOKUP($V$119,$X$121:$Z$127,$AA$123),IF(AND(AC121>=$V$124,AC121<=$W$124),HLOOKUP($V$119,$X$121:$Z$127,$AA$124),IF(AND(AC121>=$V$125,AC121<=$W$125),HLOOKUP($V$119,$X$121:$Z$127,$AA$125),IF(AND(AC121>=$V$126,AC121<=$W$126),HLOOKUP($V$119,$X$121:$Z$127,$AA$126),IF(AND(AC121>=$V$127,AC121<=$W$127),HLOOKUP($V$119,$X$121:$Z$127,$AA$127),0)))))) -> 0 | AE121: =IF($V$119=1,0,AD121) -> 0 | AO121: 3 | AP121: =IF(AQ118>0,AQ121," ") ->  | AQ121: 2015-05-01 | AR121: 90 | AU121: =IF(AO121>=AO118,AQ118,AS118) -> 0 | AV121: 120 | AW121: 120 | BP121: 6 | BQ121: 2010-06-01 | BR121: 2010-06-01 | BS121: ='SALARY TABLE'!S62 -> 42490 | BT121: ='SALARY TABLE'!L62 -> 02:53:32.928 | BU121: 5121 | BV121: 6161.05 | BW121: =Data!$U$25 -> 0 | BX121: =Data!$U$21 -> 0 | BY121: =Data!$U$22 -> 0 | BZ121: =Data!$U$23 -> 0 | CA121: ='SALARY TABLE'!P8 -> 0 | CB121: 53772.05 | CC121: 200 | CF121: ='SALARY TABLE'!H8 -> 0
D122: 33 | E122: Language Pandit (Tamil) | P122: 1 | V122: 0 | W122: 10600 | X122: 325 | Y122: 400 | Z122: 475 | AA122: 2 | AB122: =ROUND(IF(AND($AC$121>=V122,$AC$121<=W122),HLOOKUP($V$119,$X$121:$Z$127,AA122),0),0) -> 0 | AC122: ='SALARY TABLE'!C6 -> 42490 | AD122: 0 | AE122: =IF($V$119=1,0,AD122) -> 0 | AO122: 4 | AP122: =IF(AQ118>0,AQ122," ") ->  | AQ122: 2015-06-01 | AR122: 90 | AU122: =IF(AO122>=AO118,AQ118,AS118) -> 0 | AV122: 120 | AW122: 120 | BP122: 7 | BQ122: 2010-07-01 | BR122: 2010-07-01 | BS122: ='SALARY TABLE'!S63 -> 42490 | BT122: ='SALARY TABLE'!L63 -> 02:53:32.928 | BU122: 5121 | BV122: 6161.05 | BW122: =Data!$U$25 -> 0 | BX122: =Data!$U$21 -> 0 | BY122: =Data!$U$22 -> 0 | BZ122: =Data!$U$23 -> 0 | CA122: ='SALARY TABLE'!P9 -> 0 | CB122: 53772.05 | CC122: 200 | CF122: ='SALARY TABLE'!H9 -> 0
D123: 34 | E123: Language Pandit (Telugu) | P123: 1 | Q123: Rented | R123: =Data!V19 -> 11800 | V123: 10601 | W123: 13660 | X123: 400 | Y123: 475 | Z123: 550 | AA123: 3 | AB123: =ROUND(IF(AND($AC$121>=V123,$AC$121<=W123),HLOOKUP($V$119,$X$121:$Z$127,AA123),0),0) -> 0 | AC123: ='SALARY TABLE'!C7 -> 42490 | AD123: 0 | AE123: 0 | AO123: 5 | AP123: =IF(AQ118>0,AQ123," ") ->  | AQ123: 2015-07-01 | AR123: 90 | AU123: =IF(AO123>=AO118,AQ118,AS118) -> 0 | AV123: 120 | AW123: 120 | BP123: 8 | BQ123: 2010-08-01 | BR123: 2010-08-01 | BS123: ='SALARY TABLE'!S64 -> 42490 | BT123: ='SALARY TABLE'!L64 -> 03:38:49.344 | BU123: 6457 | BV123: 6161.05 | BW123: =Data!$U$25 -> 0 | BX123: =Data!$U$21 -> 0 | BY123: =Data!$U$22 -> 0 | BZ123: =Data!$U$23 -> 0 | CA123: ='SALARY TABLE'!P10 -> 0 | CB123: 55108.05 | CC123: 200 | CF123: ='SALARY TABLE'!H10 -> 0
D124: 35 | E124: Language Pandit (Urdu) | P124: 2 | Q124: Own | V124: 13661 | W124: 17050 | X124: 475 | Y124: 575 | Z124: 625 | AA124: 4 | AB124: =ROUND(IF(AND($AC$121>V124,$AC$121<W124),HLOOKUP($V$119,$X$121:$Z$127,AA124),0),0) -> 0 | AC124: ='SALARY TABLE'!C8 -> 42490 | AD124: 0 | AE124: 0 | AO124: 6 | AP124: =IF(AQ118>0,AQ124," ") ->  | AQ124: 2015-08-01 | AR124: 150 | AU124: =IF(AO124>=AO118,AQ118,AS118) -> 0 | AV124: 120 | AW124: 120 | BP124: 9 | BQ124: 2010-09-01 | BR124: 2010-09-01 | BS124: ='SALARY TABLE'!S65 -> 42490 | BT124: ='SALARY TABLE'!L65 -> 03:38:49.344 | BU124: 6457 | BV124: 6161.05 | BW124: =Data!$U$25 -> 0 | BX124: =Data!$U$21 -> 0 | BY124: =Data!$U$22 -> 0 | BZ124: =Data!$U$23 -> 0 | CA124: ='SALARY TABLE'!P11 -> 0 | CB124: 55108.05 | CC124: 200 | CF124: ='SALARY TABLE'!H11 -> 0
D125: 36 | E125: M.P.D.O | L125: =" "&"This is to certify that I have paid an amount of Rs."&R123*12&"("&Y180&") towards House Rent for the year "&RIGHT(Data!Q3,10)&".(Rent @Rs."&R123&" Per Month)." -> This is to certify that I have paid an amount of Rs.141600(One Lakh Forty one Thousand Six Hundred rupees only) towards House Rent for the year 2016-2017.(Rent @Rs.11800 Per Month). | V125: 17051 | W125: 21250 | X125: 575 | Y125: 625 | Z125: 700 | AA125: 5 | AB125: =ROUND(IF(AND($AC$121>V125,$AC$121<W125),HLOOKUP($V$119,$X$121:$Z$127,AA125),0),0) -> 0 | AC125: ='SALARY TABLE'!C9 -> 42490 | AD125: 0 | AE125: 0 | AO125: 7 | AP125: =IF(AQ118>0,AQ125," ") ->  | AQ125: 2015-09-01 | AR125: 150 | AU125: =IF(AO125>=AO118,AQ118,AS118) -> 0 | AV125: 120 | AW125: 120 | BP125: 10 | BQ125: 2010-10-01 | BR125: 2010-10-01 | BS125: ='SALARY TABLE'!S66 -> 42490 | BT125: ='SALARY TABLE'!L66 -> 03:38:49.344 | BU125: 6457 | BV125: 6161.05 | BW125: =Data!$U$25 -> 0 | BX125: =Data!$U$21 -> 0 | BY125: =Data!$U$22 -> 0 | BZ125: =Data!$U$23 -> 0 | CA125: ='SALARY TABLE'!P12 -> 0 | CB125: 55108.05 | CC125: 200 | CF125: ='SALARY TABLE'!H12 -> 0
D126: 37 | E126: Tahsildar | V126: 21251 | W126: 28450 | X126: 625 | Y126: 675 | Z126: 775 | AA126: 6 | AB126: =ROUND(IF(AND($AC$121>V126,$AC$121<W126),HLOOKUP($V$119,$X$121:$Z$127,AA126),0),0) -> 0 | AC126: ='SALARY TABLE'!C10 -> 42490 | AD126: 0 | AE126: 0 | AO126: 8 | AP126: =IF(AQ118>0,AQ126," ") ->  | AQ126: 2015-10-01 | AR126: 150 | AU126: =IF(AO126>=AO118,AQ118,AS118) -> 0 | AV126: 120 | AW126: 120 | BP126: 11 | BQ126: 2010-11-01 | BR126: 2010-11-01 | BS126: ='SALARY TABLE'!S67 -> 42490 | BT126: ='SALARY TABLE'!L67 -> 03:38:49.344 | BU126: 6457 | BV126: 6161.05 | BW126: =Data!$U$25 -> 0 | BX126: =Data!$U$21 -> 0 | BY126: =Data!$U$22 -> 0 | BZ126: =Data!$U$23 -> 0 | CA126: ='SALARY TABLE'!P13 -> 0 | CB126: 55108.05 | CC126: 200 | CF126: ='SALARY TABLE'!H13 -> 0
D127: 38 | E127: Mandal Educational Officer | V127: 28451 | X127: 675 | Y127: 725 | Z127: 850 | AA127: 7 | AB127: =ROUND(IF(AND($AC$121>V127,$AC$121<W127),HLOOKUP($V$119,$X$121:$Z$127,AA127),0),0) -> 0 | AC127: ='SALARY TABLE'!C11 -> 42490 | AD127: 0 | AE127: 0 | AO127: 9 | AP127: =IF(AQ118>0,AQ127," ") ->  | AQ127: 2015-11-01 | AR127: 150 | AU127: =IF(AO127>=AO118,AQ118,AS118) -> 0 | AV127: 120 | AW127: 120 | BP127: 12 | BQ127: 2010-12-01 | BR127: 2010-12-01 | BS127: ='SALARY TABLE'!S68 -> 42490 | BT127: ='SALARY TABLE'!L68 -> 03:38:49.344 | BU127: 6457 | BV127: 6161.05 | BW127: =Data!$U$25 -> 0 | BX127: =Data!$U$21 -> 0 | BY127: =Data!$U$22 -> 0 | BZ127: =Data!$U$23 -> 0 | CA127: ='SALARY TABLE'!P14 -> 0 | CB127: 55108.05 | CC127: 200 | CF127: ='SALARY TABLE'!H14 -> 0
D128: 39 | E128: Mandal Engineering Officer | AB128: =SUM(AB122:AB127) -> 0 | AC128: ='SALARY TABLE'!C12 -> 42490 | AD128: 0 | AE128: 0 | AO128: 10 | AP128: =IF(AQ118>0,AQ128," ") ->  | AQ128: 2015-12-01 | AR128: 150 | AU128: =IF(AO128>=AO118,AQ118,AS118) -> 0 | AV128: 120 | AW128: 120 | BP128: 13 | BQ128: 2011-01-01 | BR128: 2011-01-01 | BS128: ='SALARY TABLE'!S69 -> 43680 | BT128: ='SALARY TABLE'!L69 -> 03:38:49.344 | BU128: 6638 | BV128: 6333.6 | BW128: =Data!$U$25 -> 0 | BX128: =Data!$U$21 -> 0 | BY128: =Data!$U$22 -> 0 | BZ128: =Data!$U$23 -> 0 | CA128: ='SALARY TABLE'!P15 -> 0 | CB128: 56651.6 | CC128: 200 | CF128: ='SALARY TABLE'!H15 -> 0
D129: 40 | E129: MPHA Female | AC129: ='SALARY TABLE'!C13 -> 42490 | AD129: 0 | AE129: 0 | AO129: 11 | AP129: =IF(AQ118>0,AQ129," ") ->  | AQ129: 2016-01-01 | AR129: 150 | AU129: =IF(AO129>=AO118,AQ118,AS118) -> 0 | AV129: 120 | AW129: 120 | BP129: 14 | BQ129: 2011-02-01 | BR129: 2011-02-01 | BS129: ='SALARY TABLE'!S70 -> 43680 | BT129: ='SALARY TABLE'!L70 -> 03:38:49.344 | BU129: 6638 | BV129: 6333.6 | BW129: =Data!$U$25 -> 0 | BX129: =Data!$U$21 -> 0 | BY129: =Data!$U$22 -> 0 | BZ129: =Data!$U$23 -> 0 | CA129: ='SALARY TABLE'!P16 -> 0 | CB129: 56651.6 | CC129: 200 | CF129: ='SALARY TABLE'!H16 -> 0
D130: 41 | E130: MPHA Male | P130: =IF(P122=1,L125,P129) -> This is to certify that I have paid an amount of Rs.141600(One Lakh Forty one Thousand Six Hundred rupees only) towards House Rent for the year 2016-2017.(Rent @Rs.11800 Per Month). | AC130: ='SALARY TABLE'!C14 -> 42490 | AD130: 0 | AE130: 0 | AO130: 12 | AP130: =IF(AQ118>0,AQ130," ") ->  | AQ130: 2016-02-01 | AR130: 150 | AU130: =IF(AO130>=AO118,AQ118,AS118) -> 0 | AV130: 120 | AW130: 120 | CE130: =SUM(CE116:CE129) -> 0
D131: 42 | E131: MPHEO | AC131: ='SALARY TABLE'!C15 -> 43680 | AD131: 0 | AE131: 0
D132: 43 | E132: MPHS Female | AC132: ='SALARY TABLE'!C16 -> 43680 | AD132: 0 | AE132: 0
D133: 44 | E133: MPHS Male
D134: 45 | E134: Office Subordinate
D135: 46 | E135: Pharmacist
D136: 47 | E136: PHN | V136: CCA
D137: 48 | E137: Physical Education Teacher | V137: =X148 -> 1 | X137: ='INCOME TAX'!K95 -> 0 | Z137: =X137-Y137 -> 0 | AB137: CCA
D138: 49 | E138: Principal
D139: 50 | E139: Project Officer | V139: Basic Pay | X139: 2 | Y139: 3 | Z139: 4 | AA139: 1 | AC139: =AC121 -> 42490 | AD139: =IF(AND(AC139>=$V$140,AC139<=$W$140),HLOOKUP($V$137,$X$139:$Z$143,$AA$140),IF(AND(AC139>=$V$141,AC139<=$W$141),HLOOKUP($V$137,$X$139:$Z$143,$AA$141),IF(AND(AC139>=$V$142,AC139<=$W$142),HLOOKUP($V$137,$X$139:$Z$143,$AA$142),IF(AND(AC139>=$V$143),HLOOKUP($V$137,$X$139:$Z$143,$AA$143),0)))) ->  | AE139: =IF($V$137=1,0,AD139) -> 0
D140: 51 | E140: R.J.D.S.E. | V140: 0 | W140: 8200 | X140: 200 | Y140: 120 | Z140: 100 | AA140: 2 | AB140: =ROUND(IF(AND($AC$139>V140,$AC$139<W140),HLOOKUP($V$137,$X$139:$Z$143,AA140),0),0) -> 0 | AC140: 42490 | AE140: =IF($V$137=1,0,AD140) -> 0
D141: 52 | E141: Record Assistant | V141: 8201 | W141: 13270 | X141: 300 | Y141: 160 | Z141: 120 | AA141: 3 | AB141: 0 | AC141: 42490 | AE141: 0
D142: 53 | E142: School Assistant | V142: 13271 | W142: 18030 | X142: 350 | Y142: 230 | Z142: 130 | AA142: 4 | AB142: 0 | AC142: 42490 | AE142: 0
D143: 54 | E143: School Assistant (Bio. Sc.) | V143: 18031 | X143: 525 | Y143: 350 | Z143: 140 | AA143: 5 | AB143: 0 | AC143: 42490 | AE143: 0
D144: 55 | E144: School Assistant (English) | AA144: 6 | AB144: 0 | AC144: 42490 | AE144: 0
D145: 56 | E145: School Assistant (Hindi) | AA145: 7 | AB145: 0 | AC145: 42490 | AE145: 0 | AF145: =IF(AND($AC$139>V140,$AC$139<W140),HLOOKUP($V$137,$X$139:$Z$143,AA140),IF(AND($AC$139>V141,$AC$139<W141),HLOOKUP($V$137,$X$139:$Z$143,AA141),0)) -> 0
D146: 57 | E146: School Assistant (Maths) | AB146: 0 | AC146: 42490 | AE146: 0
D147: 58 | E147: School Assistant (Phy. Edn.) | AB147: 0 | AC147: 42490 | AE147: 0
D148: 59 | E148: School Assistant (Phy. Science) | W148: CCA | X148: 1 | AC148: 42490 | AE148: 0
D149: 60 | E149: School Assistant (Soc. Stu.) | V149: 1 | W149: Not Applicable | X149: =LOOKUP(X148,V149:W152,W149:W152) -> Not Applicable | AC149: 43680 | AE149: 0
D150: 61 | E150: School Assistant (Telugu) | V150: 2 | W150: Greater HYD Municipal Corporation | AC150: 43680 | AE150: 0
D151: 62 | E151: School Assistant (Urdu) | V151: 3 | W151: Greater Vizag Municipal corporation and Vijayawada
D152: 63 | E152: Secondary Grade Teacher | V152: 4 | W152: Other Municipal Corporations
D153: 64 | E153: Senior Assistant
D154: 65 | E154: Senior Lecturer
D155: 66 | E155: Staff Nurse
D156: 67 | E156: Superintendent
D157: 68 | E157: Typist | F157: 10 | G157: =IF(E$3="Applicable",B169," ") ->  | H157: =IF(AS2="Not Applicable",0,AS2) -> 0 | I157: GIS | J157: =AH3 -> 60 | L157: =Data!$Y$31 -> 0 | P157: RPS 2005 | S157: =AB3 -> 7970
D158: 69 | E158: Revenue Inspector | F158: 1 | G158: =IF(H157>0,H158," ") ->  | H158: =X6 -> 2016-03-01 | I158: ='SALARY TABLE'!#REF! ->  | J158: =IF($AU$17>0,H158," ") ->  | K158: =$J$157 -> 60 | L158: =IF(F158>=F157,H157,J157) -> 60 | M158: =MAX(K158,L158) -> 60 | P158: 1 | Q158: 5470 | R158: 5605
D159: 70 | E159: Deputy Tahsildal | F159: 2 | G159: =IF(H157>0,H159," ") ->  | H159: 2016-04-01 | I159: ='SALARY TABLE'!#REF! ->  | J159: =IF($AU$17>0,H159," ") ->  | K159: 60 | L159: =IF(F159>=F157,H157,J157) -> 60 | M159: =MAX(K159,L159) -> 60 | P159: 2 | Q159: 5605 | R159: 5750 | S159: =IF(W4=12,1,2) -> 1 | Z159: pay | AA159: da | AB159: hra | AC159: IR | AD159: total | AE159: new Pay | AF159: PT
D160: 71 | E160: VRO | F160: 3 | G160: =IF(H157>0,H160," ") ->  | H160: 2016-05-01 | I160: ='SALARY TABLE'!#REF! ->  | K160: 60 | L160: =IF(F160>=F157,H157,J157) -> 60 | M160: 60 | P160: 3 | Q160: 5750 | R160: 5895 | S160: 1 | T160: Yes | W160: With notional Basic Pay | Z160: =IF(S159=1,LOOKUP(S157,Q158:R221,R158:R221),$AB$3) -> 8170 | AA160: =ROUND(Z160*60.288/100,0) -> 4926 | AB160: =ROUND(Z160*Z4,0) -> 1185 | AC160: =ROUND(Z160*22%,0) -> 1797 | AD160: =SUM(Z160:AC160) -> 16078 | AE160: =Z160+AA160+AC160 -> 14893 | AF160: =IF(AD160>20000,200,IF(AD160>15000,150,IF(AD160>10000,100,IF(AD160>6000,80,IF(AD160>5000,60,IF(AD160>4000,45,IF(AD160>3000,35,IF(AD160>2000,25,0)))))))) -> 150
D161: 72 | E161: Excise Constiable | F161: 4 | G161: =IF(H157>0,H161," ") ->  | H161: 2016-06-01 | I161: ='SALARY TABLE'!#REF! ->  | K161: 60 | L161: =IF(F161>=F157,H157,J157) -> 60 | M161: 60 | P161: 4 | Q161: 5895 | R161: 6040 | S161: 2 | T161: No | W161: PRC 10 Feb 2010 Basic Pay | Z161: =$W$3 -> 42490 | AA161: =ROUND(Z161*9.416/100,0) -> 4001 | AB161: =ROUND(Z161*Z4,0) -> 6161 | AD161: =SUM(Z161:AC161) -> 52652 | AF161: =IF(AD161>20000,200,IF(AD161>15000,150,IF(AD161>10000,100,IF(AD161>6000,80,IF(AD161>5000,60,IF(AD161>4000,45,IF(AD161>3000,35,IF(AD161>2000,25,0)))))))) -> 200
F162: 5 | G162: =IF(H157>0,H162," ") ->  | H162: 2016-07-01 | I162: ='SALARY TABLE'!#REF! ->  | K162: 60 | L162: =IF(F162>=F157,H157,J157) -> 60 | M162: 60 | P162: 5 | Q162: 6040 | R162: 6195 | Y162: Difference | Z162: =Z161-AE160 -> 27597 | AA162: =AA161 -> 4001 | AB162: =AB161-AB160 -> 4976 | AD162: =Z162+AA162+AB162 -> 36574
F163: 6 | G163: =IF(H157>0,H163," ") ->  | H163: 2016-08-01 | I163: ='SALARY TABLE'!#REF! ->  | K163: 60 | L163: =IF(F163>=F157,H157,J157) -> 60 | M163: 60 | P163: 6 | Q163: 6195 | R163: 6350 | Y163: pt Differ | Z163: =AF161-AF160 -> 50
F164: 7 | G164: =IF(H157>0,H164," ") ->  | H164: 2016-09-01 | I164: ='SALARY TABLE'!#REF! ->  | K164: 60 | L164: =IF(F164>=F157,H157,J157) -> 60 | M164: 60 | P164: 7 | Q164: 6350 | R164: 6505
F165: 8 | G165: =IF(H157>0,H165," ") ->  | H165: 2016-10-01 | I165: ='SALARY TABLE'!#REF! ->  | K165: 60 | L165: =IF(F165>=F157,H157,J157) -> 60 | M165: 60 | P165: 8 | Q165: 6505 | R165: 6675
F166: 9 | G166: =IF(H157>0,H166," ") ->  | H166: 2016-11-01 | I166: ='SALARY TABLE'!#REF! ->  | K166: 60 | L166: =IF(F166>=F157,H157,J157) -> 60 | M166: 60 | P166: 9 | Q166: 6675 | R166: 6845
F167: 10 | G167: =IF(H157>0,H167," ") ->  | H167: 2016-12-01 | I167: ='SALARY TABLE'!#REF! ->  | K167: 60 | L167: =IF(F167>=F157,H157,J157) -> 0 | M167: 60 | P167: 10 | Q167: 6845 | R167: 7015
F168: 11 | G168: =IF(H157>0,H168," ") ->  | H168: 2017-01-01 | I168: ='SALARY TABLE'!#REF! ->  | K168: 60 | L168: =IF(F168>=F157,H157,J157) -> 0 | M168: 60 | P168: 11 | Q168: 7015 | R168: 7200
F169: 12 | G169: =IF(H157>0,H169," ") ->  | H169: 2017-02-01 | I169: ='SALARY TABLE'!#REF! ->  | K169: 60 | L169: =IF(F169>=F157,H157,J157) -> 0 | M169: 60 | P169: 12 | Q169: 7200 | R169: 7385
P170: 13 | Q170: 7385 | R170: 7570
P171: 14 | Q171: 7570 | R171: 7770
P172: 15 | Q172: 7770 | R172: 7970
P173: 16 | Q173: 7970 | R173: 8170
P174: 17 | Q174: 8170 | R174: 8385
P175: 18 | Q175: 8385 | R175: 8600
P176: 19 | Q176: 8600 | R176: 8815
P177: 20 | Q177: 8815 | R177: 9050 | Y177: 1 | Z177: 2 | AA177: 3 | AB177: 4 | AC177: 5 | AD177: 6 | AE177: 7 | AI177: 8 | AJ177: 9 | AK177: 10 | AL177: 11 | AM177: 12 | AN177: 13 | AO177: 14 | AP177: 15 | AQ177: 16 | AR177: 17 | AS177: 18 | AT177: 19 | AU177: 20 | AV177: 21 | AW177: 22 | AX177: 23 | AY177: 24 | AZ177: 25 | BA177: 26 | BB177: 27 | BC177: 30 | BD177: 31 | BE177: 32 | BF177: 33 | BG177: 34 | BH177: 35 | BI177: 36 | BJ177: 37 | BK177: 38 | BL177: 39 | BM177: 40 | BN177: 41 | BO177: 42 | BP177: 43 | BQ177: 44 | BR177: 45 | BS177: 46 | BT177: 47 | BU177: 48 | BV177: 49 | BW177: 50 | BX177: 51 | BY177: 52 | BZ177: 53 | CA177: 54 | CB177: 55 | CC177: 56 | CD177: 57 | CE177: 58 | CF177: 59 | CG177: 60 | CH177: 61 | CI177: 62 | CJ177: 63 | CK177: 64 | CL177: 65 | CM177: 66 | CN177: 67 | CO177: 68 | CP177: 69 | CQ177: 70 | CR177: 71 | CS177: 72 | CT177: 73 | CU177: 74 | CV177: 75 | CW177: 76 | CX177: 77 | CY177: 78 | CZ177: 79 | DA177: 80 | DB177: 81 | DC177: 82 | DD177: 83 | DE177: 84 | DF177: 85 | DG177: 86 | DH177: 87 | DI177: 88 | DJ177: 89 | DK177: 90 | DL177: 91 | DM177: 92 | DN177: 93 | DO177: 94 | DP177: 95 | DQ177: 96 | DR177: 97 | DS177: 98 | DT177: 99
P178: 21 | Q178: 9050 | R178: 9285 | Y178: One | Z178: Two | AA178: Three | AB178: Four | AC178: Five | AD178: Six | AE178: Seven | AI178: Eight | AJ178: Nine | AK178: Ten | AL178: Eleven | AM178: Twelve | AN178: Thirteen | AO178: Fourteen | AP178: Fifteen | AQ178: Sixteen | AR178: Seventeen | AS178: Eighteen | AT178: Nineteen | AU178: Twenty | AV178: Twenty one | AW178: Twenty two | AX178: Twenty three | AY178: Twenty four | AZ178: Twenty five | BA178: Twenty six | BB178: Twenty seven | BC178: Thirty | BD178: Thirty one | BE178: Thirty two | BF178: Thirty three | BG178: Thirty four | BH178: Thirty five | BI178: Thirty six | BJ178: Thirty seven | BK178: Thirty eight | BL178: Thirty nine | BM178: Forty | BN178: Forty one | BO178: Forty two | BP178: Forty three | BQ178: Forty four | BR178: Forty five | BS178: Forty six | BT178: Forty seven | BU178: Forty eight | BV178: Forty nine | BW178: Fifty | BX178: Fifty one | BY178: Fifty two | BZ178: Fifty three | CA178: Fifty four | CB178: Fifty five | CC178: Fifty six | CD178: Fifty seven | CE178: Fifty eight | CF178: Fifty nine | CG178: sixty | CH178: Sixty one | CI178: Sixty two | CJ178: Sixty three | CK178: Sixty four | CL178: Sixty five | CM178: Sixty six | CN178: Sixty seven | CO178: Sixty eight | CP178: Sixty nine | CQ178: Seventy | CR178: Seventy one | CS178: Seventy two | CT178: Seventy three | CU178: Seventy four | CV178: Seventy five | CW178: Seventy six | CX178: Seventy seven | CY178: Seventy eight | CZ178: Seventy nine | DA178: Eighty | DB178: Eighty one | DC178: Eighty two | DD178: Eighty three | DE178: Eighty four | DF178: Eighty five | DG178: Eighty six | DH178: Eighty seven | DI178: Eighty eight | DJ178: Eighty nine | DK178: Ninety | DL178: Ninety one | DM178: Ninety two | DN178: Ninety three | DO178: Ninety four | DP178: Ninety five | DQ178: Ninety six | DR178: Ninety seven | DS178: Ninety eight | DT178: Ninety nine
P179: 22 | Q179: 9285 | R179: 9520
P180: 23 | Q180: 9520 | R180: 9775 | X180: =R123*12 -> 141600 | Y180: =IF(X180="","",CONCATENATE(AN180," rupees only")) -> One Lakh Forty one Thousand Six Hundred rupees only | Z180: =INT(X180/100000) -> 1 | AA180: =INT(X180/1000-Z180*100) -> 41 | AB180: =INT(X180/100-Z180*1000-AA180*10) -> 6 | AC180: =INT(X180-Z180*100000-AA180*1000-AB180*100) -> 0 | AD180: =IF(Z180=0,"",LOOKUP(Z180,Y177:DU177,Y178:DU178)) -> One | AE180: =IF(AA180=0,"",LOOKUP(AA180,Y177:DU177,Y178:DU178)) -> Forty one | AF180: =IF(AB180=0,"",LOOKUP(AB180,Y177:DU177,Y178:DU178)) -> Six | AG180: =IF(AC180=0,"",LOOKUP(AC180,Y177:DU177,Y178:DU178)) ->  | AH180: =IF(AND(AB180=0,AC180=0),1,2) -> 2 | AI180: =IF(AC180=0,3,4) -> 3 | AJ180: =IF(OR(AH180=1,AI180=3),5,6) -> 5 | AK180: =IF(Z180>1," Lakhs ",IF(Z180>0," Lakh ","")) -> Lakh | AL180: =IF(AA180>0," Thousand ","") -> Thousand | AM180: =IF(AB180>0," Hundred ","") -> Hundred | AN180: =IF(X180=0,"Zero",IF(X180>0,TRIM(CONCATENATE(AD180,AK180,AE180,AL180,AF180,AM180,IF(AND(X180>100,AJ180=6)," and ",""),AG180)),"")) -> One Lakh Forty one Thousand Six Hundred
P181: 24 | Q181: 9775 | R181: 10030 | Y181: =IF(X181="","",CONCATENATE(AN181," rupees only")) ->  | Z181: =INT(X181/100000) -> 0 | AA181: =INT(X181/1000-Z181*100) -> 0 | AB181: =INT(X181/100-Z181*1000-AA181*10) -> 0 | AC181: =INT(X181-Z181*100000-AA181*1000-AB181*100) -> 0 | AD181: =IF(Z181=0,"",LOOKUP(Z181,Y177:DU177,Y178:DU178)) ->  | AE181: =IF(AA181=0,"",LOOKUP(AA181,Y177:DU177,Y178:DU178)) ->  | AF181: =IF(AB181=0,"",LOOKUP(AB181,Y177:DU177,Y178:DU178)) ->  | AG181: =IF(AC181=0,"",LOOKUP(AC181,Y177:DU177,Y178:DU178)) ->  | AH181: =IF(AND(AB181=0,AC181=0),1,2) -> 1 | AI181: =IF(AC181=0,3,4) -> 3 | AJ181: =IF(OR(AH181=1,AI181=3),5,6) -> 5 | AK181: =IF(Z181>1," Lakhs ",IF(Z181>0," Lakh ","")) ->  | AL181: =IF(AA181>0," Thousand ","") ->  | AM181: =IF(AB181>0," Hundred ","") ->  | AN181: =IF(X181=0,"Zero",IF(X181>0,TRIM(CONCATENATE(AD181,AK181,AE181,AL181,AF181,AM181,IF(AND(X181>100,AJ181=6)," and ",""),AG181)),"")) -> Zero
P182: 25 | Q182: 10030 | R182: 10285 | Z182: 0 | AA182: 0 | AB182: 0 | AC182: 0 | AD182: =IF(Z182=0,"",LOOKUP(Z182,Y177:DU177,Y178:DU178)) ->  | AE182: =IF(AA182=0,"",LOOKUP(AA182,Y177:DU177,Y178:DU178)) ->  | AF182: =IF(AB182=0,"",LOOKUP(AB182,Y177:DU177,Y178:DU178)) ->  | AG182: =IF(AC182=0,"",LOOKUP(AC182,Y177:DU177,Y178:DU178)) ->  | AH182: 1 | AI182: 3 | AJ182: 5 | AN182: Zero
P183: 26 | Q183: 10285 | R183: 10565 | Z183: 0 | AA183: 0 | AB183: 0 | AC183: 0 | AD183: =IF(Z183=0,"",LOOKUP(Z183,Y177:DU177,Y178:DU178)) ->  | AE183: =IF(AA183=0,"",LOOKUP(AA183,Y177:DU177,Y178:DU178)) ->  | AF183: =IF(AB183=0,"",LOOKUP(AB183,Y177:DU177,Y178:DU178)) ->  | AG183: =IF(AC183=0,"",LOOKUP(AC183,Y177:DU177,Y178:DU178)) ->  | AH183: 1 | AI183: 3 | AJ183: 5 | AN183: Zero
P184: 27 | Q184: 10565 | R184: 10845 | Z184: 0 | AA184: 0 | AB184: 0 | AC184: 0 | AD184: =IF(Z184=0,"",LOOKUP(Z184,Y177:DU177,Y178:DU178)) ->  | AE184: =IF(AA184=0,"",LOOKUP(AA184,Y177:DU177,Y178:DU178)) ->  | AF184: =IF(AB184=0,"",LOOKUP(AB184,Y177:DU177,Y178:DU178)) ->  | AG184: =IF(AC184=0,"",LOOKUP(AC184,Y177:DU177,Y178:DU178)) ->  | AH184: 1 | AI184: 3 | AJ184: 5 | AN184: Zero
P185: 28 | Q185: 10845 | R185: 11125 | Z185: 0 | AA185: 0 | AB185: 0 | AC185: 0 | AD185: =IF(Z185=0,"",LOOKUP(Z185,Y177:DU177,Y178:DU178)) ->  | AE185: =IF(AA185=0,"",LOOKUP(AA185,Y177:DU177,Y178:DU178)) ->  | AF185: =IF(AB185=0,"",LOOKUP(AB185,Y177:DU177,Y178:DU178)) ->  | AG185: =IF(AC185=0,"",LOOKUP(AC185,Y177:DU177,Y178:DU178)) ->  | AH185: 1 | AI185: 3 | AJ185: 5 | AN185: Zero
P186: 29 | Q186: 11125 | R186: 11440 | Z186: 0 | AA186: 0 | AB186: 0 | AC186: 0 | AD186: =IF(Z186=0,"",LOOKUP(Z186,Y177:DU177,Y178:DU178)) ->  | AE186: =IF(AA186=0,"",LOOKUP(AA186,Y177:DU177,Y178:DU178)) ->  | AF186: =IF(AB186=0,"",LOOKUP(AB186,Y177:DU177,Y178:DU178)) ->  | AG186: =IF(AC186=0,"",LOOKUP(AC186,Y177:DU177,Y178:DU178)) ->  | AH186: 1 | AI186: 3 | AJ186: 5 | AN186: Zero
P187: 30 | Q187: 11440 | R187: 11755 | Z187: 0 | AA187: 0 | AB187: 0 | AC187: 0 | AD187: =IF(Z187=0,"",LOOKUP(Z187,Y177:DU177,Y178:DU178)) ->  | AE187: =IF(AA187=0,"",LOOKUP(AA187,Y177:DU177,Y178:DU178)) ->  | AF187: =IF(AB187=0,"",LOOKUP(AB187,Y177:DU177,Y178:DU178)) ->  | AG187: =IF(AC187=0,"",LOOKUP(AC187,Y177:DU177,Y178:DU178)) ->  | AH187: 1 | AI187: 3 | AJ187: 5 | AN187: Zero
P188: 31 | Q188: 11755 | R188: 12070 | Z188: 0 | AA188: 0 | AB188: 0 | AC188: 0 | AD188: =IF(Z188=0,"",LOOKUP(Z188,Y177:DU177,Y178:DU178)) ->  | AE188: =IF(AA188=0,"",LOOKUP(AA188,Y177:DU177,Y178:DU178)) ->  | AF188: =IF(AB188=0,"",LOOKUP(AB188,Y177:DU177,Y178:DU178)) ->  | AG188: =IF(AC188=0,"",LOOKUP(AC188,Y177:DU177,Y178:DU178)) ->  | AH188: 1 | AI188: 3 | AJ188: 5 | AN188: Zero
P189: 32 | Q189: 12070 | R189: 12385 | W189: Income Tax | Z189: 0 | AA189: 0 | AB189: 0 | AC189: 0 | AD189: =IF(Z189=0,"",LOOKUP(Z189,Y177:DU177,Y178:DU178)) ->  | AE189: =IF(AA189=0,"",LOOKUP(AA189,Y177:DU177,Y178:DU178)) ->  | AF189: =IF(AB189=0,"",LOOKUP(AB189,Y177:DU177,Y178:DU178)) ->  | AG189: =IF(AC189=0,"",LOOKUP(AC189,Y177:DU177,Y178:DU178)) ->  | AH189: 1 | AI189: 3 | AJ189: 5 | AN189: Zero
P190: 33 | Q190: 12385 | R190: 12700 | W190: NET | Z190: 0 | AA190: 0 | AB190: 0 | AC190: 0 | AD190: =IF(Z190=0,"",LOOKUP(Z190,Y177:DU177,Y178:DU178)) ->  | AE190: =IF(AA190=0,"",LOOKUP(AA190,Y177:DU177,Y178:DU178)) ->  | AF190: =IF(AB190=0,"",LOOKUP(AB190,Y177:DU177,Y178:DU178)) ->  | AG190: =IF(AC190=0,"",LOOKUP(AC190,Y177:DU177,Y178:DU178)) ->  | AH190: 1 | AI190: 3 | AJ190: 5 | AN190: Zero
P191: 34 | Q191: 12700 | R191: 13030 | W191: Under RS | Z191: 0 | AA191: 0 | AB191: 0 | AC191: 0 | AD191: =IF(Z191=0,"",LOOKUP(Z191,Y177:DU177,Y178:DU178)) ->  | AE191: =IF(AA191=0,"",LOOKUP(AA191,Y177:DU177,Y178:DU178)) ->  | AF191: =IF(AB191=0,"",LOOKUP(AB191,Y177:DU177,Y178:DU178)) ->  | AG191: =IF(AC191=0,"",LOOKUP(AC191,Y177:DU177,Y178:DU178)) ->  | AH191: 1 | AI191: 3 | AJ191: 5 | AN191: Zero
P192: 35 | Q192: 13030 | R192: 13390 | W192: LIC | Z192: 0 | AA192: 0 | AB192: 0 | AC192: 0 | AD192: =IF(Z192=0,"",LOOKUP(Z192,Y177:DU177,Y178:DU178)) ->  | AE192: =IF(AA192=0,"",LOOKUP(AA192,Y177:DU177,Y178:DU178)) ->  | AF192: =IF(AB192=0,"",LOOKUP(AB192,Y177:DU177,Y178:DU178)) ->  | AG192: =IF(AC192=0,"",LOOKUP(AC192,Y177:DU177,Y178:DU178)) ->  | AH192: 1 | AI192: 3 | AJ192: 5 | AN192: Zero
P193: 36 | Q193: 13390 | R193: 13750 | W193: EWF | Z193: 0 | AA193: 0 | AB193: 0 | AC193: 0 | AD193: =IF(Z193=0,"",LOOKUP(Z193,Y177:DU177,Y178:DU178)) ->  | AE193: =IF(AA193=0,"",LOOKUP(AA193,Y177:DU177,Y178:DU178)) ->  | AF193: =IF(AB193=0,"",LOOKUP(AB193,Y177:DU177,Y178:DU178)) ->  | AG193: =IF(AC193=0,"",LOOKUP(AC193,Y177:DU177,Y178:DU178)) ->  | AH193: 1 | AI193: 3 | AJ193: 5 | AN193: Zero
P194: 37 | Q194: 13750 | R194: 14175 | W194: CM RF | Z194: 0 | AA194: 0 | AB194: 0 | AC194: 0 | AD194: =IF(Z194=0,"",LOOKUP(Z194,Y177:DU177,Y178:DU178)) ->  | AE194: =IF(AA194=0,"",LOOKUP(AA194,Y177:DU177,Y178:DU178)) ->  | AF194: =IF(AB194=0,"",LOOKUP(AB194,Y177:DU177,Y178:DU178)) ->  | AG194: =IF(AC194=0,"",LOOKUP(AC194,Y177:DU177,Y178:DU178)) ->  | AH194: 1 | AI194: 3 | AJ194: 5 | AN194: Zero
P195: 38 | Q195: 14175 | R195: 14600 | Z195: 0 | AA195: 0 | AB195: 0 | AC195: 0 | AD195: =IF(Z195=0,"",LOOKUP(Z195,Y177:DU177,Y178:DU178)) ->  | AE195: =IF(AA195=0,"",LOOKUP(AA195,Y177:DU177,Y178:DU178)) ->  | AF195: =IF(AB195=0,"",LOOKUP(AB195,Y177:DU177,Y178:DU178)) ->  | AG195: =IF(AC195=0,"",LOOKUP(AC195,Y177:DU177,Y178:DU178)) ->  | AH195: 1 | AI195: 3 | AJ195: 5 | AN195: Zero
P196: 39 | Q196: 14600 | R196: 15025
P197: 40 | Q197: 15025 | R197: 15500 | W197: IR
P198: 41 | Q198: 15500 | R198: 15975 | W198: 14 | X198: =VLOOKUP(W198,W199:X217,2) -> 0.27
P199: 42 | Q199: 15975 | R199: 16450 | W199: 1 | X199: Not aplicable
P200: 43 | Q200: 16450 | R200: 16925 | W200: 2 | X200: 0.15
P201: 44 | Q201: 16925 | R201: 17475 | W201: 3 | X201: 0.16
P202: 45 | Q202: 17475 | R202: 18025 | W202: 4 | X202: 0.17
... 21 more rows

Sheet Mandals list Village wise (hidden)
A1: List of Mandals in Adilabad District
A2: Adilabad • Bela • Boath • Dilawarpur • Jainad • Kaddampeddur • Khanpur • Kuntala • Mamda • Narnoor • Rebbana • Talamadugu • Tiryani • Asifabad • Bellampalle • Chennur • Gudihathnur • Jainoor • Kagaz Nagar • Kotapalle • Laxmanchanda • Mancherial • Nennal • Sarangapur • Tamsi • Utnur • Bazarhathnoor • Bhainsa • Dahegaon • Ichoda • Jaipur • Kasipet • Kouthala • Lohesra • Mandamarri • Neradigonda • Sirpur (T) • Tandur • Vemanpalle • Bejjur • Bheemini • Dandepalle • Inderavelly • Jannaram • Kerameri • Kubeer • Luxettipet • Mudhole • Nirmal • Sirpur (U) • Tanur • Wankdi
A3: List of Mandals in Anantapur District
A4: Agali • Amadagur • Amarapuram • Anantapur • Atmakur • Bathalapalle • Beluguppa • Bommanahal • Brahmasamudram • Bukkapatnam • Bukkarayasamudram • Chenne Kothapalle • Chilamathur • D.Hirchal • Dharmavaram • Gandlapenta • Garladinne • Gooty • Gorantla • Gudibanda • Gummagatta • Guntakal • Hindupur • Kadiri • Kalyandurg • Kambadur • Kanaganapalle • Kanekal • Kothacheruvu • Kudair • Kundurpi • Lepakshi • Madakasira • Mudigubba • Nallacheruvu • Nallamada • Nambulipulikunta • Narpala • Obuladevaracheruvu • Pamidi • Parigi • Peddapappur • Peddavadugur • Penu Konda • Putlur • Puttaparthi • Ramagiri • Raptadu • Rayadurg • Roddam • Rolla • Settur • Singanamala • Somandepalle • Tadimarri • Tadpatri • Talupula • Tanakal • Uravakonda • Vajrakarur • Vidapanakal • Yadiki • Yellanur
A5: List of Mandals in Chittoor District
A6: B Kothakota • Baireddi Palle • Bangarupalem • Buchinaidu Khandriga • Chandragiri • Chinnagottigallu • Chittoor • Chowdepalle • Gangadhara Nellore • Gangavaram • Gudi Palle • Gudipala • Gurramkonda • Irala • K V P Puram • Kalakada • Kalikiri • Kambhamvaripalle • Karvetinagar • Kuppam • Kurabalakota • Mandanpalle • Mulakalacheruvu • Nagalapuram • Nagari • Narayanavanam • Nimmanapalle • Nindra • Pakala • Palamaner • Palasamudram • Pedda Panjani • Peddamandyam • Peddathippasamudram • Penumuru • Pichatur • Pileru • Pulicherla • Punganur • Puthalapattu • Puttur • Rama Kuppam • Ramachandrapuram • Ramasamudram • Renigunta • Rompicherla • Santhi Puram • Satyavedu • Sodam • Somala • Srikalahasti • Srirangarajapuram • Thamballapalle • Thavanampalle • Thottambedu • Tirupati Rural • Tirupati Urban • Vadamalapeta • Varadaiahpalem • Vayalpad • Veduru Kuppam • Venkatagiri Kota • Vijaya Puram • Yadamari • Yerpedu • Yerravaripalem
A7: List of Mandals in Cuddapah District
A8: Atlur • B Kodur • Badvel • Brahmamgarimattam • Chakrayapet • Chapad • Chennur (Cuddapah District) • ChinnaChowk • Chinnamandem • Chintha Kommadinne • Chitvel • Cuddapah • Duvvur • Galiveedu • Gopavaram • Jammalamadugu • Kalasapadu • Kamalapuram • Khajipet • Kodur • Kondapuram • Lakkireddipalle • Lingala • Muddanur • Mylavaram • Mydukur • Nandalur • Obulavaripalle • Peddamudium • Penagaluru • Pendlimarri • Porumamilla • Proddutur • Pulivendla • Pullampeta • Railway Koduru • Rajampet • Raju Palem • Ramapuram • Rayachoti • S Mydukur • Sambepalle • Sidhout • Simhadripuram • T Sundupalle • Thandur • Vallur • Veeraballe • Veerapunayunipalle • Vempalle • Vemula • Vontimitta • Yerraguntla
A9: List of Mandals in East Godavari District
A10: Addateegala • Ainavilli • Alamuru • Allavaram • Amalapuram • Ambajipeta • Anaparthi • Atreyapuram • Bandarulanka • Biccavolu • Devipatnam • Gandepalle • Gangavaram (East Godavari District) • Gokavaram • Gollaprolu • I Polavaram • Jaggampeta • Kadiam • Kajuluru • Kakinada (Rural) • Kakunada (Urban) • Kapileswarapuram • Karapa • Katrenikona • Kirlampudi • Korukonda • Kotananduru • Kothapalli • Kothapeta • Malikipuram • Mamidikuduru • Mandapeta • Maredumilli • Mummidivaram • P Gannavaram • Pamarru • Pedapudi • Peddapuram • Pithapuram • Prathipadu • Rajahmundry(Rural) • Rajahmundry(Urban) • Rajanagaram • Rajavommangi • Ramachandrapuram (East Godavari District) • Rampachodavaram • Rangampeta • Ravulapalem • Rayavaram • Razole • Sakhinetipalle • Samalkota • Sankhavaram • Seethanagaram • Thallarevu • Thondangi • Tuni • Uppalaguptam • Y Ramavaram • Yeleswaram
A11: List of Mandals in Guntur District
A12: Achampeta • Amaravathi • Amruthalur • Bapatla • Bellamkonda • Bhattiprolu (Guntur District) • Bollapalle • Chebrole • Cherukupalle • Chilakaluripet • Dachepalle • Duggirala • Durgi • Edlapadu • Guntur • Gurazala • Ipuru • Kakumanu • Karempudi • Karlapalem • Kollipara • Kollur • Krosuru • Machavaram • Macherla • Mangalagiri • Medikonduru • Muppalla • Nadendla • Nagaram • Nakarikallu • Narasaraopeta • Nizampatnam • Nuzendla • Pedakakani • Pedakurapadu • Pedanandipadu • Phirangipuram • Piduguralla • Pittalavanipalem • Ponnur • Prathipadu (Guntur District) • Rajupalem • Rentacrintala • Repalle • Rompicherla (Guntur District) • Sattenapalle • Savalyapuram • Tadikonda • Tenali • Thadepalle • Thullur • Tsundur • Vatticherukuru • Veldurthi • Vemuru • Vinukonda
A13: List of Mandals in Karimnagar District
A14: Bheemadevarpalle • Boinpalle • Chandurthi • Choppadandi • Dharmapuri • Dharmaram • Ellanthakunta • Gambhiraopet • Gangadhara • Gollapalle • Husnabad • Huzurabad • Ibrahimpatnam • Jagtial • Jammikunta • Julapalle • Kamalapur • Kamanpur • Karimnagar • Kataram • Kathlapur • Kesavapatnam • Kodimial • Koheda • Konaraopeta • Koratla • Mahadevpur • Malharrao • Mallapur • Mallial • Manakondur • Manthani • Medipalle • Metpalle • Mustabad • Mutharam Mahadevpur • Mutharam Manthani • Odela • Peddapalle • Pegadapalle • Raikal (KarimnagarDistrict) • Ramadugu • Ramagundam • Saidapur • Sarangapur (KarimnagarDistrict) • Sirsilla • Srirampur • Sultanabad • Thimmapur • Veenavanka • Velgatoor • Vemulawada • Yella Reddi Peta
A15: List of Mandals in Khammam District
A16: Aswapuram • Aswaraopeta • Bayyaram • Bhadrachalam • Bonakal • Burgampadu • Chandrugonda • Cherla • Chinthakani • Chintur • Dammapeta • Dummugudem • Enkuru • Garla • Gundala • Julurpad • Kalluru • Karepalli • Khammam Rural • Khammam Urban • Konijerla • Kothagudem • Kukunoor • Kunavaram • Kusumanchi • Madhira • Manuguru • Mudigonda • Mulakalapalle • Nelakondapalle • Palawancha • Penuballi • Pinapaka • Sathupalle • Singareni • Tekulapalle • Thallada • Thirumalayapalem • Vararamachandrapuram • Velairpad • Vemsoor • Venkatapuram • Wazeed • Wyra • Yellandu • Yerrupalem
A17: List of Mandals in Krishna District
A18: A Konduru • Agiripalle • Avanigadda • Bantumilli • Bapulapadu • Challapalli • Chandarlapadu • Chatrai • G Konduru • Gampalagudem • Gannavaram • Ghantasala • Gudivada • Gudlavalleru • Gudur • Ibrahimpatnam (Krishna District) • Jaggayyapeta • Kaikalur • Kalidindi • Kanchika Cherla • Kankipadu • Koduru • Kruthivennu • Machilipatnam • Mandavalli • Mopidevi • Movva • Mudinepalli • Musunuru • Mylavaram (Krishna District) • Nagayalanka • Nandigama • Nandivada • Nuzvid • Pamarru (Krishna District • Pamidimukkala • Pedana • Pedaparupudi • Penamaluru • Penuganchiprolu • Reddigudem • Thotlavalluru • Tiruvuru • Unguturu • Vatsavai • Veerullapadu • Vijayawada Rural • Vijayawada Urban • Vissannapet • Vuyyuru
A19: List of Mandals in Kurnool District
A20: Adoni • Allagadda • Alur • Aspari • Atmakur • Banaganapalle • Bandi Atmakur • Bethamcherla • Bugganipalle • C.Belagal • Chagalamarri • Chippagiri • Devanakonda • Dhone • Dornipadu • Gadivemula • Gonegandla • Gospadu • Gudur • Halaharvi • Holagunda • Jupadu Bungalow • Kallur • Kodumur • Koilkuntla • Kolimigundla • Kosigi • Kothapalle • Kowthalam • Krishnagiri • Kurnool • Maddikera East • Mahanandi • Mantralayam • Midthur • Nandavaram • Nandi Kotkur • Nandyal • Orvakal • Owk • Pagidyala • Pamulapadu • Panyam • Pattikanda • Peapally • Pedda Kadubur • Rudravaram • Sanjamala • Sirvel • Srisailam • Tuggali • Uyyalawada • Veldurthi (Kurnool District) • Velgodu • Yemmiganur
A21: List of Mandals in Mahaboobnagar District
A22: Achampeta (Mahaboobnagar District) • Addakal • Aiza • Alampur • Amangal • Amrabad • Atmakur (Mahaboobnagar District) • Balanagar • Balmoor • Bhoothpur • Bijinapalle • Bomraspeta • Chinna Chinta Kunta • Damaragidda • Devarkadara • Dhanwada • Dharur (Mahboobanagar District • Doulatabad • Farooqnagar • Gadwal • Ghanpur • Ghattu • Gopalpeta • Hanwada • Itikyal • Jadcherla • Kalwakurthy • Keshampeta • Kodair • Kodangal • Koilkonda • Kollapur • Kondurg • Kosgi • Kothakota • Kothur • Lingal • Maddur • Madgul • Maganoor • Mahbubnagar • Makthal • Maldakal • Manopadu • Midjil • Nagar Kurnool • Narayanpet • Narva • Nawabpet • Pangal • Pebbair • Peddakothapalle • Peddamandadi • Tadoor • Talakondapalle • Telkapalle • Thimmajipeta • Uppununthala • Utkoor • Vangoor • Veepangandla • Veldanda • Waddepalle • Wanaparthy
A23: List of Mandals in Medak District
A24: Alladurg • Andole • Chegunta • Chinna Kodur • Doultabad • Dubbak • Eddumailaram • Gajwel • Hathnoora • Jagdevpur • Jharasangam • Jinnaram • Kalher • Kangti • Kohir • Kondapak • Kondapur • Kowdipalle • Kulcharam • Manoor • Medak • Mirdoddi • Mulug • Munpalle • Nanganur • Narayankhed • Narsapur • Nyalkal • Papannapet • Patancheru • Pulkal • Raikode • Ramachandrapuram (Medak District) • Ramayampet • Regode • Sadasivpet • Sangareddy • Shankarampet (A) • Shankarampet (R) • Shivampet • Siddipet • Tekmal • Tupran • Wargal • Yeldurthy • Zahirabad •
A25: List of Mandals in Nalgonda District
A26: Alair • Anumula • Atmakur (M) • Atmakur (S) • Bhuvanagiri • Bibinagar • Bommalaramaram • Chandam Pet • Chandur • Chilkur • Chintha Palle • Chityala • Chivvemla • Choutuppal • Dameracherla • Devarakonda • Garide Palle • Gundala • Gundla Palle • Gurrampode • Huzurnagar • Jaji Reddi Gudem • Kangal • Kattangoor • Kethepalle • Kodad • M Turkapalle • Marri Guda • Mattampalle • Mellachervu • Miryalaguda • Mothey • Mothkur • Munagala • Munugode • Nadigudem • Nakrekal • Nalgonda • Nampalle • Narayanapur • Narketpalle • Nered Cherla • Nidamanur • Nuthankal • Pedda Adiserlapalle • Peddavura • Penpahad • Pochampalle • Rajapet • Ramannapeta • Saligouraram • Suryapet • Thipparthi • Thirumalagiri • Thripuraram • Thunga Thurthi • Valigonda • Vemulapalle • Yadagirigutta •
A27: List of Mandals in Nellore District
A28: Allur • Ananthasagaram • Anumasamudrampeta • Atmakur • Balayapalle • Bogole • Buchireddipalem • Chejerla • Chillakur • Chittamur • Dagadarthi • Dakkili • Doravarisatram • Duttalur • Gudur • Indukurpet • Jaladanki • Kaligiri • Kaluvoya • Kavali • Kodavalur • Kondapuram (Nellore District) • Kota • Kovur • Manubolu • Marripadu • Muthukur • Naidupeta • Nellore • Ojili • Pellakur • Podlakur • Rapur • Sangam • Seetharamapuram • Sullurpeta • Sydapuram • Tada • Thotapalligudur • Udayagiri • Vakadu • Varikuntapadu • Venkatachalam • Venkatagiri • Vidavalur • Vinjamur •
A29: List of Mandals in Nizamabad District
A30: Armur • Balkonda • Banswada • Bheemgal • Bhiknur • Bichkunda • Birkoor • Bodhan • Dhar Palle • Dich Palle • Domakonda • Gandhari • Jakranpalle • Jukkal • Kamareddy • Kammar Palle • Kotgiri • Lingampet • Machareddy • Madnur • Makloor • Mortad • Naga Reddipet • Nandipet • Navipet • Nizam Sagar • Nizamabad • Pitlam • Ranjal • Sadasivanagar • Sirkonda • Tadwai • Varni • Velpur • Yeda Palle • Yellareddy •
A31: List of Mandals in Prakasam District
A32: • Ardhaveedu • Ballikuruva • Bestavaripeta • Chadrasekara Puram • Chimakurthi • Chinaganjam • Chirala • Cumbum • Darsi • Donakonda • Dornala • Gi• Gudluru • Hanumanthunipadu • Inkollu • Janakavaram Panguluru • Kandukur • Kanigiri • Karamchedu • Komarolu • Konakanamitla • Kondapi • Korisapadu • Kothapatnam • Kurichedu • Lingasamudram • Maddipadu • Markapur • Marripudi • Martur • Mundlamuru • Naguluppalapadu • Ongole • Pamur • Parchur • Pedaaraveedu • Pedacherlopalle • Podili • Ponnaluru • Pullalacheruvu • Racherla • Santhamaguluru • Santhanuthlapadu • Singarayakonda • Tangutur • Tarlapadu • Thallur • Tripuranthakam • Ulavapadu • Veligandla • Vetapalem • Voletivaripalem • Yeddanapudi • Yerragondapalem • Zarugumilli
A33: List of Mandals in Rangareddy District
A34: Balanagar • Bantaram • Basheerabad • Chevella • Dharur • Domah • Gandeed • Ghatkesar • Hayathnagar • Ibrahimpatam • Kandukur • Keesara • Kulkacharla • Maheswaram • Malkajgiri • Manchal • Marpalle • Medchal • Moinabad • Mominpet • Nawabpet(Rangareddy District) • Pargi • Peddemul • Pudur • Quthbullapur • Rajendranagar • Saroornagar • Serilingampalle • Shabad • Shamirpet • Shamshabad • Shankarpalle • Tandur (Rangareddy District) • Uppal • Vikarabad • Yacharam • Yelal •
A35: List of Mandals in Srikakulam District
A36: Amadalavalasa • Battili • Bhamini • Burja • Etcherla • Ganguvari Singadam • Kaligapatnam • Hiramandalam • Ichchapuram • Jalumuru • Kanchili • Kaviti • Kotabommili • Kothuru • Laveru • Mandasa • Meilaputti • Nandigam • Narasannapeta • Palakonda • Palasa • Pathapatnam • Polaki • Ponduru • Rajam • Ranastalam • Regidiamadalavalasa • Santhabommali • Santhakaviti • Saravakota • Sarubujjili • Seethampeta • Sompeta • Srikakulam • Tekkali • Vajrapukothuru • Vangara • Veeraghattam •
A37: List of Mandals in Visakhapatnam District
A38: Anakapalli • Anandapuram • Ananthagiri • Araku Valley • Atchutapuram • Bheemunipatnam • Butchayyapeta • Cheedikada • Chintapalle • Chodavaram • Devarapalle • Dumbriguda • Gajuwaka • Gangaraju Madugula • Golugonda • Gudem Kothaveedhi • Hukumpeta • K Kotapadu • Kasimkota • Kotauratla • Koyyuru • Madugula • Makavarapalem • Munagapaka • Munchingiputtu • Nakkapalli • Narsipatnam • Nathavaram • Paderu • Padmanabham • Paravada • Payakaraopeta • Pedabayalu • Pedagantyada • Pendurthi • Rambilli • Ravikamatham • Rolugunta • S Rayavaram • Sabbavaram • Visakhapatnam • Visakhapatnam(U) • Yelamanchili
A39: List of Mandals in Vizianagaram District
A40: Badangi • Balajipeta • Bhoghapuram • Bobbili • Bondapalle • Chintalavalasa • Cheepurupalle • Dattirajeru • Denkada • Gajapathinagaram • Gantyada • Garividi • Garugubilli • Gummalakshmipuram • Gurla • Jami • Jiyyamma Valasa • Komarada • Kothavalasa • Kurupam • Lakkavarapukota • Makkuva • Mentada • Merakamudidam • Nellimarla • Pachipenta • Parvathipuram • Pusapatirega • Ramabhadrapuram • Salur • Seethanagaram (Vizianagaram District) • Srungavarapukota • Therlam • Vepada • Vizianagaram
A41: List of Mandals in Warangal District
A42: Atmakur (Warangal District) • Bachannapeta • Bhupalpalle • Chennaraopet • Cheriyal • Chityal • Devaruppula • Dharmasagar • Dornakal • Duggondi • Eturnagaram • Geesugonda • Ghanapur • Ghanpur(Stn) • Govindaraopet • Gudur • Hanamkonda • Hasanparthy • Jangaon • Kesamudram • Khanapur • Kodakandla • Kothagudem • Kuravi • Lingala Ghanpur • Maddur (Warangal District) • Mahabubabad • Mangapet • Maripeda • Mogullapalle • Mulug (Warangal District) • Nallabelly • Narmetta • Narsampet • Narsimhulapet • Nekkonda • Nellikudur • Palakurthi • Parkal • Parvathagiri • Raghunatha Palle • Raiparthy • Regonda • Sangem • Shayampet • Tadvai • Thorrur • Venkatapur • Wardhannapet • Zaffergadh
A43: List of Mandals in West Godavari District
A44: Achanta • Akiveedu • Attili • Bheemavaram • Bhimadole • Buttayagudem • Chagallu • Chintalapudi • Denduluru • Devarapalle • Dwaraka Tirumala • Eluru • Ganapavaram • Gopalapuram • Iragavaram • Jangareddigudem • Jeelugumilli • Kalla • Kamavarapukota • Kovvur • Koyyalagudem • Lingapalem • Mogalthur • Nallajerla • Narasapuram • Nidadavole • Nidamarru • Palacole • Palakoderu • Pedapadu • Pedavegi • Pentapadu • Penugonda • Penumantra • Peravali • Poduru • Polavaram • T Narasapuram • Tadepalligudem • Tanuku • Thallapudi • Undi • Undrajavaram • Unguturu • Veeravasaram • Yelamanchili

Sheet code2 (hidden)
A1: 1 | B1: Adilabad District | C1: Adilabad | D1: DDO Desgn | F1: 1 | G1: Sri.
A2: 2 | B2: Not applicable | C2: Ananthapur | D2: 1 | E2: Assistant Director | F2: 2 | G2: Smt.
A3: 3 | B3: SPSR Nellore District | C3: Nellore | D3: 2 | E3: Deputy Director | F3: 3 | G3: Kum.
A4: 4 | B4: Chittoor District | C4: Chittoor | D4: 3 | E4: Deputy Educational Officer | F4: GENDER | G4: 1 | I4: =IF(G4=1,G1,IF(G4=2,G2&"/"&G3,G1&"/"&G2)) -> Sri.
A5: 5 | B5: East Godavari District | C5: Kakinada | D5: 4 | E5: Deputy Inspector of Schools | G5: =LOOKUP(G4,F1:G3,G1:G3) -> Sri.
A6: 6 | B6: Guntur District | C6: Guntur | D6: 5 | E6: Gazetted H.M. Gr-I | F6: 2 | G6: =LOOKUP(F6,F7:G9,G7:G9) -> Smt.
A7: 7 | B7: Hyderabad District | C7: Hyderabad | D7: 6 | E7: Gazetted H.M. Gr-II | F7: 1 | G7: Sri.
A8: 8 | B8: Kareemnagar District | C8: Kareem Nagar | D8: 7 | E8: Head Master | F8: 2 | G8: Smt.
A9: 9 | B9: Khammam District | C9: Khammam | D9: 8 | E9: Head Mistress | F9: 3 | G9: Kum.
A10: 10 | B10: Krishna District | C10: Machilipatnam | D10: 9 | E10: Mandal Educational Officer
A11: 11 | B11: Kurnool District | C11: Kurnool | D11: 10 | E11: Principal
A12: 12 | B12: Mahboobnagar District | C12: Mahboobnagar | D12: 11 | E12: Project Officer
A13: 13 | B13: Medak District | C13: Sanga Reddy | D13: 12 | E13: R.J.D.S.E.
A14: 14 | B14: Nalgonda District | C14: Nalgonda | I14: =IF(Data!$T$5=0,Code!G99,Data!$T$5) -> School Assistant (Maths)
A15: 15 | B15: Nizamabad District | C15: Nizamabad
A16: 16 | B16: Prakasham District | C16: Ongole
A17: 17 | B17: Ranga Reddy District | C17: Hyderabad
A18: 18 | B18: Sreekakulam District | C18: Sreekakulam
A19: 19 | B19: Vishakapatnam District | C19: Vishakapatnam
A20: 20 | B20: Vizianagaram District | C20: Vizianagaram
A21: 21 | B21: Warangal District | C21: Warangal
A22: 22 | B22: West Godavari District | C22: Elure
A23: 23 | B23: YSR Kadapa District | C23: Kadapa
B25: Not applicable
B26: SPSR Nellore District
B27: Chittoor District
D30: 1 | E30: 2 | F30: 3 | G30: 4 | H30: 5 | I30: 6 | J30: 7 | N30: 8 | O30: 9 | P30: 10 | Q30: 11 | R30: 12 | S30: 13 | T30: 14 | U30: 15 | V30: 16 | W30: 17 | X30: 18 | Y30: 19 | Z30: 20 | AA30: 21 | AB30: 22 | AC30: 23 | AD30: 24 | AE30: 25 | AF30: 26 | AG30: 27 | AH30: 30 | AI30: 31 | AJ30: 32 | AK30: 33 | AL30: 34 | AM30: 35 | AN30: 36 | AO30: 37 | AP30: 38 | AQ30: 39 | AR30: 40 | AS30: 41 | AT30: 42 | AU30: 43 | AV30: 44 | AW30: 45 | AX30: 46 | AY30: 47 | AZ30: 48 | BA30: 49 | BB30: 50 | BC30: 51 | BD30: 52 | BE30: 53 | BF30: 54 | BG30: 55 | BH30: 56 | BI30: 57 | BJ30: 58 | BK30: 59 | BL30: 60 | BM30: 61 | BN30: 62 | BO30: 63 | BP30: 64 | BQ30: 65 | BR30: 66 | BS30: 67 | BT30: 68 | BU30: 69 | BV30: 70 | BW30: 71 | BX30: 72 | BY30: 73 | BZ30: 74 | CA30: 75 | CB30: 76 | CC30: 77 | CD30: 78 | CE30: 79 | CF30: 80 | CG30: 81 | CH30: 82 | CI30: 83 | CJ30: 84 | CK30: 85 | CL30: 86 | CM30: 87 | CN30: 88 | CO30: 89 | CP30: 90 | CQ30: 91 | CR30: 92 | CS30: 93 | CT30: 94 | CU30: 95 | CV30: 96 | CW30: 97 | CX30: 98 | CY30: 99
D31: One | E31: Two | F31: Three | G31: Four | H31: Five | I31: Six | J31: Seven | N31: Eight | O31: Nine | P31: Ten | Q31: Eleven | R31: Twelve | S31: Thirteen | T31: Fourteen | U31: Fifteen | V31: Sixteen | W31: Seventeen | X31: Eighteen | Y31: Nineteen | Z31: Twenty | AA31: Twenty one | AB31: Twenty two | AC31: Twenty three | AD31: Twenty four | AE31: Twenty five | AF31: Twenty six | AG31: Twenty seven | AH31: Thirty | AI31: Thirty one | AJ31: Thirty two | AK31: Thirty three | AL31: Thirty four | AM31: Thirty five | AN31: Thirty six | AO31: Thirty seven | AP31: Thirty eight | AQ31: Thirty nine | AR31: Forty | AS31: Forty one | AT31: Forty two | AU31: Forty three | AV31: Forty four | AW31: Forty five | AX31: Forty six | AY31: Forty seven | AZ31: Forty eight | BA31: Forty nine | BB31: Fifty | BC31: Fifty one | BD31: Fifty two | BE31: Fifty three | BF31: Fifty four | BG31: Fifty five | BH31: Fifty six | BI31: Fifty seven | BJ31: Fifty eight | BK31: Fifty nine | BL31: sixty | BM31: Sixty one | BN31: Sixty two | BO31: Sixty three | BP31: Sixty four | BQ31: Sixty five | BR31: Sixty six | BS31: Sixty seven | BT31: Sixty eight | BU31: Sixty nine | BV31: Seventy | BW31: Seventy one | BX31: Seventy two | BY31: Seventy three | BZ31: Seventy four | CA31: Seventy five | CB31: Seventy six | CC31: Seventy seven | CD31: Seventy eight | CE31: Seventy nine | CF31: Eighty | CG31: Eighty one | CH31: Eighty two | CI31: Eighty three | CJ31: Eighty four | CK31: Eighty five | CL31: Eighty six | CM31: Eighty seven | CN31: Eighty eight | CO31: Eighty nine | CP31: Ninety | CQ31: Ninety one | CR31: Ninety two | CS31: Ninety three | CT31: Ninety four | CU31: Ninety five | CV31: Ninety six | CW31: Ninety seven | CX31: Ninety eight | CY31: Ninety nine
B33: NEt | D33: =IF(C33="","",CONCATENATE(S33," rupees only")) ->  | E33: =INT(C33/100000) -> 0 | F33: =INT(C33/1000-E33*100) -> 0 | G33: =INT(C33/100-E33*1000-F33*10) -> 0 | H33: =INT(C33-E33*100000-F33*1000-G33*100) -> 0 | I33: =IF(E33=0,"",LOOKUP(E33,D30:CZ30,D31:CZ31)) ->  | J33: =IF(F33=0,"",LOOKUP(F33,D30:CZ30,D31:CZ31)) ->  | K33: =IF(G33=0,"",LOOKUP(G33,D30:CZ30,D31:CZ31)) ->  | L33: =IF(H33=0,"",LOOKUP(H33,D30:CZ30,D31:CZ31)) ->  | M33: =IF(AND(G33=0,H33=0),1,2) -> 1 | N33: =IF(H33=0,3,4) -> 3 | O33: =IF(OR(M33=1,N33=3),5,6) -> 5 | P33: =IF(E33>1," Lakhs ",IF(E33>0," Lakh ","")) ->  | Q33: =IF(F33>0," Thousand ","") ->  | R33: =IF(G33>0," Hundred ","") ->  | S33: =IF(C33=0,"Zero",IF(C33>0,TRIM(CONCATENATE(I33,P33,J33,Q33,K33,R33,IF(AND(C33>100,O33=6)," and ",""),L33)),"")) -> Zero
B34: Under RS | D34: =IF(C34="","",CONCATENATE(S34," rupees only")) ->  | E34: =INT(C34/100000) -> 0 | F34: =INT(C34/1000-E34*100) -> 0 | G34: =INT(C34/100-E34*1000-F34*10) -> 0 | H34: =INT(C34-E34*100000-F34*1000-G34*100) -> 0 | I34: =IF(E34=0,"",LOOKUP(E34,D30:CZ30,D31:CZ31)) ->  | J34: =IF(F34=0,"",LOOKUP(F34,D30:CZ30,D31:CZ31)) ->  | K34: =IF(G34=0,"",LOOKUP(G34,D30:CZ30,D31:CZ31)) ->  | L34: =IF(H34=0,"",LOOKUP(H34,D30:CZ30,D31:CZ31)) ->  | M34: =IF(AND(G34=0,H34=0),1,2) -> 1 | N34: =IF(H34=0,3,4) -> 3 | O34: =IF(OR(M34=1,N34=3),5,6) -> 5 | P34: =IF(E34>1," Lakhs ",IF(E34>0," Lakh ","")) ->  | Q34: =IF(F34>0," Thousand ","") ->  | R34: =IF(G34>0," Hundred ","") ->  | S34: =IF(C34=0,"Zero",IF(C34>0,TRIM(CONCATENATE(I34,P34,J34,Q34,K34,R34,IF(AND(C34>100,O34=6)," and ",""),L34)),"")) -> Zero
C35: =SUM('ADVANCE TAX'!C3:C14) -> 3000 | D35: Three Thousand rupees only | E35: 0 | F35: 3 | G35: 0 | H35: 0 | I35: =IF(E35=0,"",LOOKUP(E35,D30:CZ30,D31:CZ31)) ->  | J35: =IF(F35=0,"",LOOKUP(F35,D30:CZ30,D31:CZ31)) -> Three | K35: =IF(G35=0,"",LOOKUP(G35,D30:CZ30,D31:CZ31)) ->  | L35: =IF(H35=0,"",LOOKUP(H35,D30:CZ30,D31:CZ31)) ->  | M35: 1 | N35: 3 | O35: 5 | Q35: Thousand | S35: Three Thousand
C36: ='FORM 16'!K77 -> 16447 | D36: =IF(C36="Nil","Zero only",CONCATENATE(S36," rupees only")) -> Sixteen Thousand Four Hundred and Forty seven rupees only | E36: 0 | F36: 16 | G36: 4 | H36: 47 | I36: =IF(E36=0,"",LOOKUP(E36,D30:CZ30,D31:CZ31)) ->  | J36: =IF(F36=0,"",LOOKUP(F36,D30:CZ30,D31:CZ31)) -> Sixteen | K36: =IF(G36=0,"",LOOKUP(G36,D30:CZ30,D31:CZ31)) -> Four | L36: =IF(H36=0,"",LOOKUP(H36,D30:CZ30,D31:CZ31)) -> Forty seven | M36: 2 | N36: 4 | O36: 6 | Q36: Thousand | R36: Hundred | S36: Sixteen Thousand Four Hundred and Forty seven
C37: 0 | E37: 0 | F37: 0 | G37: 0 | H37: 0 | I37: =IF(E37=0,"",LOOKUP(E37,D30:CZ30,D31:CZ31)) ->  | J37: =IF(F37=0,"",LOOKUP(F37,D30:CZ30,D31:CZ31)) ->  | K37: =IF(G37=0,"",LOOKUP(G37,D30:CZ30,D31:CZ31)) ->  | L37: =IF(H37=0,"",LOOKUP(H37,D30:CZ30,D31:CZ31)) ->  | M37: 1 | N37: 3 | O37: 5 | S37: Zero
C38: 0 | D38: Zero rupees only | E38: 0 | F38: 0 | G38: 0 | H38: 0 | I38: =IF(E38=0,"",LOOKUP(E38,D30:CZ30,D31:CZ31)) ->  | J38: =IF(F38=0,"",LOOKUP(F38,D30:CZ30,D31:CZ31)) ->  | K38: =IF(G38=0,"",LOOKUP(G38,D30:CZ30,D31:CZ31)) ->  | L38: =IF(H38=0,"",LOOKUP(H38,D30:CZ30,D31:CZ31)) ->  | M38: 1 | N38: 3 | O38: 5 | S38: Zero
C39: 0 | D39: Zero rupees only | E39: 0 | F39: 0 | G39: 0 | H39: 0 | I39: =IF(E39=0,"",LOOKUP(E39,D30:CZ30,D31:CZ31)) ->  | J39: =IF(F39=0,"",LOOKUP(F39,D30:CZ30,D31:CZ31)) ->  | K39: =IF(G39=0,"",LOOKUP(G39,D30:CZ30,D31:CZ31)) ->  | L39: =IF(H39=0,"",LOOKUP(H39,D30:CZ30,D31:CZ31)) ->  | M39: 1 | N39: 3 | O39: 5 | S39: Zero
C40: 0 | D40: Zero rupees only | E40: 0 | F40: 0 | G40: 0 | H40: 0 | I40: =IF(E40=0,"",LOOKUP(E40,D30:CZ30,D31:CZ31)) ->  | J40: =IF(F40=0,"",LOOKUP(F40,D30:CZ30,D31:CZ31)) ->  | K40: =IF(G40=0,"",LOOKUP(G40,D30:CZ30,D31:CZ31)) ->  | L40: =IF(H40=0,"",LOOKUP(H40,D30:CZ30,D31:CZ31)) ->  | M40: 1 | N40: 3 | O40: 5 | S40: Zero
C41: 0 | D41: Zero rupees only | E41: 0 | F41: 0 | G41: 0 | H41: 0 | I41: =IF(E41=0,"",LOOKUP(E41,D30:CZ30,D31:CZ31)) ->  | J41: =IF(F41=0,"",LOOKUP(F41,D30:CZ30,D31:CZ31)) ->  | K41: =IF(G41=0,"",LOOKUP(G41,D30:CZ30,D31:CZ31)) ->  | L41: =IF(H41=0,"",LOOKUP(H41,D30:CZ30,D31:CZ31)) ->  | M41: 1 | N41: 3 | O41: 5 | S41: Zero
C42: 0 | D42: Zero rupees only | E42: 0 | F42: 0 | G42: 0 | H42: 0 | I42: =IF(E42=0,"",LOOKUP(E42,D30:CZ30,D31:CZ31)) ->  | J42: =IF(F42=0,"",LOOKUP(F42,D30:CZ30,D31:CZ31)) ->  | K42: =IF(G42=0,"",LOOKUP(G42,D30:CZ30,D31:CZ31)) ->  | L42: =IF(H42=0,"",LOOKUP(H42,D30:CZ30,D31:CZ31)) ->  | M42: 1 | N42: 3 | O42: 5 | S42: Zero
C43: 0 | D43: Zero rupees only | E43: 0 | F43: 0 | G43: 0 | H43: 0 | I43: =IF(E43=0,"",LOOKUP(E43,D30:CZ30,D31:CZ31)) ->  | J43: =IF(F43=0,"",LOOKUP(F43,D30:CZ30,D31:CZ31)) ->  | K43: =IF(G43=0,"",LOOKUP(G43,D30:CZ30,D31:CZ31)) ->  | L43: =IF(H43=0,"",LOOKUP(H43,D30:CZ30,D31:CZ31)) ->  | M43: 1 | N43: 3 | O43: 5 | S43: Zero
E44: 0 | F44: 0 | G44: 0 | H44: 0 | I44: =IF(E44=0,"",LOOKUP(E44,D30:CZ30,D31:CZ31)) ->  | J44: =IF(F44=0,"",LOOKUP(F44,D30:CZ30,D31:CZ31)) ->  | K44: =IF(G44=0,"",LOOKUP(G44,D30:CZ30,D31:CZ31)) ->  | L44: =IF(H44=0,"",LOOKUP(H44,D30:CZ30,D31:CZ31)) ->  | M44: 1 | N44: 3 | O44: 5 | S44: Zero
C45: 0 | D45: Zero rupees only | E45: 0 | F45: 0 | G45: 0 | H45: 0 | I45: =IF(E45=0,"",LOOKUP(E45,D30:CZ30,D31:CZ31)) ->  | J45: =IF(F45=0,"",LOOKUP(F45,D30:CZ30,D31:CZ31)) ->  | K45: =IF(G45=0,"",LOOKUP(G45,D30:CZ30,D31:CZ31)) ->  | L45: =IF(H45=0,"",LOOKUP(H45,D30:CZ30,D31:CZ31)) ->  | M45: 1 | N45: 3 | O45: 5 | S45: Zero
C46: 0 | D46: Zero rupees only | E46: 0 | F46: 0 | G46: 0 | H46: 0 | I46: =IF(E46=0,"",LOOKUP(E46,D30:CZ30,D31:CZ31)) ->  | J46: =IF(F46=0,"",LOOKUP(F46,D30:CZ30,D31:CZ31)) ->  | K46: =IF(G46=0,"",LOOKUP(G46,D30:CZ30,D31:CZ31)) ->  | L46: =IF(H46=0,"",LOOKUP(H46,D30:CZ30,D31:CZ31)) ->  | M46: 1 | N46: 3 | O46: 5 | S46: Zero
C47: 0 | D47: Zero rupees only | E47: 0 | F47: 0 | G47: 0 | H47: 0 | I47: =IF(E47=0,"",LOOKUP(E47,D30:CZ30,D31:CZ31)) ->  | J47: =IF(F47=0,"",LOOKUP(F47,D30:CZ30,D31:CZ31)) ->  | K47: =IF(G47=0,"",LOOKUP(G47,D30:CZ30,D31:CZ31)) ->  | L47: =IF(H47=0,"",LOOKUP(H47,D30:CZ30,D31:CZ31)) ->  | M47: 1 | N47: 3 | O47: 5 | S47: Zero
E48: 0 | F48: 0 | G48: 0 | H48: 0 | I48: =IF(E48=0,"",LOOKUP(E48,D30:CZ30,D31:CZ31)) ->  | J48: =IF(F48=0,"",LOOKUP(F48,D30:CZ30,D31:CZ31)) ->  | K48: =IF(G48=0,"",LOOKUP(G48,D30:CZ30,D31:CZ31)) ->  | L48: =IF(H48=0,"",LOOKUP(H48,D30:CZ30,D31:CZ31)) ->  | M48: 1 | N48: 3 | O48: 5 | S48: Zero

Sheet Data
O1: Join STUAP Join STUAP Join STUAP
N2: Join STUAP Join STUAP Join STUAP Join STUAP Join STUAP | AR2: Join STUAP Join STUAP Join STUAP Join STUAP Join STUAP
Q3: INCOME TAX 2016-2017
P4: Personal details | Q4: 1 | R4: Name of the Employee | T4: 1 | U4: G.Bhasker | W4: Emp ID | Y4: 0830475 | AG4: 3850 | AH4: 10
Q5: 2 | R5: Other Designation type here | U5: 53 | AG5: 3950
T6: 3. PAN NO | U6: AKRPG8547M
Q7: 4 | R7: Name of the Office | U7: ZPHS,Venkatagiri
Q8: 5 | R8: District | U8: 3 | AP8: Enter your details in only green color cells
Q9: 6 | R9: Mandal | U9: 5 | AG9: 4050 | AH9: 20
Q10: EARNINGS | AG10: 4150
P11: Earnings
Q12: 1 | R12: Basic Pay as on March 2016 | AB12: 10 | AG12: 4260
Q13: 2 | R13: 6/12/18/24 scale or one Extra increment | Y13: Taxable Amount
Q14: 3 | R14: Stepup benefit or one extra increment | Y14: Gross | Z14: =Y52 -> 720026
Q15: 4 | R15: Half Pay leave | U15: To | Y15: <1.5 laksh | Z15: 150000 | AU15: =IF('INCOME TAX'!K19>=36000,"Submit House Rent Receipt","Not Submit House Rent Receipt ") -> Submit House Rent Receipt
Q16: 5 | R16: Loss of Pay | U16: To | Y16: >1.5 laksh | Z16: 1440
Q17: 6 | R17: HRA | S17: HRA REVISED PERCENT | V17: From | Y17: Tax amount | Z17: 238800
Q18: 7 | R18: AHRA | T18: City Compensatory Allowance(CCA) | Y18: Tax | Z18: 19447
Q19: 8 | R19: Rented/Own House | S19: =Code!P122 -> 1 | T19: Rent Paid per month | V19: 11800 | X19: ='INCOME TAX'!K19 -> 77445 | Y19: Ad. Tax | Z19: 3000
Q20: 9 | R20: Reader allowance(RA) | T20: Special Compensatory allowance (SCA) | X20: ='INCOME TAX'!K20 -> 77342 | Y20: Net Tax | Z20: 16447
Q21: 10 | R21: Additional Increments (AI) | X21: ='INCOME TAX'!K21 -> 257032 | AG21: =4480+115 -> 4595 | AN21: 75
Q22: 11 | R22: Personal Pay(PP)/Special Pay | AG22: =AG21+115 -> 4710
Q23: 12 | R23: Family Planning Increment (F.P.I)
Q24: 13 | R24: CA(PHA)
Q25: 14 | R25: HMA | T25: HMA REVISED AMOUNT | W25: VISIT:http://ww.gsreddy.4-all.org | AG25: =AG22+115 -> 4825 | AK25: 0
Q26: 15 | R26: Increment Month
Q27: 16 | R27: Child Education Consession
Q28: SALARY DEDUCTIONS | AG28: =#REF!+125 ->  | AH28: 75 | AJ28: 15 | AK28: 60
P29: Salary Deductions | Q29: 1 | R29: ZPPF/GPF/CPS | T29: 6000 | U29: ZPPF/GPF REVISED AMOUNT | W29: =IF(Code!AB12=1,"Not Applicable","Enter amonut") -> Enter amonut | Y29: 8000 | AG29: =AG28+125 ->  | AJ29: 30 | AK29: 75
W30: =IF(Code!AB13=1,"Not Applicable","Enter amonut") -> Enter amonut
Q31: 2 | R31: APGLI | T31: 1150 | U31: APGLI REVISED | V31: =IF(Code!AA14=1,"Not Applicable","Enter amonut") -> Enter amonut | AG31: 5470 | AJ31: 120 | BM31: =Code!AD12 -> ZPPF
Q32: 3 | R32: EHF | T32: 120 | U32: EHF REVISED | V32: =IF(Code!AA15=1,"Not Applicable","Enter amonut") -> Enter amonut | AG32: 5605 | AI32: 15
AG33: 5750 | AI33: 30
Q34: 5 | R34: GIS | U34: GIS REVISED
Q35: 6 | R35: EWF | U35: ZPPF/GPF LOAN AND FESTIVAL ADVANCE CAN NOT BE TREATED AS SAVINGS. [Use Legal Pepar for print]
Q36: 7 | R36: SWF
Q37: 8 | R37: LIC(SALARY) | T37: 3018 | U37: REVISED LIC AMOUNT | W37: =IF(Code!AC20=1,"Not Applicable","Enter amonut") -> Enter amonut | AG37: 5895
Q38: 9 | R38: LIC(BYHAND) | U38: TOTAL DEDUCTION U/S 80C Max. Rs 1,50,000/- + 20,000/- Infrustructure Bond, Total Rs.1,70,000/-
Q39: 10 | R39: Advance Tax
Q40: NON SALARY DEDUCTIONS | W40: D.A | AG40: 8170 | AJ40: SA(SS)
P41: Non salary deductions | Q41: (Below 1 laksh) Deductions | R41: Housing Loan Principle (80 C) | W41: 0.08908 | X41: TO | Y41: 0.1205 | AG41: 8385 | AJ41: SA(PS)
R42: Tuition Fee for two Children (80 C) | AG42: 8600 | AJ42: SA(ENG)
R43: N.S.C. (80 C) | W43: Surrender Leave DA difference claim | AP43: 2
R44: P.L.I (80 C) | V44: =698*12 -> 8376 | W44: SURRENDER LEAVE | AO44: Arrear Earnings | AP44: 1 | AQ44: 1 Basic
R45: L.I.C(Jeevan Suraksha) | AG45: 8815 | AJ45: SA(TEL) | AP45: 2 | AQ45: 1/2 basic
R46: ING/SBI/Bajaj allianz/Reliance/ING Birla sun life insurance | W46: Directly Enter in Salary Table | AP46: 3 | AQ46: 2 basic
R47: Fixed deposits for more than 5 years | W47: NOTIONAL INC ARREARS | AG47: 9050 | AJ47: SA(HIN)
R48: PUBLIC PROVIDENT FUND (P.P.F) | W48: AAS ARREARS | AG48: 9775 | AJ48: GR-I TP | AP48: Check and submit.I am not responsiable for any mistaktes.any doubts call. | AW48: IR ARRears ( 3 Months)
W49: STEPUP/Prephonement Arrears | AG49: 10030 | AJ49: GR-I HP
AG50: 10285 | AJ50: GR-II TP | AS50: 4260 | AT50: D.Lakshmidevi
Q51: (Above 1 laksh) Examptions | X51: Taxable Amount | AG51: 10565 | AJ51: GR-II HP | AS51: 4370 | AT51: M.Karunakumari
X52: Gross | Y52: ='INCOME TAX'!K15 -> 720026
R53: Interest on Housing loan(U/S 24(L)(VI) | X53: <1.5 laksh | Y53: ='INCOME TAX'!O52 -> 150000 | AG53: 10845 | AJ53: PET | AS53: 4480 | AT53: Ch.Gayatri
R54: Infrastructure Bonds(Max Rs.20,000/- only) | X54: >1.5 laksh | Y54: =SUM('INCOME TAX'!K55:K61) -> 1440 | AG54: 11125 | AJ54: PED | AS54: 4595 | AT54: V.Vishnumohanrao
R55: Donations (80 G) | X55: Tax amount | Y55: ='INCOME TAX'!O65 -> 238800 | AG55: 11440 | AJ55: SGT | AS55: 4710 | AT55: Ch.Seenaiah
R56: Exption on PHC dependent (80DD) (Submit Medical Certificate) | X56: Tax | Y56: ='INCOME TAX'!$O$71 -> 19447 | AG56: 11755 | AS56: 4825 | AT56: G.Uma
R57: Exp. On Medical Treatment(80 DDB) | X57: Ad. Tax | Y57: ='INCOME TAX'!$O$73 -> 3000 | AG57: 12385 | AS57: 4950 | AT57: G.Saivijaya Kumar
R58: interest on Education loan(80 E) | X58: Net Tax | Y58: ='INCOME TAX'!O74 -> 16447 | AG58: 12700 | AS58: 5075 | AT58: T.Subba Rao
R59: Mediclaim Insurance (80 D) | X59: Johar YSR | AS59: 5200 | AT59: D.Sivaramaiah
R60: New section 80CCF from financial year 2010-11 | V60: 20000
Q61: PRESENTED BY GSREDDY,NELLORE.cell:9666570250 | AG61: 13030 | AS61: 5335 | AT61: G.MohanRaju
AG62: 15975 | AS62: 5470 | AT62: N.Bharathy
R63: Thanks for using this software & visit my website https://sites.google.com/site/andrateachers/ | AG63: =AG62+475 -> 16450 | AT63: P.Mallikarjuna
O64: https://sites.google.com/site/andrateachers/ | AS64: 5605 | AT64: V.Sreenivasulu
AG65: =16925+550 -> 17475 | AS65: 5750
AG66: =AG65+550 -> 18025 | AS66: 5895
AG67: =AG66+550 -> 18575 | AS67: 6040
AG68: =AG67+550 -> 19125 | AS68: 6195
AG69: =19125+550 -> 19675 | AS69: 6350
AG70: =19675+625 -> 20300 | AS70: 6505
AG71: =AG70+625 -> 20925 | AS71: 6675
AG72: =AG71+625 -> 21550 | AS72: 6845
AG73: =AG72+625 -> 22175 | AS73: 7015
AG74: =22175+625 -> 22800 | AS74: 7200
AG75: =AG74+700 -> 23500 | AS75: 7385
AG76: 24200 | AS76: 7570
AG77: 24900 | AS77: 7770
AG78: 25600 | AS78: 7970
AG79: 26300 | AS79: 8170
AG80: 27000 | AS80: 8385
AG81: =AG80+750 -> 27750 | AS81: 8600
AG82: =AG81+750 -> 28500 | AS82: 8815
AG83: =AG82+750 -> 29250 | AS83: 9050
AG84: =AG83+750 -> 30000 | AS84: 9285
AG85: =AG84+765 -> 30765 | AS85: 9520
AS86: 9775
AS87: 10030
AS88: 10285
AS89: 10565
AS90: 10845
AS91: 11125
AS92: 11440
AS93: 11755
AS94: 12070
AS95: 12385
AS96: 12700
AS97: 13030
AS98: 13390
AS99: 13750
AS100: 14175
AS101: 14600
AS102: 15025
AS103: 15500
AS104: 15975
AS105: 16450
AS106: 16925
AS107: 17475
AS108: 18025
AS109: 18575
AS110: 19125
AS111: 19675
AS112: 20300
AS113: 20925
AS114: 21550
AS115: 22175
AS116: 22800
AS117: 23500
AS118: 24200
AS119: 24900
AS120: 25600
AS121: 26300
AS122: 27000
AS123: 27750
AS124: 28500
AS125: 29250
AS126: 30000
AS127: 30765

Sheet INCOME TAX
B2: =CONCATENATE("INCOME TAX RETURN FOR THE YEAR ",RIGHT(Data!Q3,10)) -> INCOME TAX RETURN FOR THE YEAR 2016-2017
B3: 1 | C3: Name of the Employee | E3: =CONCATENATE(":",code2!G5,Data!U4) -> :Sri.G.Bhasker | H3: Employee Treasury ID | M3: =":"&Data!Y4 -> :0830475 | AD3: Gross amount | AF3: =O17 -> 720026
B4: 2 | C4: Desigation & Address | E4: =":"&Designation&","&Data!U7&","&IF(Mandals!Z1=Mandals!Z8," ",CONCATENATE(Mandals!AA2," Mandal"))&","&Mandals!Z1&"." -> :School Assistant (Maths),ZPHS,Venkatagiri,Venkatagiri Mandal,Nellore District.
B5: 3 | C5: ="Income Tax No.(PAN) if already alloted" -> Income Tax No.(PAN) if already alloted | F5: =":"&Data!U6 -> :AKRPG8547M | I5: =IF(J5=0,0,":") -> 0 | AD5: HRA | AF5: =O22 -> 77342
B6: 3 | C6: Income Tax No.(PAN) if already alloted. | I6: =IF(J6=0,0,":") -> : | J6: =Data!U6 -> AKRPG8547M
B7: 4 | C7: Income Receipts For The Year
C8: a) | D8: Pay | I8: : | J8: Rs. | K8: ='SALARY TABLE'!$C$30 -> 534100
C9: b) | D9: Personal pay/H.M.A/AI/CA/FPI | I9: =IF(K9=0,0,":") -> 0 | J9: =IF(K9=0,0,"Rs.") -> 0 | K9: ='SALARY TABLE'!I30+'SALARY TABLE'!L30+'SALARY TABLE'!M30+'SALARY TABLE'!N30+'SALARY TABLE'!P30 -> 0
C10: c) | D10: Dearness Allowance(D.A) | I10: : | J10: Rs. | K10: ='SALARY TABLE'!$E$30 -> 108481
C11: d) | D11: House Rent Allowance | I11: : | J11: Rs. | K11: ='SALARY TABLE'!$F$30 -> 77445
C12: e) | D12: I.R | I12: =IF(K12=0,0,":") -> 0 | J12: =IF(K12=0,0,"Rs.") -> 0 | K12: ='SALARY TABLE'!H30 -> 0
C13: f ) | D13: Child Education Consession | I13: =IF(K13=0,0,":") -> 0 | J13: =IF(K13=0,0,"Rs.") -> 0 | K13: ='SALARY TABLE'!Q24 -> 0
C14: g) | D14: others(F.P.I/C.A/SCA/RA/CCA etc) | I14: =IF(K14=0,0,":") -> 0 | J14: =IF(K14=0,0,"Rs.") -> 0 | K14: =Data!$Z$47+Data!$Z$48+'SALARY TABLE'!G30+'SALARY TABLE'!J30+'SALARY TABLE'!O30+'SALARY TABLE'!K30 -> 0
B15: 5 | C15: Gross salary(a+b+c+d+e+f+g) | I15: : | J15: Rs. | K15: =SUM(K8:K14) -> 720026
B16: 6 | C16: Income from other sources | I16: =IF(K16=0,0,":") -> 0 | J16: =IF(K16=0,0,"Rs.") -> 0 | K16: 0
B17: 7 | C17: Gross Total income(5+6) | M17: : | N17: Rs. | O17: =K15+K16 -> 720026
B18: 8 | C18: House rent allowance | H18: vis 10(2A),13(A) | M18: (Pay+DA)*10% | O18: =ROUND((K8+K10)*10%,0) -> 64258
C19: a) | D19: Actual House Rent received | F19: =IF(Data!V19*12>=100000,"House owners PAN No",0) -> House owners PAN No | I19: : | J19: Rs. | K19: ='SALARY TABLE'!$F$30 -> 77445 | M19: Per month * 12 | O19: =Code!R123*12 -> 141600
C20: b) | D20: ="Excess of house rent received over & above of 10% of (Pay+DA)"&IF(K20="Nil"," "," per month Rs."&Data!V19) -> Excess of house rent received over & above of 10% of (Pay+DA) per month Rs.11800 | I20: : | J20: Rs. | K20: =IF(Code!P122=2,"Nil",ABS(Code!R123*12-ROUND((K8+K10)*10%,0))) -> 77342 | M20: Difference | O20: =ABS(Code!R123*12-ROUND((K8+K10)*10%,0)) -> 77342
C21: c) | D21: 40% of (Pay+DA) | I21: : | J21: Rs. | K21: =ROUND(0.4*(K8+K10),0) -> 257032 | O21: =IF(O22=0,0,":") -> :
B22: (deduct (a) or (b) or (c) which ever less) | N22: =IF(O22=0,0,"Rs.") -> Rs. | O22: =IF(Code!P122=2,"Nil",IF(K19>K20,K20,IF(K19>K21,K21,K19))) -> 77342
B23: 9 | C23: Net Salary Income (7-8) | M23: : | N23: Rs. | O23: =IF(Code!P122=1,O17-SMALL(K19:K21,1),O17) -> 642684
B24: 10 | C24: Deductions
C25: Professional Tax u/s 16 III | M25: : | N25: Rs. | O25: ='SALARY TABLE'!$W$30 -> 2400
C26: Special/conveyance/traveling allowance | M26: =IF(O26=0,0,":") -> 0 | N26: =IF(O26=0,0,"Rs.") -> 0 | O26: 0
B27: 11 | C27: Net Salary Income (9-10) | M27: : | N27: Rs. | O27: =O23-O25 -> 640284 | Q27: Income Tax Slab for F.Y. 2014-2015
B28: 12 | C28: Deductions Under Chapter VI - A | Q28: MALE/FEMALE | R28: Below 60 years
C29: a) | D29: C.M. Relief Fund | I29: =IF(K29=0,0,":") -> 0 | J29: =IF(K29=0,0,"Rs.") -> 0 | K29: ='SALARY TABLE'!Y10+'SALARY TABLE'!Y13 -> 0 | Q29: From | R29: To | S29: Rate
C30: b) | D30: Housing Loan Interst | I30: =IF(K30=0,0,":") -> 0 | J30: =IF(K30=0,0,"Rs.") -> 0 | K30: =IF(Data!V53>=200000,200000,Data!V53) -> 0 | Q30: 0 | R30: 250000 | S30: No Tax
C31: c) | D31: T.W.F/E.W.F/S.W.F and flag day | I31: =IF(K31=0,0,":") -> : | J31: =IF(K31=0,0,"Rs.") -> Rs. | K31: ='SALARY TABLE'!$Y$5+'SALARY TABLE'!Y14 -> 40 | Q31: 250001 | R31: 500000 | S31: 0.1
C32: d) | D32: Exemption from conveyance allowance u/s.10(14)(i) | I32: =IF(K32=0,0,":") -> 0 | J32: =IF(K32=0,0,"Rs.") -> 0 | K32: ='SALARY TABLE'!P30 -> 0 | Q32: 500001 | R32: 1000000 | S32: 0.2
D33: Total | F33: (a+b+c+d) | M33: : | N33: Rs. | O33: =K29+K30+K31+K32 -> 40 | Q33: 1000001 onwards | S33: 0.3
B34: 13 | C34: Net Salary Income (11-12) | M34: : | N34: Rs. | O34: =O27-O33 -> 640244
B35: 14 | C35: Deductions Under Section 80 C.C.E
C36: a) | D36: L.I.C | I36: =IF(K36=0,0,":") -> : | J36: =IF(K36=0,0,"Rs.") -> Rs. | K36: ='SALARY TABLE'!T30 -> 36216
C37: b) | D37: L.I.C(Personal) | I37: 0 | J37: 0 | K37: =Data!T38 -> 0
C38: c) | D38: P.L.I | I38: : | J38: Rs. | K38: =Data!V44 -> 8376
C39: d) | D39: ="G.I.S per Month Rs."&Code!J157 -> G.I.S per Month Rs.60 | I39: : | J39: Rs. | K39: ='SALARY TABLE'!S30 -> 720
C40: e) | D40: ="A.P.G.L.I.S per Month Rs."&Data!T31 -> A.P.G.L.I.S per Month Rs.1150 | I40: : | J40: Rs. | K40: ='SALARY TABLE'!U30 -> 13800
C41: f) | D41: =Code!AD12&" per Month Rs."&Data!T29 -> ZPPF per Month Rs.6000 | I41: : | J41: Rs. | K41: ='SALARY TABLE'!R30 -> 109996
C42: g) | D42: CSS | I42: 0 | J42: 0
C43: h) | D43: N.S.E | I43: 0 | J43: 0 | K43: =Data!V43 -> 0
C44: i) | D44: Tution Fee | I44: 0 | J44: 0 | K44: =Data!V42 -> 0
C45: j) | D45: Houseing Loan Principle | I45: 0 | J45: 0 | K45: =Data!V41 -> 0
C46: k) | D46: =Data!R47 -> Fixed deposits for more than 5 years | I46: 0 | J46: 0 | K46: =Data!V47 -> 0
C47: l) | D47: L.I.C(Jeevan Suraksha) | I47: 0 | J47: 0 | K47: =Data!V45 -> 0
C48: m) | D48: =Data!R46 -> ING/SBI/Bajaj allianz/Reliance/ING Birla sun life insurance | I48: 0 | J48: 0 | K48: =Data!V46 -> 0
C49: n) | D49: P.P.F | I49: 0 | J49: 0 | K49: =Data!V48 -> 0
C50: =IF(D50>0,"g)",0) -> 0 | D50: =Data!R49 -> 0 | I50: 0 | J50: 0 | K50: =Data!V49 -> 0
C51: =IF(D51>0,"g)",0) -> 0 | D51: =Data!R50 -> 0 | I51: 0 | J51: 0 | K51: =Data!V50 -> 0
B52: 15 | C52: Total (a+b+c+d+e+f+g+h+i+j+k+l+m+n+o+p) | I52: : | J52: Rs. | K52: =SUM(K36:K51) -> 169108 | M52: : | N52: Rs. | O52: =IF(K52<=150000,K52,150000) -> 150000
B53: 16 | C53: Taxable Income(14-15) | M53: : | N53: Rs. | O53: =IF(SUM(K36:K51)>150000,O34-150000,O34-O52) -> 490244
B54: 17 | C54: Taxable income after deductions of savings
C55: a) | D55: =Data!R55 -> Donations (80 G) | I55: =IF(K55=0,0,":") -> 0 | J55: =IF(K55=0,0,"Rs.") -> 0 | K55: =Data!V55 -> 0
C56: b) | D56: =Data!R56 -> Exption on PHC dependent (80DD) (Submit Medical Certificate) | I56: 0 | J56: 0 | K56: =Data!V56 -> 0
C57: c) | D57: =Data!R57 -> Exp. On Medical Treatment(80 DDB) | I57: 0 | J57: 0 | K57: =Data!V57 -> 0
C58: d) | D58: =Data!R58 -> interest on Education loan(80 E) | I58: 0 | J58: 0 | K58: =Data!V58 -> 0
C59: e) | D59: =Data!R59 -> Mediclaim Insurance (80 D) | I59: 0 | J59: 0 | K59: =Data!V59 -> 0 | AD59: Income Tax Slabs 2009/2010 for Men
C60: f) | D60: =Data!R54 -> Infrastructure Bonds(Max Rs.20,000/- only) | I60: 0 | J60: 0 | K60: =Data!V54 -> 0
C61: g) EHF (80D) | I61: : | J61: Rs. | K61: =IF(C61="g) EHF (80D)",'SALARY TABLE'!V30,0) -> 1440
B62: 18 | C62: Total (a+b+c+d+e+f+g+h) | M62: =IF(O62=0,0,":") -> : | N62: =IF(O62=0,0,"Rs.") -> Rs. | O62: =SUM(K55:K61) -> 1440 | AD62: Income: upto 1.6 lacs | AE62: NO TAX
B63: 19 | C63: Tax Payble income(16-18) | M63: : | N63: Rs. | O63: =IF(O53<O62,"Nil",O53-O62) -> 488804 | AD63: Income : 1.6 lacs to 3 lacs | AE63: 0.1
B64: 20 | C64: =CONCATENATE("No Tax for income upto Rs.",O64) -> No Tax for income upto Rs.250000 | H64: =IF((O63-O64)<0,"Nil",O63-O64) -> 238804 | M64: : | N64: Rs. | O64: =IF(code2!G4=1,250000,IF(code2!G4=2,250000,250000)) -> 250000
B65: 21 | C65: Final Taxable amount | E65: ="(Rounded off nerest 10)" -> (Rounded off nerest 10) | G65: ="(Taxable Amount(19-20)=Rs."&O63-O64&")" -> (Taxable Amount(19-20)=Rs.238804) | M65: : | N65: Rs. | O65: =IF(H64="Nil","Nil",ROUND(IF((O63-O64)<0,"Nil",O63-O64),-1)) -> 238800
B66: 22 | C66: Tax(see note) | M66: : | N66: Rs. | O66: =IF(O65="Nil","Nil",tax) -> 23880 | AD66: Income : 3 lacs to 5 lacs | AE66: 0.2
B67: 23 | C67: Tax examption(See: S.No:19 not greater than 5 laksh,examption tax Rs.5000) Rule 87A | M67: : | N67: Rs. | O67: =IF(OR(O65="Nil"),"Nil",IF(O63<=500000,5000,"Nil")) -> 5000
B68: 24 | C68: Tax Payable (22)-(23) | K68: =IF(OR(O65="Nil"),"Nil",IF(O67="Nil",O66,O66-O67)) -> 18880 | M68: : | N68: Rs. | O68: =IF(K68="Nil","Nil",IF(K68>0,K68,"Nil")) -> 18880
B69: 25 | C69: Education cess(2%) | M69: : | N69: Rs. | O69: =IF(OR(O65="Nil",K68="Nil",K68<0),"Nil",ROUND((K68*2/100),0)) -> 378 | AD69: Income : above 5 lacs | AE69: 0.3
B70: 26 | C70: Secondary & Higher Education cess(1%) | N70: Rs. | O70: =IF(OR(O65="Nil",K68="Nil",K68<0),"Nil",ROUND(K68/100,0)) -> 189
B71: 27 | C71: Tax to be paid | M71: : | N71: Rs. | O71: =IF(OR(O65="Nil",K68="Nil",K68<0),"Nil",SUM(O68:O70)) -> 19447 | AD71: Income Tax Slabs 2009/2010 or Women
B73: 28 | C73: Advance tax paid | M73: : | N73: Rs. | O73: =IF(OR(O66="Nil",K68="Nil",'ADVANCE TAX'!B3="Not Applicable"),"Nil",IF('SALARY TABLE'!X30=0,"Nil",SUM('ADVANCE TAX'!C3:C14))) -> 3000
B74: 29 | C74: Net TAX Payable | M74: : | N74: Rs. | O74: =IF(OR(O63="Nil",O65="Nil",O68="Nil"),"Nil",IF(OR(O67=5000,O67="Nil"),IF(O73="Nil",O71,O71-O73))) -> 16447
D75: Annual Income | F75: Men/Women below 60 years
B76: Note: | AD76: Income : upto 1.9 lacs | AE76: NO TAX
D77: Below 2,50,000 | F77: No Tax | AD77: Income : 1.9 lacs to 3 lacs | AE77: 0.1
D78: 2,50,001-5,00,000 | F78: 0.1 | AD78: Income : 3 lacs to 5 lacs | AE78: 0.2
D79: 5,00,001-10,00,000 | F79: 0.2 | AD79: Income : above 5 lacs | AE79: 0.3
D80: 5,00,001 -10,00,000 | F80: 0.2
D81: 10,00,000 above | F81: 0.3 | AD81: Income Tax slabs 2009/2010 for Senior Citizen
AD82: Income : upto 2.4 lacs | AE82: NO TAX
B83: Note: | D83: 1.Deduct savings amount(col. No. 14) from taxable income Under section 80 C.C.E (Limit Rs.150000) | AD83: Income : 2.4 lacs to 3 lacs | AE83: 0.1
D84: 2.Penalty u/s. 271F: Failure to furnish a return of income as required u/s.139 before the end of the relevant assessment | AD84: Income : 3 lacs to 5 lacs | AE84: 0.2
D85: year shall entail the assessee liable for a penalty of Rs.5,000-00 | AD85: Income : above 5 lacs | AE85: 0.3
B88: COUNTER SIGNED | H88: SIGNATURE OF EMPLOYEE
B90: Designed by G.S.Reddy,Venkatagiri,cell:9666570250

Sheet SALARY TABLE
B2: =CONCATENATE("Statement Showing Monthwise income of ",code2!G5," ",Data!U4," for the year ",RIGHT(Data!Q3,10)) -> Statement Showing Monthwise income of Sri. G.Bhasker for the year 2016-2017
B4: Month | C4: Basic pay | D4: D.A | E4: D.A | F4: H.R.A | G4: AHRA | H4: IR | I4: HMA | J4: SCA | K4: CCA | L4: AI | M4: PP/Special pay | N4: FPI | O4: RA | P4: CA (PHA) | Q4: Total Income | R4: =Code!AD12 -> ZPPF | S4: G.I.S | T4: L.I.C | U4: A.P.G.L.I.S | V4: EHF | W4: PT | X4: Advance Tax | Y4: CMRF/ TWF /SWF | Z4: Total deductions | AA4: Net | AG4: 0
B5: 2016-03-01 | C5: =R59 -> 42490 | D5: 0.12052 | E5: =IF(Code!$AM$3=1,ROUND(('SALARY TABLE'!S59*D5),0),ROUND((D5*C5),0)) -> 5121 | F5: =IF('SALARY TABLE'!S59*Code!$Z$4>=8000,8000,ROUND(IF(Code!$AM$3=1,ROUND(('SALARY TABLE'!S59*Code!$Z$4),0),Code!AP64),0)) -> 6161 | G5: =Code!AR64 -> 0 | I5: =Code!AV96 -> 0 | J5: =Code!AE121 -> 0 | K5: =Code!AE139 -> 0 | L5: =IF($C5=0,0,IF(Code!$AM$3=1,ROUND(Data!$U$21/2,0),Data!$U$21)) -> 0 | M5: =IF($C5=0,0,IF(Code!$AM$3=1,ROUND(Data!$U$22/2,0),Data!$U$22)) -> 0 | N5: =IF($C5=0,0,IF(Code!$AM$3=1,ROUND(Data!$U$23/2,0),Data!$U$23)) -> 0 | O5: =IF(Code!$W$111="Not Applicable",0,Code!$W$111) -> 0 | P5: =IF($C5=0,0,IF(Code!$AM$3=1,ROUND(Code!AL36/2,0),Code!AL36)) -> 0 | Q5: =ROUND(C5+E5+F5+G5+H5+I5+J5+K5+L5+M5+N5+O5+P5,0) -> 53772 | R5: =Code!AW33 -> 6000 | S5: =Code!M158 -> 60 | T5: =Code!AW48 -> 3018 | U5: =Code!AX18 -> 1150 | V5: =Code!AW119 -> 120 | W5: =IF(Code!$AE$3=2,Code!CC118," ") -> 200 | X5: =IF(Code!$AB$96=1,'ADVANCE TAX'!C3," ") -> 0 | Y5: =ewf -> 20 | Z5: =SUM(R5:Y5) -> 10568 | AA5: =Q5-Z5 -> 43204 | AG5: 3850 | AH5: 0
B6: 2016-04-01 | C6: =R60 -> 42490 | D6: 0.12052 | E6: =IF(Code!$AM$3=1,ROUND(('SALARY TABLE'!S60*D6),0),ROUND((D6*C6),0)) -> 5121 | F6: =IF('SALARY TABLE'!S60*Code!$Z$4>=8000,8000,ROUND(IF(Code!$AM$3=1,ROUND(('SALARY TABLE'!S60*Code!$Z$4),0),Code!AP65),0)) -> 6161 | G6: =Code!AR65 -> 0 | I6: =Code!AV97 -> 0 | J6: =Code!AE122 -> 0 | K6: =Code!AE140 -> 0 | L6: =IF($C6=0,0,IF(Code!$AM$3=1,ROUND(Data!$U$21/2,0),Data!$U$21)) -> 0 | M6: =IF($C6=0,0,IF(Code!$AM$3=1,ROUND(Data!$U$22/2,0),Data!$U$22)) -> 0 | N6: =IF($C6=0,0,IF(Code!$AM$3=1,ROUND(Data!$U$23/2,0),Data!$U$23)) -> 0 | O6: =IF(Code!$W$111="Not Applicable",0,Code!$W$111) -> 0 | P6: =IF($C6=0,0,IF(Code!$AM$3=1,ROUND(Code!AL37/2,0),Code!AL37)) -> 0 | Q6: 53772 | R6: =Code!AW34 -> 6000 | S6: =Code!M159 -> 60 | T6: =Code!AW49 -> 3018 | U6: =Code!AX19 -> 1150 | V6: =Code!AW120 -> 120 | W6: =IF(Code!$AE$3=2,Code!CC119," ") -> 200 | X6: =IF(Code!$AB$96=1,'ADVANCE TAX'!C4," ") -> 0 | Z6: 10548 | AA6: 43224 | AG6: 3950 | AH6: 30
B7: 2016-05-01 | C7: 42490 | D7: 0.12052 | E7: =IF(Code!$AM$3=1,ROUND(('SALARY TABLE'!S61*D7),0),ROUND((D7*C7),0)) -> 5121 | F7: =IF('SALARY TABLE'!S61*Code!$Z$4>=8000,8000,ROUND(IF(Code!$AM$3=1,ROUND(('SALARY TABLE'!S61*Code!$Z$4),0),Code!AP66),0)) -> 6161 | G7: =Code!AR66 -> 0 | I7: =Code!AV98 -> 0 | J7: =Code!AE123 -> 0 | K7: =Code!AE141 -> 0 | L7: =IF($C7=0,0,IF(Code!$AM$3=1,ROUND(Data!$U$21/2,0),Data!$U$21)) -> 0 | M7: =IF($C7=0,0,IF(Code!$AM$3=1,ROUND(Data!$U$22/2,0),Data!$U$22)) -> 0 | N7: =IF($C7=0,0,IF(Code!$AM$3=1,ROUND(Data!$U$23/2,0),Data!$U$23)) -> 0 | O7: =IF(Code!$W$111="Not Applicable",0,Code!$W$111) -> 0 | P7: =IF($C7=0,0,IF(Code!$AM$3=1,ROUND(Code!AL38/2,0),Code!AL38)) -> 0 | Q7: 53772 | R7: =Code!AW35 -> 6000 | S7: =Code!M160 -> 60 | T7: =Code!AW50 -> 3018 | U7: =Code!AX20 -> 1150 | V7: =Code!AW121 -> 120 | W7: =IF(Code!$AE$3=2,Code!CC120," ") -> 200 | X7: =IF(Code!$AB$96=1,'ADVANCE TAX'!C5," ") -> 0 | Z7: 10548 | AA7: 43224 | AG7: 4050 | AH7: 60
B8: 2016-06-01 | C8: 42490 | D8: 0.12052 | E8: =IF(Code!$AM$3=1,ROUND(('SALARY TABLE'!S62*D8),0),ROUND((D8*C8),0)) -> 5121 | F8: =IF('SALARY TABLE'!S62*Code!$Z$4>=8000,8000,ROUND(IF(Code!$AM$3=1,ROUND(('SALARY TABLE'!S62*Code!$Z$4),0),Code!AP67),0)) -> 6161 | G8: =Code!AR67 -> 0 | I8: =Code!AV99 -> 0 | J8: =Code!AE124 -> 0 | K8: =Code!AE142 -> 0 | L8: =IF($C8=0,0,IF(Code!$AM$3=1,ROUND(Data!$U$21/2,0),Data!$U$21)) -> 0 | M8: =IF($C8=0,0,IF(Code!$AM$3=1,ROUND(Data!$U$22/2,0),Data!$U$22)) -> 0 | N8: =IF($C8=0,0,IF(Code!$AM$3=1,ROUND(Data!$U$23/2,0),Data!$U$23)) -> 0 | O8: =IF(Code!$W$111="Not Applicable",0,Code!$W$111) -> 0 | P8: =IF($C8=0,0,IF(Code!$AM$3=1,ROUND(Code!AL39/2,0),Code!AL39)) -> 0 | Q8: 53772 | R8: =Code!AW36 -> 6000 | S8: =Code!M161 -> 60 | T8: =Code!AW51 -> 3018 | U8: =Code!AX21 -> 1150 | V8: =Code!AW122 -> 120 | W8: =IF(Code!$AE$3=2,Code!CC121," ") -> 200 | X8: =IF(Code!$AB$96=1,'ADVANCE TAX'!C6," ") -> 0 | Z8: 10548 | AA8: 43224 | AG8: 4150
B9: 2016-07-01 | C9: 42490 | D9: 0.12052 | E9: =IF(Code!$AM$3=1,ROUND(('SALARY TABLE'!S63*D9),0),ROUND((D9*C9),0)) -> 5121 | F9: =IF('SALARY TABLE'!S63*Code!$Z$4>=8000,8000,ROUND(IF(Code!$AM$3=1,ROUND(('SALARY TABLE'!S63*Code!$Z$4),0),Code!AP68),0)) -> 6161 | G9: =Code!AR68 -> 0 | I9: =Code!AV100 -> 0 | J9: =Code!AE125 -> 0 | K9: =Code!AE143 -> 0 | L9: =IF($C9=0,0,IF(Code!$AM$3=1,ROUND(Data!$U$21/2,0),Data!$U$21)) -> 0 | M9: =IF($C9=0,0,IF(Code!$AM$3=1,ROUND(Data!$U$22/2,0),Data!$U$22)) -> 0 | N9: =IF($C9=0,0,IF(Code!$AM$3=1,ROUND(Data!$U$23/2,0),Data!$U$23)) -> 0 | O9: =IF(Code!$W$111="Not Applicable",0,Code!$W$111) -> 0 | P9: =IF($C9=0,0,IF(Code!$AM$3=1,ROUND(Code!AL40/2,0),Code!AL40)) -> 0 | Q9: 53772 | R9: =Code!AW37 -> 6000 | S9: =Code!M162 -> 60 | T9: =Code!AW52 -> 3018 | U9: =Code!AX22 -> 1150 | V9: =Code!AW123 -> 120 | W9: =IF(Code!$AE$3=2,Code!CC122," ") -> 200 | X9: =IF(Code!$AB$96=1,'ADVANCE TAX'!C7," ") -> 0 | Z9: 10548 | AA9: 43224 | AG9: 4260
B10: 2016-08-01 | C10: 42490 | D10: 0.15196 | E10: =IF(Code!$AM$3=1,ROUND(('SALARY TABLE'!S64*D10),0),ROUND((D10*C10),0)) -> 6457 | F10: =IF('SALARY TABLE'!S64*Code!$Z$4>=8000,8000,ROUND(IF(Code!$AM$3=1,ROUND(('SALARY TABLE'!S64*Code!$Z$4),0),Code!AP69),0)) -> 6161 | G10: =Code!AR69 -> 0 | I10: =Code!AV101 -> 0 | J10: =Code!AE126 -> 0 | K10: =Code!AE144 -> 0 | L10: =IF($C10=0,0,IF(Code!$AM$3=1,ROUND(Data!$U$21/2,0),Data!$U$21)) -> 0 | M10: =IF($C10=0,0,IF(Code!$AM$3=1,ROUND(Data!$U$22/2,0),Data!$U$22)) -> 0 | N10: =IF($C10=0,0,IF(Code!$AM$3=1,ROUND(Data!$U$23/2,0),Data!$U$23)) -> 0 | O10: =IF(Code!$W$111="Not Applicable",0,Code!$W$111) -> 0 | P10: =IF($C10=0,0,IF(Code!$AM$3=1,ROUND(Code!AL41/2,0),Code!AL41)) -> 0 | Q10: 55108 | R10: =Code!AW38 -> 6000 | S10: =Code!M163 -> 60 | T10: =Code!AW53 -> 3018 | U10: =Code!AX23 -> 1150 | V10: =Code!AW124 -> 120 | W10: =IF(Code!$AE$3=2,Code!CC123," ") -> 200 | X10: =IF(Code!$AB$96=1,'ADVANCE TAX'!C8," ") -> 0 | Z10: 10548 | AA10: 44560 | AG10: 4370
B11: 2016-09-01 | C11: 42490 | D11: 0.15196 | E11: =IF(Code!$AM$3=1,ROUND(('SALARY TABLE'!S65*D11),0),ROUND((D11*C11),0)) -> 6457 | F11: =IF('SALARY TABLE'!S65*Code!$Z$4>=8000,8000,ROUND(IF(Code!$AM$3=1,ROUND(('SALARY TABLE'!S65*Code!$Z$4),0),Code!AP70),0)) -> 6161 | G11: =Code!AR70 -> 0 | I11: =Code!AV102 -> 0 | J11: =Code!AE127 -> 0 | K11: =Code!AE145 -> 0 | L11: =IF($C11=0,0,IF(Code!$AM$3=1,ROUND(Data!$U$21/2,0),Data!$U$21)) -> 0 | M11: =IF($C11=0,0,IF(Code!$AM$3=1,ROUND(Data!$U$22/2,0),Data!$U$22)) -> 0 | N11: =IF($C11=0,0,IF(Code!$AM$3=1,ROUND(Data!$U$23/2,0),Data!$U$23)) -> 0 | O11: =IF(Code!$W$111="Not Applicable",0,Code!$W$111) -> 0 | P11: =IF($C11=0,0,IF(Code!$AM$3=1,ROUND(Code!AL42/2,0),Code!AL42)) -> 0 | Q11: 55108 | R11: =Code!AW39 -> 6000 | S11: =Code!M164 -> 60 | T11: =Code!AW54 -> 3018 | U11: =Code!AX24 -> 1150 | V11: =Code!AW125 -> 120 | W11: =IF(Code!$AE$3=2,Code!CC124," ") -> 200 | X11: =IF(Code!$AB$96=1,'ADVANCE TAX'!C9," ") -> 0 | Z11: 10548 | AA11: 44560 | AG11: 4480
B12: 2016-10-01 | C12: 42490 | D12: 0.15196 | E12: =IF(Code!$AM$3=1,ROUND(('SALARY TABLE'!S66*D12),0),ROUND((D12*C12),0)) -> 6457 | F12: =IF('SALARY TABLE'!S66*Code!$Z$4>=8000,8000,ROUND(IF(Code!$AM$3=1,ROUND(('SALARY TABLE'!S66*Code!$Z$4),0),Code!AP71),0)) -> 6161 | G12: =Code!AR71 -> 0 | I12: =Code!AV103 -> 0 | J12: =Code!AE128 -> 0 | K12: =Code!AE146 -> 0 | L12: =IF($C12=0,0,IF(Code!$AM$3=1,ROUND(Data!$U$21/2,0),Data!$U$21)) -> 0 | M12: =IF($C12=0,0,IF(Code!$AM$3=1,ROUND(Data!$U$22/2,0),Data!$U$22)) -> 0 | N12: =IF($C12=0,0,IF(Code!$AM$3=1,ROUND(Data!$U$23/2,0),Data!$U$23)) -> 0 | O12: =IF(Code!$W$111="Not Applicable",0,Code!$W$111) -> 0 | P12: =IF($C12=0,0,IF(Code!$AM$3=1,ROUND(Code!AL43/2,0),Code!AL43)) -> 0 | Q12: 55108 | R12: =Code!AW40 -> 6000 | S12: =Code!M165 -> 60 | T12: =Code!AW55 -> 3018 | U12: =Code!AX25 -> 1150 | V12: =Code!AW126 -> 120 | W12: =IF(Code!$AE$3=2,Code!CC125," ") -> 200 | X12: =IF(Code!$AB$96=1,'ADVANCE TAX'!C10," ") -> 0 | Z12: 10548 | AA12: 44560 | AG12: 4595
B13: 2016-11-01 | C13: 42490 | D13: 0.15196 | E13: =IF(Code!$AM$3=1,ROUND(('SALARY TABLE'!S67*D13),0),ROUND((D13*C13),0)) -> 6457 | F13: =IF('SALARY TABLE'!S67*Code!$Z$4>=8000,8000,ROUND(IF(Code!$AM$3=1,ROUND(('SALARY TABLE'!S67*Code!$Z$4),0),Code!AP72),0)) -> 6161 | G13: =Code!AR72 -> 0 | I13: =Code!AV104 -> 0 | J13: =Code!AE129 -> 0 | K13: =Code!AE147 -> 0 | L13: =IF($C13=0,0,IF(Code!$AM$3=1,ROUND(Data!$U$21/2,0),Data!$U$21)) -> 0 | M13: =IF($C13=0,0,IF(Code!$AM$3=1,ROUND(Data!$U$22/2,0),Data!$U$22)) -> 0 | N13: =IF($C13=0,0,IF(Code!$AM$3=1,ROUND(Data!$U$23/2,0),Data!$U$23)) -> 0 | O13: =IF(Code!$W$111="Not Applicable",0,Code!$W$111) -> 0 | P13: =IF($C13=0,0,IF(Code!$AM$3=1,ROUND(Code!AL44/2,0),Code!AL44)) -> 0 | Q13: 55108 | R13: =Code!AW41 -> 6000 | S13: =Code!M166 -> 60 | T13: =Code!AW56 -> 3018 | U13: =Code!AX26 -> 1150 | V13: =Code!AW127 -> 120 | W13: =IF(Code!$AE$3=2,Code!CC126," ") -> 200 | X13: =IF(Code!$AB$96=1,'ADVANCE TAX'!C11," ") -> 0 | Z13: 10548 | AA13: 44560 | AG13: 4710
B14: 2016-12-01 | C14: 42490 | D14: 0.15196 | E14: =IF(Code!$AM$3=1,ROUND(('SALARY TABLE'!S68*D14),0),ROUND((D14*C14),0)) -> 6457 | F14: =IF('SALARY TABLE'!S68*Code!$Z$4>=8000,8000,ROUND(IF(Code!$AM$3=1,ROUND(('SALARY TABLE'!S68*Code!$Z$4),0),Code!AP73),0)) -> 6161 | G14: =Code!AR73 -> 0 | I14: =Code!AV105 -> 0 | J14: =Code!AE130 -> 0 | K14: =Code!AE148 -> 0 | L14: =IF($C14=0,0,IF(Code!$AM$3=1,ROUND(Data!$U$21/2,0),Data!$U$21)) -> 0 | M14: =IF($C14=0,0,IF(Code!$AM$3=1,ROUND(Data!$U$22/2,0),Data!$U$22)) -> 0 | N14: =IF($C14=0,0,IF(Code!$AM$3=1,ROUND(Data!$U$23/2,0),Data!$U$23)) -> 0 | O14: =IF(Code!$W$111="Not Applicable",0,Code!$W$111) -> 0 | P14: =IF($C14=0,0,IF(Code!$AM$3=1,ROUND(Code!AL45/2,0),Code!AL45)) -> 0 | Q14: 55108 | R14: =Code!AW42 -> 6000 | S14: =Code!M167 -> 60 | T14: =Code!AW57 -> 3018 | U14: =Code!AX27 -> 1150 | V14: =Code!AW128 -> 120 | W14: =IF(Code!$AE$3=2,Code!CC127," ") -> 200 | X14: =IF(Code!$AB$96=1,'ADVANCE TAX'!C12," ") -> 0 | Y14: =swf -> 20 | Z14: 10568 | AA14: 44540 | AG14: 4825
B15: 2017-01-01 | C15: 43680 | D15: 0.15196 | E15: =IF(Code!$AM$3=1,ROUND(('SALARY TABLE'!S69*D15),0),ROUND((D15*C15),0)) -> 6638 | F15: =IF('SALARY TABLE'!S69*Code!$Z$4>=8000,8000,ROUND(IF(Code!$AM$3=1,ROUND(('SALARY TABLE'!S69*Code!$Z$4),0),Code!AP74),0)) -> 6334 | G15: =Code!AR74 -> 0 | I15: =Code!AV106 -> 0 | J15: =Code!AE131 -> 0 | K15: =Code!AE149 -> 0 | L15: =IF($C15=0,0,IF(Code!$AM$3=1,ROUND(Data!$U$21/2,0),Data!$U$21)) -> 0 | M15: =IF($C15=0,0,IF(Code!$AM$3=1,ROUND(Data!$U$22/2,0),Data!$U$22)) -> 0 | N15: =IF($C15=0,0,IF(Code!$AM$3=1,ROUND(Data!$U$23/2,0),Data!$U$23)) -> 0 | O15: =IF(Code!$W$111="Not Applicable",0,Code!$W$111) -> 0 | P15: =IF($C15=0,0,IF(Code!$AM$3=1,ROUND(Code!AL46/2,0),Code!AL46)) -> 0 | Q15: 56652 | R15: =Code!AW43 -> 8000 | S15: =Code!M168 -> 60 | T15: =Code!AW58 -> 3018 | U15: =Code!AX28 -> 1150 | V15: =Code!AW129 -> 120 | W15: =IF(Code!$AE$3=2,Code!CC128," ") -> 200 | X15: =IF(Code!$AB$96=1,'ADVANCE TAX'!C13," ") -> 3000 | Z15: 15548 | AA15: 41104 | AG15: 4950
B16: 2017-02-01 | C16: 43680 | D16: 0.15196 | E16: =IF(Code!$AM$3=1,ROUND(('SALARY TABLE'!S70*D16),0),ROUND((D16*C16),0)) -> 6638 | F16: =IF('SALARY TABLE'!S70*Code!$Z$4>=8000,8000,ROUND(IF(Code!$AM$3=1,ROUND(('SALARY TABLE'!S70*Code!$Z$4),0),Code!AP75),0)) -> 6334 | G16: =Code!AR75 -> 0 | I16: =Code!AV107 -> 0 | J16: =Code!AE132 -> 0 | K16: =Code!AE150 -> 0 | L16: =IF($C16=0,0,IF(Code!$AM$3=1,ROUND(Data!$U$21/2,0),Data!$U$21)) -> 0 | M16: =IF($C16=0,0,IF(Code!$AM$3=1,ROUND(Data!$U$22/2,0),Data!$U$22)) -> 0 | N16: =IF($C16=0,0,IF(Code!$AM$3=1,ROUND(Data!$U$23/2,0),Data!$U$23)) -> 0 | O16: =IF(Code!$W$111="Not Applicable",0,Code!$W$111) -> 0 | P16: =IF($C16=0,0,IF(Code!$AM$3=1,ROUND(Code!AL47/2,0),Code!AL47)) -> 0 | Q16: 56652 | R16: =Code!AW44 -> 8000 | S16: =Code!M169 -> 60 | T16: =Code!AW59 -> 3018 | U16: =Code!AX29 -> 1150 | V16: =Code!AW130 -> 120 | W16: =IF(Code!$AE$3=2,Code!CC129," ") -> 200 | X16: =IF(Code!$AB$96=1,'ADVANCE TAX'!C14," ") -> 0 | Z16: 12548 | AA16: 44104 | AG16: 5075
B17: D.A Arrears (Jan 15 to Feb 16) 14M | E17: ='DA calculation'!I18 -> 17252 | F17: =ROUND((Code!Z4*C17),0) -> 0 | Q17: =E17 -> 17252 | R17: =Q17 -> 17252 | Z17: =SUM(R17:Y17) -> 17252 | AA17: 0 | AG17: 5200
B18: D.A Arrears(July 15 to July 16) 13 M | D18: =IF(Code!W23=1,H67,0) -> 4046 | E18: ='DA calculation'!I22 -> 16744 | F18: =ROUND((Code!Z4*C18),0) -> 0 | Q18: =E18 -> 16744 | R18: =Q18 -> 16744 | Z18: 16744 | AA18: 0 | AG18: 5335
B19: surrender leave | C19: =IF(Code!AD3=15,ROUND('SALARY TABLE'!M57/2,0),IF(Code!AD3=30,ROUND('SALARY TABLE'!M57,0),0)) -> 21840 | E19: =ELDA+IF(Code!W19=1,IF(Code!AL15=" "," ",IF(Code!AD3=15,ROUND(LOOKUP(Code!AL15,'SALARY TABLE'!B57:B70,'SALARY TABLE'!F57:F70)/2,0),ROUND(LOOKUP(Code!AL15,'SALARY TABLE'!B57:B70,'SALARY TABLE'!F57:F70),0))),0) -> 3319 | F19: =ROUND((V59*C19),0) -> 3167 | L19: =IF(Code!$AD$3=15,ROUND(LOOKUP(Code!$AL$15,'SALARY TABLE'!$B$5:$B$16,'SALARY TABLE'!L5:L16)/2,0),IF(Code!$AD$3=30,ROUND(LOOKUP(Code!$AL$15,'SALARY TABLE'!$B$5:$B$16,'SALARY TABLE'!L5:L16),0),0)) -> 0 | M19: =IF(Code!$AD$3=15,ROUND(LOOKUP(Code!$AL$15,'SALARY TABLE'!$B$5:$B$16,'SALARY TABLE'!M5:M16)/2,0),IF(Code!$AD$3=30,ROUND(LOOKUP(Code!$AL$15,'SALARY TABLE'!$B$5:$B$16,'SALARY TABLE'!M5:M16),0),0)) -> 0 | N19: =IF(Code!$AD$3=15,ROUND(LOOKUP(Code!$AL$15,'SALARY TABLE'!$B$5:$B$16,'SALARY TABLE'!N5:N16)/2,0),IF(Code!$AD$3=30,ROUND(LOOKUP(Code!$AL$15,'SALARY TABLE'!$B$5:$B$16,'SALARY TABLE'!N5:N16),0),0)) -> 0 | Q19: =C19+E19+F19+G19+H19+I19+J19+K19+L19+M19+N19+O19+P19 -> 28326 | Z19: 0 | AA19: 28326 | AG19: 5470
B20: AAS ARREARS | Q20: =C20+E20+F20+G20+H20+I20+J20+K20+L20+M20+N20+O20+P20 -> 0 | R20: =IF($R$4="cps"," ",Q20-W20) -> 0 | Z20: 0 | AA20: 0
B21: RPS Arrears | Q21: 0 | Z21: 0 | AA21: 0
B22: 6/12/18/24 Y Fixation | C22: =IF(Code!AC17=1,0,IF(Code!AG18=1,Code!AF38,0)) -> 0 | D22: =Code!AF39 -> 0.15196 | E22: =ROUND(IF(Code!AC17=1,0,IF(Code!AG18=1,Code!AF38*D22,0)),0) -> 0 | F22: =ROUND((Code!Z4*C22),0) -> 0 | Q22: 0 | R22: =IF($R$4="cps"," ",Q22-W22) -> 0 | Z22: 0 | AA22: 0 | AG22: 5605
B23: Haly pay arrears | C23: =Code!CC75 -> 0 | Q23: 0 | R23: =IF($R$4="cps"," ",Q23-W23) -> 0 | Z23: 0 | AA23: 0 | AG23: 5750
B24: Child Education Consession | Q24: 0 | Z24: 0 | AA24: 0
B25: setpup arrears | C25: =IF(Code!AG26=1,0,IF(Code!AG23=1,Code!AF50,0)) -> 0 | E25: =ROUND(IF(Code!AG26=1,0,IF(Code!AG23=1,Code!AF50*D25,0)),0) -> 0 | F25: =ROUND((Code!Z4*C25),0) -> 0 | Q25: 0 | R25: =IF($R$4="cps"," ",Q25-W25) -> 0 | Z25: 0 | AA25: 0 | AB25: Password:gsreddy
B26: =Data!W47 -> NOTIONAL INC ARREARS | Q26: 0 | R26: =IF($R$4="cps"," ",Q26-W26) -> 0 | Z26: 0 | AA26: =Q26-Z26 -> 0
B27: Loss of Pay | C27: =Code!CC110 -> 0 | E27: =Code!CE110 -> 0 | F27: =Code!CH110 -> 0 | Q27: 0 | Z27: 0 | AA27: 0
B28: P Tax(RPS 10) | Q28: 0 | W28: =Data!$Z$50 -> 0 | Z28: =W28 -> 0
B29: Prephonement | Q29: 0
B30: Total | C30: =ROUND(SUM(C5:C29),0) -> 534100 | E30: =ROUND(SUM(E5:E29),0) -> 108481 | F30: 77445 | G30: 0 | H30: 0 | I30: 0 | J30: 0 | K30: 0 | L30: 0 | M30: 0 | N30: 0 | O30: 0 | P30: 0 | Q30: 720026 | R30: 109996 | S30: 720 | T30: 36216 | U30: 13800 | V30: 1440 | W30: 2400 | X30: 3000 | Y30: 40 | Z30: 167612 | AA30: 552414 | AG30: 5895
AG31: 6195
W32: SIGNATURE OF EMPLOYEE | AG32: 6350
AG33: 6505
B35: Designed by G.S.Reddy,SA(Maths)Nellore,Cell:9666570250 | AG35: 6675
AG36: 6845
AG37: 7015
AG38: 7200
AG39: 7385
AG40: 7570
AG41: 7770
AG42: 7970
AG43: 8170
AG44: 8385
AG45: 8600
AG46: 8815
AG47: 9050
B48: =I -> 42736 | AG48: 9285
AG49: 9520
B50: 13000 | C50: 13390 | D50: 13780 | E50: 14170 | F50: 14600 | G50: 15030 | H50: 15460 | I50: 15930 | J50: 16400 | K50: 16870 | L50: 17380 | M50: 17890 | N50: 18400 | O50: 18950 | P50: 19500 | Q50: 20050 | R50: 20640 | S50: 21230 | T50: 21820 | U50: 22460 | V50: 23100 | W50: 23740 | X50: 24440 | Y50: 25140 | Z50: 25840 | AA50: 26600 | AB50: 27360 | AC50: 28120 | AD50: 28940 | AE50: 29760 | AF50: 30580 | AG50: 31460 | AH50: 32340 | AI50: 33220 | AJ50: 34170 | AK50: 35120 | AL50: 36070 | AM50: 37100 | AN50: 38130 | AO50: 39160 | AP50: 40270 | AQ50: 41380 | AR50: 42490 | AS50: 43680 | AT50: 44870 | AU50: 46060 | AV50: 47330 | AW50: 48600 | AX50: 49870 | AY50: 51230 | AZ50: 52590 | BA50: 53950 | BB50: 55410 | BC50: 56870 | BD50: 58330 | BE50: 59890 | BF50: 61450 | BG50: 63010 | BH50: 64670 | BI50: 66330 | BJ50: 67990 | BK50: 69750 | BL50: 71510 | BM50: 73270 | BN50: 75150 | BO50: 77030 | BP50: 78910 | BQ50: 80930 | BR50: 82950 | BS50: 84970 | BT50: 87130 | BU50: 89290 | BV50: 91450 | BW50: 93780 | BX50: 96110 | BY50: 98440 | BZ50: 100770 | CA50: 103290 | CB50: 105810 | CC50: 108330 | CD50: 110850
B51: 13390 | C51: 13780 | D51: 14170 | E51: 14600 | F51: 15030 | G51: 15460 | H51: 15930 | I51: 16400 | J51: 16870 | K51: 17380 | L51: 17890 | M51: 18400 | N51: 18950 | O51: 19500 | P51: 20050 | Q51: 20640 | R51: 21230 | S51: 21820 | T51: 22460 | U51: 23100 | V51: 23740 | W51: 24440 | X51: 25140 | Y51: 25840 | Z51: 26600 | AA51: 27360 | AB51: 28120 | AC51: 28940 | AD51: 29760 | AE51: 30580 | AF51: 31460 | AG51: 32340 | AH51: 33220 | AI51: 34170 | AJ51: 35120 | AK51: 36070 | AL51: 37100 | AM51: 38130 | AN51: 39160 | AO51: 40270 | AP51: 41380 | AQ51: 42490 | AR51: 43680 | AS51: 44870 | AT51: 46060 | AU51: 47330 | AV51: 48600 | AW51: 49870 | AX51: 51230 | AY51: 52590 | AZ51: 53950 | BA51: 55410 | BB51: 56870 | BC51: 58330 | BD51: 59890 | BE51: 61450 | BF51: 63010 | BG51: 64670 | BH51: 66330 | BI51: 67990 | BJ51: 69750 | BK51: 71510 | BL51: 73270 | BM51: 75150 | BN51: 77030 | BO51: 78910 | BP51: 80930 | BQ51: 82950 | BR51: 84970 | BS51: 87130 | BT51: 89290 | BU51: 91450 | BV51: 93780 | BW51: 96110 | BX51: 98440 | BY51: 100770 | BZ51: 103290 | CA51: 105810 | CB51: 108330 | CC51: 110850 | CD51: 56960
AG52: 10285
C53: Already | D53: Tobe | AG53: 10565
C54: 0.12052 | D54: 0.15196 | E54: =Data!Y42 -> 0 | AG54: 10845
I55: 1 incre | AG55: 11125
D56: Already | E56: To be | I56: 8/16/24y | P56: Half Pay | R56: Loss of Pay | S56: stepup | T56: HRA | AG56: 11440
A57: 1 | B57: 2016-01-01 | C57: =Code!W3 -> 42490 | D57: =ROUND(I57*$C$54,0) -> 5121 | E57: =ROUND(I57*$D$54,0) -> 6457 | F57: =E57-D57 -> 1336 | G57: =10%*F57 -> 133.6 | I57: =C57 -> 42490 | L57: 0 | M57: =LOOKUP(Code!AL15,B5:B16,C5:C16) -> 43680 | O57: 1 | P57: =Code!CB61 -> 42490 | R57: =Code!CB96 -> 42490 | S57: =C57 -> 42490 | V57: EL | W57: CPS | AG57: 11755
A58: 2 | B58: 2016-02-01 | C58: =VLOOKUP(Code!V3,Code!U5:V84,2) -> 42490 | D58: 5121 | E58: 6457 | F58: 1336 | G58: 133.6 | I58: =C58 -> 42490 | L58: 0 | N58: DA | O58: 2 | P58: =Code!CB62 -> 42490 | R58: =Code!CB97 -> 42490 | S58: =C58 -> 42490 | AG58: 12070
A59: 3 | B59: 2016-03-01 | C59: =IF(B5=I,HLOOKUP(Code!W3,B50:CC51,2,B51:CC51),'SALARY TABLE'!C58) -> 42490 | D59: 5121 | E59: 6457 | F59: 1336 | G59: 133.6 | I59: =IF(Code!AG18=1,IF('SALARY TABLE'!B59>=Code!AF31,LOOKUP(C59,B50:CC50,B51:CC51),C59),C59) -> 42490 | L59: =D5 -> 0.12052 | N59: =ROUND(S59*L59,0) -> 5121 | O59: 3 | P59: =Code!CB63 -> 42490 | R59: =Code!CB98 -> 42490 | S59: =IF(Code!$AG$23=1,IF('SALARY TABLE'!B59>=Code!$AF$43,LOOKUP(I59,$B$50:$CC$50,$B$51:$CC$51),I59),I59) -> 42490 | T59: 1 | U59: =Code!AS64 -> 0.145 | V59: =LOOKUP(Code!AK15,'SALARY TABLE'!T59:U70,U59:U70) -> 0.145 | W59: =IF(Code!$AC$12=1,(C5+E5)*10%,0) -> 0 | AG59: 12385
A60: 10 | B60: 2016-04-01 | C60: =IF(B6=I,HLOOKUP(Code!W3,B50:CC51,2,B51:CC51),'SALARY TABLE'!C59) -> 42490 | D60: 5121 | E60: 6457 | F60: 1336 | G60: 133.6 | I60: =IF(Code!AG18=1,IF('SALARY TABLE'!B60>=Code!AF31,LOOKUP(C60,B50:CC50,B51:CC51),C60),C60) -> 42490 | L60: 0.12052 | N60: =ROUND(S60*L60,0) -> 5121 | O60: 4 | P60: =Code!CB64 -> 42490 | R60: =Code!CB99 -> 42490 | S60: =IF(Code!$AG$23=1,IF('SALARY TABLE'!B60>=Code!$AF$43,LOOKUP(I60,$B$50:$CC$50,$B$51:$CC$51),I60),I60) -> 42490 | T60: 2 | U60: =Code!AS65 -> 0.145 | W60: =IF(Code!$AC$12=1,(C6+E6)*10%,0) -> 0 | AG60: 12700
A61: 11 | B61: 2016-05-01 | C61: =IF(B7=I,HLOOKUP(Code!W3,B50:CC51,2,B51:CC51),'SALARY TABLE'!C60) -> 42490 | D61: 5121 | E61: 6457 | F61: 1336 | G61: 133.6 | H61: =SUM(F57:F69) -> 17406 | I61: =IF(Code!AG18=1,IF('SALARY TABLE'!B61>=Code!AF31,LOOKUP(C61,B50:CC50,B51:CC51),C61),C61) -> 42490 | L61: 0.12052 | N61: 5121 | O61: 5 | P61: =Code!CB65 -> 42490 | R61: =Code!CB100 -> 42490 | S61: =IF(Code!$AG$23=1,IF('SALARY TABLE'!B61>=Code!$AF$43,LOOKUP(I61,$B$50:$CC$50,$B$51:$CC$51),I61),I61) -> 42490 | T61: 3 | U61: =Code!AS66 -> 0.145 | W61: =IF(Code!$AC$12=1,(C7+E7)*10%,0) -> 0 | AG61: 13030
A62: 12 | B62: 2016-06-01 | C62: =IF(B8=I,HLOOKUP(Code!W3,B50:CC51,2,B51:CC51),'SALARY TABLE'!C61) -> 42490 | D62: 5121 | E62: 6457 | F62: 1336 | G62: 133.6 | I62: =IF(Code!AG18=1,IF('SALARY TABLE'!B62>=Code!AF31,LOOKUP(C62,B50:CC50,B51:CC51),C62),C62) -> 42490 | L62: 0.12052 | N62: 5121 | O62: 6 | P62: =Code!CB66 -> 42490 | R62: =Code!CB101 -> 42490 | S62: =IF(Code!$AG$23=1,IF('SALARY TABLE'!B62>=Code!$AF$43,LOOKUP(I62,$B$50:$CC$50,$B$51:$CC$51),I62),I62) -> 42490 | T62: 4 | U62: =Code!AS67 -> 0.145 | W62: =IF(Code!$AC$12=1,(C8+E8)*10%,0) -> 0 | AG62: 13390
A63: 13 | B63: 2016-07-01 | C63: =IF(B9=I,HLOOKUP(Code!W3,B50:CC51,2,B51:CC51),'SALARY TABLE'!C62) -> 42490 | D63: 5121 | E63: 6457 | F63: 1336 | G63: =10%*F63 -> 133.6 | I63: =IF(Code!AG18=1,IF('SALARY TABLE'!B63>=Code!AF31,LOOKUP(C63,B50:CC50,B51:CC51),C63),C63) -> 42490 | L63: 0.12052 | N63: 5121 | O63: 7 | P63: =Code!CB67 -> 42490 | R63: =Code!CB102 -> 42490 | S63: =IF(Code!$AG$23=1,IF('SALARY TABLE'!B63>=Code!$AF$43,LOOKUP(I63,$B$50:$CC$50,$B$51:$CC$51),I63),I63) -> 42490 | T63: 5 | U63: =Code!AS68 -> 0.145 | W63: =IF(Code!$AC$12=1,(N63+S63)*10%,0) -> 0 | AG63: 13750
A64: 14 | B64: 2016-08-01 | C64: =IF(B10=I,HLOOKUP(Code!W3,B50:CC51,2,B51:CC51),'SALARY TABLE'!C63) -> 42490 | D64: 5121 | E64: 6457 | F64: 1336 | G64: =10%*F64 -> 133.6 | I64: =IF(Code!AG18=1,IF('SALARY TABLE'!B64>=Code!AF31,LOOKUP(C64,B50:CC50,B51:CC51),C64),C64) -> 42490 | L64: 0.15196 | N64: 6457 | O64: 8 | P64: =Code!CB68 -> 42490 | R64: =Code!CB103 -> 42490 | S64: =IF(Code!$AG$23=1,IF('SALARY TABLE'!B64>=Code!$AF$43,LOOKUP(I64,$B$50:$CC$50,$B$51:$CC$51),I64),I64) -> 42490 | T64: 6 | U64: =Code!AS69 -> 0.145 | W64: =IF(Code!$AC$12=1,(N64+S64)*10%,0) -> 0 | AG64: 14175
A65: 15 | B65: 2016-09-01 | C65: =IF(B11=I,HLOOKUP(Code!W3,B50:CC51,2,B51:CC51),'SALARY TABLE'!C64) -> 42490 | D65: 5121 | E65: 6457 | F65: 1336 | G65: =10%*F65 -> 133.6 | I65: =IF(Code!AG18=1,IF('SALARY TABLE'!B65>=Code!AF31,LOOKUP(C65,B50:CC50,B51:CC51),C65),C65) -> 42490 | L65: 0.15196 | N65: 6457 | O65: 9 | P65: =Code!CB69 -> 42490 | R65: =Code!CB104 -> 42490 | S65: =IF(Code!$AG$23=1,IF('SALARY TABLE'!B65>=Code!$AF$43,LOOKUP(I65,$B$50:$CC$50,$B$51:$CC$51),I65),I65) -> 42490 | T65: 7 | U65: =Code!AS70 -> 0.145 | W65: =IF(Code!$AC$12=1,(N65+S65)*10%,0) -> 0 | AG65: 14600
A66: 16 | B66: 2016-10-01 | C66: =IF(B12=I,HLOOKUP(Code!W3,B50:CC51,2,B51:CC51),'SALARY TABLE'!C65) -> 42490 | D66: 5121 | E66: 6457 | F66: 1336 | G66: =10%*F66 -> 133.6 | H66: =SUM(F63:F66) -> 5344 | I66: =IF(Code!AG18=1,IF('SALARY TABLE'!B66>=Code!AF31,LOOKUP(C66,B50:CC50,B51:CC51),C66),C66) -> 42490 | L66: 0.15196 | N66: 6457 | O66: 10 | P66: =Code!CB70 -> 42490 | R66: =Code!CB105 -> 42490 | S66: =IF(Code!$AG$23=1,IF('SALARY TABLE'!B66>=Code!$AF$43,LOOKUP(I66,$B$50:$CC$50,$B$51:$CC$51),I66),I66) -> 42490 | T66: 8 | U66: =Code!AS71 -> 0.145 | W66: =IF(Code!$AC$12=1,(N66+S66)*10%,0) -> 0 | AG66: 15025
A67: 17 | B67: 2016-11-01 | C67: =IF(B13=I,HLOOKUP(Code!W3,B50:CC51,2,B51:CC51),'SALARY TABLE'!C66) -> 42490 | D67: =ROUND(I67*$C$54,0) -> 5121 | E67: 6457 | F67: 1336 | H67: =SUM(F67:F69) -> 4046 | I67: =IF(Code!AG18=1,IF('SALARY TABLE'!B67>=Code!AF31,LOOKUP(C67,B50:CC50,B51:CC51),C67),C67) -> 42490 | L67: 0.15196 | N67: 6457 | O67: 11 | P67: =Code!CB71 -> 42490 | R67: =Code!CB106 -> 42490 | S67: =IF(Code!$AG$23=1,IF('SALARY TABLE'!B67>=Code!$AF$43,LOOKUP(I67,$B$50:$CC$50,$B$51:$CC$51),I67),I67) -> 42490 | T67: 9 | U67: =Code!AS72 -> 0.145 | W67: =IF(Code!$AC$12=1,(N67+S67)*10%,0) -> 0 | AG67: 15500
A68: 18 | B68: 2016-12-01 | C68: =IF(B14=I,HLOOKUP(Code!W3,B50:CC51,2,B51:CC51),'SALARY TABLE'!C67) -> 42490 | D68: =ROUND(I68*$C$54,0) -> 5121 | E68: 6457 | F68: 1336 | I68: =IF(Code!AG18=1,IF('SALARY TABLE'!B68>=Code!AF31,LOOKUP(C68,B50:CC50,B51:CC51),C68),C68) -> 42490 | L68: 0.15196 | N68: 6457 | O68: 12 | P68: =Code!CB72 -> 42490 | R68: =Code!CB107 -> 42490 | S68: =IF(Code!$AG$23=1,IF('SALARY TABLE'!B68>=Code!$AF$43,LOOKUP(I68,$B$50:$CC$50,$B$51:$CC$51),I68),I68) -> 42490 | T68: 10 | U68: =Code!AS73 -> 0.145 | W68: =IF(Code!$AC$12=1,(N68+S68)*10%,0) -> 0 | AG68: 15975
A69: 19 | B69: 2017-01-01 | C69: =IF(B15=I,HLOOKUP(Code!W3,B50:CC51,2,B51:CC51),'SALARY TABLE'!C68) -> 43680 | D69: =ROUND(I69*$C$54,0) -> 5264 | E69: 6638 | F69: 1374 | I69: =IF(Code!AG18=1,IF('SALARY TABLE'!B69>=Code!AF31,LOOKUP(C69,B50:CC50,B51:CC51),C69),C69) -> 43680 | L69: 0.15196 | N69: 6638 | O69: 13 | P69: =Code!CB73 -> 43680 | R69: =Code!CB108 -> 43680 | S69: =IF(Code!$AG$23=1,IF('SALARY TABLE'!B69>=Code!$AF$43,LOOKUP(I69,$B$50:$CC$50,$B$51:$CC$51),I69),I69) -> 43680 | T69: 11 | U69: =Code!AS74 -> 0.145 | W69: =IF(Code!$AC$12=1,(N69+S69)*10%,0) -> 0 | AG69: 16450
A70: 20 | B70: 2017-02-01 | C70: =IF(B16=I,HLOOKUP(Code!W3,B50:CC51,2,B51:CC51),'SALARY TABLE'!C69) -> 43680 | D70: =ROUND(I70*$D$54,0) -> 6638 | E70: 6638 | F70: 0 | I70: =IF(Code!AG18=1,IF('SALARY TABLE'!B70>=Code!AF31,LOOKUP(C70,B50:CC50,B51:CC51),C70),C70) -> 43680 | L70: 0.15196 | N70: 6638 | O70: 14 | P70: =Code!CB74 -> 43680 | R70: =Code!CB109 -> 43680 | S70: =IF(Code!$AG$23=1,IF('SALARY TABLE'!B70>=Code!$AF$43,LOOKUP(I70,$B$50:$CC$50,$B$51:$CC$51),I70),I70) -> 43680 | T70: 12 | U70: =Code!AS75 -> 0.145 | W70: =IF(Code!$AC$12=1,(N70+S70)*10%,0) -> 0 | AG70: 16925
E71: DA | H71: To Zp | I71: Total | AG71: 17475
B72: EL | C72: =IF(Code!AC8=1,SUM(IF(Code!AD3=15,ROUND(LOOKUP(Code!AN15,'SALARY TABLE'!A57:L70,'SALARY TABLE'!L57:L70)*C19+ROUND(LOOKUP(Code!AL15,'SALARY TABLE'!B57:B70,'SALARY TABLE'!F57:F70)/2,0),ROUND(LOOKUP(Code!AN15,'SALARY TABLE'!A57:L70,'SALARY TABLE'!L57:L70)*C19+ROUND(LOOKUP(Code!AL15,'SALARY TABLE'!B57:B70,'SALARY TABLE'!F57:F70),0),0))))) -> 3318.8064 | E72: =LOOKUP(Code!AN15,'SALARY TABLE'!A57:L70,'SALARY TABLE'!L57:L70) -> 0.15196 | F72: =ROUND(E72*C19,0) -> 3319 | H72: =ROUND(LOOKUP(Code!AN15,'SALARY TABLE'!A57:F70,'SALARY TABLE'!F57:F70)/2,0) -> 668 | I72: =F72+H72 -> 3987 | K72: =IF(Code!AD3=15,'SALARY TABLE'!F72,IF(Code!AD3=30,'SALARY TABLE'!F72,0)) -> 3319 | AG72: 18025
H73: =ROUND(LOOKUP(Code!AN15,'SALARY TABLE'!A57:F70,'SALARY TABLE'!F57:F70),0) -> 1336 | I73: =F72+H73 -> 4655 | AG73: 18575
AG74: 19125
AG75: 19675
AG76: 20300
AG77: 20925
AG78: 21550
AG79: 22175
AG80: 22800
AG81: 23500
AG82: 24200
AG83: 24900
AG84: 25600
AG85: 26300
AG86: 27000
AG87: 27750
AG88: 28500
AG89: 29250
AG90: 30000
AG91: 30765

Sheet ADVANCE TAX
B2: Advance tax
A3: 2016-03-01 | B3: =IF(Code!$AB$96=1,A3,"Not Applicable ") -> 2016-03-01
A4: 2016-04-01 | B4: =IF(Code!$AB$96=1,A4,"Not Applicable ") -> 2016-04-01
A5: 2016-05-01 | B5: =IF(Code!$AB$96=1,A5,"Not Applicable ") -> 2016-05-01
A6: 2016-06-01 | B6: =IF(Code!$AB$96=1,A6,"Not Applicable ") -> 2016-06-01
A7: 2016-07-01 | B7: =IF(Code!$AB$96=1,A7,"Not Applicable ") -> 2016-07-01 | E7: If Advance Tax not Paid. Clear all cell values
A8: 2016-08-01 | B8: =IF(Code!$AB$96=1,A8,"Not Applicable ") -> 2016-08-01
A9: 2016-09-01 | B9: =IF(Code!$AB$96=1,A9,"Not Applicable ") -> 2016-09-01
A10: 2016-10-01 | B10: =IF(Code!$AB$96=1,A10,"Not Applicable ") -> 2016-10-01
A11: 2016-11-01 | B11: =IF(Code!$AB$96=1,A11,"Not Applicable ") -> 2016-11-01
A12: 2016-12-01 | B12: =IF(Code!$AB$96=1,A12,"Not Applicable ") -> 2016-12-01
A13: 2017-01-01 | B13: =IF(Code!$AB$96=1,A13,"Not Applicable ") -> 2017-01-01 | C13: 3000
A14: 2017-02-01
C15: =SUM(C3:C14) -> 3000

Sheet Rent Receipt
C3: RENT RECEIPT | M3: Password
B4: under section 1(13A) of income tax act. | M4: gsreddy
C6: =" Received a sum of Rs. "&12*Data!V19&".00 per month "&Data!V19&"-00 " -> Received a sum of Rs. 141600.00 per month 11800-00
C8: =" ,being the rent for the month /"&"period of March 2016 to Feb 2017 from " -> ,being the rent for the month /period of March 2016 to Feb 2017 from
C10: =code2!G5&Data!U4&" in respect"&"of "&"House No."&M21&"." -> Sri.G.Bhasker in respectof House No.15-274.
C15: ="Date:"&DAY(M20)&"-"&MONTH(M20)&"-"&YEAR(M20) -> Date:2-2-2017
C16: ="Place:"&M23 -> Place:Venkatagiri
F17: Signature of the House Owner | L17: Enter Details here
C19: Residential Address | F19: ="Full Name:"&M19 -> Full Name:G.Sivarami Reddy | L19: Owner Name | M19: G.Sivarami Reddy
C20: ="House No."&M21 -> House No.15-274 | L20: Date | M20: 2017-02-02
C21: =IF(M22>0,M22," ") -> Potti sriramulu street | L21: House No | M21: 15-274
C22: =IF(M23>0,M23," ") -> Venkatagiri | L22: Address | M22: Potti sriramulu street
C23: =IF(M24>0,M24," ") -> Nellore District | M23: Venkatagiri
C24: =IF(M25>0,"PIN:"&M25," ") -> PIN:524132 | M24: Nellore District
C25: =IF(M27>0,M27," ") ->  | L25: Pin | M25: 524132

Sheet 10 i
B2: FORM NO. 10-I
B3: [See rule 11DD]
B4: Certificate of prescribed authority for the purposes of section 80DDB
B5: 1 | C5: Name of the Patient
B6: 2 | C6: Address
B7: 3 | C7: Father’s name
B8: 4 | C8: Name and address of the person on whom the patient is dependent and his relationship with the patient.
B9: 5 | C9: Name of the disease or ailment (please see rule 11DD)
B10: 6 | C10: For diseases or ailments mentioned in item (i) of clause (a) of sub-rule (1), whether the disability is 40% or more (Please specify the extent).
B11: 7 | C11: Name, address, registration number and qualification of the specialist issuing the certificate, along with the name and address of the Government hospital [see rule 11DD(2)]
B12: Verification | G12: Password: gsreddy
B13: This is to verify that I,Dr.________________________________________________ s/o (w/o) Shri_____________________, in the case of the patient Shri/Smt./Ms.________________________, after considering the entire history of illness, careful examination and appropriate investigations, am of the opinion that the patient is suffering from______________________________disease/ailment during the previous year ending on 31st March,_______________________
B15: I also certify (only in case of neurological disease) that the extent of disability is more than 40%) (Strike off, if not applicable).
B16: I certify that the information furnished above is true to the best of my knowledge.
B17: Date | C17: ___________
B18: Place | C18: ___________ | E18: Signature
D19: (Name and Address)
B21: To be countersigned by the Head of the Government hospital, where the prescribed authority is a specialist with post-graduate degree in General or Internal Medicine.
B22: Date | C22: ___________
B23: Place | C23: ___________ | D23: Signature
D24: (Name and Address)

Sheet Sections
B2: 80CCC | C2: Payment of premia for annuity The premium must plan of LIC or any other insurer, be deposited to keep Deduction is available upto a in force a contract for maximum of Rs. 10,000 | D2: The premium must be deposited to keep in force a contract for an annuity plan of the LIC or any other insurer for receiving pension from the fund
B6: 80D | C6: Payment of medical insurance premia. Deduction is available upto Rs. 10,000 | D6: The premium is to be paid by cheque and the insurance scheme should be framed by the General Insurance Corporation of India & approved by the Central Govt. or any other insurer and approved by the regulatory authority & Development authority.The premium should be paid in respect of health insurance of the assessee or his family members
B13: 80DD | C13: Deduction of Rs. 40,000 in respect of a) expenditure incurred on medical treatment, (including nursing), training and rehabi­litation of a handicapped dependent relative. | D13: The handicapped dependent should be a dependent relative suffering a perma­nent disability (including blindness) or mentally retarded, as certified by a specified physician or psychiatrist.
C16: b) Payment or deposit to specified scheme for maintenance of dependent handicapped relative | D16: Note : The new section 80DD replace the earlier sections of 80DD and 80DDA which are now clubbed together under the new section.
B19: 80DDB | C19: Deduction of Rs. 40,000 in respect of medical expenditure incurred | D19: Expenditure must be actually incurred by resident assessee on himself or dependant relative for medical treatment of specified disease or ailment. The diseases have been specified in Rule HDD. A certificate in form 101 is to be furnished by the assessee from any registered doctor
B25: 80E | C25: Deduction in respect of repayment of loan taken | D25: This provision has been introduced to provide relief to students taking loans for higher studies. The repayment of the principal amount of loan and interest thereon will be allowed as deduction upto Rs. 3.2 lakhs over a period of 8 years.
C26: upto Rs. 40,000 per year.
B27: 80G | C27: Donations to certain funds,charitable institutions etc. | D27: The various donations specified in Sec.80G are eligible for deduction upto either 100% or 50% with or without restriction as provided in Sec 80G
B28: 80GG | C28: Deduction available is the least of | D28: 1) Assessee or his total spouse or minor child should not own residential accommodation at the place of employment.
C30: (i) Rent paid less 10% of total income
C31: (ii) Rs. 2,000 per month
C32: (iii) 25% of total income | D32: 2) He should not be
D33: in receipt of house
D34: rent allowance.
D35: 3) He should not
D36: have a self occupied
D37: residential premises in any other place
B38: 80L | C38: Interest/Dividend/Income from : | D38: Rs. 9000 plus an addition deduction of Rs. 3000 allowed in respect of interest on any Central/State Govt. Securities
C39: a) any Govt. Security (Central or State)
C40: b) NSC, VI, VII & VIII issues
C41: c)Notified debentures of public sector undertakings,
C42: cooperative societies/Land mortgage bank or land
C43: development bank.
C44: d) Notified National Deposit Scheme
C45: e) Any other deposit Scheme framed
C46: by Central Govt. and notified.
C47: f) Deposit under Post Office Monthly Income
C48: Account rules,1987
C49: g) deposits with banking companies, banking co-op,
C50: societie, land mortgage or land development bank.
C51: h) deposits with banks established under any law made by Parliament.
C52: i) Deposits with financial corporations approved by Central Government
C53: j) Deposits with any authority constituted in India under any law for planning,development or improvement of cities, towns and villages etc.
C54: k) Deposits with co-op. Societies.
C55: 1) Deposits, with any public companies providing long term finance for construction or purchase of houses.
C56: m) Income from U.T.I.
C57: n) Income from Units of Mutual Fund specified under clause (23D) of Sec. 10.
B59: 80U | C59: Deduction of Rs. 40,000/- to an individual who suffers from a physical disability (including blindness) or mental retardation | D59: Certificate should be obtained from a Govt. Doctor. The relevant rule is Rule 11D.

Sheet FORM 16
B2: FORM NO.16
B3: [See rule 31(1)(a)]
B4: Certificate under section 203 of the Income-tax Act, 1961 for Tax deducted at source on Salary
B5: PART- A
B6: Name and address of the Deductor | H6: Name and designation of the employee
B7: =CONCATENATE(code2!G6," ",M12) -> Smt. B.Sreelakshmi | H7: =CONCATENATE(code2!G5,UPPER(Data!U4),"",'INCOME TAX'!J5) -> Sri.G.BHASKER
B8: PAN NO.of Deductor | F8: TAN No.of the Deductor | H8: PAN NO. of the Employee
B9: =IF(M13=0," ",M13) -> AGJPB9123C | F9: =IF(M14=0," ",M14) -> HYDZ05638D | H9: =Data!U6 -> AKRPG8547M
B10: CIT (TDS) | H10: Assessment Year | J10: Period
B11: ="Address:"&M17&","&M16 -> Address:Headmaster,ZPHS,Venkatagiri | H11: =RIGHT(Data!Q3,4) -> 2017 | I11: =H11+1 -> 2018 | J11: From | K11: To | L11: Enter Details I Green color cells
J12: ="March "&H11-1 -> March 2016 | K12: ="Feb "&H11 -> Feb 2017 | L12: DDO Name | M12: B.Sreelakshmi
B13: City: | F13: ="Pin Code:"&M18 -> Pin Code:524132 | L13: DDO PAN No. | M13: AGJPB9123C
B14: Summary of tax deducted at source | L14: DDO TAN No. | M14: HYDZ05638D
B15: Quarter | E15: Receipt Numbers of original statements of TDS under sub-section (3) of section 200 | H15: Amount of tax deducted in respect of the employee | J15: Amount of tax deposited remitted in respect of the employee
B16: Q 1 | H16: =IF(SUM('ADVANCE TAX'!C3:C5)>0,"Rs."&SUM('ADVANCE TAX'!C3:C5)&".00"," ") ->  | J16: =H16 ->  | L16: DDO Office | M16: ZPHS,Venkatagiri
B17: Q 2 | H17: =IF(SUM('ADVANCE TAX'!C6:C8)>0,"Rs."&SUM('ADVANCE TAX'!C6:C8)&".00"," ") ->  | J17: =H17 ->  | L17: Designation | M17: Headmaster
B18: Q 3 | H18: =IF(SUM('ADVANCE TAX'!C9:C11)>0,"Rs."&SUM('ADVANCE TAX'!C9:C11)&".00"," ") ->  | J18: =H18 ->  | L18: PIN code | M18: 524132
B19: Q 4 | H19: =IF(SUM('ADVANCE TAX'!C12:C14)>0,"Rs."&SUM('ADVANCE TAX'!C12:C14)&".00"," ") -> Rs.3000.00 | J19: =H19 -> Rs.3000.00
B20: PART- B (Refer Note 1)
B21: Details of Salary paid and any other income and tax deducted
B22: 1 | C22: Gross Salary | H22: IN RUPEES | I22: IN RUPEES | J22: IN RUPEES
C23: (a) | D23: Salary as per provisions contained in section 17(1) | H23: ='SALARY TABLE'!Q30 -> 720026
C24: (b) | D24: Value of perquisites under section 17(2)(as per Form No. 12BA,wherever applicable) | H24: 0
C25: (c) | D25: Profits in lieu of salary under section 17(3)(as per Form No. 12BA, wherever applicable) | H25: 0
C26: (d) | D26: TOTAL | I26: =SUM(H23:H25) -> 720026
B27: 2 | C27: Less: Exempted Allowance u/s 10
C28: Allowance | G28: Rs.
B29: (i) | C29: H.R.A Exemption | G29: ='INCOME TAX'!O22 -> 77342 | H29: Rs. | I29: =G29 -> 77342 | M29: Password
B30: (ii) | C30: Convences Allowances Exemp | G30: ='SALARY TABLE'!P30 -> 0 | M30: gsreddy
B31: (iii) | C31: Childr Edu Allownc Exemp | G31: ='SALARY TABLE'!Q24 -> 0
B32: (v) | C32: Medical Reimbursment Exemp
B33: 3 | C33: Balance(1-2) | H33: Rs. | I33: =I26-SUM(G29:G32) -> 642684
B34: 4 | C34: Deductions :
C35: (a) | D35: H.B.Loan Int.(Max-1,50,000/-) u/s 24(B) | G35: =Data!V53 -> 0
C36: (b) | D36: Tax on employment | G36: ='SALARY TABLE'!W30 -> 2400
C37: (c) | D37: Leave Travel Allowances
C38: (d) | D38: T.W.F/E.W.F/S.W.F/FLAGFUND | G38: ='INCOME TAX'!$K$31 -> 40
C39: (e) | D39: CM Relief | G39: ='INCOME TAX'!K29 -> 0
B40: 5 | C40: Aggregate of 4(a) to (f) | H40: =SUM(G35:G39) -> 2440
B41: 6 | C41: Income chargeable under the head 'salaries' (3-5) | I41: =I33-H40 -> 640244
B42: 7 | C42: Add: Any other income reported by the employee
C43: a)Income form N.S.C./Bank int.etc. | H43: Rs. | I43: 0
B44: 8 | C44: Gross total income (6+7) | I44: Rs. | J44: =I41+I43 -> 640244
B49: 9 | C49: Deductions under Chapter VIA
B50: A | C50: U/s 80C (Aggregate amount Max.Rs.1,50,000/-) | I50: Gross Amount | J50: Deductible Amount Rs.
C51: ="(a)(i)Sec.80C-"&'SALARY TABLE'!R4 -> (a)(i)Sec.80C-ZPPF | G51: Rs. | H51: ='SALARY TABLE'!R30 -> 109996
C52: (ii) G.I.S. | G52: Rs. | H52: ='SALARY TABLE'!S30 -> 720
C53: (iii) L.I.C.+P,L.I.+U.LIP+Tuition Fees+NSC+Tax Savings Bond etc | G53: Rs. | H53: ='SALARY TABLE'!T30+Data!T38+Data!V43+Data!V44+Data!V42+Data!V46+Data!V47+Data!V48+Data!V49+Data!V50 -> 44592
C54: (iv) APGLI( S & L ) | G54: Rs. | H54: ='SALARY TABLE'!U30 -> 13800
C55: (v) H.B.LOAN(PRINCIPAL) | G55: Rs. | H55: =Data!V41 -> 0 | I55: =SUM(H51:H55) -> 169108 | J55: =IF(I55<=150000,I55,150000) -> 150000
B56: B | C56: Other sections e.g.,80E,80G,etc under chapter VI A | H56: Gross Amount | I56: Qualify amount | J56: Deductible Amount Rs.
C57: (a) | D57: Section | F57: 80 E | G57: Rs. | H57: ='INCOME TAX'!K58 -> 0 | I57: =H57 -> 0
C58: (b) | D58: Section | F58: 80 G | G58: Rs. | H58: =Data!V55 -> 0 | I58: 0
C59: ( c ) | D59: Section | F59: 80U | G59: Rs. | H59: 0 | I59: 0
C60: (d) | D60: Section | F60: 80DD | G60: Rs. | H60: =Data!V56 -> 0 | I60: 0
C61: (e) | D61: Section | F61: 80D | G61: Rs. | H61: ='INCOME TAX'!K61+'INCOME TAX'!K59 -> 1440 | I61: 1440
C62: f) | D62: Section | F62: 80CC | G62: Rs. | H62: 0 | I62: 0
C63: G) | D63: Section | F63: 80DDB | G63: Rs. | H63: =Data!V57 -> 0
B64: 10 | C64: Aggregate of deductible amount under Chap. VIA | J64: =J55+SUM(H57:H63) -> 151440
B65: 11 | C65: Total Income | K65: =IF(I55>150000,J44-150000-I61,J44-I61-I55) -> 488804
B66: 12 | C66: ='INCOME TAX'!$C$64 -> No Tax for income upto Rs.250000 | K66: ='INCOME TAX'!O64 -> 250000
B67: 13 | C67: Final Tax Amount | K67: =IF((K65-K66)<0,"Nil",ROUND(K65-K66,-1)) -> 238800
B68: 14 | C68: Tax on total income | K68: ='INCOME TAX'!O66 -> 23880
B69: 15 | C69: Tax examption(See: S.No:11 below 5 laksh examption tax Rs.2000) | K69: =IF(K67="Nil","Nil",IF(K65<=500000,2000,"Nil")) -> 2000
B70: 16 | C70: Tax Payable (14)-(15) | K70: =IF(K68="Nil",IF(K69="Nil","Nil",IF(K68<>"Nil",IF(K69="Nil",K68,K68-K69))),IF(K69<>"Nil",K68-K69,K68)) -> 21880
B71: 17 | C71: Education & cess @3% on col.no.12 | K71: =IF(K67="Nil","Nil",'INCOME TAX'!O69+'INCOME TAX'!O70) -> 567
B72: 18 | C72: Tax payable (16+17) | K72: =IF(K71="Nil","Nil",K70+K71) -> 22447
B73: 19 | C73: Less Relief U/s 89(1)(attach details) | K73: 0
B74: 20 | C74: Tax payable/refundable | K74: =IF(K68="Nil","Nil",ROUND(K72-J73,0)) -> 22447
B75: 21 | C75: Less (a) Tax deducted at source | K75: =IF(K67="Nil","Nil",SUM('ADVANCE TAX'!C3:C14)) -> 3000
B77: 22 | C77: Net Tax | F77: =IF(K75="nil"," ",IF(K74<=K75,"Refundable",)) -> 0 | K77: ='INCOME TAX'!O74 -> 16447
B78: Verification
B79: =" I "&B7&" working in the capacity of "&M17&"(designation) do hereby certify that a sum of "&K77&" (Rupees:"&code2!D36&") has been deducted and deposited to the credit of the Central Governement. I further certifify that the information given about is true, complete and correct and is based on the books of account, documents, "&"TDS statement ,TDS deposited and other available records." -> I Smt. B.Sreelakshmi working in the capacity of Headmaster(designation) do hereby certify that a sum of 16447 (Rupees:Sixteen Thousand Four Hundred and Forty seven rupees only) has been deducted and deposited to the credit of the Central Governement. I further certifify that the information given about is true, complete and correct and is based on the books of account, documents, TDS statement ,TDS deposited and other available records.
B84: Place:-
B85: Date:- | H85: Signature of person responsible for deduction of tax
B86: Designation: | F86: =M17 -> Headmaster | H86: ="Full Name:-"&UPPER(M12) -> Full Name:-B.SREELAKSHMI
B88: Note:-
C89: 1 | D89: If an assessee is employed under more than one employer during the year, each of the employers shall issue Part A
C90: of the certificate in Form No. 16 pertaining to the period for which such assessee was employed with
C91: each of the employers. Part B may be issued by each of the employers or the last employer at the
C92: option of the assessee.
C93: 2 | D93: Government deductors to enclose Annexure-A if tax is paid without production of an income-tax
D94: challan and Annexure-B if tax is paid accomanied by an income-tax challan.
C96: 3 | D96: Non-Government deducto5rs to enclose Annexure-B
C98: 4 | D98: The deductor shall furnish the address of the Commissioner of Income-tax(TDS) having jurisdiction
D99: as regards TDS statements of the assesee.
C101: 5 | D101: This Form shall be applicable only in respect of tax deducted on or after 1st day of April, 2010.
B106: ANNEXURE-A
B107: DETAILS OF TAX DEDUCTED AND DEPOSITED IN THE CENT5RAL GOVERNMENT ACCOUNT THROUGH BOOK ENTRY
B108: (The Employer to provide payment wise details of tax deducted and deposited with respect to the employee)
B109: Sl.No | C109: Tax Deposited in respefct on of the employee (Rs.) | G109: Book Identification Number (BIN)
G110: Receipt Numbers of Form No 24G | I110: DDO Sequence Number in the Book Adjustment Mini Statement | K110: Date on which tax deposited (dd/mm/yy)
C123: Note:-
C124: 1. In the column for TDS, give total amount for TDS,Surcharge(if applicable) and education cess.
B127: ANNEXURE-B
B128: DETAILS OF TAX DEDUCTED AND DEPOSITED IN THE CENTRAL GOVERNMENT ACCOUNT THROUGH CHALLAN
B129: (The Employer to provide payment wise details of tax deducted and deposited with respect to employee)
B130: Sl.No | C130: Tax Deposited in respect on of the employee (Rs.) | G130: Challan Identification Number ( C I N )
G131: BSR Code of the Bank Branch | I131: Date on which tax deposited (dd/mm/yy) | K131: Challan Serial Number
B132: 1 | C132: =IF('ADVANCE TAX'!C3>0,"Rs."&'ADVANCE TAX'!C3&".00"," ") ->  | M132: Enter details of Challan here
B133: 2 | C133: =IF('ADVANCE TAX'!C4>0,"Rs."&'ADVANCE TAX'!C4&".00"," ") -> 
B134: 3 | C134: =IF('ADVANCE TAX'!C5>0,"Rs."&'ADVANCE TAX'!C5&".00"," ") -> 
B135: 4 | C135: =IF('ADVANCE TAX'!C6>0,"Rs."&'ADVANCE TAX'!C6&".00"," ") -> 
B136: 5 | C136: =IF('ADVANCE TAX'!C7>0,"Rs."&'ADVANCE TAX'!C7&".00"," ") -> 
B137: 6 | C137: =IF('ADVANCE TAX'!C8>0,"Rs."&'ADVANCE TAX'!C8&".00"," ") -> 
B138: 7 | C138: =IF('ADVANCE TAX'!C9>0,"Rs."&'ADVANCE TAX'!C9&".00"," ") -> 
B139: 8 | C139: =IF('ADVANCE TAX'!C10>0,"Rs."&'ADVANCE TAX'!C10&".00"," ") -> 
B140: 9 | C140: =IF('ADVANCE TAX'!C11>0,"Rs."&'ADVANCE TAX'!C11&".00"," ") -> 
B141: 10 | C141: =IF('ADVANCE TAX'!C12>0,"Rs."&'ADVANCE TAX'!C12&".00"," ") -> 
B142: 11 | C142: =IF('ADVANCE TAX'!C13>0,"Rs."&'ADVANCE TAX'!C13&".00"," ") -> Rs.3000.00
B143: 12 | C143: =IF('ADVANCE TAX'!C14>0,"Rs."&'ADVANCE TAX'!C14&".00"," ") -> 
B144: Total | C144: ="Rs."&SUM('ADVANCE TAX'!C3:C14)&".00" -> Rs.3000.00

Sheet Steps
C3: Steps of Computation of Income tax for Individuals and HUFs for the Assessment Year 2016-17
C5: Calculate Your Income Tax Liability for the Financial Year 2014-15 with following simple steps
C7: Step I :Calculate your Gross Income for the Financial Year 2016-17
C9: Procedure to calculate your Gross Income of the year=Monthly Income multiplied by number of months of
C10: the year income received (i.e. Monthly Income X 12)
C12: Step II :Investments/ Deductions u/s 80C, 80CCC, 80CCD & 80D for self / family 80D for parents And Other deduction
C14: Step III :Deduction under Section 80G:
C16: Calculate the various donations made during the year specified in Sec. 80G are eligible for deduction upto either 100% or 50%
C17: with or without restriction as provided in Sec. 80G
C19: Step IV :Computation of Taxable Income as per Income Tax Act
C21: Please calculate taxable income with following simple steps
C23: Amount arrived at above Step I - ( Amount arrived at above Step II + Amount arrived at above Step III)=Taxable Income
C25: Step V :Calculation of Income Tax
C27: For calculation of Income tax on taxable income please refer to the tax rates / slabs as under according
C28: to your income and calculate your Income tax.
C30: Step VI:Education Cess
C32: Education Cess is 3 % of income tax arrived at step V
C34: Step VII:Calculate total Income Tax Liability
C36: Please add amount of Education Cess arrived at step VI to the amount of Income tax arrived at Step V to calculate
C37: Total amount of Income Tax payable

Sheet DA S0FTWARE
B3: =CONCATENATE("D.A enhanced from ",S6*100,"% to ",S5*100,"%. ","Enhancement : ",(S5-S6)*100,"% ","The D.A arrears from ",DAY(DATE('DA code'!M8,'DA code'!K8,1)),"-",MONTH(DATE('DA code'!M8,'DA code'!K8,1)),"-",YEAR(DATE('DA code'!M8,'DA code'!K8,1))," to ",IF('DA code'!R8=3,'DA code'!Q6,CONCATENATE('DA code'!R4,"-",'DA code'!O8,"-",'DA code'!Q8))," will be adjusted to the ",'DA code'!S8," Accounts. Cash will be paid from ",IF('DA code'!R8=3,'DA code'!Q6,CONCATENATE(DAY('DA code'!T22),"-",MONTH('DA code'!T22),"-",YEAR('DA code'!T22)))) -> D.A enhanced from 12.052% to 15.196%. Enhancement : 3.144% The D.A arrears from 1-7-2015 to 31-7-2016 will be adjusted to the ZPPF Accounts. Cash will be paid from 1-8-2016
B4: Increment Rate | C4: Basic Pay | D4: =CONCATENATE("D.A To be Drawn (",S5*100,"%)") -> D.A To be Drawn (15.196%) | E4: =CONCATENATE("D.A already Drawn (",S6*100,"%)") -> D.A already Drawn (12.052%) | F4: =CONCATENATE("difference (",(S5-S6)*100,"%)") -> difference (3.144%) | G4: =CONCATENATE('DA code'!S8,":",'DA code'!K8,"/",RIGHT('DA code'!M8,2)," to ",'DA code'!W25," (",'DA code'!P23," months)") -> ZPPF:7/15 to 7/16 (13 months) | H4: =CONCATENATE("CASH:"," ",'DA code'!W8,"/",'DA code'!Q8," (",'DA code'!U8," months)") -> CASH: 8/2016 (1 months) | J4: Increment Rate | K4: =C4 -> Basic Pay | L4: D.A To be Drawn (15.196%) | M4: D.A already Drawn (12.052%) | N4: difference (3.144%) | O4: =G4 -> ZPPF:7/15 to 7/16 (13 months) | P4: CASH: 8/2016 (1 months) | R4: D.A (For Print Use legal Pepar) | U4: Edit only Green color cells
B5: 200 | C5: ='DA code'!H2 -> 13000 | D5: =ROUND((C5*S5),0) -> 1975 | E5: =ROUND((C5*S6),0) -> 1567 | F5: =D5-E5 -> 408 | G5: =ROUND((F5*'DA code'!$P$23),0) -> 5304 | H5: =ROUND((F5*'DA code'!$U$8),0) -> 408 | J5: 570 | K5: ='DA code'!H43 -> 41380 | L5: =ROUND((K5*$S$5),0) -> 6288 | M5: =ROUND((K5*$S$6),0) -> 4987 | N5: =L5-M5 -> 1301 | O5: =ROUND((N5*'DA code'!$P$23),0) -> 16913 | P5: =ROUND((N5*'DA code'!$U$8),0) -> 1301 | R5: To Be | S5: 0.15196
C6: ='DA code'!H3 -> 13390 | D6: =ROUND((C6*S5),0) -> 2035 | E6: =ROUND((C6*S6),0) -> 1614 | F6: 421 | G6: =ROUND((F6*'DA code'!$P$23),0) -> 5473 | H6: =ROUND((F6*'DA code'!$U$8),0) -> 421 | K6: ='DA code'!H44 -> 42490 | L6: =ROUND((K6*$S$5),0) -> 6457 | M6: =ROUND((K6*$S$6),0) -> 5121 | N6: 1336 | O6: =ROUND((N6*'DA code'!$P$23),0) -> 17368 | P6: =ROUND((N6*'DA code'!$U$8),0) -> 1336 | R6: Already | S6: 0.12052
C7: ='DA code'!H4 -> 13780 | D7: =ROUND((C7*S5),0) -> 2094 | E7: =ROUND((C7*S6),0) -> 1661 | F7: 433 | G7: =ROUND((F7*'DA code'!$P$23),0) -> 5629 | H7: =ROUND((F7*'DA code'!$U$8),0) -> 433 | J7: 610 | K7: ='DA code'!H45 -> 43680 | L7: 6638 | M7: 5264 | N7: 1374 | O7: =ROUND((N7*'DA code'!$P$23),0) -> 17862 | P7: =ROUND((N7*'DA code'!$U$8),0) -> 1374
C8: ='DA code'!H5 -> 14170 | D8: =ROUND((C8*S5),0) -> 2153 | E8: =ROUND((C8*S6),0) -> 1708 | F8: 445 | G8: =ROUND((F8*'DA code'!$P$23),0) -> 5785 | H8: =ROUND((F8*'DA code'!$U$8),0) -> 445 | K8: ='DA code'!H46 -> 44870 | L8: 6818 | M8: 5408 | N8: 1410 | O8: =ROUND((N8*'DA code'!$P$23),0) -> 18330 | P8: =ROUND((N8*'DA code'!$U$8),0) -> 1410
B9: 220 | C9: ='DA code'!H6 -> 14600 | D9: =ROUND((C9*S5),0) -> 2219 | E9: =ROUND((C9*S6),0) -> 1760 | F9: 459 | G9: =ROUND((F9*'DA code'!$P$23),0) -> 5967 | H9: =ROUND((F9*'DA code'!$U$8),0) -> 459 | K9: ='DA code'!H47 -> 46060 | L9: 6999 | M9: 5551 | N9: 1448 | O9: =ROUND((N9*'DA code'!$P$23),0) -> 18824 | P9: =ROUND((N9*'DA code'!$U$8),0) -> 1448
C10: ='DA code'!H7 -> 15030 | D10: =ROUND((C10*S5),0) -> 2284 | E10: =ROUND((C10*S6),0) -> 1811 | F10: 473 | G10: =ROUND((F10*'DA code'!$P$23),0) -> 6149 | H10: =ROUND((F10*'DA code'!$U$8),0) -> 473 | J10: 650 | K10: ='DA code'!H48 -> 47330 | L10: 7192 | M10: 5704 | N10: 1488 | O10: =ROUND((N10*'DA code'!$P$23),0) -> 19344 | P10: =ROUND((N10*'DA code'!$U$8),0) -> 1488 | R10: To ZPPF | S10: TO
C11: ='DA code'!H8 -> 15460 | D11: =ROUND((C11*S5),0) -> 2349 | E11: =ROUND((C11*S6),0) -> 1863 | F11: 486 | G11: =ROUND((F11*'DA code'!$P$23),0) -> 6318 | H11: =ROUND((F11*'DA code'!$U$8),0) -> 486 | K11: ='DA code'!H49 -> 48600 | L11: 7385 | M11: 5857 | N11: 1528 | O11: =ROUND((N11*'DA code'!$P$23),0) -> 19864 | P11: =ROUND((N11*'DA code'!$U$8),0) -> 1528 | R11: CASH
B12: 240 | C12: ='DA code'!H9 -> 15930 | D12: =ROUND((C12*S5),0) -> 2421 | E12: =ROUND((C12*S6),0) -> 1920 | F12: 501 | G12: =ROUND((F12*'DA code'!$P$23),0) -> 6513 | H12: =ROUND((F12*'DA code'!$U$8),0) -> 501 | K12: ='DA code'!H50 -> 49870 | L12: 7578 | M12: 6010 | N12: 1568 | O12: =ROUND((N12*'DA code'!$P$23),0) -> 20384 | P12: =ROUND((N12*'DA code'!$U$8),0) -> 1568
C13: ='DA code'!H10 -> 16400 | D13: =ROUND((C13*S5),0) -> 2492 | E13: =ROUND((C13*S6),0) -> 1977 | F13: 515 | G13: =ROUND((F13*'DA code'!$P$23),0) -> 6695 | H13: =ROUND((F13*'DA code'!$U$8),0) -> 515 | J13: 700 | K13: ='DA code'!H51 -> 51230 | L13: 7785 | M13: 6174 | N13: 1611 | O13: =ROUND((N13*'DA code'!$P$23),0) -> 20943 | P13: =ROUND((N13*'DA code'!$U$8),0) -> 1611 | R13: Teacher's Union Name | X13: =UPPER(R14) -> APYSRTF
C14: ='DA code'!H11 -> 16870 | D14: =ROUND((C14*S5),0) -> 2564 | E14: =ROUND((C14*S6),0) -> 2033 | F14: 531 | G14: =ROUND((F14*'DA code'!$P$23),0) -> 6903 | H14: =ROUND((F14*'DA code'!$U$8),0) -> 531 | K14: ='DA code'!H52 -> 52590 | L14: 7992 | M14: 6338 | N14: 1654 | O14: =ROUND((N14*'DA code'!$P$23),0) -> 21502 | P14: =ROUND((N14*'DA code'!$U$8),0) -> 1654 | R14: apysrtf
B15: 260 | C15: ='DA code'!H12 -> 17380 | D15: =ROUND((C15*S5),0) -> 2641 | E15: =ROUND((C15*S6),0) -> 2095 | F15: 546 | G15: =ROUND((F15*'DA code'!$P$23),0) -> 7098 | H15: =ROUND((F15*'DA code'!$U$8),0) -> 546 | K15: ='DA code'!H53 -> 53950 | L15: 8198 | M15: 6502 | N15: 1696 | O15: =ROUND((N15*'DA code'!$P$23),0) -> 22048 | P15: =ROUND((N15*'DA code'!$U$8),0) -> 1696
C16: ='DA code'!H13 -> 17890 | D16: =ROUND((C16*S5),0) -> 2719 | E16: =ROUND((C16*S6),0) -> 2156 | F16: 563 | G16: =ROUND((F16*'DA code'!$P$23),0) -> 7319 | H16: =ROUND((F16*'DA code'!$U$8),0) -> 563 | J16: 750 | K16: ='DA code'!H54 -> 55410 | L16: 8420 | M16: 6678 | N16: 1742 | O16: =ROUND((N16*'DA code'!$P$23),0) -> 22646 | P16: =ROUND((N16*'DA code'!$U$8),0) -> 1742 | R16: DA GO(P) No
C17: ='DA code'!H14 -> 18400 | D17: =ROUND((C17*S5),0) -> 2796 | E17: =ROUND((C17*S6),0) -> 2218 | F17: 578 | G17: =ROUND((F17*'DA code'!$P$23),0) -> 7514 | H17: =ROUND((F17*'DA code'!$U$8),0) -> 578 | K17: ='DA code'!H55 -> 56870 | L17: 8642 | M17: 6854 | N17: 1788 | O17: =ROUND((N17*'DA code'!$P$23),0) -> 23244 | P17: =ROUND((N17*'DA code'!$U$8),0) -> 1788 | R17: No | S17: Date
B18: 280 | C18: ='DA code'!H15 -> 18950 | D18: =ROUND((C18*S5),0) -> 2880 | E18: =ROUND((C18*S6),0) -> 2284 | F18: 596 | G18: =ROUND((F18*'DA code'!$P$23),0) -> 7748 | H18: =ROUND((F18*'DA code'!$U$8),0) -> 596 | K18: ='DA code'!H56 -> 58330 | L18: 8864 | M18: 7030 | N18: 1834 | O18: =ROUND((N18*'DA code'!$P$23),0) -> 23842 | P18: =ROUND((N18*'DA code'!$U$8),0) -> 1834 | R18: 198
C19: ='DA code'!H16 -> 19500 | D19: =ROUND((C19*S5),0) -> 2963 | E19: =ROUND((C19*S6),0) -> 2350 | F19: 613 | G19: =ROUND((F19*'DA code'!$P$23),0) -> 7969 | H19: =ROUND((F19*'DA code'!$U$8),0) -> 613 | J19: 800 | K19: ='DA code'!H57 -> 59890 | L19: 9101 | M19: 7218 | N19: 1883 | O19: =ROUND((N19*'DA code'!$P$23),0) -> 24479 | P19: =ROUND((N19*'DA code'!$U$8),0) -> 1883
C20: ='DA code'!H17 -> 20050 | D20: =ROUND((C20*S5),0) -> 3047 | E20: =ROUND((C20*S6),0) -> 2416 | F20: 631 | G20: =ROUND((F20*'DA code'!$P$23),0) -> 8203 | H20: =ROUND((F20*'DA code'!$U$8),0) -> 631 | K20: ='DA code'!H58 -> 61450 | L20: 9338 | M20: 7406 | N20: 1932 | O20: =ROUND((N20*'DA code'!$P$23),0) -> 25116 | P20: =ROUND((N20*'DA code'!$U$8),0) -> 1932 | R20: UNIT | S20: Venkatagiri
B21: 300 | C21: ='DA code'!H18 -> 20640 | D21: =ROUND((C21*S5),0) -> 3136 | E21: =ROUND((C21*S6),0) -> 2488 | F21: 648 | G21: =ROUND((F21*'DA code'!$P$23),0) -> 8424 | H21: =ROUND((F21*'DA code'!$U$8),0) -> 648 | K21: ='DA code'!H59 -> 63010 | L21: 9575 | M21: 7594 | N21: 1981 | O21: =ROUND((N21*'DA code'!$P$23),0) -> 25753 | P21: =ROUND((N21*'DA code'!$U$8),0) -> 1981
C22: ='DA code'!H19 -> 21230 | D22: =ROUND((C22*S5),0) -> 3226 | E22: =ROUND((C22*S6),0) -> 2559 | F22: 667 | G22: =ROUND((F22*'DA code'!$P$23),0) -> 8671 | H22: =ROUND((F22*'DA code'!$U$8),0) -> 667 | J22: 850 | K22: ='DA code'!H60 -> 64670 | L22: 9827 | M22: 7794 | N22: 2033 | O22: =ROUND((N22*'DA code'!$P$23),0) -> 26429 | P22: =ROUND((N22*'DA code'!$U$8),0) -> 2033 | R22: President | S22: G.Bhasker Reddy
C23: ='DA code'!H20 -> 21820 | D23: =ROUND((C23*S5),0) -> 3316 | E23: =ROUND((C23*S6),0) -> 2630 | F23: 686 | G23: =ROUND((F23*'DA code'!$P$23),0) -> 8918 | H23: =ROUND((F23*'DA code'!$U$8),0) -> 686 | K23: ='DA code'!H61 -> 66330 | L23: 10080 | M23: 7994 | N23: 2086 | O23: =ROUND((N23*'DA code'!$P$23),0) -> 27118 | P23: =ROUND((N23*'DA code'!$U$8),0) -> 2086 | R23: Gen Sec | S23: M.Venu Gopal Reddy
B24: 330 | C24: ='DA code'!H21 -> 22460 | D24: =ROUND((C24*S5),0) -> 3413 | E24: =ROUND((C24*S6),0) -> 2707 | F24: 706 | G24: =ROUND((F24*'DA code'!$P$23),0) -> 9178 | H24: =ROUND((F24*'DA code'!$U$8),0) -> 706 | K24: ='DA code'!H62 -> 67990 | L24: 10332 | M24: 8194 | N24: 2138 | O24: =ROUND((N24*'DA code'!$P$23),0) -> 27794 | P24: =ROUND((N24*'DA code'!$U$8),0) -> 2138
C25: ='DA code'!H22 -> 23100 | D25: =ROUND((C25*S5),0) -> 3510 | E25: =ROUND((C25*S6),0) -> 2784 | F25: 726 | G25: =ROUND((F25*'DA code'!$P$23),0) -> 9438 | H25: =ROUND((F25*'DA code'!$U$8),0) -> 726 | J25: 900 | K25: ='DA code'!H63 -> 69750 | L25: 10599 | M25: 8406 | N25: 2193 | O25: =ROUND((N25*'DA code'!$P$23),0) -> 28509 | P25: =ROUND((N25*'DA code'!$U$8),0) -> 2193
C26: ='DA code'!H23 -> 23740 | D26: =ROUND((C26*S5),0) -> 3608 | E26: =ROUND((C26*S6),0) -> 2861 | F26: 747 | G26: =ROUND((F26*'DA code'!$P$23),0) -> 9711 | H26: =ROUND((F26*'DA code'!$U$8),0) -> 747 | K26: ='DA code'!H64 -> 71510 | L26: 10867 | M26: 8618 | N26: 2249 | O26: =ROUND((N26*'DA code'!$P$23),0) -> 29237 | P26: =ROUND((N26*'DA code'!$U$8),0) -> 2249
B27: 360 | C27: ='DA code'!H24 -> 24440 | D27: =ROUND((C27*S5),0) -> 3714 | E27: =ROUND((C27*S6),0) -> 2946 | F27: 768 | G27: =ROUND((F27*'DA code'!$P$23),0) -> 9984 | H27: =ROUND((F27*'DA code'!$U$8),0) -> 768 | K27: ='DA code'!H65 -> 73270 | L27: 11134 | M27: 8831 | N27: 2303 | O27: =ROUND((N27*'DA code'!$P$23),0) -> 29939 | P27: =ROUND((N27*'DA code'!$U$8),0) -> 2303
C28: ='DA code'!H25 -> 25140 | D28: =ROUND((C28*S5),0) -> 3820 | E28: =ROUND((C28*S6),0) -> 3030 | F28: 790 | G28: =ROUND((F28*'DA code'!$P$23),0) -> 10270 | H28: =ROUND((F28*'DA code'!$U$8),0) -> 790 | J28: 970 | K28: ='DA code'!H66 -> 75150 | L28: 11420 | M28: 9057 | N28: 2363 | O28: =ROUND((N28*'DA code'!$P$23),0) -> 30719 | P28: =ROUND((N28*'DA code'!$U$8),0) -> 2363
C29: ='DA code'!H26 -> 25840 | D29: =ROUND((C29*S5),0) -> 3927 | E29: =ROUND((C29*S6),0) -> 3114 | F29: 813 | G29: =ROUND((F29*'DA code'!$P$23),0) -> 10569 | H29: =ROUND((F29*'DA code'!$U$8),0) -> 813 | K29: ='DA code'!H67 -> 77030 | L29: 11705 | M29: 9284 | N29: 2421 | O29: =ROUND((N29*'DA code'!$P$23),0) -> 31473 | P29: =ROUND((N29*'DA code'!$U$8),0) -> 2421
B30: 390 | C30: ='DA code'!H27 -> 26600 | D30: =ROUND((C30*S5),0) -> 4042 | E30: =ROUND((C30*S6),0) -> 3206 | F30: 836 | G30: =ROUND((F30*'DA code'!$P$23),0) -> 10868 | H30: =ROUND((F30*'DA code'!$U$8),0) -> 836 | K30: ='DA code'!H68 -> 78910 | L30: 11991 | M30: 9510 | N30: 2481 | O30: =ROUND((N30*'DA code'!$P$23),0) -> 32253 | P30: =ROUND((N30*'DA code'!$U$8),0) -> 2481
C31: ='DA code'!H28 -> 27360 | D31: =ROUND((C31*S5),0) -> 4158 | E31: =ROUND((C31*S6),0) -> 3297 | F31: 861 | G31: =ROUND((F31*'DA code'!$P$23),0) -> 11193 | H31: =ROUND((F31*'DA code'!$U$8),0) -> 861 | J31: 1040 | K31: ='DA code'!H69 -> 80930 | L31: 12298 | M31: 9754 | N31: 2544 | O31: =ROUND((N31*'DA code'!$P$23),0) -> 33072 | P31: =ROUND((N31*'DA code'!$U$8),0) -> 2544
C32: ='DA code'!H29 -> 28120 | D32: =ROUND((C32*S5),0) -> 4273 | E32: =ROUND((C32*S6),0) -> 3389 | F32: 884 | G32: =ROUND((F32*'DA code'!$P$23),0) -> 11492 | H32: =ROUND((F32*'DA code'!$U$8),0) -> 884 | K32: ='DA code'!H70 -> 82950 | L32: 12605 | M32: 9997 | N32: 2608 | O32: =ROUND((N32*'DA code'!$P$23),0) -> 33904 | P32: =ROUND((N32*'DA code'!$U$8),0) -> 2608
B33: 420 | C33: ='DA code'!H30 -> 28940 | D33: =ROUND((C33*S5),0) -> 4398 | E33: =ROUND((C33*S6),0) -> 3488 | F33: 910 | G33: =ROUND((F33*'DA code'!$P$23),0) -> 11830 | H33: =ROUND((F33*'DA code'!$U$8),0) -> 910 | K33: ='DA code'!H71 -> 84970 | L33: 12912 | M33: 10241 | N33: 2671 | O33: =ROUND((N33*'DA code'!$P$23),0) -> 34723 | P33: =ROUND((N33*'DA code'!$U$8),0) -> 2671
C34: ='DA code'!H31 -> 29760 | D34: =ROUND((C34*S5),0) -> 4522 | E34: =ROUND((C34*S6),0) -> 3587 | F34: 935 | G34: =ROUND((F34*'DA code'!$P$23),0) -> 12155 | H34: =ROUND((F34*'DA code'!$U$8),0) -> 935 | J34: 1110 | K34: ='DA code'!H72 -> 87130 | L34: 13240 | M34: 10501 | N34: 2739 | O34: =ROUND((N34*'DA code'!$P$23),0) -> 35607 | P34: =ROUND((N34*'DA code'!$U$8),0) -> 2739
C35: ='DA code'!H32 -> 30580 | D35: =ROUND((C35*S5),0) -> 4647 | E35: =ROUND((C35*S6),0) -> 3686 | F35: 961 | G35: =ROUND((F35*'DA code'!$P$23),0) -> 12493 | H35: =ROUND((F35*'DA code'!$U$8),0) -> 961 | K35: ='DA code'!H73 -> 89290 | L35: 13569 | M35: 10761 | N35: 2808 | O35: =ROUND((N35*'DA code'!$P$23),0) -> 36504 | P35: =ROUND((N35*'DA code'!$U$8),0) -> 2808
B36: 450 | C36: ='DA code'!H33 -> 31460 | D36: =ROUND((C36*$S$5),0) -> 4781 | E36: =ROUND((C36*$S$6),0) -> 3792 | F36: 989 | G36: =ROUND((F36*'DA code'!$P$23),0) -> 12857 | H36: =ROUND((F36*'DA code'!$U$8),0) -> 989 | K36: ='DA code'!H74 -> 91450 | L36: 13897 | M36: 11022 | N36: 2875 | O36: =ROUND((N36*'DA code'!$P$23),0) -> 37375 | P36: =ROUND((N36*'DA code'!$U$8),0) -> 2875
C37: ='DA code'!H34 -> 32340 | D37: =ROUND((C37*$S$5),0) -> 4914 | E37: =ROUND((C37*$S$6),0) -> 3898 | F37: 1016 | G37: =ROUND((F37*'DA code'!$P$23),0) -> 13208 | H37: =ROUND((F37*'DA code'!$U$8),0) -> 1016 | J37: 1200 | K37: ='DA code'!H75 -> 93780 | L37: 14251 | M37: 11302 | N37: 2949 | O37: =ROUND((N37*'DA code'!$P$23),0) -> 38337 | P37: =ROUND((N37*'DA code'!$U$8),0) -> 2949
C38: ='DA code'!H35 -> 33220 | D38: 5048 | E38: 4004 | F38: 1044 | G38: =ROUND((F38*'DA code'!$P$23),0) -> 13572 | H38: =ROUND((F38*'DA code'!$U$8),0) -> 1044 | K38: ='DA code'!H76 -> 96110 | L38: 14605 | M38: 11583 | N38: 3022 | O38: =ROUND((N38*'DA code'!$P$23),0) -> 39286 | P38: =ROUND((N38*'DA code'!$U$8),0) -> 3022
B39: 490 | C39: ='DA code'!H36 -> 34170 | D39: 5192 | E39: 4118 | F39: 1074 | G39: =ROUND((F39*'DA code'!$P$23),0) -> 13962 | H39: =ROUND((F39*'DA code'!$U$8),0) -> 1074 | K39: ='DA code'!H77 -> 98440 | L39: 14959 | M39: 11864 | N39: 3095 | O39: =ROUND((N39*'DA code'!$P$23),0) -> 40235 | P39: =ROUND((N39*'DA code'!$U$8),0) -> 3095
C40: ='DA code'!H37 -> 35120 | D40: 5337 | E40: 4233 | F40: 1104 | G40: =ROUND((F40*'DA code'!$P$23),0) -> 14352 | H40: =ROUND((F40*'DA code'!$U$8),0) -> 1104 | K40: ='DA code'!H78 -> 100770 | L40: 15313 | M40: 12145 | N40: 3168 | O40: =ROUND((N40*'DA code'!$P$23),0) -> 41184 | P40: =ROUND((N40*'DA code'!$U$8),0) -> 3168
C41: ='DA code'!H38 -> 36070 | D41: 5481 | E41: 4347 | F41: 1134 | G41: =ROUND((F41*'DA code'!$P$23),0) -> 14742 | H41: =ROUND((F41*'DA code'!$U$8),0) -> 1134 | J41: 1300 | K41: ='DA code'!H79 -> 103290 | L41: 15696 | M41: 12449 | N41: 3247 | O41: =ROUND((N41*'DA code'!$P$23),0) -> 42211 | P41: =ROUND((N41*'DA code'!$U$8),0) -> 3247
B42: 530 | C42: ='DA code'!H39 -> 37100 | D42: 5638 | E42: 4471 | F42: 1167 | G42: =ROUND((F42*'DA code'!$P$23),0) -> 15171 | H42: =ROUND((F42*'DA code'!$U$8),0) -> 1167 | K42: ='DA code'!H80 -> 105810 | L42: 16079 | M42: 12752 | N42: 3327 | O42: =ROUND((N42*'DA code'!$P$23),0) -> 43251 | P42: =ROUND((N42*'DA code'!$U$8),0) -> 3327
C43: ='DA code'!H40 -> 38130 | D43: 5794 | E43: 4595 | F43: 1199 | G43: =ROUND((F43*'DA code'!$P$23),0) -> 15587 | H43: =ROUND((F43*'DA code'!$U$8),0) -> 1199 | K43: ='DA code'!H81 -> 108330 | L43: 16462 | M43: 13056 | N43: 3406 | O43: =ROUND((N43*'DA code'!$P$23),0) -> 44278 | P43: =ROUND((N43*'DA code'!$U$8),0) -> 3406
C44: ='DA code'!H41 -> 39160 | D44: 5951 | E44: 4720 | F44: 1231 | G44: =ROUND((F44*'DA code'!$P$23),0) -> 16003 | H44: =ROUND((F44*'DA code'!$U$8),0) -> 1231 | J44: ="President::"&S22 -> President::G.Bhasker Reddy
B45: 570 | C45: ='DA code'!H42 -> 40270 | D45: 6119 | E45: 4853 | F45: 1266 | G45: =ROUND((F45*'DA code'!$P$23),0) -> 16458 | H45: =ROUND((F45*'DA code'!$U$8),0) -> 1266 | J45: ="Gen Sec::"&S23 -> Gen Sec::M.Venu Gopal Reddy
B46: =CONCATENATE("Prepared by:",UPPER(R14)," "," Visit:www.ysrtf.com,cell:9494796587,9666570250") -> Prepared by:APYSRTF Visit:www.ysrtf.com,cell:9494796587,9666570250
B47: =IF(S20=0," ","GS/PRE,"&UPPER(S20)&" UNIT") -> GS/PRE,VENKATAGIRI UNIT

Sheet DA code (hidden)
G2: 1 | H2: 13000 | J2: =CONCATENATE(DAY(DATE('DA code'!M8,'DA code'!K8,1)),"-",MONTH(DATE('DA code'!M8,'DA code'!K8,1)),"-",YEAR(DATE('DA code'!M8,'DA code'!K8,1))) -> 1-7-2015
G3: 2 | H3: 13390 | Q3: =DATE('DA code'!M8,'DA code'!K8,1) -> 2015-07-01
G4: 3 | H4: 13780 | R4: =LOOKUP(O8,C22:D33,D22:D33) -> 31
E5: D.A READY RECKONER | G5: 4 | H5: 14170
G6: 5 | H6: 14600 | J6: =DATE(M8,K8,1) -> 2015-07-01 | K6: =DAY(J6)&"-"&MONTH(J6)&"-"&YEAR(J6) -> 1-7-2015 | O6: =DATE(Q8,O8,1) -> 2016-07-01 | P6: =DAY(O6)&"-"&R6&"-"&YEAR(O6) -> 1-6-2016 | Q6: =DAY(O6)&"-"&MONTH(O6)&"-"&YEAR(O6) -> 1-7-2016 | R6: =IF(O8=1,12,O8-1) -> 6
G7: 6 | H7: 15030 | K7: ZPPF | O7: ZPPF | W7: CASH
G8: 7 | H8: 15460 | J8: =LOOKUP(K8,J9:K20,K9:K20) -> Jul | K8: 7 | L8: 1 | M8: =LOOKUP(L8,J9:L11,L9:L11) -> 2015 | N8: =LOOKUP(O8,N9:O20,O9:O20) -> Jul | O8: 7 | P8: 2 | Q8: =LOOKUP(P8,N9:P11,P9:P11) -> 2016 | R8: 1 | S8: =LOOKUP(R8,Q9:R11,R9:R11) -> ZPPF | T8: 12 | U8: =W8-O8 -> 1 | W8: 8 | X8: 2 | Y8: =LOOKUP(X8,V9:X11,X9:X11) -> 2016
E9: 5 | G9: 8 | H9: 15930 | J9: 1 | K9: Jan | L9: 2015 | N9: 1 | O9: Jan | P9: =L9 -> 2015 | Q9: 1 | R9: ZPPF | V9: 1 | W9: Jan | X9: =P9 -> 2015
E10: 1 | G10: 9 | H10: 16400 | J10: 2 | K10: Feb | L10: 2016 | N10: 2 | O10: Feb | P10: =L10 -> 2016 | Q10: 2 | R10: GPF | V10: 2 | W10: Feb | X10: =P10 -> 2016
G11: 10 | H11: 16870 | J11: 3 | K11: Mar | L11: 2017 | N11: 3 | O11: Mar | P11: =L11 -> 2017 | Q11: 3 | R11: CPS | V11: 3 | W11: Mar | X11: =P11 -> 2017
G12: 11 | H12: 17380 | J12: 4 | K12: Apr | N12: 4 | O12: Apr | U12: =UPPER(LEFT('DA S0FTWARE'!$R$14,1)&" "&MID('DA S0FTWARE'!$R$14,2,1)&" "&MID('DA S0FTWARE'!$R$14,3,1)&" "&MID('DA S0FTWARE'!$R$14,4,1)&" "&MID('DA S0FTWARE'!$R$14,5,1)&" "&MID('DA S0FTWARE'!$R$14,6,1)&" "&MID('DA S0FTWARE'!$R$14,7,1)&" "&MID('DA S0FTWARE'!$R$14,8,1)&" "&MID('DA S0FTWARE'!$R$14,9,1)) -> A P Y S R T F | V12: 4 | W12: Apr
G13: 12 | H13: 17890 | J13: 5 | K13: May | N13: 5 | O13: May | U13: =UPPER('DA S0FTWARE'!$R$14) -> APYSRTF | V13: 5 | W13: May
C14: Feb | G14: 13 | H14: 18400 | J14: 6 | K14: Jun | N14: 6 | O14: Jun | V14: 6 | W14: Jun
C15: 2012 | D15: 28 | G15: 14 | H15: 18950 | J15: 7 | K15: Jul | N15: 7 | O15: Jul | V15: 7 | W15: Jul
C16: 2013 | D16: 28 | G16: 15 | H16: 19500 | J16: 8 | K16: Aug | N16: 8 | O16: Aug | V16: 8 | W16: Aug
C17: 2014 | D17: 29 | G17: 16 | H17: 20050 | J17: 9 | K17: Sep | N17: 9 | O17: Sep | V17: 9 | W17: Sep
C18: 2015 | D18: 28 | G18: 17 | H18: 20640 | J18: 10 | K18: Oct | N18: 10 | O18: Oct | U18: =YEAR(T24) -> 2016 | V18: 10 | W18: Oct
C19: 2016 | D19: 28 | G19: 18 | H19: 21230 | J19: 11 | K19: Nov | N19: 11 | O19: Nov | V19: 11 | W19: Nov
C20: 2017 | D20: 28 | G20: 19 | H20: 21820 | J20: 12 | K20: Dec | N20: 12 | O20: Dec | V20: 12 | W20: Dec
C21: 2018 | D21: 29 | G21: 20 | H21: 22460
C22: 1 | D22: 31 | E22: =LOOKUP(V24,C22:D33,D22:D33) -> 31 | G22: 21 | H22: 23100 | K22: ZPPF | N22: ZPPF | P22: Diff | T22: =DATE(U26,V24,1) -> 2016-08-01
C23: 2 | D23: =IF(OR(YEAR(T22)=2012,YEAR(T22)=2016),29,28) -> 29 | G23: 22 | H23: 23740 | J23: =CONCATENATE(J8," ",RIGHT(M8,2)) -> Jul 15 | K23: =MATCH(J23,K24:K59,0) -> 7 | M23: =CONCATENATE(N8," ",RIGHT(Q8,2)) -> Jul 16 | N23: =MATCH(M23,N24:N59,0) -> 19 | P23: =(N23-K23)+1 -> 13 | T23: =T24 -> Aug 16
B24: =IF('DA S0FTWARE'!$R$18=0," ",'DA code'!J24) -> 1 | C24: 3 | D24: 31 | E24: =IF('DA S0FTWARE'!$R$18=0," ",'DA code'!K24) -> Jan 15 | G24: 23 | H24: 24440 | J24: 1 | K24: =CONCATENATE(K9," ",RIGHT($L$9,2)) -> Jan 15 | M24: =J24 -> 1 | N24: =CONCATENATE(K9," ",RIGHT($L$9,2)) -> Jan 15 | Q24: 1 | R24: =K24 -> Jan 15 | S24: =R25 -> Feb 15 | T24: =LOOKUP(N23,Q24:R61,S24:S60) -> Aug 16 | U24: =LEFT(T24,3) -> Aug | V24: =MATCH(U24,O9:O20,0) -> 8 | W24: =CONCATENATE(V24,"/",RIGHT(T24,2)) -> 8/16
B25: =IF('DA S0FTWARE'!$R$18=0," ",'DA code'!J25) -> 2 | C25: 4 | D25: 30 | E25: =IF('DA S0FTWARE'!$R$18=0," ",'DA code'!K25) -> Feb 15 | G25: 24 | H25: 25140 | J25: 2 | K25: =CONCATENATE(K10," ",RIGHT($L$9,2)) -> Feb 15 | M25: 2 | N25: =CONCATENATE(K10," ",RIGHT($L$9,2)) -> Feb 15 | Q25: 2 | R25: =K25 -> Feb 15 | S25: =R26 -> Mar 15 | T25: =M23 -> Jul 16 | U25: =LEFT(T25,3) -> Jul | V25: =MATCH(U25,O9:O20,0) -> 7 | W25: =CONCATENATE(V25,"/",RIGHT(T25,2)) -> 7/16
B26: =IF('DA S0FTWARE'!$R$18=0," ",'DA code'!J26) -> 3 | C26: 5 | D26: 31 | E26: =IF('DA S0FTWARE'!$R$18=0," ",'DA code'!K26) -> Mar 15 | G26: 25 | H26: 25840 | J26: 3 | K26: Mar 15 | M26: 3 | N26: Mar 15 | Q26: 3 | R26: Mar 15 | S26: Apr 15 | U26: ="20"&RIGHT(T24,2) -> 2016
B27: =IF('DA S0FTWARE'!$R$18=0," ",'DA code'!J27) -> 4 | C27: 6 | D27: 30 | E27: =IF('DA S0FTWARE'!$R$18=0," ",'DA code'!K27) -> Apr 15 | G27: 26 | H27: 26600 | J27: 4 | K27: Apr 15 | M27: 4 | N27: Apr 15 | Q27: 4 | R27: Apr 15 | S27: May 15
B28: =IF('DA S0FTWARE'!$R$18=0," ",'DA code'!J28) -> 5 | C28: 7 | D28: 31 | E28: =IF('DA S0FTWARE'!$R$18=0," ",'DA code'!K28) -> May 15 | G28: 27 | H28: 27360 | J28: 5 | K28: May 15 | M28: 5 | N28: May 15 | Q28: 5 | R28: May 15 | S28: Jun 15
B29: =IF('DA S0FTWARE'!$R$18=0," ",'DA code'!J29) -> 6 | C29: 8 | D29: 31 | E29: =IF('DA S0FTWARE'!$R$18=0," ",'DA code'!K29) -> Jun 15 | G29: 28 | H29: 28120 | J29: 6 | K29: Jun 15 | M29: 6 | N29: Jun 15 | Q29: 6 | R29: Jun 15 | S29: Jul 15 | U29: =LOOKUP(N23,Q24:R61,S24:S60) -> Aug 16
B30: =IF('DA S0FTWARE'!$R$18=0," ",'DA code'!J30) -> 7 | C30: 9 | D30: 30 | E30: =IF('DA S0FTWARE'!$R$18=0," ",'DA code'!K30) -> Jul 15 | G30: 29 | H30: 28940 | J30: 7 | K30: Jul 15 | M30: 7 | N30: Jul 15 | Q30: 7 | R30: Jul 15 | S30: Aug 15
B31: =IF('DA S0FTWARE'!$R$18=0," ",'DA code'!J31) -> 8 | C31: 10 | D31: 31 | E31: =IF('DA S0FTWARE'!$R$18=0," ",'DA code'!K31) -> Aug 15 | G31: 30 | H31: 29760 | J31: 8 | K31: Aug 15 | M31: 8 | N31: Aug 15 | Q31: 8 | R31: Aug 15 | S31: Sep 15
B32: =IF('DA S0FTWARE'!$R$18=0," ",'DA code'!J32) -> 9 | C32: 11 | D32: 30 | E32: =IF('DA S0FTWARE'!$R$18=0," ",'DA code'!K32) -> Sep 15 | G32: 31 | H32: 30580 | J32: 9 | K32: Sep 15 | M32: 9 | N32: Sep 15 | Q32: 9 | R32: Sep 15 | S32: Oct 15
B33: =IF('DA S0FTWARE'!$R$18=0," ",'DA code'!J33) -> 10 | C33: 12 | D33: 31 | E33: =IF('DA S0FTWARE'!$R$18=0," ",'DA code'!K33) -> Oct 15 | G33: 32 | H33: 31460 | J33: 10 | K33: =CONCATENATE(K18," ",RIGHT($L$9,2)) -> Oct 15 | M33: 10 | N33: Oct 15 | Q33: 10 | R33: Oct 15 | S33: Nov 15
B34: =IF('DA S0FTWARE'!$R$18=0," ",'DA code'!J34) -> 11 | C34: =IF('DA S0FTWARE'!$R$18=0," ",'DA code'!K34) -> Nov 15 | E34: =IF('DA S0FTWARE'!$R$18=0," ",'DA code'!K34) -> Nov 15 | G34: 33 | H34: 32340 | J34: 11 | K34: Nov 15 | M34: 11 | N34: Nov 15 | Q34: 11 | R34: Nov 15 | S34: Dec 15
B35: =IF('DA S0FTWARE'!$R$18=0," ",'DA code'!J35) -> 12 | C35: =IF('DA S0FTWARE'!$R$18=0," ",'DA code'!K35) -> Dec 15 | E35: =IF('DA S0FTWARE'!$R$18=0," ",'DA code'!K35) -> Dec 15 | G35: 34 | H35: 33220 | J35: 12 | K35: Dec 15 | M35: 12 | N35: Dec 15 | Q35: 12 | R35: Dec 15 | S35: Jan 16
B36: =IF('DA S0FTWARE'!$R$18=0," ",'DA code'!J36) -> 13 | C36: =IF('DA S0FTWARE'!$R$18=0," ",'DA code'!K36) -> Jan 16 | E36: =IF('DA S0FTWARE'!$R$18=0," ",'DA code'!K36) -> Jan 16 | G36: 35 | H36: 34170 | J36: 13 | K36: =CONCATENATE(K9," ",RIGHT($L$10,2)) -> Jan 16 | M36: 13 | N36: =CONCATENATE(K9," ",RIGHT($L$10,2)) -> Jan 16 | Q36: 13 | R36: Jan 16 | S36: Feb 16
B37: =IF('DA S0FTWARE'!$R$18=0," ",'DA code'!J37) -> 14 | C37: =IF('DA S0FTWARE'!$R$18=0," ",'DA code'!K37) -> Feb 16 | E37: =IF('DA S0FTWARE'!$R$18=0," ",'DA code'!K37) -> Feb 16 | G37: 36 | H37: 35120 | J37: 14 | K37: =CONCATENATE(K10," ",RIGHT($L$10,2)) -> Feb 16 | M37: 14 | N37: =CONCATENATE(K10," ",RIGHT($L$10,2)) -> Feb 16 | Q37: 14 | R37: Feb 16 | S37: Mar 16
B38: =IF('DA S0FTWARE'!$R$18=0," ",'DA code'!J38) -> 15 | C38: =IF('DA S0FTWARE'!$R$18=0," ",'DA code'!K38) -> Mar 16 | E38: =IF('DA S0FTWARE'!$R$18=0," ",'DA code'!K38) -> Mar 16 | G38: 37 | H38: 36070 | J38: 15 | K38: Mar 16 | M38: 15 | N38: Mar 16 | Q38: 15 | R38: Mar 16 | S38: Apr 16
B39: =IF('DA S0FTWARE'!$R$18=0," ",'DA code'!J39) -> 16 | C39: =IF('DA S0FTWARE'!$R$18=0," ",'DA code'!K39) -> Apr 16 | E39: =IF('DA S0FTWARE'!$R$18=0," ",'DA code'!K39) -> Apr 16 | G39: 38 | H39: 37100 | J39: 16 | K39: Apr 16 | M39: 16 | N39: Apr 16 | Q39: 16 | R39: Apr 16 | S39: May 16
B40: =IF('DA S0FTWARE'!$R$18=0," ",'DA code'!J40) -> 17 | C40: =IF('DA S0FTWARE'!$R$18=0," ",'DA code'!K40) -> May 16 | E40: =IF('DA S0FTWARE'!$R$18=0," ",'DA code'!K40) -> May 16 | G40: 39 | H40: 38130 | J40: 17 | K40: May 16 | M40: 17 | N40: May 16 | Q40: 17 | R40: May 16 | S40: Jun 16
B41: =IF('DA S0FTWARE'!$R$18=0," ",'DA code'!J41) -> 18 | C41: =IF('DA S0FTWARE'!$R$18=0," ",'DA code'!K41) -> Jun 16 | E41: =IF('DA S0FTWARE'!$R$18=0," ",'DA code'!K41) -> Jun 16 | G41: 40 | H41: 39160 | J41: 18 | K41: Jun 16 | M41: 18 | N41: Jun 16 | Q41: 18 | R41: Jun 16 | S41: Jul 16
B42: =IF('DA S0FTWARE'!$R$18=0," ",'DA code'!J42) -> 19 | C42: =IF('DA S0FTWARE'!$R$18=0," ",'DA code'!K42) -> Jul 16 | E42: =IF('DA S0FTWARE'!$R$18=0," ",'DA code'!K42) -> Jul 16 | G42: 41 | H42: 40270 | J42: 19 | K42: Jul 16 | M42: 19 | N42: Jul 16 | Q42: 19 | R42: Jul 16 | S42: Aug 16
B43: =IF('DA S0FTWARE'!$R$18=0," ",'DA code'!J43) -> 20 | C43: =IF('DA S0FTWARE'!$R$18=0," ",'DA code'!K43) -> Aug 16 | E43: =IF('DA S0FTWARE'!$R$18=0," ",'DA code'!K43) -> Aug 16 | G43: 42 | H43: 41380 | J43: 20 | K43: Aug 16 | M43: 20 | N43: Aug 16 | Q43: 20 | R43: Aug 16 | S43: Sep 16
B44: =IF('DA S0FTWARE'!$R$18=0," ",'DA code'!J44) -> 21 | C44: =IF('DA S0FTWARE'!$R$18=0," ",'DA code'!K44) -> Sep 16 | E44: =IF('DA S0FTWARE'!$R$18=0," ",'DA code'!K44) -> Sep 16 | G44: 43 | H44: 42490 | J44: 21 | K44: Sep 16 | M44: 21 | N44: Sep 16 | Q44: 21 | R44: Sep 16 | S44: Oct 16
B45: =IF('DA S0FTWARE'!$R$18=0," ",'DA code'!J45) -> 22 | C45: =IF('DA S0FTWARE'!$R$18=0," ",'DA code'!K45) -> Oct 16 | E45: =IF('DA S0FTWARE'!$R$18=0," ",'DA code'!K45) -> Oct 16 | G45: 44 | H45: 43680 | J45: 22 | K45: Oct 16 | M45: 22 | N45: Oct 16 | Q45: 22 | R45: Oct 16 | S45: Nov 16
B46: =IF('DA S0FTWARE'!$R$18=0," ",'DA code'!J46) -> 23 | C46: =IF('DA S0FTWARE'!$R$18=0," ",'DA code'!K46) -> Nov 16 | E46: =IF('DA S0FTWARE'!$R$18=0," ",'DA code'!K46) -> Nov 16 | G46: 45 | H46: 44870 | J46: 23 | K46: Nov 16 | M46: 23 | N46: Nov 16 | Q46: 23 | R46: Nov 16 | S46: Dec 16
B47: =IF('DA S0FTWARE'!$R$18=0," ",'DA code'!J47) -> 24 | C47: =IF('DA S0FTWARE'!$R$18=0," ",'DA code'!K47) -> Dec 16 | E47: =IF('DA S0FTWARE'!$R$18=0," ",'DA code'!K47) -> Dec 16 | G47: 46 | H47: 46060 | J47: 24 | K47: Dec 16 | M47: 24 | N47: Dec 16 | Q47: 24 | R47: Dec 16 | S47: Jan 17
B48: =IF('DA S0FTWARE'!$R$18=0," ",'DA code'!J48) -> 25 | C48: =IF('DA S0FTWARE'!$R$18=0," ",'DA code'!K48) -> Jan 17 | E48: =IF('DA S0FTWARE'!$R$18=0," ",'DA code'!K48) -> Jan 17 | G48: 47 | H48: 47330 | J48: 25 | K48: =CONCATENATE(K9," ",RIGHT($L$11,2)) -> Jan 17 | M48: 25 | N48: =CONCATENATE(K9," ",RIGHT($L$11,2)) -> Jan 17 | Q48: 25 | R48: Jan 17 | S48: Feb 17
B49: =IF('DA S0FTWARE'!$R$18=0," ",'DA code'!J49) -> 26 | C49: =IF('DA S0FTWARE'!$R$18=0," ",'DA code'!K49) -> Feb 17 | E49: =IF('DA S0FTWARE'!$R$18=0," ",'DA code'!K49) -> Feb 17 | G49: 48 | H49: 48600 | J49: 26 | K49: =CONCATENATE(K10," ",RIGHT($L$11,2)) -> Feb 17 | M49: 26 | N49: =CONCATENATE(K10," ",RIGHT($L$11,2)) -> Feb 17 | Q49: 26 | R49: Feb 17 | S49: Mar 17
B50: =IF('DA S0FTWARE'!$R$18=0," ",'DA code'!J50) -> 27 | C50: =IF('DA S0FTWARE'!$R$18=0," ",'DA code'!K50) -> Mar 17 | E50: =IF('DA S0FTWARE'!$R$18=0," ",'DA code'!K50) -> Mar 17 | G50: 49 | H50: 49870 | J50: 27 | K50: Mar 17 | M50: 27 | N50: Mar 17 | Q50: 27 | R50: Mar 17 | S50: Apr 17
B51: =IF('DA S0FTWARE'!$R$18=0," ",'DA code'!J51) -> 28 | C51: =IF('DA S0FTWARE'!$R$18=0," ",'DA code'!K51) -> Apr 17 | E51: =IF('DA S0FTWARE'!$R$18=0," ",'DA code'!K51) -> Apr 17 | G51: 50 | H51: 51230 | J51: 28 | K51: Apr 17 | M51: 28 | N51: Apr 17 | Q51: 28 | R51: Apr 17 | S51: May 17
B52: =IF('DA S0FTWARE'!$R$18=0," ",'DA code'!J52) -> 29 | C52: =IF('DA S0FTWARE'!$R$18=0," ",'DA code'!K52) -> May 17 | E52: =IF('DA S0FTWARE'!$R$18=0," ",'DA code'!K52) -> May 17 | G52: 51 | H52: 52590 | J52: 29 | K52: May 17 | M52: 29 | N52: May 17 | Q52: 29 | R52: May 17 | S52: Jun 17
B53: =IF('DA S0FTWARE'!$R$18=0," ",'DA code'!J53) -> 30 | C53: =IF('DA S0FTWARE'!$R$18=0," ",'DA code'!K53) -> Jun 17 | E53: =IF('DA S0FTWARE'!$R$18=0," ",'DA code'!K53) -> Jun 17 | G53: 52 | H53: 53950 | J53: 30 | K53: Jun 17 | M53: 30 | N53: Jun 17 | Q53: 30 | R53: Jun 17 | S53: Jul 17
B54: =IF('DA S0FTWARE'!$R$18=0," ",'DA code'!J54) -> 31 | C54: =IF('DA S0FTWARE'!$R$18=0," ",'DA code'!K54) -> Jul 17 | E54: =IF('DA S0FTWARE'!$R$18=0," ",'DA code'!K54) -> Jul 17 | G54: 53 | H54: 55410 | J54: 31 | K54: Jul 17 | M54: 31 | N54: Jul 17 | Q54: 31 | R54: Jul 17 | S54: Aug 17
B55: =IF('DA S0FTWARE'!$R$18=0," ",'DA code'!J55) -> 32 | C55: =IF('DA S0FTWARE'!$R$18=0," ",'DA code'!K55) -> Aug 17 | E55: =IF('DA S0FTWARE'!$R$18=0," ",'DA code'!K55) -> Aug 17 | G55: 54 | H55: 56870 | J55: 32 | K55: Aug 17 | M55: 32 | N55: Aug 17 | Q55: 32 | R55: Aug 17 | S55: Sep 17
B56: =IF('DA S0FTWARE'!$R$18=0," ",'DA code'!J56) -> 33 | C56: =IF('DA S0FTWARE'!$R$18=0," ",'DA code'!K56) -> Sep 17 | E56: =IF('DA S0FTWARE'!$R$18=0," ",'DA code'!K56) -> Sep 17 | G56: 55 | H56: 58330 | J56: 33 | K56: Sep 17 | M56: 33 | N56: Sep 17 | Q56: 33 | R56: Sep 17 | S56: Oct 17
B57: =IF('DA S0FTWARE'!$R$18=0," ",'DA code'!J57) -> 34 | C57: =IF('DA S0FTWARE'!$R$18=0," ",'DA code'!K57) -> Oct 17 | E57: =IF('DA S0FTWARE'!$R$18=0," ",'DA code'!K57) -> Oct 17 | G57: 56 | H57: 59890 | J57: 34 | K57: Oct 17 | M57: 34 | N57: Oct 17 | Q57: 34 | R57: Oct 17 | S57: Nov 17
B58: =IF('DA S0FTWARE'!$R$18=0," ",'DA code'!J58) -> 35 | C58: =IF('DA S0FTWARE'!$R$18=0," ",'DA code'!K58) -> Nov 17 | E58: =IF('DA S0FTWARE'!$R$18=0," ",'DA code'!K58) -> Nov 17 | G58: 57 | H58: 61450 | J58: 35 | K58: Nov 17 | M58: 35 | N58: Nov 17 | Q58: 35 | R58: Nov 17 | S58: Dec 17
B59: =IF('DA S0FTWARE'!$R$18=0," ",'DA code'!J59) -> 36 | C59: =IF('DA S0FTWARE'!$R$18=0," ",'DA code'!K59) -> Dec 17 | E59: =IF('DA S0FTWARE'!$R$18=0," ",'DA code'!K59) -> Dec 17 | G59: 58 | H59: 63010 | J59: 36 | K59: Dec 17 | M59: 36 | N59: Dec 17 | Q59: 36 | R59: Dec 17
G60: 59 | H60: 64670 | M60: 0 | N60: 0 | Q60: 37
G61: 60 | H61: 66330
G62: 61 | H62: 67990 | J62: 9 | K62: 20 | L62: =LOOKUP(K62,J24:K59,K24:K59) -> Aug 16 | M62: =IF('DA S0FTWARE'!R18>0,'DA code'!J62,0) -> 9
G63: 62 | H63: 69750 | J63: =CONCATENATE(J62," ",L62) -> 9 Aug 16 | K63: =MONTH(J63) -> 8 | L63: =RIGHT(L62,2) -> 16
G64: 63 | H64: 71510 | J64: =IF(M62>0,M62&"-"&K63&"-"&L63,0) -> 9-8-16
G65: 64 | H65: 73270
G66: 65 | H66: 75150
G67: 66 | H67: 77030 | N67: _______
G68: 67 | H68: 78910 | J68: =CONCATENATE("Enhanced D.A w.e.f ",DAY(DATE('DA code'!M8,'DA code'!K8,1)),"-",MONTH(DATE('DA code'!M8,'DA code'!K8,1)),"-",YEAR(DATE('DA code'!M8,'DA code'!K8,1))," G.O(P).No:",N70,",Dt:",O70) -> Enhanced D.A w.e.f 1-7-2015 G.O(P).No:198,Dt:9-8-16
G69: 68 | H69: 80930
G70: 69 | H70: 82950 | J70: =IF('DA S0FTWARE'!R18=" ",_________,'DA S0FTWARE'!R18) -> 198 | N70: =IF('DA S0FTWARE'!R18=0,N67,'DA S0FTWARE'!R18) -> 198 | O70: =IF('DA S0FTWARE'!R18=J64,N67,J64) -> 9-8-16
G71: 70 | H71: 84970
G72: 71 | H72: 87130
G73: 72 | H73: 89290
G74: 73 | H74: 91450
G75: 74 | H75: 93780
G76: 75 | H76: 96110
G77: 76 | H77: 98440
G78: 77 | H78: 100770
G79: 78 | H79: 103290
G80: 79 | H80: 105810
G81: 80 | H81: 108330
G82: 81 | H82: 110850

Sheet DA calculation
D1: DA Calculation | K1: DA 1 | N1: DA 2
D2: Month | E2: Basic | F2: Already | G2: Tobe | H2: Difference | K2: Already | L2: Tobe | N2: Already | O2: Tobe
B3: No increment | C3: 1 | K3: 0.08908 | L3: 0.12052 | N3: 0.12052 | O3: 0.15196
B4: 2015-01-01 | C4: 2 | D4: 2015-01-01 | E4: =J46 -> 38130 | F4: =ROUND(E4*$K$3,0) -> 3397 | G4: =ROUND(E4*$L$3,0) -> 4595 | H4: =G4-F4 -> 1198 | K4: From Jan 2015 to Feb 2016 | N4: From July 2015 to July 2016
B5: 2015-02-01 | C5: 3 | D5: 2015-02-01 | E5: =J47 -> 38130 | F5: =ROUND(E5*$K$3,0) -> 3397 | G5: =ROUND(E5*$L$3,0) -> 4595 | H5: 1198
B6: 2015-03-01 | C6: 4 | D6: 2015-03-01 | E6: 38130 | F6: 3397 | G6: 4595 | H6: 1198
B7: 2015-04-01 | C7: 5 | D7: 2015-04-01 | E7: 38130 | F7: 3397 | G7: 4595 | H7: 1198
B8: 2015-05-01 | C8: 6 | D8: 2015-05-01 | E8: 38130 | F8: 3397 | G8: 4595 | H8: 1198 | K8: Select Increment Month | T8: Previous Basic pays
B9: 2015-06-01 | C9: 7 | D9: 2015-06-01 | E9: 38130 | F9: 3397 | G9: 4595 | H9: 1198 | K9: Increment between Jan 16 to Feb 16 | P9: 2016-01-01 | T9: =HLOOKUP(T11,H34:CK35,2,TRUE) -> 38130
B10: 2015-07-01 | C10: 8 | D10: 2015-07-01 | E10: 38130 | F10: =ROUND(E10*$N$3,0) -> 4595 | G10: =ROUND(E10*$O$3,0) -> 5794 | H10: =G10-F10 -> 1199 | K10: Increment 1 between Jan 15 to Dec 15 | P10: 2015-09-01
B11: 2015-08-01 | C11: 9 | D11: 2015-08-01 | E11: 38130 | F11: 4595 | G11: 5794 | H11: =G11-F11 -> 1199 | K11: Increment 2 between Jan 15 to Dec 15 | P11: No increment | T11: =HLOOKUP(T13,H34:CK35,2,TRUE) -> 39160
B12: 2015-09-01 | C12: 10 | D12: 2015-09-01 | E12: 40270 | F12: 4853 | G12: 6119 | H12: 1266
B13: 2015-10-01 | C13: 11 | D13: 2015-10-01 | E13: 40270 | F13: 4853 | G13: 6119 | H13: 1266 | T13: =HLOOKUP(T15,H34:CK35,2,TRUE) -> 40270
B14: 2015-11-01 | C14: 12 | D14: 2015-11-01 | E14: 40270 | F14: 4853 | G14: 6119 | H14: 1266
B15: 2015-12-01 | C15: 13 | D15: 2015-12-01 | E15: 40270 | F15: 4853 | G15: 6119 | H15: 1266 | K15: If Not correct,Then manually enter DA Amounts in Salary Sheet | T15: =HLOOKUP(E18,H34:CK35,2,TRUE) -> 41380
B16: No increment | C16: 14 | D16: 2016-01-01 | E16: 41380 | F16: 4987 | G16: 6288 | H16: 1301
B17: 2016-01-01 | C17: 15 | D17: 2016-02-01 | E17: 41380 | F17: 4987 | G17: 6288 | H17: 1301 | I17: DA 1
B18: 2016-02-01 | C18: 16 | D18: 2016-03-01 | E18: ='SALARY TABLE'!C5 -> 42490 | F18: 5121 | G18: 6457 | H18: 1336 | I18: =SUM(H4:H17) -> 17252
D19: 2016-04-01 | E19: ='SALARY TABLE'!C6 -> 42490 | F19: 5121 | G19: 6457 | H19: 1336 | Q19: =INDEX(B16:C18,MATCH(P9,B16:B18,0),2) -> 15 | R19: =IF(Q19=14,0,T15) -> 41380
D20: 2016-05-01 | E20: ='SALARY TABLE'!C7 -> 42490 | F20: 5121 | G20: 6457 | H20: 1336 | Q20: =INDEX(B3:C15,MATCH(P10,B3:B15,0),2) -> 10 | R20: =IF(Q20=1,IF(R19=0,R19,T13),T13) -> 40270
D21: 2016-06-01 | E21: ='SALARY TABLE'!C8 -> 42490 | F21: 5121 | G21: 6457 | H21: 1336 | I21: DA 2 | Q21: =INDEX(B3:C15,MATCH(P11,B3:B15,0),2) -> 1 | R21: =IF(Q21=1,R20,T11) -> 40270
D22: 2016-07-01 | E22: ='SALARY TABLE'!C9 -> 42490 | F22: 5121 | G22: 6457 | H22: 1336 | I22: =SUM(H10:H22) -> 16744
D23: 2016-08-01 | E23: ='SALARY TABLE'!C10 -> 42490 | F23: 5121 | G23: 6457 | H23: 1336
D24: 2016-09-01 | E24: ='SALARY TABLE'!C11 -> 42490 | F24: 5121 | G24: 6457 | H24: 1336
D25: 2016-10-01 | E25: ='SALARY TABLE'!C12 -> 42490 | F25: 5121 | G25: 6457 | H25: 1336
D26: 2016-11-01 | E26: ='SALARY TABLE'!C13 -> 42490 | F26: 5121 | G26: 6457 | H26: 1336
D27: 2016-12-01 | E27: ='SALARY TABLE'!C14 -> 42490 | F27: 5121 | G27: 6457 | H27: 1336
D28: 2017-01-01 | E28: ='SALARY TABLE'!C15 -> 43680 | F28: 5264 | G28: 6638 | H28: 1374
D29: 2017-02-01 | E29: ='SALARY TABLE'!C16 -> 43680 | F29: 5264 | G29: 6638 | H29: 1374
H34: 13000 | I34: 13390 | K34: 13780 | L34: 14170 | M34: 14600 | N34: 15030 | O34: 15460 | P34: 15930 | Q34: 1944-11-24 | R34: 16870 | S34: 17380 | T34: 17890 | U34: 18400 | V34: 18950 | W34: 19500 | X34: 20050 | Y34: 20640 | Z34: 21230 | AA34: 21820 | AB34: 22460 | AC34: 23100 | AD34: 23740 | AE34: 24440 | AF34: 25140 | AG34: 25840 | AH34: 26600 | AI34: 27360 | AJ34: 28120 | AK34: 28940 | AL34: 29760 | AM34: 30580 | AN34: 31460 | AO34: 32340 | AP34: 33220 | AQ34: 34170 | AR34: 35120 | AS34: 36070 | AT34: 37100 | AU34: 38130 | AV34: 39160 | AW34: 40270 | AX34: 41380 | AY34: 42490 | AZ34: 43680 | BA34: 44870 | BB34: 46060 | BC34: 47330 | BD34: 48600 | BE34: 49870 | BF34: 51230 | BG34: 52590 | BH34: 53950 | BI34: 55410 | BJ34: 56870 | BK34: 58330 | BL34: 59890 | BM34: 61450 | BN34: 63010 | BO34: 64670 | BP34: 66330 | BQ34: 67990 | BR34: 69750 | BS34: 71510 | BT34: 73270 | BU34: 75150 | BV34: 77030 | BW34: 78910 | BX34: 80930 | BY34: 82950 | BZ34: 84970 | CA34: 87130 | CB34: 89290 | CC34: 91450 | CD34: 93780 | CE34: 96110 | CF34: 98440 | CG34: 100770 | CH34: 103290 | CI34: 105810 | CJ34: 108330 | CK34: 110850
K35: 13390 | L35: 13780 | M35: 14170 | N35: 14600 | O35: 15030 | P35: 15460 | Q35: 1943-08-12 | R35: 16400 | S35: 16870 | T35: 17380 | U35: 17890 | V35: 18400 | W35: 18950 | X35: 19500 | Y35: 20050 | Z35: 20640 | AA35: 21230 | AB35: 21820 | AC35: 22460 | AD35: 23100 | AE35: 23740 | AF35: 24440 | AG35: 25140 | AH35: 25840 | AI35: 26600 | AJ35: 27360 | AK35: 28120 | AL35: 28940 | AM35: 29760 | AN35: 30580 | AO35: 31460 | AP35: 32340 | AQ35: 33220 | AR35: 34170 | AS35: 35120 | AT35: 36070 | AU35: 37100 | AV35: 38130 | AW35: 39160 | AX35: 40270 | AY35: 41380 | AZ35: 42490 | BA35: 43680 | BB35: 44870 | BC35: 46060 | BD35: 47330 | BE35: 48600 | BF35: 49870 | BG35: 51230 | BH35: 52590 | BI35: 53950 | BJ35: 55410 | BK35: 56870 | BL35: 58330 | BM35: 59890 | BN35: 61450 | BO35: 63010 | BP35: 64670 | BQ35: 66330 | BR35: 67990 | BS35: 69750 | BT35: 71510 | BU35: 73270 | BV35: 75150 | BW35: 77030 | BX35: 78910 | BY35: 80930 | BZ35: 82950 | CA35: 84970 | CB35: 87130 | CC35: 89290 | CD35: 91450 | CE35: 93780 | CF35: 96110 | CG35: 98440 | CH35: 100770 | CI35: 103290 | CJ35: 105810 | CK35: 108330
F45: Incre 1 | G45: Incre 2 | H45: Incre 3 | J45: Final Basic
C46: 2 | D46: 2015-01-01 | E46: =E47 -> 42490 | F46: =IF($Q$19=C46,$T$15,0) -> 0 | G46: =IF($Q$20=C46,$T$13,0) -> 0 | H46: =IF($Q$21=C46,$T$11,0) -> 0 | I46: =MAX(F46:H46) -> 0 | J46: =IF(I46=0,T9,LARGE(I46:I59,L47)) -> 38130 | L46: =COUNTIF(I46:I59,0) -> 12
C47: 3 | D47: 2015-02-01 | E47: 42490 | F47: 0 | G47: 0 | H47: 0 | I47: =MAX(F47:H47) -> 0 | J47: =IF(I47=0,J46,I47) -> 38130 | L47: =14-L46 -> 2
C48: 4 | D48: 2015-03-01 | E48: 42490 | F48: 0 | G48: 0 | H48: 0 | I48: 0 | J48: =IF(I48=0,J47,I48) -> 38130
C49: 5 | D49: 2015-04-01 | E49: 42490 | F49: 0 | G49: 0 | H49: 0 | I49: 0 | J49: =IF(I49=0,J48,I49) -> 38130
C50: 6 | D50: 2015-05-01 | E50: 42490 | F50: 0 | G50: 0 | H50: 0 | I50: 0 | J50: 38130
C51: 7 | D51: 2015-06-01 | E51: 42490 | F51: 0 | G51: 0 | H51: 0 | I51: 0 | J51: 38130
C52: 8 | D52: 2015-07-01 | E52: 42490 | F52: 0 | G52: 0 | H52: 0 | I52: 0 | J52: 38130
C53: 9 | D53: 2015-08-01 | E53: 42490 | F53: 0 | G53: 0 | H53: 0 | I53: 0 | J53: 38130
C54: 10 | D54: 2015-09-01 | E54: 42490 | F54: 0 | G54: 40270 | H54: 0 | I54: 40270 | J54: 40270
C55: 11 | D55: 2015-10-01 | E55: 42490 | F55: 0 | G55: 0 | H55: 0 | I55: 0 | J55: 40270
C56: 12 | D56: 2015-11-01 | E56: 42490 | F56: 0 | G56: 0 | H56: 0 | I56: 0 | J56: 40270
C57: 13 | D57: 2015-12-01 | E57: 42490 | F57: 0 | G57: 0 | H57: 0 | I57: 0 | J57: 40270
C58: 15 | D58: 2016-01-01 | E58: 42490 | F58: 41380 | G58: 0 | H58: 0 | I58: 41380 | J58: 41380
C59: 16 | D59: 2016-02-01 | E59: 42490 | F59: 0 | G59: 0 | H59: 0 | I59: 0 | J59: 41380
D60: 2016-03-01 | E60: =E18 -> 42490 | F60: =E60 -> 42490 | G60: =E60 -> 42490 | H60: =E60 -> 42490 | I60: =H60 -> 42490 | J60: =IF(I60=0,E60,I60) -> 42490
D61: 2016-04-01 | E61: 42490 | F61: 42490 | G61: 42490 | H61: 42490 | I61: 42490 | J61: 42490
D62: 2016-05-01 | E62: 42490 | F62: 42490 | G62: 42490 | H62: 42490 | I62: 42490 | J62: 42490
D63: 2016-06-01 | E63: 42490 | F63: 42490 | G63: 42490 | H63: 42490 | I63: 42490 | J63: 42490
D64: 2016-07-01 | E64: 42490 | F64: 42490 | G64: 42490 | H64: 42490 | I64: 42490 | J64: 42490
D65: 2016-08-01 | E65: 42490 | F65: 42490 | G65: 42490 | H65: 42490 | I65: 42490 | J65: 42490
D66: 2016-09-01 | E66: 42490 | F66: 42490 | G66: 42490 | H66: 42490 | I66: 42490 | J66: 42490
D67: 2016-10-01 | E67: 42490 | F67: 42490 | G67: 42490 | H67: 42490 | I67: 42490 | J67: 42490
D68: 2016-11-01 | E68: 42490 | F68: 42490 | G68: 42490 | H68: 42490 | I68: 42490 | J68: 42490
D69: 2016-12-01 | E69: 42490 | F69: 42490 | G69: 42490 | H69: 42490 | I69: 42490 | J69: 42490
D70: 2017-01-01 | E70: 43680 | F70: 43680 | G70: 43680 | H70: 43680 | I70: 43680 | J70: 43680
D71: 2017-02-01 | E71: 43680 | F71: 43680 | G71: 43680 | H71: 43680 | I71: 43680 | J71: 43680
